Workbook

Sheet Student Entry
A1: Student Entry
A2: School # 1 Name: | B2: School # 2 Name: | C2: School # 3 Name:
A3: Stillwater | B3: Osseo-Maple Grove | C3: Edina
A4: Student Names: | B4: Student Names: | C4: Student Names:
A5: Erin Wurgler | B5: Mikaela Crosby
A6: Maddie Stricker | B6: Annika Desphande
A7: Elly Blair | B7: Savanna Woods
A8: Samantha MacDonald | B8: Paulina Frayman
A9: Kya Hodgdon | B9: Kati Knox
A10: Leigha Kraft
A11: Adelee Wrightsman
A12: Maylin Kennedy
A13: Chloe Knuteson
A14: Kennedy Tope
A15: Anika Wright
A16: Nissa Wilcox
A17: Jillian Kulzer
A18: Alexis Montgomery
A19: Hannah Bliss
A20: Bella Formico
A21: Kyra Will
A22: Lauren Guinee
A23: Hayeon Lee
A24: Nina Djukelic
A25: Molly Goheen
A26: Berit Serle

Sheet Fig 1 Ballet Leg
B1: Figure #1: | C1: 101 R/L Ballet Leg, single, *right or *left
A2: # | B2: Degree of Difficulty | C2: Judge 1 | D2: Judge 2 | E2: Judge 3 | F2: Judge 4 | G2: Judge 5 | H2: Score | I2: Penalty
A3: =IF(Draw!E2=0,"",Draw!E2) -> 1 | B3: 1.6 | H3: =IF(B3="","",IF(K3=5,(SUM(C3:G3)-MAX(C3:G3)-MIN(C3:G3))/3,IF(K3=4,(SUM(C3:G3)-MAX(C3:G3))/3,SUM(C3:G3)/3))*B3/7.6) -> 0.000 | K3: =COUNT(C3:G3) -> 0
A4: =IF(Draw!E3=0,"",Draw!E3) -> 2 | B4: =IF(A4="","",B$3) -> 1.6 | C4: 60 | D4: 63 | E4: 63 | H4: =IF(B4="","",IF(K4=5,(SUM(C4:G4)-MAX(C4:G4)-MIN(C4:G4))/3,IF(K4=4,(SUM(C4:G4)-MAX(C4:G4))/3,SUM(C4:G4)/3))*B4/7.6) -> 13.053 | K4: =COUNT(C4:G4) -> 3
A5: =IF(Draw!E4=0,"",Draw!E4) -> 3 | B5: =IF(A5="","",B$3) -> 1.6 | C5: 48 | D5: 45 | E5: 44 | H5: 9.614 | K5: 3
A6: =IF(Draw!E5=0,"",Draw!E5) -> 4 | B6: 1.6 | C6: 49 | D6: 49 | E6: 50 | H6: =IF(B6="","",IF(K6=5,(SUM(C6:G6)-MAX(C6:G6)-MIN(C6:G6))/3,IF(K6=4,(SUM(C6:G6)-MAX(C6:G6))/3,SUM(C6:G6)/3))*B6/7.6) -> 10.386 | K6: 3
A7: =IF(Draw!E6=0,"",Draw!E6) -> 5 | B7: =IF(A7="","",B$3) -> 1.6 | C7: 54 | D7: 54 | E7: 51 | H7: 11.158 | K7: 3
A8: =IF(Draw!E7=0,"",Draw!E7) -> 6 | B8: 1.6 | C8: 53 | D8: 55 | E8: 50 | H8: 11.088 | K8: 3
A9: =IF(Draw!E8=0,"",Draw!E8) -> 7 | B9: 1.6 | C9: 64 | D9: 60 | E9: 64 | H9: 13.193 | K9: 3
A10: =IF(Draw!E9=0,"",Draw!E9) -> 8 | B10: 1.6 | C10: 41 | D10: 42 | E10: 43 | H10: 8.842 | K10: 3
A11: =IF(Draw!E10=0,"",Draw!E10) -> 9 | B11: 1.6 | C11: 56 | D11: 54 | E11: 50 | H11: 11.228 | K11: 3
A12: =IF(Draw!E11=0,"",Draw!E11) -> 10 | B12: 1.6 | C12: 54 | D12: 52 | E12: 45 | H12: 10.596 | K12: 3
A13: =IF(Draw!E12=0,"",Draw!E12) -> 11 | B13: 1.6 | C13: 63 | D13: 62 | E13: 60 | H13: 12.982 | K13: 3
A14: =IF(Draw!E13=0,"",Draw!E13) -> 12 | B14: 1.6 | C14: 60 | D14: 58 | E14: 60 | H14: 12.491 | K14: 3
A15: =IF(Draw!E14=0,"",Draw!E14) -> 13 | B15: 1.6 | C15: 59 | D15: 60 | E15: 62 | H15: 12.702 | K15: 3
A16: =IF(Draw!E15=0,"",Draw!E15) -> 14 | B16: 1.6 | C16: 60 | D16: 63 | E16: 64 | H16: 13.123 | K16: 3
A17: =IF(Draw!E16=0,"",Draw!E16) -> 15 | B17: 1.6 | C17: 52 | D17: 53 | E17: 53 | H17: 11.088 | K17: 3
A18: =IF(Draw!E17=0,"",Draw!E17) -> 16 | B18: 1.6 | C18: 60 | D18: 58 | E18: 63 | H18: 12.702 | K18: 3
A19: =IF(Draw!E18=0,"",Draw!E18) -> 17 | B19: 1.6 | C19: 60 | D19: 59 | E19: 59 | H19: 12.491 | K19: 3
A20: =IF(Draw!E19=0,"",Draw!E19) -> 18 | B20: 1.6 | C20: 43 | D20: 40 | E20: 42 | H20: 8.772 | K20: 3
A21: =IF(Draw!E20=0,"",Draw!E20) -> 19 | B21: 1.6 | H21: 0.000 | K21: 0
A22: =IF(Draw!E21=0,"",Draw!E21) -> 20 | B22: 1.6 | C22: 58 | D22: 62 | E22: 54 | H22: 12.211 | K22: 3
A23: =IF(Draw!E22=0,"",Draw!E22) -> 21 | B23: 1.6 | C23: 66 | D23: 62 | E23: 62 | H23: 13.333 | K23: 3
A24: =IF(Draw!E23=0,"",Draw!E23) -> 22 | B24: 1.6 | C24: 51 | D24: 50 | E24: 43 | H24: 10.105 | K24: 3
A25: =IF(Draw!E24=0,"",Draw!E24) -> 23 | B25: 1.6 | C25: 52 | D25: 51 | E25: 51 | H25: 10.807 | K25: 3
A26: =IF(Draw!E25=0,"",Draw!E25) -> 24 | B26: 1.6 | C26: 58 | D26: 59 | E26: 59 | H26: 12.351 | K26: 3
A27: =IF(Draw!E26=0,"",Draw!E26) -> 25 | B27: 1.6 | C27: 64 | D27: 65 | E27: 63 | H27: 13.474 | K27: 3
A28: =IF(Draw!E27=0,"",Draw!E27) -> 26 | B28: 1.6 | C28: 57 | D28: 56 | E28: 52 | H28: 11.579 | K28: 3
A29: =IF(Draw!E28=0,"",Draw!E28) -> 27 | B29: 1.6 | C29: 40 | D29: 40 | E29: 42 | H29: 8.561 | K29: 3
A30: =IF(Draw!E29=0,"",Draw!E29) -> 28 | B30: 1.6 | C30: 48 | D30: 48 | E30: 45 | H30: 9.895 | K30: 3
A31: =IF(Draw!E30=0,"",Draw!E30) ->  | K31: 0
A32: =IF(Draw!E31=0,"",Draw!E31) ->  | K32: 0
A33: =IF(Draw!E32=0,"",Draw!E32) ->  | K33: 0
A34: =IF(Draw!E33=0,"",Draw!E33) ->  | K34: 0
A35: =IF(Draw!E34=0,"",Draw!E34) ->  | K35: 0
A36: =IF(Draw!E35=0,"",Draw!E35) ->  | K36: 0
A37: =IF(Draw!E36=0,"",Draw!E36) ->  | K37: 0
A38: =IF(Draw!E37=0,"",Draw!E37) ->  | K38: 0
A39: =IF(Draw!E38=0,"",Draw!E38) ->  | K39: 0
A40: =IF(Draw!E39=0,"",Draw!E39) ->  | K40: 0
A41: =IF(Draw!E40=0,"",Draw!E40) ->  | K41: 0
A42: =IF(Draw!E41=0,"",Draw!E41) ->  | K42: 0
A43: =IF(Draw!E42=0,"",Draw!E42) ->  | K43: 0
A44: =IF(Draw!E43=0,"",Draw!E43) ->  | K44: 0
A45: =IF(Draw!E44=0,"",Draw!E44) ->  | K45: 0
A46: =IF(Draw!E45=0,"",Draw!E45) ->  | K46: 0
A47: =IF(Draw!E46=0,"",Draw!E46) ->  | K47: 0
A48: =IF(Draw!E47=0,"",Draw!E47) ->  | K48: 0
A49: =IF(Draw!E48=0,"",Draw!E48) ->  | K49: 0
A50: =IF(Draw!E49=0,"",Draw!E49) ->  | K50: 0
A51: =IF(Draw!E50=0,"",Draw!E50) ->  | K51: 0
A52: =IF(Draw!E51=0,"",Draw!E51) ->  | K52: 0
A53: =IF(Draw!E52=0,"",Draw!E52) ->  | K53: 0
A54: =IF(Draw!E53=0,"",Draw!E53) ->  | K54: 0
A55: =IF(Draw!E54=0,"",Draw!E54) ->  | K55: 0
A56: =IF(Draw!E55=0,"",Draw!E55) ->  | K56: 0
A57: =IF(Draw!E56=0,"",Draw!E56) ->  | K57: 0
A58: =IF(Draw!E57=0,"",Draw!E57) ->  | K58: 0
A59: =IF(Draw!E58=0,"",Draw!E58) ->  | K59: 0
A60: =IF(Draw!E59=0,"",Draw!E59) ->  | K60: 0
A61: =IF(Draw!E60=0,"",Draw!E60) ->  | K61: 0
A62: =IF(Draw!E61=0,"",Draw!E61) ->  | K62: 0
A63: =IF(Draw!E62=0,"",Draw!E62) ->  | K63: 0
A64: =IF(Draw!E63=0,"",Draw!E63) ->  | K64: 0
A65: =IF(Draw!E64=0,"",Draw!E64) ->  | K65: 0
A66: =IF(Draw!E65=0,"",Draw!E65) ->  | K66: 0
A67: =IF(Draw!E66=0,"",Draw!E66) ->  | K67: 0
A68: =IF(Draw!E67=0,"",Draw!E67) ->  | K68: =COUNT(C68:G68) -> 0
A69: =IF(Draw!E68=0,"",Draw!E68) ->  | K69: 0
A70: =IF(Draw!E69=0,"",Draw!E69) ->  | H70: =IF(B70="","",IF(K70=5,(SUM(C70:G70)-MAX(C70:G70)-MIN(C70:G70))/3,IF(K70=4,(SUM(C70:G70)-MAX(C70:G70))/3,SUM(C70:G70)/3))*B70/7.6) ->  | K70: 0
A71: =IF(Draw!E70=0,"",Draw!E70) ->  | B71: =IF(A71="","",B$3) ->  | K71: 0
A72: =IF(Draw!E71=0,"",Draw!E71) ->  | K72: 0
A73: =IF(Draw!E72=0,"",Draw!E72) ->  | K73: 0
A74: =IF(Draw!E73=0,"",Draw!E73) ->  | K74: 0
A75: =IF(Draw!E74=0,"",Draw!E74) ->  | K75: 0
A76: =IF(Draw!E75=0,"",Draw!E75) ->  | K76: 0
A77: =IF(Draw!E76=0,"",Draw!E76) ->  | K77: 0
A78: =IF(Draw!E77=0,"",Draw!E77) ->  | K78: 0
A79: =IF(Draw!E78=0,"",Draw!E78) ->  | K79: 0
A80: =IF(Draw!E79=0,"",Draw!E79) ->  | K80: 0
A81: =IF(Draw!E80=0,"",Draw!E80) ->  | K81: 0
A82: =IF(Draw!E81=0,"",Draw!E81) ->  | K82: 0
A83: =IF(Draw!E82=0,"",Draw!E82) ->  | K83: 0
A84: =IF(Draw!E83=0,"",Draw!E83) ->  | K84: 0
A85: =IF(Draw!E84=0,"",Draw!E84) ->  | K85: 0
A86: =IF(Draw!E85=0,"",Draw!E85) ->  | K86: 0
A87: =IF(Draw!E86=0,"",Draw!E86) ->  | K87: 0
A88: =IF(Draw!E87=0,"",Draw!E87) ->  | K88: 0
A89: =IF(Draw!E88=0,"",Draw!E88) ->  | K89: 0
A90: =IF(Draw!E89=0,"",Draw!E89) ->  | K90: 0
A91: =IF(Draw!E90=0,"",Draw!E90) ->  | K91: 0
A92: =IF(Draw!E91=0,"",Draw!E91) ->  | K92: 0
A93: =IF(Draw!E92=0,"",Draw!E92) ->  | K93: 0
A94: =IF(Draw!E93=0,"",Draw!E93) ->  | K94: 0
A95: =IF(Draw!E94=0,"",Draw!E94) ->  | K95: 0
A96: =IF(Draw!E95=0,"",Draw!E95) ->  | K96: 0
A97: =IF(Draw!E96=0,"",Draw!E96) ->  | K97: 0
A98: =IF(Draw!E97=0,"",Draw!E97) ->  | K98: 0
A99: =IF(Draw!E98=0,"",Draw!E98) ->  | K99: 0
A100: =IF(Draw!E99=0,"",Draw!E99) ->  | K100: 0
A101: =IF(Draw!E100=0,"",Draw!E100) ->  | K101: 0
A102: =IF(Draw!E101=0,"",Draw!E101) ->  | K102: 0
A103: =IF(Draw!E102=0,"",Draw!E102) ->  | K103: 0
A104: =IF(Draw!E103=0,"",Draw!E103) ->  | K104: 0
A105: =IF(Draw!E104=0,"",Draw!E104) ->  | K105: 0
A106: =IF(Draw!E105=0,"",Draw!E105) ->  | K106: 0
A107: =IF(Draw!E106=0,"",Draw!E106) ->  | K107: 0
A108: =IF(Draw!E107=0,"",Draw!E107) ->  | K108: 0
A109: =IF(Draw!E108=0,"",Draw!E108) ->  | K109: 0
A110: =IF(Draw!E109=0,"",Draw!E109) ->  | K110: 0
A111: =IF(Draw!E110=0,"",Draw!E110) ->  | K111: 0
A112: =IF(Draw!E111=0,"",Draw!E111) ->  | K112: 0
A113: =IF(Draw!E112=0,"",Draw!E112) ->  | K113: 0
A114: =IF(Draw!E113=0,"",Draw!E113) ->  | K114: 0
A115: =IF(Draw!E114=0,"",Draw!E114) ->  | K115: 0
A116: =IF(Draw!E115=0,"",Draw!E115) ->  | K116: 0
A117: =IF(Draw!E116=0,"",Draw!E116) ->  | K117: 0
A118: =IF(Draw!E117=0,"",Draw!E117) ->  | K118: 0
A119: =IF(Draw!E118=0,"",Draw!E118) ->  | K119: 0
A120: =IF(Draw!E119=0,"",Draw!E119) ->  | K120: 0
A121: =IF(Draw!E120=0,"",Draw!E120) ->  | K121: 0
A122: =IF(Draw!E121=0,"",Draw!E121) ->  | K122: 0
A123: =IF(Draw!E122=0,"",Draw!E122) ->  | K123: 0
A124: =IF(Draw!E123=0,"",Draw!E123) ->  | K124: 0
A125: =IF(Draw!E124=0,"",Draw!E124) ->  | K125: 0
A126: =IF(Draw!E125=0,"",Draw!E125) ->  | K126: 0
A127: =IF(Draw!E126=0,"",Draw!E126) ->  | K127: 0
A128: =IF(Draw!E127=0,"",Draw!E127) ->  | K128: 0
A129: =IF(Draw!E128=0,"",Draw!E128) ->  | K129: 0
A130: =IF(Draw!E129=0,"",Draw!E129) ->  | K130: 0
A131: =IF(Draw!E130=0,"",Draw!E130) ->  | K131: 0
A132: =IF(Draw!E131=0,"",Draw!E131) ->  | K132: =COUNT(C132:G132) -> 0
A133: =IF(Draw!E132=0,"",Draw!E132) ->  | K133: 0
A134: =IF(Draw!E133=0,"",Draw!E133) ->  | H134: =IF(B134="","",IF(K134=5,(SUM(C134:G134)-MAX(C134:G134)-MIN(C134:G134))/3,IF(K134=4,(SUM(C134:G134)-MAX(C134:G134))/3,SUM(C134:G134)/3))*B134/7.6) ->  | K134: 0
A135: =IF(Draw!E134=0,"",Draw!E134) ->  | B135: =IF(A135="","",B$3) ->  | K135: 0
A136: =IF(Draw!E135=0,"",Draw!E135) ->  | K136: 0
A137: =IF(Draw!E136=0,"",Draw!E136) ->  | K137: 0
A138: =IF(Draw!E137=0,"",Draw!E137) ->  | K138: 0
A139: =IF(Draw!E138=0,"",Draw!E138) ->  | K139: 0
A140: =IF(Draw!E139=0,"",Draw!E139) ->  | K140: 0
A141: =IF(Draw!E140=0,"",Draw!E140) ->  | K141: 0
A142: =IF(Draw!E141=0,"",Draw!E141) ->  | K142: 0
A143: =IF(Draw!E142=0,"",Draw!E142) ->  | K143: 0
A144: =IF(Draw!E143=0,"",Draw!E143) ->  | K144: 0
A145: =IF(Draw!E144=0,"",Draw!E144) ->  | K145: 0
A146: =IF(Draw!E145=0,"",Draw!E145) ->  | K146: 0
A147: =IF(Draw!E146=0,"",Draw!E146) ->  | K147: 0
A148: =IF(Draw!E147=0,"",Draw!E147) ->  | K148: 0
A149: =IF(Draw!E148=0,"",Draw!E148) ->  | K149: 0
A150: =IF(Draw!E149=0,"",Draw!E149) ->  | K150: 0

Sheet Fig 2 Kip
B1: Figure #2: | C1: 311 Kip
A2: # | B2: Degree of Difficulty | C2: Judge 1 | D2: Judge 2 | E2: Judge 3 | F2: Judge 4 | G2: Judge 5 | H2: Score | I2: Penalty
A3: =IF(Draw!E2=0,"",Draw!E2) -> 1 | B3: 1.8 | H3: =IF(B3="","",IF(K3=5,(SUM(C3:G3)-MAX(C3:G3)-MIN(C3:G3))/3,IF(K3=4,(SUM(C3:G3)-MAX(C3:G3))/3,SUM(C3:G3)/3))*B3/7.6) -> 0.000 | K3: =COUNT(C3:G3) -> 0
A4: =IF(Draw!E3=0,"",Draw!E3) -> 2 | B4: =IF(A4="","",B$3) -> 1.8 | C4: 57 | D4: 60 | E4: 56 | H4: =IF(B4="","",IF(K4=5,(SUM(C4:G4)-MAX(C4:G4)-MIN(C4:G4))/3,IF(K4=4,(SUM(C4:G4)-MAX(C4:G4))/3,SUM(C4:G4)/3))*B4/7.6) -> 13.658 | K4: =COUNT(C4:G4) -> 3
A5: =IF(Draw!E4=0,"",Draw!E4) -> 3 | B5: =IF(A5="","",B$3) -> 1.8 | C5: 48 | D5: 50 | E5: 46 | H5: =IF(B5="","",IF(K5=5,(SUM(C5:G5)-MAX(C5:G5)-MIN(C5:G5))/3,IF(K5=4,(SUM(C5:G5)-MAX(C5:G5))/3,SUM(C5:G5)/3))*B5/7.6) -> 11.368 | K5: 3
A6: =IF(Draw!E5=0,"",Draw!E5) -> 4 | B6: 1.8 | C6: 57 | D6: 53 | E6: 50 | H6: =IF(B6="","",IF(K6=5,(SUM(C6:G6)-MAX(C6:G6)-MIN(C6:G6))/3,IF(K6=4,(SUM(C6:G6)-MAX(C6:G6))/3,SUM(C6:G6)/3))*B6/7.6) -> 12.632 | K6: 3
A7: =IF(Draw!E6=0,"",Draw!E6) -> 5 | B7: =IF(A7="","",B$3) -> 1.8 | C7: 57 | D7: 55 | E7: 51 | H7: =IF(B7="","",IF(K7=5,(SUM(C7:G7)-MAX(C7:G7)-MIN(C7:G7))/3,IF(K7=4,(SUM(C7:G7)-MAX(C7:G7))/3,SUM(C7:G7)/3))*B7/7.6) -> 12.868 | K7: 3
A8: =IF(Draw!E7=0,"",Draw!E7) -> 6 | B8: 1.8 | C8: 54 | D8: 52 | E8: 53 | H8: =IF(B8="","",IF(K8=5,(SUM(C8:G8)-MAX(C8:G8)-MIN(C8:G8))/3,IF(K8=4,(SUM(C8:G8)-MAX(C8:G8))/3,SUM(C8:G8)/3))*B8/7.6) -> 12.553 | K8: 3
A9: =IF(Draw!E8=0,"",Draw!E8) -> 7 | B9: 1.8 | C9: 62 | D9: 64 | E9: 65 | H9: =IF(B9="","",IF(K9=5,(SUM(C9:G9)-MAX(C9:G9)-MIN(C9:G9))/3,IF(K9=4,(SUM(C9:G9)-MAX(C9:G9))/3,SUM(C9:G9)/3))*B9/7.6) -> 15.079 | K9: 3
A10: =IF(Draw!E9=0,"",Draw!E9) -> 8 | B10: 1.8 | C10: 46 | D10: 50 | E10: 44 | H10: =IF(B10="","",IF(K10=5,(SUM(C10:G10)-MAX(C10:G10)-MIN(C10:G10))/3,IF(K10=4,(SUM(C10:G10)-MAX(C10:G10))/3,SUM(C10:G10)/3))*B10/7.6) -> 11.053 | K10: 3
A11: =IF(Draw!E10=0,"",Draw!E10) -> 9 | B11: 1.8 | C11: 47 | D11: 51 | E11: 50 | H11: =IF(B11="","",IF(K11=5,(SUM(C11:G11)-MAX(C11:G11)-MIN(C11:G11))/3,IF(K11=4,(SUM(C11:G11)-MAX(C11:G11))/3,SUM(C11:G11)/3))*B11/7.6) -> 11.684 | K11: 3
A12: =IF(Draw!E11=0,"",Draw!E11) -> 10 | B12: 1.8 | C12: 48 | D12: 49 | E12: 48 | H12: =IF(B12="","",IF(K12=5,(SUM(C12:G12)-MAX(C12:G12)-MIN(C12:G12))/3,IF(K12=4,(SUM(C12:G12)-MAX(C12:G12))/3,SUM(C12:G12)/3))*B12/7.6) -> 11.447 | K12: 3
A13: =IF(Draw!E12=0,"",Draw!E12) -> 11 | B13: 1.8 | C13: 55 | D13: 56 | E13: 54 | H13: =IF(B13="","",IF(K13=5,(SUM(C13:G13)-MAX(C13:G13)-MIN(C13:G13))/3,IF(K13=4,(SUM(C13:G13)-MAX(C13:G13))/3,SUM(C13:G13)/3))*B13/7.6) -> 13.026 | K13: 3
A14: =IF(Draw!E13=0,"",Draw!E13) -> 12 | B14: 1.8 | C14: 54 | D14: 54 | E14: 52 | H14: =IF(B14="","",IF(K14=5,(SUM(C14:G14)-MAX(C14:G14)-MIN(C14:G14))/3,IF(K14=4,(SUM(C14:G14)-MAX(C14:G14))/3,SUM(C14:G14)/3))*B14/7.6) -> 12.632 | K14: 3
A15: =IF(Draw!E14=0,"",Draw!E14) -> 13 | B15: 1.8 | C15: 55 | D15: 57 | E15: 56 | H15: =IF(B15="","",IF(K15=5,(SUM(C15:G15)-MAX(C15:G15)-MIN(C15:G15))/3,IF(K15=4,(SUM(C15:G15)-MAX(C15:G15))/3,SUM(C15:G15)/3))*B15/7.6) -> 13.263 | K15: 3
A16: =IF(Draw!E15=0,"",Draw!E15) -> 14 | B16: 1.8 | C16: 59 | D16: 55 | E16: 55 | H16: =IF(B16="","",IF(K16=5,(SUM(C16:G16)-MAX(C16:G16)-MIN(C16:G16))/3,IF(K16=4,(SUM(C16:G16)-MAX(C16:G16))/3,SUM(C16:G16)/3))*B16/7.6) -> 13.342 | K16: 3
A17: =IF(Draw!E16=0,"",Draw!E16) -> 15 | B17: 1.8 | C17: 53 | D17: 51 | E17: 53 | H17: =IF(B17="","",IF(K17=5,(SUM(C17:G17)-MAX(C17:G17)-MIN(C17:G17))/3,IF(K17=4,(SUM(C17:G17)-MAX(C17:G17))/3,SUM(C17:G17)/3))*B17/7.6) -> 12.395 | K17: 3
A18: =IF(Draw!E17=0,"",Draw!E17) -> 16 | B18: 1.8 | C18: 62 | D18: 60 | E18: 60 | H18: =IF(B18="","",IF(K18=5,(SUM(C18:G18)-MAX(C18:G18)-MIN(C18:G18))/3,IF(K18=4,(SUM(C18:G18)-MAX(C18:G18))/3,SUM(C18:G18)/3))*B18/7.6) -> 14.368 | K18: 3
A19: =IF(Draw!E18=0,"",Draw!E18) -> 17 | B19: 1.8 | C19: 60 | D19: 62 | E19: 60 | H19: =IF(B19="","",IF(K19=5,(SUM(C19:G19)-MAX(C19:G19)-MIN(C19:G19))/3,IF(K19=4,(SUM(C19:G19)-MAX(C19:G19))/3,SUM(C19:G19)/3))*B19/7.6) -> 14.368 | K19: 3
A20: =IF(Draw!E19=0,"",Draw!E19) -> 18 | B20: 1.8 | C20: 47 | D20: 47 | E20: 44 | H20: =IF(B20="","",IF(K20=5,(SUM(C20:G20)-MAX(C20:G20)-MIN(C20:G20))/3,IF(K20=4,(SUM(C20:G20)-MAX(C20:G20))/3,SUM(C20:G20)/3))*B20/7.6) -> 10.895 | K20: 3
A21: =IF(Draw!E20=0,"",Draw!E20) -> 19 | B21: 1.8 | H21: =IF(B21="","",IF(K21=5,(SUM(C21:G21)-MAX(C21:G21)-MIN(C21:G21))/3,IF(K21=4,(SUM(C21:G21)-MAX(C21:G21))/3,SUM(C21:G21)/3))*B21/7.6) -> 0.000 | K21: 0
A22: =IF(Draw!E21=0,"",Draw!E21) -> 20 | B22: 1.8 | C22: 52 | D22: 54 | E22: 53 | H22: =IF(B22="","",IF(K22=5,(SUM(C22:G22)-MAX(C22:G22)-MIN(C22:G22))/3,IF(K22=4,(SUM(C22:G22)-MAX(C22:G22))/3,SUM(C22:G22)/3))*B22/7.6) -> 12.553 | K22: 3
A23: =IF(Draw!E22=0,"",Draw!E22) -> 21 | B23: 1.8 | C23: 62 | D23: 63 | E23: 61 | H23: =IF(B23="","",IF(K23=5,(SUM(C23:G23)-MAX(C23:G23)-MIN(C23:G23))/3,IF(K23=4,(SUM(C23:G23)-MAX(C23:G23))/3,SUM(C23:G23)/3))*B23/7.6) -> 14.684 | K23: 3
A24: =IF(Draw!E23=0,"",Draw!E23) -> 22 | B24: 1.8 | C24: 48 | D24: 46 | E24: 52 | H24: =IF(B24="","",IF(K24=5,(SUM(C24:G24)-MAX(C24:G24)-MIN(C24:G24))/3,IF(K24=4,(SUM(C24:G24)-MAX(C24:G24))/3,SUM(C24:G24)/3))*B24/7.6) -> 11.526 | K24: 3
A25: =IF(Draw!E24=0,"",Draw!E24) -> 23 | B25: 1.8 | C25: 50 | D25: 54 | E25: 61 | H25: =IF(B25="","",IF(K25=5,(SUM(C25:G25)-MAX(C25:G25)-MIN(C25:G25))/3,IF(K25=4,(SUM(C25:G25)-MAX(C25:G25))/3,SUM(C25:G25)/3))*B25/7.6) -> 13.026 | K25: 3
A26: =IF(Draw!E25=0,"",Draw!E25) -> 24 | B26: 1.8 | C26: 54 | D26: 54 | E26: 51 | H26: =IF(B26="","",IF(K26=5,(SUM(C26:G26)-MAX(C26:G26)-MIN(C26:G26))/3,IF(K26=4,(SUM(C26:G26)-MAX(C26:G26))/3,SUM(C26:G26)/3))*B26/7.6) -> 12.553 | K26: 3
A27: =IF(Draw!E26=0,"",Draw!E26) -> 25 | B27: 1.8 | C27: 63 | D27: 62 | E27: 57 | H27: =IF(B27="","",IF(K27=5,(SUM(C27:G27)-MAX(C27:G27)-MIN(C27:G27))/3,IF(K27=4,(SUM(C27:G27)-MAX(C27:G27))/3,SUM(C27:G27)/3))*B27/7.6) -> 14.368 | K27: 3
A28: =IF(Draw!E27=0,"",Draw!E27) -> 26 | B28: 1.8 | C28: 55 | D28: 57 | E28: 57 | H28: =IF(B28="","",IF(K28=5,(SUM(C28:G28)-MAX(C28:G28)-MIN(C28:G28))/3,IF(K28=4,(SUM(C28:G28)-MAX(C28:G28))/3,SUM(C28:G28)/3))*B28/7.6) -> 13.342 | K28: 3
A29: =IF(Draw!E28=0,"",Draw!E28) -> 27 | B29: 1.8 | C29: 48 | D29: 42 | E29: 43 | H29: =IF(B29="","",IF(K29=5,(SUM(C29:G29)-MAX(C29:G29)-MIN(C29:G29))/3,IF(K29=4,(SUM(C29:G29)-MAX(C29:G29))/3,SUM(C29:G29)/3))*B29/7.6) -> 10.500 | K29: 3
A30: =IF(Draw!E29=0,"",Draw!E29) -> 28 | B30: 1.8 | C30: 50 | D30: 52 | E30: 50 | H30: =IF(B30="","",IF(K30=5,(SUM(C30:G30)-MAX(C30:G30)-MIN(C30:G30))/3,IF(K30=4,(SUM(C30:G30)-MAX(C30:G30))/3,SUM(C30:G30)/3))*B30/7.6) -> 12.000 | K30: 3
A31: =IF(Draw!E30=0,"",Draw!E30) ->  | H31: =IF(B31="","",IF(K31=5,(SUM(C31:G31)-MAX(C31:G31)-MIN(C31:G31))/3,IF(K31=4,(SUM(C31:G31)-MAX(C31:G31))/3,SUM(C31:G31)/3))*B31/7.6) ->  | K31: 0
A32: =IF(Draw!E31=0,"",Draw!E31) ->  | H32: =IF(B32="","",IF(K32=5,(SUM(C32:G32)-MAX(C32:G32)-MIN(C32:G32))/3,IF(K32=4,(SUM(C32:G32)-MAX(C32:G32))/3,SUM(C32:G32)/3))*B32/7.6) ->  | K32: 0
A33: =IF(Draw!E32=0,"",Draw!E32) ->  | H33: =IF(B33="","",IF(K33=5,(SUM(C33:G33)-MAX(C33:G33)-MIN(C33:G33))/3,IF(K33=4,(SUM(C33:G33)-MAX(C33:G33))/3,SUM(C33:G33)/3))*B33/7.6) ->  | K33: 0
A34: =IF(Draw!E33=0,"",Draw!E33) ->  | H34: =IF(B34="","",IF(K34=5,(SUM(C34:G34)-MAX(C34:G34)-MIN(C34:G34))/3,IF(K34=4,(SUM(C34:G34)-MAX(C34:G34))/3,SUM(C34:G34)/3))*B34/7.6) ->  | K34: 0
A35: =IF(Draw!E34=0,"",Draw!E34) ->  | H35: =IF(B35="","",IF(K35=5,(SUM(C35:G35)-MAX(C35:G35)-MIN(C35:G35))/3,IF(K35=4,(SUM(C35:G35)-MAX(C35:G35))/3,SUM(C35:G35)/3))*B35/7.6) ->  | K35: 0
A36: =IF(Draw!E35=0,"",Draw!E35) ->  | H36: =IF(B36="","",IF(K36=5,(SUM(C36:G36)-MAX(C36:G36)-MIN(C36:G36))/3,IF(K36=4,(SUM(C36:G36)-MAX(C36:G36))/3,SUM(C36:G36)/3))*B36/7.6) ->  | K36: 0
A37: =IF(Draw!E36=0,"",Draw!E36) ->  | H37: =IF(B37="","",IF(K37=5,(SUM(C37:G37)-MAX(C37:G37)-MIN(C37:G37))/3,IF(K37=4,(SUM(C37:G37)-MAX(C37:G37))/3,SUM(C37:G37)/3))*B37/7.6) ->  | K37: 0
A38: =IF(Draw!E37=0,"",Draw!E37) ->  | H38: =IF(B38="","",IF(K38=5,(SUM(C38:G38)-MAX(C38:G38)-MIN(C38:G38))/3,IF(K38=4,(SUM(C38:G38)-MAX(C38:G38))/3,SUM(C38:G38)/3))*B38/7.6) ->  | K38: 0
A39: =IF(Draw!E38=0,"",Draw!E38) ->  | H39: =IF(B39="","",IF(K39=5,(SUM(C39:G39)-MAX(C39:G39)-MIN(C39:G39))/3,IF(K39=4,(SUM(C39:G39)-MAX(C39:G39))/3,SUM(C39:G39)/3))*B39/7.6) ->  | K39: 0
A40: =IF(Draw!E39=0,"",Draw!E39) ->  | H40: =IF(B40="","",IF(K40=5,(SUM(C40:G40)-MAX(C40:G40)-MIN(C40:G40))/3,IF(K40=4,(SUM(C40:G40)-MAX(C40:G40))/3,SUM(C40:G40)/3))*B40/7.6) ->  | K40: 0
A41: =IF(Draw!E40=0,"",Draw!E40) ->  | H41: =IF(B41="","",IF(K41=5,(SUM(C41:G41)-MAX(C41:G41)-MIN(C41:G41))/3,IF(K41=4,(SUM(C41:G41)-MAX(C41:G41))/3,SUM(C41:G41)/3))*B41/7.6) ->  | K41: 0
A42: =IF(Draw!E41=0,"",Draw!E41) ->  | H42: =IF(B42="","",IF(K42=5,(SUM(C42:G42)-MAX(C42:G42)-MIN(C42:G42))/3,IF(K42=4,(SUM(C42:G42)-MAX(C42:G42))/3,SUM(C42:G42)/3))*B42/7.6) ->  | K42: 0
A43: =IF(Draw!E42=0,"",Draw!E42) ->  | H43: =IF(B43="","",IF(K43=5,(SUM(C43:G43)-MAX(C43:G43)-MIN(C43:G43))/3,IF(K43=4,(SUM(C43:G43)-MAX(C43:G43))/3,SUM(C43:G43)/3))*B43/7.6) ->  | K43: 0
A44: =IF(Draw!E43=0,"",Draw!E43) ->  | H44: =IF(B44="","",IF(K44=5,(SUM(C44:G44)-MAX(C44:G44)-MIN(C44:G44))/3,IF(K44=4,(SUM(C44:G44)-MAX(C44:G44))/3,SUM(C44:G44)/3))*B44/7.6) ->  | K44: 0
A45: =IF(Draw!E44=0,"",Draw!E44) ->  | H45: =IF(B45="","",IF(K45=5,(SUM(C45:G45)-MAX(C45:G45)-MIN(C45:G45))/3,IF(K45=4,(SUM(C45:G45)-MAX(C45:G45))/3,SUM(C45:G45)/3))*B45/7.6) ->  | K45: 0
A46: =IF(Draw!E45=0,"",Draw!E45) ->  | H46: =IF(B46="","",IF(K46=5,(SUM(C46:G46)-MAX(C46:G46)-MIN(C46:G46))/3,IF(K46=4,(SUM(C46:G46)-MAX(C46:G46))/3,SUM(C46:G46)/3))*B46/7.6) ->  | K46: 0
A47: =IF(Draw!E46=0,"",Draw!E46) ->  | H47: =IF(B47="","",IF(K47=5,(SUM(C47:G47)-MAX(C47:G47)-MIN(C47:G47))/3,IF(K47=4,(SUM(C47:G47)-MAX(C47:G47))/3,SUM(C47:G47)/3))*B47/7.6) ->  | K47: 0
A48: =IF(Draw!E47=0,"",Draw!E47) ->  | H48: =IF(B48="","",IF(K48=5,(SUM(C48:G48)-MAX(C48:G48)-MIN(C48:G48))/3,IF(K48=4,(SUM(C48:G48)-MAX(C48:G48))/3,SUM(C48:G48)/3))*B48/7.6) ->  | K48: 0
A49: =IF(Draw!E48=0,"",Draw!E48) ->  | H49: =IF(B49="","",IF(K49=5,(SUM(C49:G49)-MAX(C49:G49)-MIN(C49:G49))/3,IF(K49=4,(SUM(C49:G49)-MAX(C49:G49))/3,SUM(C49:G49)/3))*B49/7.6) ->  | K49: 0
A50: =IF(Draw!E49=0,"",Draw!E49) ->  | H50: =IF(B50="","",IF(K50=5,(SUM(C50:G50)-MAX(C50:G50)-MIN(C50:G50))/3,IF(K50=4,(SUM(C50:G50)-MAX(C50:G50))/3,SUM(C50:G50)/3))*B50/7.6) ->  | K50: 0
A51: =IF(Draw!E50=0,"",Draw!E50) ->  | H51: =IF(B51="","",IF(K51=5,(SUM(C51:G51)-MAX(C51:G51)-MIN(C51:G51))/3,IF(K51=4,(SUM(C51:G51)-MAX(C51:G51))/3,SUM(C51:G51)/3))*B51/7.6) ->  | K51: 0
A52: =IF(Draw!E51=0,"",Draw!E51) ->  | H52: =IF(B52="","",IF(K52=5,(SUM(C52:G52)-MAX(C52:G52)-MIN(C52:G52))/3,IF(K52=4,(SUM(C52:G52)-MAX(C52:G52))/3,SUM(C52:G52)/3))*B52/7.6) ->  | K52: 0
A53: =IF(Draw!E52=0,"",Draw!E52) ->  | H53: =IF(B53="","",IF(K53=5,(SUM(C53:G53)-MAX(C53:G53)-MIN(C53:G53))/3,IF(K53=4,(SUM(C53:G53)-MAX(C53:G53))/3,SUM(C53:G53)/3))*B53/7.6) ->  | K53: 0
A54: =IF(Draw!E53=0,"",Draw!E53) ->  | H54: =IF(B54="","",IF(K54=5,(SUM(C54:G54)-MAX(C54:G54)-MIN(C54:G54))/3,IF(K54=4,(SUM(C54:G54)-MAX(C54:G54))/3,SUM(C54:G54)/3))*B54/7.6) ->  | K54: 0
A55: =IF(Draw!E54=0,"",Draw!E54) ->  | H55: =IF(B55="","",IF(K55=5,(SUM(C55:G55)-MAX(C55:G55)-MIN(C55:G55))/3,IF(K55=4,(SUM(C55:G55)-MAX(C55:G55))/3,SUM(C55:G55)/3))*B55/7.6) ->  | K55: 0
A56: =IF(Draw!E55=0,"",Draw!E55) ->  | H56: =IF(B56="","",IF(K56=5,(SUM(C56:G56)-MAX(C56:G56)-MIN(C56:G56))/3,IF(K56=4,(SUM(C56:G56)-MAX(C56:G56))/3,SUM(C56:G56)/3))*B56/7.6) ->  | K56: 0
A57: =IF(Draw!E56=0,"",Draw!E56) ->  | H57: =IF(B57="","",IF(K57=5,(SUM(C57:G57)-MAX(C57:G57)-MIN(C57:G57))/3,IF(K57=4,(SUM(C57:G57)-MAX(C57:G57))/3,SUM(C57:G57)/3))*B57/7.6) ->  | K57: 0
A58: =IF(Draw!E57=0,"",Draw!E57) ->  | H58: =IF(B58="","",IF(K58=5,(SUM(C58:G58)-MAX(C58:G58)-MIN(C58:G58))/3,IF(K58=4,(SUM(C58:G58)-MAX(C58:G58))/3,SUM(C58:G58)/3))*B58/7.6) ->  | K58: 0
A59: =IF(Draw!E58=0,"",Draw!E58) ->  | H59: =IF(B59="","",IF(K59=5,(SUM(C59:G59)-MAX(C59:G59)-MIN(C59:G59))/3,IF(K59=4,(SUM(C59:G59)-MAX(C59:G59))/3,SUM(C59:G59)/3))*B59/7.6) ->  | K59: 0
A60: =IF(Draw!E59=0,"",Draw!E59) ->  | H60: =IF(B60="","",IF(K60=5,(SUM(C60:G60)-MAX(C60:G60)-MIN(C60:G60))/3,IF(K60=4,(SUM(C60:G60)-MAX(C60:G60))/3,SUM(C60:G60)/3))*B60/7.6) ->  | K60: 0
A61: =IF(Draw!E60=0,"",Draw!E60) ->  | H61: =IF(B61="","",IF(K61=5,(SUM(C61:G61)-MAX(C61:G61)-MIN(C61:G61))/3,IF(K61=4,(SUM(C61:G61)-MAX(C61:G61))/3,SUM(C61:G61)/3))*B61/7.6) ->  | K61: 0
A62: =IF(Draw!E61=0,"",Draw!E61) ->  | H62: =IF(B62="","",IF(K62=5,(SUM(C62:G62)-MAX(C62:G62)-MIN(C62:G62))/3,IF(K62=4,(SUM(C62:G62)-MAX(C62:G62))/3,SUM(C62:G62)/3))*B62/7.6) ->  | K62: 0
A63: =IF(Draw!E62=0,"",Draw!E62) ->  | H63: =IF(B63="","",IF(K63=5,(SUM(C63:G63)-MAX(C63:G63)-MIN(C63:G63))/3,IF(K63=4,(SUM(C63:G63)-MAX(C63:G63))/3,SUM(C63:G63)/3))*B63/7.6) ->  | K63: 0
A64: =IF(Draw!E63=0,"",Draw!E63) ->  | H64: =IF(B64="","",IF(K64=5,(SUM(C64:G64)-MAX(C64:G64)-MIN(C64:G64))/3,IF(K64=4,(SUM(C64:G64)-MAX(C64:G64))/3,SUM(C64:G64)/3))*B64/7.6) ->  | K64: 0
A65: =IF(Draw!E64=0,"",Draw!E64) ->  | H65: =IF(B65="","",IF(K65=5,(SUM(C65:G65)-MAX(C65:G65)-MIN(C65:G65))/3,IF(K65=4,(SUM(C65:G65)-MAX(C65:G65))/3,SUM(C65:G65)/3))*B65/7.6) ->  | K65: 0
A66: =IF(Draw!E65=0,"",Draw!E65) ->  | H66: =IF(B66="","",IF(K66=5,(SUM(C66:G66)-MAX(C66:G66)-MIN(C66:G66))/3,IF(K66=4,(SUM(C66:G66)-MAX(C66:G66))/3,SUM(C66:G66)/3))*B66/7.6) ->  | K66: 0
A67: =IF(Draw!E66=0,"",Draw!E66) ->  | H67: =IF(B67="","",IF(K67=5,(SUM(C67:G67)-MAX(C67:G67)-MIN(C67:G67))/3,IF(K67=4,(SUM(C67:G67)-MAX(C67:G67))/3,SUM(C67:G67)/3))*B67/7.6) ->  | K67: 0
A68: =IF(Draw!E67=0,"",Draw!E67) ->  | H68: =IF(B68="","",IF(K68=5,(SUM(C68:G68)-MAX(C68:G68)-MIN(C68:G68))/3,IF(K68=4,(SUM(C68:G68)-MAX(C68:G68))/3,SUM(C68:G68)/3))*B68/7.6) ->  | K68: =COUNT(C68:G68) -> 0
A69: =IF(Draw!E68=0,"",Draw!E68) ->  | H69: =IF(B69="","",IF(K69=5,(SUM(C69:G69)-MAX(C69:G69)-MIN(C69:G69))/3,IF(K69=4,(SUM(C69:G69)-MAX(C69:G69))/3,SUM(C69:G69)/3))*B69/7.6) ->  | K69: 0
A70: =IF(Draw!E69=0,"",Draw!E69) ->  | H70: =IF(B70="","",IF(K70=5,(SUM(C70:G70)-MAX(C70:G70)-MIN(C70:G70))/3,IF(K70=4,(SUM(C70:G70)-MAX(C70:G70))/3,SUM(C70:G70)/3))*B70/7.6) ->  | K70: 0
A71: =IF(Draw!E70=0,"",Draw!E70) ->  | B71: =IF(A71="","",B$3) ->  | H71: =IF(B71="","",IF(K71=5,(SUM(C71:G71)-MAX(C71:G71)-MIN(C71:G71))/3,IF(K71=4,(SUM(C71:G71)-MAX(C71:G71))/3,SUM(C71:G71)/3))*B71/7.6) ->  | K71: 0
A72: =IF(Draw!E71=0,"",Draw!E71) ->  | H72: =IF(B72="","",IF(K72=5,(SUM(C72:G72)-MAX(C72:G72)-MIN(C72:G72))/3,IF(K72=4,(SUM(C72:G72)-MAX(C72:G72))/3,SUM(C72:G72)/3))*B72/7.6) ->  | K72: 0
A73: =IF(Draw!E72=0,"",Draw!E72) ->  | H73: =IF(B73="","",IF(K73=5,(SUM(C73:G73)-MAX(C73:G73)-MIN(C73:G73))/3,IF(K73=4,(SUM(C73:G73)-MAX(C73:G73))/3,SUM(C73:G73)/3))*B73/7.6) ->  | K73: 0
A74: =IF(Draw!E73=0,"",Draw!E73) ->  | H74: =IF(B74="","",IF(K74=5,(SUM(C74:G74)-MAX(C74:G74)-MIN(C74:G74))/3,IF(K74=4,(SUM(C74:G74)-MAX(C74:G74))/3,SUM(C74:G74)/3))*B74/7.6) ->  | K74: 0
A75: =IF(Draw!E74=0,"",Draw!E74) ->  | H75: =IF(B75="","",IF(K75=5,(SUM(C75:G75)-MAX(C75:G75)-MIN(C75:G75))/3,IF(K75=4,(SUM(C75:G75)-MAX(C75:G75))/3,SUM(C75:G75)/3))*B75/7.6) ->  | K75: 0
A76: =IF(Draw!E75=0,"",Draw!E75) ->  | H76: =IF(B76="","",IF(K76=5,(SUM(C76:G76)-MAX(C76:G76)-MIN(C76:G76))/3,IF(K76=4,(SUM(C76:G76)-MAX(C76:G76))/3,SUM(C76:G76)/3))*B76/7.6) ->  | K76: 0
A77: =IF(Draw!E76=0,"",Draw!E76) ->  | H77: =IF(B77="","",IF(K77=5,(SUM(C77:G77)-MAX(C77:G77)-MIN(C77:G77))/3,IF(K77=4,(SUM(C77:G77)-MAX(C77:G77))/3,SUM(C77:G77)/3))*B77/7.6) ->  | K77: 0
A78: =IF(Draw!E77=0,"",Draw!E77) ->  | H78: =IF(B78="","",IF(K78=5,(SUM(C78:G78)-MAX(C78:G78)-MIN(C78:G78))/3,IF(K78=4,(SUM(C78:G78)-MAX(C78:G78))/3,SUM(C78:G78)/3))*B78/7.6) ->  | K78: 0
A79: =IF(Draw!E78=0,"",Draw!E78) ->  | H79: =IF(B79="","",IF(K79=5,(SUM(C79:G79)-MAX(C79:G79)-MIN(C79:G79))/3,IF(K79=4,(SUM(C79:G79)-MAX(C79:G79))/3,SUM(C79:G79)/3))*B79/7.6) ->  | K79: 0
A80: =IF(Draw!E79=0,"",Draw!E79) ->  | H80: =IF(B80="","",IF(K80=5,(SUM(C80:G80)-MAX(C80:G80)-MIN(C80:G80))/3,IF(K80=4,(SUM(C80:G80)-MAX(C80:G80))/3,SUM(C80:G80)/3))*B80/7.6) ->  | K80: 0
A81: =IF(Draw!E80=0,"",Draw!E80) ->  | H81: =IF(B81="","",IF(K81=5,(SUM(C81:G81)-MAX(C81:G81)-MIN(C81:G81))/3,IF(K81=4,(SUM(C81:G81)-MAX(C81:G81))/3,SUM(C81:G81)/3))*B81/7.6) ->  | K81: 0
A82: =IF(Draw!E81=0,"",Draw!E81) ->  | H82: =IF(B82="","",IF(K82=5,(SUM(C82:G82)-MAX(C82:G82)-MIN(C82:G82))/3,IF(K82=4,(SUM(C82:G82)-MAX(C82:G82))/3,SUM(C82:G82)/3))*B82/7.6) ->  | K82: 0
A83: =IF(Draw!E82=0,"",Draw!E82) ->  | H83: =IF(B83="","",IF(K83=5,(SUM(C83:G83)-MAX(C83:G83)-MIN(C83:G83))/3,IF(K83=4,(SUM(C83:G83)-MAX(C83:G83))/3,SUM(C83:G83)/3))*B83/7.6) ->  | K83: 0
A84: =IF(Draw!E83=0,"",Draw!E83) ->  | H84: =IF(B84="","",IF(K84=5,(SUM(C84:G84)-MAX(C84:G84)-MIN(C84:G84))/3,IF(K84=4,(SUM(C84:G84)-MAX(C84:G84))/3,SUM(C84:G84)/3))*B84/7.6) ->  | K84: 0
A85: =IF(Draw!E84=0,"",Draw!E84) ->  | H85: =IF(B85="","",IF(K85=5,(SUM(C85:G85)-MAX(C85:G85)-MIN(C85:G85))/3,IF(K85=4,(SUM(C85:G85)-MAX(C85:G85))/3,SUM(C85:G85)/3))*B85/7.6) ->  | K85: 0
A86: =IF(Draw!E85=0,"",Draw!E85) ->  | H86: =IF(B86="","",IF(K86=5,(SUM(C86:G86)-MAX(C86:G86)-MIN(C86:G86))/3,IF(K86=4,(SUM(C86:G86)-MAX(C86:G86))/3,SUM(C86:G86)/3))*B86/7.6) ->  | K86: 0
A87: =IF(Draw!E86=0,"",Draw!E86) ->  | H87: =IF(B87="","",IF(K87=5,(SUM(C87:G87)-MAX(C87:G87)-MIN(C87:G87))/3,IF(K87=4,(SUM(C87:G87)-MAX(C87:G87))/3,SUM(C87:G87)/3))*B87/7.6) ->  | K87: 0
A88: =IF(Draw!E87=0,"",Draw!E87) ->  | H88: =IF(B88="","",IF(K88=5,(SUM(C88:G88)-MAX(C88:G88)-MIN(C88:G88))/3,IF(K88=4,(SUM(C88:G88)-MAX(C88:G88))/3,SUM(C88:G88)/3))*B88/7.6) ->  | K88: 0
A89: =IF(Draw!E88=0,"",Draw!E88) ->  | H89: =IF(B89="","",IF(K89=5,(SUM(C89:G89)-MAX(C89:G89)-MIN(C89:G89))/3,IF(K89=4,(SUM(C89:G89)-MAX(C89:G89))/3,SUM(C89:G89)/3))*B89/7.6) ->  | K89: 0
A90: =IF(Draw!E89=0,"",Draw!E89) ->  | H90: =IF(B90="","",IF(K90=5,(SUM(C90:G90)-MAX(C90:G90)-MIN(C90:G90))/3,IF(K90=4,(SUM(C90:G90)-MAX(C90:G90))/3,SUM(C90:G90)/3))*B90/7.6) ->  | K90: 0
A91: =IF(Draw!E90=0,"",Draw!E90) ->  | H91: =IF(B91="","",IF(K91=5,(SUM(C91:G91)-MAX(C91:G91)-MIN(C91:G91))/3,IF(K91=4,(SUM(C91:G91)-MAX(C91:G91))/3,SUM(C91:G91)/3))*B91/7.6) ->  | K91: 0
A92: =IF(Draw!E91=0,"",Draw!E91) ->  | H92: =IF(B92="","",IF(K92=5,(SUM(C92:G92)-MAX(C92:G92)-MIN(C92:G92))/3,IF(K92=4,(SUM(C92:G92)-MAX(C92:G92))/3,SUM(C92:G92)/3))*B92/7.6) ->  | K92: 0
A93: =IF(Draw!E92=0,"",Draw!E92) ->  | H93: =IF(B93="","",IF(K93=5,(SUM(C93:G93)-MAX(C93:G93)-MIN(C93:G93))/3,IF(K93=4,(SUM(C93:G93)-MAX(C93:G93))/3,SUM(C93:G93)/3))*B93/7.6) ->  | K93: 0
A94: =IF(Draw!E93=0,"",Draw!E93) ->  | H94: =IF(B94="","",IF(K94=5,(SUM(C94:G94)-MAX(C94:G94)-MIN(C94:G94))/3,IF(K94=4,(SUM(C94:G94)-MAX(C94:G94))/3,SUM(C94:G94)/3))*B94/7.6) ->  | K94: 0
A95: =IF(Draw!E94=0,"",Draw!E94) ->  | H95: =IF(B95="","",IF(K95=5,(SUM(C95:G95)-MAX(C95:G95)-MIN(C95:G95))/3,IF(K95=4,(SUM(C95:G95)-MAX(C95:G95))/3,SUM(C95:G95)/3))*B95/7.6) ->  | K95: 0
A96: =IF(Draw!E95=0,"",Draw!E95) ->  | H96: =IF(B96="","",IF(K96=5,(SUM(C96:G96)-MAX(C96:G96)-MIN(C96:G96))/3,IF(K96=4,(SUM(C96:G96)-MAX(C96:G96))/3,SUM(C96:G96)/3))*B96/7.6) ->  | K96: 0
A97: =IF(Draw!E96=0,"",Draw!E96) ->  | H97: =IF(B97="","",IF(K97=5,(SUM(C97:G97)-MAX(C97:G97)-MIN(C97:G97))/3,IF(K97=4,(SUM(C97:G97)-MAX(C97:G97))/3,SUM(C97:G97)/3))*B97/7.6) ->  | K97: 0
A98: =IF(Draw!E97=0,"",Draw!E97) ->  | H98: =IF(B98="","",IF(K98=5,(SUM(C98:G98)-MAX(C98:G98)-MIN(C98:G98))/3,IF(K98=4,(SUM(C98:G98)-MAX(C98:G98))/3,SUM(C98:G98)/3))*B98/7.6) ->  | K98: 0
A99: =IF(Draw!E98=0,"",Draw!E98) ->  | H99: =IF(B99="","",IF(K99=5,(SUM(C99:G99)-MAX(C99:G99)-MIN(C99:G99))/3,IF(K99=4,(SUM(C99:G99)-MAX(C99:G99))/3,SUM(C99:G99)/3))*B99/7.6) ->  | K99: 0
A100: =IF(Draw!E99=0,"",Draw!E99) ->  | H100: =IF(B100="","",IF(K100=5,(SUM(C100:G100)-MAX(C100:G100)-MIN(C100:G100))/3,IF(K100=4,(SUM(C100:G100)-MAX(C100:G100))/3,SUM(C100:G100)/3))*B100/7.6) ->  | K100: 0
A101: =IF(Draw!E100=0,"",Draw!E100) ->  | H101: =IF(B101="","",IF(K101=5,(SUM(C101:G101)-MAX(C101:G101)-MIN(C101:G101))/3,IF(K101=4,(SUM(C101:G101)-MAX(C101:G101))/3,SUM(C101:G101)/3))*B101/7.6) ->  | K101: 0
A102: =IF(Draw!E101=0,"",Draw!E101) ->  | H102: =IF(B102="","",IF(K102=5,(SUM(C102:G102)-MAX(C102:G102)-MIN(C102:G102))/3,IF(K102=4,(SUM(C102:G102)-MAX(C102:G102))/3,SUM(C102:G102)/3))*B102/7.6) ->  | K102: 0
A103: =IF(Draw!E102=0,"",Draw!E102) ->  | H103: =IF(B103="","",IF(K103=5,(SUM(C103:G103)-MAX(C103:G103)-MIN(C103:G103))/3,IF(K103=4,(SUM(C103:G103)-MAX(C103:G103))/3,SUM(C103:G103)/3))*B103/7.6) ->  | K103: 0
A104: =IF(Draw!E103=0,"",Draw!E103) ->  | H104: =IF(B104="","",IF(K104=5,(SUM(C104:G104)-MAX(C104:G104)-MIN(C104:G104))/3,IF(K104=4,(SUM(C104:G104)-MAX(C104:G104))/3,SUM(C104:G104)/3))*B104/7.6) ->  | K104: 0
A105: =IF(Draw!E104=0,"",Draw!E104) ->  | H105: =IF(B105="","",IF(K105=5,(SUM(C105:G105)-MAX(C105:G105)-MIN(C105:G105))/3,IF(K105=4,(SUM(C105:G105)-MAX(C105:G105))/3,SUM(C105:G105)/3))*B105/7.6) ->  | K105: 0
A106: =IF(Draw!E105=0,"",Draw!E105) ->  | H106: =IF(B106="","",IF(K106=5,(SUM(C106:G106)-MAX(C106:G106)-MIN(C106:G106))/3,IF(K106=4,(SUM(C106:G106)-MAX(C106:G106))/3,SUM(C106:G106)/3))*B106/7.6) ->  | K106: 0
A107: =IF(Draw!E106=0,"",Draw!E106) ->  | H107: =IF(B107="","",IF(K107=5,(SUM(C107:G107)-MAX(C107:G107)-MIN(C107:G107))/3,IF(K107=4,(SUM(C107:G107)-MAX(C107:G107))/3,SUM(C107:G107)/3))*B107/7.6) ->  | K107: 0
A108: =IF(Draw!E107=0,"",Draw!E107) ->  | H108: =IF(B108="","",IF(K108=5,(SUM(C108:G108)-MAX(C108:G108)-MIN(C108:G108))/3,IF(K108=4,(SUM(C108:G108)-MAX(C108:G108))/3,SUM(C108:G108)/3))*B108/7.6) ->  | K108: 0
A109: =IF(Draw!E108=0,"",Draw!E108) ->  | H109: =IF(B109="","",IF(K109=5,(SUM(C109:G109)-MAX(C109:G109)-MIN(C109:G109))/3,IF(K109=4,(SUM(C109:G109)-MAX(C109:G109))/3,SUM(C109:G109)/3))*B109/7.6) ->  | K109: 0
A110: =IF(Draw!E109=0,"",Draw!E109) ->  | H110: =IF(B110="","",IF(K110=5,(SUM(C110:G110)-MAX(C110:G110)-MIN(C110:G110))/3,IF(K110=4,(SUM(C110:G110)-MAX(C110:G110))/3,SUM(C110:G110)/3))*B110/7.6) ->  | K110: 0
A111: =IF(Draw!E110=0,"",Draw!E110) ->  | H111: =IF(B111="","",IF(K111=5,(SUM(C111:G111)-MAX(C111:G111)-MIN(C111:G111))/3,IF(K111=4,(SUM(C111:G111)-MAX(C111:G111))/3,SUM(C111:G111)/3))*B111/7.6) ->  | K111: 0
A112: =IF(Draw!E111=0,"",Draw!E111) ->  | H112: =IF(B112="","",IF(K112=5,(SUM(C112:G112)-MAX(C112:G112)-MIN(C112:G112))/3,IF(K112=4,(SUM(C112:G112)-MAX(C112:G112))/3,SUM(C112:G112)/3))*B112/7.6) ->  | K112: 0
A113: =IF(Draw!E112=0,"",Draw!E112) ->  | H113: =IF(B113="","",IF(K113=5,(SUM(C113:G113)-MAX(C113:G113)-MIN(C113:G113))/3,IF(K113=4,(SUM(C113:G113)-MAX(C113:G113))/3,SUM(C113:G113)/3))*B113/7.6) ->  | K113: 0
A114: =IF(Draw!E113=0,"",Draw!E113) ->  | H114: =IF(B114="","",IF(K114=5,(SUM(C114:G114)-MAX(C114:G114)-MIN(C114:G114))/3,IF(K114=4,(SUM(C114:G114)-MAX(C114:G114))/3,SUM(C114:G114)/3))*B114/7.6) ->  | K114: 0
A115: =IF(Draw!E114=0,"",Draw!E114) ->  | H115: =IF(B115="","",IF(K115=5,(SUM(C115:G115)-MAX(C115:G115)-MIN(C115:G115))/3,IF(K115=4,(SUM(C115:G115)-MAX(C115:G115))/3,SUM(C115:G115)/3))*B115/7.6) ->  | K115: 0
A116: =IF(Draw!E115=0,"",Draw!E115) ->  | H116: =IF(B116="","",IF(K116=5,(SUM(C116:G116)-MAX(C116:G116)-MIN(C116:G116))/3,IF(K116=4,(SUM(C116:G116)-MAX(C116:G116))/3,SUM(C116:G116)/3))*B116/7.6) ->  | K116: 0
A117: =IF(Draw!E116=0,"",Draw!E116) ->  | H117: =IF(B117="","",IF(K117=5,(SUM(C117:G117)-MAX(C117:G117)-MIN(C117:G117))/3,IF(K117=4,(SUM(C117:G117)-MAX(C117:G117))/3,SUM(C117:G117)/3))*B117/7.6) ->  | K117: 0
A118: =IF(Draw!E117=0,"",Draw!E117) ->  | H118: =IF(B118="","",IF(K118=5,(SUM(C118:G118)-MAX(C118:G118)-MIN(C118:G118))/3,IF(K118=4,(SUM(C118:G118)-MAX(C118:G118))/3,SUM(C118:G118)/3))*B118/7.6) ->  | K118: 0
A119: =IF(Draw!E118=0,"",Draw!E118) ->  | H119: =IF(B119="","",IF(K119=5,(SUM(C119:G119)-MAX(C119:G119)-MIN(C119:G119))/3,IF(K119=4,(SUM(C119:G119)-MAX(C119:G119))/3,SUM(C119:G119)/3))*B119/7.6) ->  | K119: 0
A120: =IF(Draw!E119=0,"",Draw!E119) ->  | H120: =IF(B120="","",IF(K120=5,(SUM(C120:G120)-MAX(C120:G120)-MIN(C120:G120))/3,IF(K120=4,(SUM(C120:G120)-MAX(C120:G120))/3,SUM(C120:G120)/3))*B120/7.6) ->  | K120: 0
A121: =IF(Draw!E120=0,"",Draw!E120) ->  | H121: =IF(B121="","",IF(K121=5,(SUM(C121:G121)-MAX(C121:G121)-MIN(C121:G121))/3,IF(K121=4,(SUM(C121:G121)-MAX(C121:G121))/3,SUM(C121:G121)/3))*B121/7.6) ->  | K121: 0
A122: =IF(Draw!E121=0,"",Draw!E121) ->  | H122: =IF(B122="","",IF(K122=5,(SUM(C122:G122)-MAX(C122:G122)-MIN(C122:G122))/3,IF(K122=4,(SUM(C122:G122)-MAX(C122:G122))/3,SUM(C122:G122)/3))*B122/7.6) ->  | K122: 0
A123: =IF(Draw!E122=0,"",Draw!E122) ->  | H123: =IF(B123="","",IF(K123=5,(SUM(C123:G123)-MAX(C123:G123)-MIN(C123:G123))/3,IF(K123=4,(SUM(C123:G123)-MAX(C123:G123))/3,SUM(C123:G123)/3))*B123/7.6) ->  | K123: 0
A124: =IF(Draw!E123=0,"",Draw!E123) ->  | H124: =IF(B124="","",IF(K124=5,(SUM(C124:G124)-MAX(C124:G124)-MIN(C124:G124))/3,IF(K124=4,(SUM(C124:G124)-MAX(C124:G124))/3,SUM(C124:G124)/3))*B124/7.6) ->  | K124: 0
A125: =IF(Draw!E124=0,"",Draw!E124) ->  | H125: =IF(B125="","",IF(K125=5,(SUM(C125:G125)-MAX(C125:G125)-MIN(C125:G125))/3,IF(K125=4,(SUM(C125:G125)-MAX(C125:G125))/3,SUM(C125:G125)/3))*B125/7.6) ->  | K125: 0
A126: =IF(Draw!E125=0,"",Draw!E125) ->  | H126: =IF(B126="","",IF(K126=5,(SUM(C126:G126)-MAX(C126:G126)-MIN(C126:G126))/3,IF(K126=4,(SUM(C126:G126)-MAX(C126:G126))/3,SUM(C126:G126)/3))*B126/7.6) ->  | K126: 0
A127: =IF(Draw!E126=0,"",Draw!E126) ->  | H127: =IF(B127="","",IF(K127=5,(SUM(C127:G127)-MAX(C127:G127)-MIN(C127:G127))/3,IF(K127=4,(SUM(C127:G127)-MAX(C127:G127))/3,SUM(C127:G127)/3))*B127/7.6) ->  | K127: 0
A128: =IF(Draw!E127=0,"",Draw!E127) ->  | H128: =IF(B128="","",IF(K128=5,(SUM(C128:G128)-MAX(C128:G128)-MIN(C128:G128))/3,IF(K128=4,(SUM(C128:G128)-MAX(C128:G128))/3,SUM(C128:G128)/3))*B128/7.6) ->  | K128: 0
A129: =IF(Draw!E128=0,"",Draw!E128) ->  | H129: =IF(B129="","",IF(K129=5,(SUM(C129:G129)-MAX(C129:G129)-MIN(C129:G129))/3,IF(K129=4,(SUM(C129:G129)-MAX(C129:G129))/3,SUM(C129:G129)/3))*B129/7.6) ->  | K129: 0
A130: =IF(Draw!E129=0,"",Draw!E129) ->  | H130: =IF(B130="","",IF(K130=5,(SUM(C130:G130)-MAX(C130:G130)-MIN(C130:G130))/3,IF(K130=4,(SUM(C130:G130)-MAX(C130:G130))/3,SUM(C130:G130)/3))*B130/7.6) ->  | K130: 0
A131: =IF(Draw!E130=0,"",Draw!E130) ->  | H131: =IF(B131="","",IF(K131=5,(SUM(C131:G131)-MAX(C131:G131)-MIN(C131:G131))/3,IF(K131=4,(SUM(C131:G131)-MAX(C131:G131))/3,SUM(C131:G131)/3))*B131/7.6) ->  | K131: 0
A132: =IF(Draw!E131=0,"",Draw!E131) ->  | H132: =IF(B132="","",IF(K132=5,(SUM(C132:G132)-MAX(C132:G132)-MIN(C132:G132))/3,IF(K132=4,(SUM(C132:G132)-MAX(C132:G132))/3,SUM(C132:G132)/3))*B132/7.6) ->  | K132: =COUNT(C132:G132) -> 0
A133: =IF(Draw!E132=0,"",Draw!E132) ->  | H133: =IF(B133="","",IF(K133=5,(SUM(C133:G133)-MAX(C133:G133)-MIN(C133:G133))/3,IF(K133=4,(SUM(C133:G133)-MAX(C133:G133))/3,SUM(C133:G133)/3))*B133/7.6) ->  | K133: 0
A134: =IF(Draw!E133=0,"",Draw!E133) ->  | H134: =IF(B134="","",IF(K134=5,(SUM(C134:G134)-MAX(C134:G134)-MIN(C134:G134))/3,IF(K134=4,(SUM(C134:G134)-MAX(C134:G134))/3,SUM(C134:G134)/3))*B134/7.6) ->  | K134: 0
A135: =IF(Draw!E134=0,"",Draw!E134) ->  | B135: =IF(A135="","",B$3) ->  | H135: =IF(B135="","",IF(K135=5,(SUM(C135:G135)-MAX(C135:G135)-MIN(C135:G135))/3,IF(K135=4,(SUM(C135:G135)-MAX(C135:G135))/3,SUM(C135:G135)/3))*B135/7.6) ->  | K135: 0
A136: =IF(Draw!E135=0,"",Draw!E135) ->  | H136: =IF(B136="","",IF(K136=5,(SUM(C136:G136)-MAX(C136:G136)-MIN(C136:G136))/3,IF(K136=4,(SUM(C136:G136)-MAX(C136:G136))/3,SUM(C136:G136)/3))*B136/7.6) ->  | K136: 0
A137: =IF(Draw!E136=0,"",Draw!E136) ->  | H137: =IF(B137="","",IF(K137=5,(SUM(C137:G137)-MAX(C137:G137)-MIN(C137:G137))/3,IF(K137=4,(SUM(C137:G137)-MAX(C137:G137))/3,SUM(C137:G137)/3))*B137/7.6) ->  | K137: 0
A138: =IF(Draw!E137=0,"",Draw!E137) ->  | H138: =IF(B138="","",IF(K138=5,(SUM(C138:G138)-MAX(C138:G138)-MIN(C138:G138))/3,IF(K138=4,(SUM(C138:G138)-MAX(C138:G138))/3,SUM(C138:G138)/3))*B138/7.6) ->  | K138: 0
A139: =IF(Draw!E138=0,"",Draw!E138) ->  | H139: =IF(B139="","",IF(K139=5,(SUM(C139:G139)-MAX(C139:G139)-MIN(C139:G139))/3,IF(K139=4,(SUM(C139:G139)-MAX(C139:G139))/3,SUM(C139:G139)/3))*B139/7.6) ->  | K139: 0
A140: =IF(Draw!E139=0,"",Draw!E139) ->  | H140: =IF(B140="","",IF(K140=5,(SUM(C140:G140)-MAX(C140:G140)-MIN(C140:G140))/3,IF(K140=4,(SUM(C140:G140)-MAX(C140:G140))/3,SUM(C140:G140)/3))*B140/7.6) ->  | K140: 0
A141: =IF(Draw!E140=0,"",Draw!E140) ->  | H141: =IF(B141="","",IF(K141=5,(SUM(C141:G141)-MAX(C141:G141)-MIN(C141:G141))/3,IF(K141=4,(SUM(C141:G141)-MAX(C141:G141))/3,SUM(C141:G141)/3))*B141/7.6) ->  | K141: 0
A142: =IF(Draw!E141=0,"",Draw!E141) ->  | H142: =IF(B142="","",IF(K142=5,(SUM(C142:G142)-MAX(C142:G142)-MIN(C142:G142))/3,IF(K142=4,(SUM(C142:G142)-MAX(C142:G142))/3,SUM(C142:G142)/3))*B142/7.6) ->  | K142: 0
A143: =IF(Draw!E142=0,"",Draw!E142) ->  | H143: =IF(B143="","",IF(K143=5,(SUM(C143:G143)-MAX(C143:G143)-MIN(C143:G143))/3,IF(K143=4,(SUM(C143:G143)-MAX(C143:G143))/3,SUM(C143:G143)/3))*B143/7.6) ->  | K143: 0
A144: =IF(Draw!E143=0,"",Draw!E143) ->  | H144: =IF(B144="","",IF(K144=5,(SUM(C144:G144)-MAX(C144:G144)-MIN(C144:G144))/3,IF(K144=4,(SUM(C144:G144)-MAX(C144:G144))/3,SUM(C144:G144)/3))*B144/7.6) ->  | K144: 0
A145: =IF(Draw!E144=0,"",Draw!E144) ->  | H145: =IF(B145="","",IF(K145=5,(SUM(C145:G145)-MAX(C145:G145)-MIN(C145:G145))/3,IF(K145=4,(SUM(C145:G145)-MAX(C145:G145))/3,SUM(C145:G145)/3))*B145/7.6) ->  | K145: 0
A146: =IF(Draw!E145=0,"",Draw!E145) ->  | H146: =IF(B146="","",IF(K146=5,(SUM(C146:G146)-MAX(C146:G146)-MIN(C146:G146))/3,IF(K146=4,(SUM(C146:G146)-MAX(C146:G146))/3,SUM(C146:G146)/3))*B146/7.6) ->  | K146: 0
A147: =IF(Draw!E146=0,"",Draw!E146) ->  | H147: =IF(B147="","",IF(K147=5,(SUM(C147:G147)-MAX(C147:G147)-MIN(C147:G147))/3,IF(K147=4,(SUM(C147:G147)-MAX(C147:G147))/3,SUM(C147:G147)/3))*B147/7.6) ->  | K147: 0
A148: =IF(Draw!E147=0,"",Draw!E147) ->  | H148: =IF(B148="","",IF(K148=5,(SUM(C148:G148)-MAX(C148:G148)-MIN(C148:G148))/3,IF(K148=4,(SUM(C148:G148)-MAX(C148:G148))/3,SUM(C148:G148)/3))*B148/7.6) ->  | K148: 0
A149: =IF(Draw!E148=0,"",Draw!E148) ->  | H149: =IF(B149="","",IF(K149=5,(SUM(C149:G149)-MAX(C149:G149)-MIN(C149:G149))/3,IF(K149=4,(SUM(C149:G149)-MAX(C149:G149))/3,SUM(C149:G149)/3))*B149/7.6) ->  | K149: 0
A150: =IF(Draw!E149=0,"",Draw!E149) ->  | H150: =IF(B150="","",IF(K150=5,(SUM(C150:G150)-MAX(C150:G150)-MIN(C150:G150))/3,IF(K150=4,(SUM(C150:G150)-MAX(C150:G150))/3,SUM(C150:G150)/3))*B150/7.6) ->  | K150: 0

Sheet Fig 3 Heron
B1: Figure #3: | C1: 342 Heron
A2: # | B2: Degree of Difficulty | C2: Judge 1 | D2: Judge 2 | E2: Judge 3 | F2: Judge 4 | G2: Judge 5 | H2: Score | I2: Penalty
A3: =IF(Draw!E2=0,"",Draw!E2) -> 1 | B3: 2.1 | H3: =IF(B3="","",IF(K3=5,(SUM(C3:G3)-MAX(C3:G3)-MIN(C3:G3))/3,IF(K3=4,(SUM(C3:G3)-MAX(C3:G3))/3,SUM(C3:G3)/3))*B3/7.6) -> 0.000 | K3: =COUNT(C3:G3) -> 0
A4: =IF(Draw!E3=0,"",Draw!E3) -> 2 | B4: =IF(A4="","",B$3) -> 2.1 | C4: 60 | D4: 62 | E4: 66 | H4: =IF(B4="","",IF(K4=5,(SUM(C4:G4)-MAX(C4:G4)-MIN(C4:G4))/3,IF(K4=4,(SUM(C4:G4)-MAX(C4:G4))/3,SUM(C4:G4)/3))*B4/7.6) -> 17.316 | K4: =COUNT(C4:G4) -> 3
A5: =IF(Draw!E4=0,"",Draw!E4) -> 3 | B5: =IF(A5="","",B$3) -> 2.1 | C5: 46 | D5: 49 | E5: 51 | H5: =IF(B5="","",IF(K5=5,(SUM(C5:G5)-MAX(C5:G5)-MIN(C5:G5))/3,IF(K5=4,(SUM(C5:G5)-MAX(C5:G5))/3,SUM(C5:G5)/3))*B5/7.6) -> 13.447 | K5: 3
A6: =IF(Draw!E5=0,"",Draw!E5) -> 4 | B6: 2.1 | C6: 48 | D6: 52 | E6: 46 | H6: =IF(B6="","",IF(K6=5,(SUM(C6:G6)-MAX(C6:G6)-MIN(C6:G6))/3,IF(K6=4,(SUM(C6:G6)-MAX(C6:G6))/3,SUM(C6:G6)/3))*B6/7.6) -> 13.447 | K6: 3
A7: =IF(Draw!E6=0,"",Draw!E6) -> 5 | B7: =IF(A7="","",B$3) -> 2.1 | C7: 52 | D7: 56 | E7: 54 | H7: =IF(B7="","",IF(K7=5,(SUM(C7:G7)-MAX(C7:G7)-MIN(C7:G7))/3,IF(K7=4,(SUM(C7:G7)-MAX(C7:G7))/3,SUM(C7:G7)/3))*B7/7.6) -> 14.921 | K7: 3
A8: =IF(Draw!E7=0,"",Draw!E7) -> 6 | B8: 2.1 | C8: 45 | D8: 48 | E8: 44 | H8: =IF(B8="","",IF(K8=5,(SUM(C8:G8)-MAX(C8:G8)-MIN(C8:G8))/3,IF(K8=4,(SUM(C8:G8)-MAX(C8:G8))/3,SUM(C8:G8)/3))*B8/7.6) -> 12.618 | K8: 3
A9: =IF(Draw!E8=0,"",Draw!E8) -> 7 | B9: 2.1 | C9: 63 | D9: 60 | E9: 56 | H9: =IF(B9="","",IF(K9=5,(SUM(C9:G9)-MAX(C9:G9)-MIN(C9:G9))/3,IF(K9=4,(SUM(C9:G9)-MAX(C9:G9))/3,SUM(C9:G9)/3))*B9/7.6) -> 16.487 | K9: 3
A10: =IF(Draw!E9=0,"",Draw!E9) -> 8 | B10: 2.1 | C10: 44 | D10: 48 | E10: 44 | H10: =IF(B10="","",IF(K10=5,(SUM(C10:G10)-MAX(C10:G10)-MIN(C10:G10))/3,IF(K10=4,(SUM(C10:G10)-MAX(C10:G10))/3,SUM(C10:G10)/3))*B10/7.6) -> 12.526 | K10: 3
A11: =IF(Draw!E10=0,"",Draw!E10) -> 9 | B11: 2.1 | C11: 53 | D11: 53 | E11: 55 | H11: =IF(B11="","",IF(K11=5,(SUM(C11:G11)-MAX(C11:G11)-MIN(C11:G11))/3,IF(K11=4,(SUM(C11:G11)-MAX(C11:G11))/3,SUM(C11:G11)/3))*B11/7.6) -> 14.829 | K11: 3
A12: =IF(Draw!E11=0,"",Draw!E11) -> 10 | B12: 2.1 | C12: 51 | D12: 51 | E12: 50 | H12: =IF(B12="","",IF(K12=5,(SUM(C12:G12)-MAX(C12:G12)-MIN(C12:G12))/3,IF(K12=4,(SUM(C12:G12)-MAX(C12:G12))/3,SUM(C12:G12)/3))*B12/7.6) -> 14.000 | K12: 3
A13: =IF(Draw!E12=0,"",Draw!E12) -> 11 | B13: 2.1 | C13: 64 | D13: 63 | E13: 57 | H13: =IF(B13="","",IF(K13=5,(SUM(C13:G13)-MAX(C13:G13)-MIN(C13:G13))/3,IF(K13=4,(SUM(C13:G13)-MAX(C13:G13))/3,SUM(C13:G13)/3))*B13/7.6) -> 16.947 | K13: 3
A14: =IF(Draw!E13=0,"",Draw!E13) -> 12 | B14: 2.1 | C14: 59 | D14: 62 | E14: 58 | H14: =IF(B14="","",IF(K14=5,(SUM(C14:G14)-MAX(C14:G14)-MIN(C14:G14))/3,IF(K14=4,(SUM(C14:G14)-MAX(C14:G14))/3,SUM(C14:G14)/3))*B14/7.6) -> 16.487 | K14: 3
A15: =IF(Draw!E14=0,"",Draw!E14) -> 13 | B15: 2.1 | C15: 51 | D15: 51 | E15: 50 | H15: =IF(B15="","",IF(K15=5,(SUM(C15:G15)-MAX(C15:G15)-MIN(C15:G15))/3,IF(K15=4,(SUM(C15:G15)-MAX(C15:G15))/3,SUM(C15:G15)/3))*B15/7.6) -> 14.000 | K15: 3
A16: =IF(Draw!E15=0,"",Draw!E15) -> 14 | B16: 2.1 | C16: 62 | D16: 63 | E16: 58 | H16: =IF(B16="","",IF(K16=5,(SUM(C16:G16)-MAX(C16:G16)-MIN(C16:G16))/3,IF(K16=4,(SUM(C16:G16)-MAX(C16:G16))/3,SUM(C16:G16)/3))*B16/7.6) -> 16.855 | K16: 3
A17: =IF(Draw!E16=0,"",Draw!E16) -> 15 | B17: 2.1 | C17: 52 | D17: 52 | E17: 50 | H17: =IF(B17="","",IF(K17=5,(SUM(C17:G17)-MAX(C17:G17)-MIN(C17:G17))/3,IF(K17=4,(SUM(C17:G17)-MAX(C17:G17))/3,SUM(C17:G17)/3))*B17/7.6) -> 14.184 | K17: 3
A18: =IF(Draw!E17=0,"",Draw!E17) -> 16 | B18: 2.1 | C18: 60 | D18: 60 | E18: 63 | H18: =IF(B18="","",IF(K18=5,(SUM(C18:G18)-MAX(C18:G18)-MIN(C18:G18))/3,IF(K18=4,(SUM(C18:G18)-MAX(C18:G18))/3,SUM(C18:G18)/3))*B18/7.6) -> 16.855 | K18: 3
A19: =IF(Draw!E18=0,"",Draw!E18) -> 17 | B19: 2.1 | C19: 59 | D19: 57 | E19: 57 | H19: =IF(B19="","",IF(K19=5,(SUM(C19:G19)-MAX(C19:G19)-MIN(C19:G19))/3,IF(K19=4,(SUM(C19:G19)-MAX(C19:G19))/3,SUM(C19:G19)/3))*B19/7.6) -> 15.934 | K19: 3
A20: =IF(Draw!E19=0,"",Draw!E19) -> 18 | B20: 2.1 | C20: 44 | D20: 47 | E20: 40 | H20: =IF(B20="","",IF(K20=5,(SUM(C20:G20)-MAX(C20:G20)-MIN(C20:G20))/3,IF(K20=4,(SUM(C20:G20)-MAX(C20:G20))/3,SUM(C20:G20)/3))*B20/7.6) -> 12.066 | K20: 3
A21: =IF(Draw!E20=0,"",Draw!E20) -> 19 | B21: 2.1 | H21: =IF(B21="","",IF(K21=5,(SUM(C21:G21)-MAX(C21:G21)-MIN(C21:G21))/3,IF(K21=4,(SUM(C21:G21)-MAX(C21:G21))/3,SUM(C21:G21)/3))*B21/7.6) -> 0.000 | K21: 0
A22: =IF(Draw!E21=0,"",Draw!E21) -> 20 | B22: 2.1 | C22: 53 | D22: 53 | E22: 53 | H22: =IF(B22="","",IF(K22=5,(SUM(C22:G22)-MAX(C22:G22)-MIN(C22:G22))/3,IF(K22=4,(SUM(C22:G22)-MAX(C22:G22))/3,SUM(C22:G22)/3))*B22/7.6) -> 14.645 | K22: 3
A23: =IF(Draw!E22=0,"",Draw!E22) -> 21 | B23: 2.1 | C23: 56 | D23: 59 | E23: 58 | H23: =IF(B23="","",IF(K23=5,(SUM(C23:G23)-MAX(C23:G23)-MIN(C23:G23))/3,IF(K23=4,(SUM(C23:G23)-MAX(C23:G23))/3,SUM(C23:G23)/3))*B23/7.6) -> 15.934 | K23: 3
A24: =IF(Draw!E23=0,"",Draw!E23) -> 22 | B24: 2.1 | C24: 49 | D24: 48 | E24: 54 | H24: =IF(B24="","",IF(K24=5,(SUM(C24:G24)-MAX(C24:G24)-MIN(C24:G24))/3,IF(K24=4,(SUM(C24:G24)-MAX(C24:G24))/3,SUM(C24:G24)/3))*B24/7.6) -> 13.908 | K24: 3
A25: =IF(Draw!E24=0,"",Draw!E24) -> 23 | B25: 2.1 | C25: 52 | D25: 53 | E25: 50 | H25: =IF(B25="","",IF(K25=5,(SUM(C25:G25)-MAX(C25:G25)-MIN(C25:G25))/3,IF(K25=4,(SUM(C25:G25)-MAX(C25:G25))/3,SUM(C25:G25)/3))*B25/7.6) -> 14.276 | K25: 3
A26: =IF(Draw!E25=0,"",Draw!E25) -> 24 | B26: 2.1 | C26: 56 | D26: 56 | E26: 58 | H26: =IF(B26="","",IF(K26=5,(SUM(C26:G26)-MAX(C26:G26)-MIN(C26:G26))/3,IF(K26=4,(SUM(C26:G26)-MAX(C26:G26))/3,SUM(C26:G26)/3))*B26/7.6) -> 15.658 | K26: 3
A27: =IF(Draw!E26=0,"",Draw!E26) -> 25 | B27: 2.1 | C27: 59 | D27: 56 | E27: 55 | H27: =IF(B27="","",IF(K27=5,(SUM(C27:G27)-MAX(C27:G27)-MIN(C27:G27))/3,IF(K27=4,(SUM(C27:G27)-MAX(C27:G27))/3,SUM(C27:G27)/3))*B27/7.6) -> 15.658 | K27: 3
A28: =IF(Draw!E27=0,"",Draw!E27) -> 26 | B28: 2.1 | C28: 52 | D28: 56 | E28: 54 | H28: =IF(B28="","",IF(K28=5,(SUM(C28:G28)-MAX(C28:G28)-MIN(C28:G28))/3,IF(K28=4,(SUM(C28:G28)-MAX(C28:G28))/3,SUM(C28:G28)/3))*B28/7.6) -> 14.921 | K28: 3
A29: =IF(Draw!E28=0,"",Draw!E28) -> 27 | B29: 2.1 | C29: 0 | D29: 0 | E29: 0 | H29: =IF(B29="","",IF(K29=5,(SUM(C29:G29)-MAX(C29:G29)-MIN(C29:G29))/3,IF(K29=4,(SUM(C29:G29)-MAX(C29:G29))/3,SUM(C29:G29)/3))*B29/7.6) -> 0.000 | K29: 3
A30: =IF(Draw!E29=0,"",Draw!E29) -> 28 | B30: 2.1 | C30: 46 | D30: 54 | E30: 57 | H30: =IF(B30="","",IF(K30=5,(SUM(C30:G30)-MAX(C30:G30)-MIN(C30:G30))/3,IF(K30=4,(SUM(C30:G30)-MAX(C30:G30))/3,SUM(C30:G30)/3))*B30/7.6) -> 14.461 | K30: 3
A31: =IF(Draw!E30=0,"",Draw!E30) ->  | H31: =IF(B31="","",IF(K31=5,(SUM(C31:G31)-MAX(C31:G31)-MIN(C31:G31))/3,IF(K31=4,(SUM(C31:G31)-MAX(C31:G31))/3,SUM(C31:G31)/3))*B31/7.6) ->  | K31: 0
A32: =IF(Draw!E31=0,"",Draw!E31) ->  | H32: =IF(B32="","",IF(K32=5,(SUM(C32:G32)-MAX(C32:G32)-MIN(C32:G32))/3,IF(K32=4,(SUM(C32:G32)-MAX(C32:G32))/3,SUM(C32:G32)/3))*B32/7.6) ->  | K32: 0
A33: =IF(Draw!E32=0,"",Draw!E32) ->  | H33: =IF(B33="","",IF(K33=5,(SUM(C33:G33)-MAX(C33:G33)-MIN(C33:G33))/3,IF(K33=4,(SUM(C33:G33)-MAX(C33:G33))/3,SUM(C33:G33)/3))*B33/7.6) ->  | K33: 0
A34: =IF(Draw!E33=0,"",Draw!E33) ->  | H34: =IF(B34="","",IF(K34=5,(SUM(C34:G34)-MAX(C34:G34)-MIN(C34:G34))/3,IF(K34=4,(SUM(C34:G34)-MAX(C34:G34))/3,SUM(C34:G34)/3))*B34/7.6) ->  | K34: 0
A35: =IF(Draw!E34=0,"",Draw!E34) ->  | H35: =IF(B35="","",IF(K35=5,(SUM(C35:G35)-MAX(C35:G35)-MIN(C35:G35))/3,IF(K35=4,(SUM(C35:G35)-MAX(C35:G35))/3,SUM(C35:G35)/3))*B35/7.6) ->  | K35: 0
A36: =IF(Draw!E35=0,"",Draw!E35) ->  | H36: =IF(B36="","",IF(K36=5,(SUM(C36:G36)-MAX(C36:G36)-MIN(C36:G36))/3,IF(K36=4,(SUM(C36:G36)-MAX(C36:G36))/3,SUM(C36:G36)/3))*B36/7.6) ->  | K36: 0
A37: =IF(Draw!E36=0,"",Draw!E36) ->  | H37: =IF(B37="","",IF(K37=5,(SUM(C37:G37)-MAX(C37:G37)-MIN(C37:G37))/3,IF(K37=4,(SUM(C37:G37)-MAX(C37:G37))/3,SUM(C37:G37)/3))*B37/7.6) ->  | K37: 0
A38: =IF(Draw!E37=0,"",Draw!E37) ->  | H38: =IF(B38="","",IF(K38=5,(SUM(C38:G38)-MAX(C38:G38)-MIN(C38:G38))/3,IF(K38=4,(SUM(C38:G38)-MAX(C38:G38))/3,SUM(C38:G38)/3))*B38/7.6) ->  | K38: 0
A39: =IF(Draw!E38=0,"",Draw!E38) ->  | H39: =IF(B39="","",IF(K39=5,(SUM(C39:G39)-MAX(C39:G39)-MIN(C39:G39))/3,IF(K39=4,(SUM(C39:G39)-MAX(C39:G39))/3,SUM(C39:G39)/3))*B39/7.6) ->  | K39: 0
A40: =IF(Draw!E39=0,"",Draw!E39) ->  | H40: =IF(B40="","",IF(K40=5,(SUM(C40:G40)-MAX(C40:G40)-MIN(C40:G40))/3,IF(K40=4,(SUM(C40:G40)-MAX(C40:G40))/3,SUM(C40:G40)/3))*B40/7.6) ->  | K40: 0
A41: =IF(Draw!E40=0,"",Draw!E40) ->  | H41: =IF(B41="","",IF(K41=5,(SUM(C41:G41)-MAX(C41:G41)-MIN(C41:G41))/3,IF(K41=4,(SUM(C41:G41)-MAX(C41:G41))/3,SUM(C41:G41)/3))*B41/7.6) ->  | K41: 0
A42: =IF(Draw!E41=0,"",Draw!E41) ->  | H42: =IF(B42="","",IF(K42=5,(SUM(C42:G42)-MAX(C42:G42)-MIN(C42:G42))/3,IF(K42=4,(SUM(C42:G42)-MAX(C42:G42))/3,SUM(C42:G42)/3))*B42/7.6) ->  | K42: 0
A43: =IF(Draw!E42=0,"",Draw!E42) ->  | H43: =IF(B43="","",IF(K43=5,(SUM(C43:G43)-MAX(C43:G43)-MIN(C43:G43))/3,IF(K43=4,(SUM(C43:G43)-MAX(C43:G43))/3,SUM(C43:G43)/3))*B43/7.6) ->  | K43: 0
A44: =IF(Draw!E43=0,"",Draw!E43) ->  | H44: =IF(B44="","",IF(K44=5,(SUM(C44:G44)-MAX(C44:G44)-MIN(C44:G44))/3,IF(K44=4,(SUM(C44:G44)-MAX(C44:G44))/3,SUM(C44:G44)/3))*B44/7.6) ->  | K44: 0
A45: =IF(Draw!E44=0,"",Draw!E44) ->  | H45: =IF(B45="","",IF(K45=5,(SUM(C45:G45)-MAX(C45:G45)-MIN(C45:G45))/3,IF(K45=4,(SUM(C45:G45)-MAX(C45:G45))/3,SUM(C45:G45)/3))*B45/7.6) ->  | K45: 0
A46: =IF(Draw!E45=0,"",Draw!E45) ->  | H46: =IF(B46="","",IF(K46=5,(SUM(C46:G46)-MAX(C46:G46)-MIN(C46:G46))/3,IF(K46=4,(SUM(C46:G46)-MAX(C46:G46))/3,SUM(C46:G46)/3))*B46/7.6) ->  | K46: 0
A47: =IF(Draw!E46=0,"",Draw!E46) ->  | H47: =IF(B47="","",IF(K47=5,(SUM(C47:G47)-MAX(C47:G47)-MIN(C47:G47))/3,IF(K47=4,(SUM(C47:G47)-MAX(C47:G47))/3,SUM(C47:G47)/3))*B47/7.6) ->  | K47: 0
A48: =IF(Draw!E47=0,"",Draw!E47) ->  | H48: =IF(B48="","",IF(K48=5,(SUM(C48:G48)-MAX(C48:G48)-MIN(C48:G48))/3,IF(K48=4,(SUM(C48:G48)-MAX(C48:G48))/3,SUM(C48:G48)/3))*B48/7.6) ->  | K48: 0
A49: =IF(Draw!E48=0,"",Draw!E48) ->  | H49: =IF(B49="","",IF(K49=5,(SUM(C49:G49)-MAX(C49:G49)-MIN(C49:G49))/3,IF(K49=4,(SUM(C49:G49)-MAX(C49:G49))/3,SUM(C49:G49)/3))*B49/7.6) ->  | K49: 0
A50: =IF(Draw!E49=0,"",Draw!E49) ->  | H50: =IF(B50="","",IF(K50=5,(SUM(C50:G50)-MAX(C50:G50)-MIN(C50:G50))/3,IF(K50=4,(SUM(C50:G50)-MAX(C50:G50))/3,SUM(C50:G50)/3))*B50/7.6) ->  | K50: 0
A51: =IF(Draw!E50=0,"",Draw!E50) ->  | H51: =IF(B51="","",IF(K51=5,(SUM(C51:G51)-MAX(C51:G51)-MIN(C51:G51))/3,IF(K51=4,(SUM(C51:G51)-MAX(C51:G51))/3,SUM(C51:G51)/3))*B51/7.6) ->  | K51: 0
A52: =IF(Draw!E51=0,"",Draw!E51) ->  | H52: =IF(B52="","",IF(K52=5,(SUM(C52:G52)-MAX(C52:G52)-MIN(C52:G52))/3,IF(K52=4,(SUM(C52:G52)-MAX(C52:G52))/3,SUM(C52:G52)/3))*B52/7.6) ->  | K52: 0
A53: =IF(Draw!E52=0,"",Draw!E52) ->  | H53: =IF(B53="","",IF(K53=5,(SUM(C53:G53)-MAX(C53:G53)-MIN(C53:G53))/3,IF(K53=4,(SUM(C53:G53)-MAX(C53:G53))/3,SUM(C53:G53)/3))*B53/7.6) ->  | K53: 0
A54: =IF(Draw!E53=0,"",Draw!E53) ->  | H54: =IF(B54="","",IF(K54=5,(SUM(C54:G54)-MAX(C54:G54)-MIN(C54:G54))/3,IF(K54=4,(SUM(C54:G54)-MAX(C54:G54))/3,SUM(C54:G54)/3))*B54/7.6) ->  | K54: 0
A55: =IF(Draw!E54=0,"",Draw!E54) ->  | H55: =IF(B55="","",IF(K55=5,(SUM(C55:G55)-MAX(C55:G55)-MIN(C55:G55))/3,IF(K55=4,(SUM(C55:G55)-MAX(C55:G55))/3,SUM(C55:G55)/3))*B55/7.6) ->  | K55: 0
A56: =IF(Draw!E55=0,"",Draw!E55) ->  | H56: =IF(B56="","",IF(K56=5,(SUM(C56:G56)-MAX(C56:G56)-MIN(C56:G56))/3,IF(K56=4,(SUM(C56:G56)-MAX(C56:G56))/3,SUM(C56:G56)/3))*B56/7.6) ->  | K56: 0
A57: =IF(Draw!E56=0,"",Draw!E56) ->  | H57: =IF(B57="","",IF(K57=5,(SUM(C57:G57)-MAX(C57:G57)-MIN(C57:G57))/3,IF(K57=4,(SUM(C57:G57)-MAX(C57:G57))/3,SUM(C57:G57)/3))*B57/7.6) ->  | K57: 0
A58: =IF(Draw!E57=0,"",Draw!E57) ->  | H58: =IF(B58="","",IF(K58=5,(SUM(C58:G58)-MAX(C58:G58)-MIN(C58:G58))/3,IF(K58=4,(SUM(C58:G58)-MAX(C58:G58))/3,SUM(C58:G58)/3))*B58/7.6) ->  | K58: 0
A59: =IF(Draw!E58=0,"",Draw!E58) ->  | H59: =IF(B59="","",IF(K59=5,(SUM(C59:G59)-MAX(C59:G59)-MIN(C59:G59))/3,IF(K59=4,(SUM(C59:G59)-MAX(C59:G59))/3,SUM(C59:G59)/3))*B59/7.6) ->  | K59: 0
A60: =IF(Draw!E59=0,"",Draw!E59) ->  | H60: =IF(B60="","",IF(K60=5,(SUM(C60:G60)-MAX(C60:G60)-MIN(C60:G60))/3,IF(K60=4,(SUM(C60:G60)-MAX(C60:G60))/3,SUM(C60:G60)/3))*B60/7.6) ->  | K60: 0
A61: =IF(Draw!E60=0,"",Draw!E60) ->  | H61: =IF(B61="","",IF(K61=5,(SUM(C61:G61)-MAX(C61:G61)-MIN(C61:G61))/3,IF(K61=4,(SUM(C61:G61)-MAX(C61:G61))/3,SUM(C61:G61)/3))*B61/7.6) ->  | K61: 0
A62: =IF(Draw!E61=0,"",Draw!E61) ->  | H62: =IF(B62="","",IF(K62=5,(SUM(C62:G62)-MAX(C62:G62)-MIN(C62:G62))/3,IF(K62=4,(SUM(C62:G62)-MAX(C62:G62))/3,SUM(C62:G62)/3))*B62/7.6) ->  | K62: 0
A63: =IF(Draw!E62=0,"",Draw!E62) ->  | H63: =IF(B63="","",IF(K63=5,(SUM(C63:G63)-MAX(C63:G63)-MIN(C63:G63))/3,IF(K63=4,(SUM(C63:G63)-MAX(C63:G63))/3,SUM(C63:G63)/3))*B63/7.6) ->  | K63: 0
A64: =IF(Draw!E63=0,"",Draw!E63) ->  | H64: =IF(B64="","",IF(K64=5,(SUM(C64:G64)-MAX(C64:G64)-MIN(C64:G64))/3,IF(K64=4,(SUM(C64:G64)-MAX(C64:G64))/3,SUM(C64:G64)/3))*B64/7.6) ->  | K64: 0
A65: =IF(Draw!E64=0,"",Draw!E64) ->  | H65: =IF(B65="","",IF(K65=5,(SUM(C65:G65)-MAX(C65:G65)-MIN(C65:G65))/3,IF(K65=4,(SUM(C65:G65)-MAX(C65:G65))/3,SUM(C65:G65)/3))*B65/7.6) ->  | K65: 0
A66: =IF(Draw!E65=0,"",Draw!E65) ->  | H66: =IF(B66="","",IF(K66=5,(SUM(C66:G66)-MAX(C66:G66)-MIN(C66:G66))/3,IF(K66=4,(SUM(C66:G66)-MAX(C66:G66))/3,SUM(C66:G66)/3))*B66/7.6) ->  | K66: 0
A67: =IF(Draw!E66=0,"",Draw!E66) ->  | H67: =IF(B67="","",IF(K67=5,(SUM(C67:G67)-MAX(C67:G67)-MIN(C67:G67))/3,IF(K67=4,(SUM(C67:G67)-MAX(C67:G67))/3,SUM(C67:G67)/3))*B67/7.6) ->  | K67: 0
A68: =IF(Draw!E67=0,"",Draw!E67) ->  | H68: =IF(B68="","",IF(K68=5,(SUM(C68:G68)-MAX(C68:G68)-MIN(C68:G68))/3,IF(K68=4,(SUM(C68:G68)-MAX(C68:G68))/3,SUM(C68:G68)/3))*B68/7.6) ->  | K68: =COUNT(C68:G68) -> 0
A69: =IF(Draw!E68=0,"",Draw!E68) ->  | H69: =IF(B69="","",IF(K69=5,(SUM(C69:G69)-MAX(C69:G69)-MIN(C69:G69))/3,IF(K69=4,(SUM(C69:G69)-MAX(C69:G69))/3,SUM(C69:G69)/3))*B69/7.6) ->  | K69: 0
A70: =IF(Draw!E69=0,"",Draw!E69) ->  | H70: =IF(B70="","",IF(K70=5,(SUM(C70:G70)-MAX(C70:G70)-MIN(C70:G70))/3,IF(K70=4,(SUM(C70:G70)-MAX(C70:G70))/3,SUM(C70:G70)/3))*B70/7.6) ->  | K70: 0
A71: =IF(Draw!E70=0,"",Draw!E70) ->  | B71: =IF(A71="","",B$3) ->  | H71: =IF(B71="","",IF(K71=5,(SUM(C71:G71)-MAX(C71:G71)-MIN(C71:G71))/3,IF(K71=4,(SUM(C71:G71)-MAX(C71:G71))/3,SUM(C71:G71)/3))*B71/7.6) ->  | K71: 0
A72: =IF(Draw!E71=0,"",Draw!E71) ->  | H72: =IF(B72="","",IF(K72=5,(SUM(C72:G72)-MAX(C72:G72)-MIN(C72:G72))/3,IF(K72=4,(SUM(C72:G72)-MAX(C72:G72))/3,SUM(C72:G72)/3))*B72/7.6) ->  | K72: 0
A73: =IF(Draw!E72=0,"",Draw!E72) ->  | H73: =IF(B73="","",IF(K73=5,(SUM(C73:G73)-MAX(C73:G73)-MIN(C73:G73))/3,IF(K73=4,(SUM(C73:G73)-MAX(C73:G73))/3,SUM(C73:G73)/3))*B73/7.6) ->  | K73: 0
A74: =IF(Draw!E73=0,"",Draw!E73) ->  | H74: =IF(B74="","",IF(K74=5,(SUM(C74:G74)-MAX(C74:G74)-MIN(C74:G74))/3,IF(K74=4,(SUM(C74:G74)-MAX(C74:G74))/3,SUM(C74:G74)/3))*B74/7.6) ->  | K74: 0
A75: =IF(Draw!E74=0,"",Draw!E74) ->  | H75: =IF(B75="","",IF(K75=5,(SUM(C75:G75)-MAX(C75:G75)-MIN(C75:G75))/3,IF(K75=4,(SUM(C75:G75)-MAX(C75:G75))/3,SUM(C75:G75)/3))*B75/7.6) ->  | K75: 0
A76: =IF(Draw!E75=0,"",Draw!E75) ->  | H76: =IF(B76="","",IF(K76=5,(SUM(C76:G76)-MAX(C76:G76)-MIN(C76:G76))/3,IF(K76=4,(SUM(C76:G76)-MAX(C76:G76))/3,SUM(C76:G76)/3))*B76/7.6) ->  | K76: 0
A77: =IF(Draw!E76=0,"",Draw!E76) ->  | H77: =IF(B77="","",IF(K77=5,(SUM(C77:G77)-MAX(C77:G77)-MIN(C77:G77))/3,IF(K77=4,(SUM(C77:G77)-MAX(C77:G77))/3,SUM(C77:G77)/3))*B77/7.6) ->  | K77: 0
A78: =IF(Draw!E77=0,"",Draw!E77) ->  | H78: =IF(B78="","",IF(K78=5,(SUM(C78:G78)-MAX(C78:G78)-MIN(C78:G78))/3,IF(K78=4,(SUM(C78:G78)-MAX(C78:G78))/3,SUM(C78:G78)/3))*B78/7.6) ->  | K78: 0
A79: =IF(Draw!E78=0,"",Draw!E78) ->  | H79: =IF(B79="","",IF(K79=5,(SUM(C79:G79)-MAX(C79:G79)-MIN(C79:G79))/3,IF(K79=4,(SUM(C79:G79)-MAX(C79:G79))/3,SUM(C79:G79)/3))*B79/7.6) ->  | K79: 0
A80: =IF(Draw!E79=0,"",Draw!E79) ->  | H80: =IF(B80="","",IF(K80=5,(SUM(C80:G80)-MAX(C80:G80)-MIN(C80:G80))/3,IF(K80=4,(SUM(C80:G80)-MAX(C80:G80))/3,SUM(C80:G80)/3))*B80/7.6) ->  | K80: 0
A81: =IF(Draw!E80=0,"",Draw!E80) ->  | H81: =IF(B81="","",IF(K81=5,(SUM(C81:G81)-MAX(C81:G81)-MIN(C81:G81))/3,IF(K81=4,(SUM(C81:G81)-MAX(C81:G81))/3,SUM(C81:G81)/3))*B81/7.6) ->  | K81: 0
A82: =IF(Draw!E81=0,"",Draw!E81) ->  | H82: =IF(B82="","",IF(K82=5,(SUM(C82:G82)-MAX(C82:G82)-MIN(C82:G82))/3,IF(K82=4,(SUM(C82:G82)-MAX(C82:G82))/3,SUM(C82:G82)/3))*B82/7.6) ->  | K82: 0
A83: =IF(Draw!E82=0,"",Draw!E82) ->  | H83: =IF(B83="","",IF(K83=5,(SUM(C83:G83)-MAX(C83:G83)-MIN(C83:G83))/3,IF(K83=4,(SUM(C83:G83)-MAX(C83:G83))/3,SUM(C83:G83)/3))*B83/7.6) ->  | K83: 0
A84: =IF(Draw!E83=0,"",Draw!E83) ->  | H84: =IF(B84="","",IF(K84=5,(SUM(C84:G84)-MAX(C84:G84)-MIN(C84:G84))/3,IF(K84=4,(SUM(C84:G84)-MAX(C84:G84))/3,SUM(C84:G84)/3))*B84/7.6) ->  | K84: 0
A85: =IF(Draw!E84=0,"",Draw!E84) ->  | H85: =IF(B85="","",IF(K85=5,(SUM(C85:G85)-MAX(C85:G85)-MIN(C85:G85))/3,IF(K85=4,(SUM(C85:G85)-MAX(C85:G85))/3,SUM(C85:G85)/3))*B85/7.6) ->  | K85: 0
A86: =IF(Draw!E85=0,"",Draw!E85) ->  | H86: =IF(B86="","",IF(K86=5,(SUM(C86:G86)-MAX(C86:G86)-MIN(C86:G86))/3,IF(K86=4,(SUM(C86:G86)-MAX(C86:G86))/3,SUM(C86:G86)/3))*B86/7.6) ->  | K86: 0
A87: =IF(Draw!E86=0,"",Draw!E86) ->  | H87: =IF(B87="","",IF(K87=5,(SUM(C87:G87)-MAX(C87:G87)-MIN(C87:G87))/3,IF(K87=4,(SUM(C87:G87)-MAX(C87:G87))/3,SUM(C87:G87)/3))*B87/7.6) ->  | K87: 0
A88: =IF(Draw!E87=0,"",Draw!E87) ->  | H88: =IF(B88="","",IF(K88=5,(SUM(C88:G88)-MAX(C88:G88)-MIN(C88:G88))/3,IF(K88=4,(SUM(C88:G88)-MAX(C88:G88))/3,SUM(C88:G88)/3))*B88/7.6) ->  | K88: 0
A89: =IF(Draw!E88=0,"",Draw!E88) ->  | H89: =IF(B89="","",IF(K89=5,(SUM(C89:G89)-MAX(C89:G89)-MIN(C89:G89))/3,IF(K89=4,(SUM(C89:G89)-MAX(C89:G89))/3,SUM(C89:G89)/3))*B89/7.6) ->  | K89: 0
A90: =IF(Draw!E89=0,"",Draw!E89) ->  | H90: =IF(B90="","",IF(K90=5,(SUM(C90:G90)-MAX(C90:G90)-MIN(C90:G90))/3,IF(K90=4,(SUM(C90:G90)-MAX(C90:G90))/3,SUM(C90:G90)/3))*B90/7.6) ->  | K90: 0
A91: =IF(Draw!E90=0,"",Draw!E90) ->  | H91: =IF(B91="","",IF(K91=5,(SUM(C91:G91)-MAX(C91:G91)-MIN(C91:G91))/3,IF(K91=4,(SUM(C91:G91)-MAX(C91:G91))/3,SUM(C91:G91)/3))*B91/7.6) ->  | K91: 0
A92: =IF(Draw!E91=0,"",Draw!E91) ->  | H92: =IF(B92="","",IF(K92=5,(SUM(C92:G92)-MAX(C92:G92)-MIN(C92:G92))/3,IF(K92=4,(SUM(C92:G92)-MAX(C92:G92))/3,SUM(C92:G92)/3))*B92/7.6) ->  | K92: 0
A93: =IF(Draw!E92=0,"",Draw!E92) ->  | H93: =IF(B93="","",IF(K93=5,(SUM(C93:G93)-MAX(C93:G93)-MIN(C93:G93))/3,IF(K93=4,(SUM(C93:G93)-MAX(C93:G93))/3,SUM(C93:G93)/3))*B93/7.6) ->  | K93: 0
A94: =IF(Draw!E93=0,"",Draw!E93) ->  | H94: =IF(B94="","",IF(K94=5,(SUM(C94:G94)-MAX(C94:G94)-MIN(C94:G94))/3,IF(K94=4,(SUM(C94:G94)-MAX(C94:G94))/3,SUM(C94:G94)/3))*B94/7.6) ->  | K94: 0
A95: =IF(Draw!E94=0,"",Draw!E94) ->  | H95: =IF(B95="","",IF(K95=5,(SUM(C95:G95)-MAX(C95:G95)-MIN(C95:G95))/3,IF(K95=4,(SUM(C95:G95)-MAX(C95:G95))/3,SUM(C95:G95)/3))*B95/7.6) ->  | K95: 0
A96: =IF(Draw!E95=0,"",Draw!E95) ->  | H96: =IF(B96="","",IF(K96=5,(SUM(C96:G96)-MAX(C96:G96)-MIN(C96:G96))/3,IF(K96=4,(SUM(C96:G96)-MAX(C96:G96))/3,SUM(C96:G96)/3))*B96/7.6) ->  | K96: 0
A97: =IF(Draw!E96=0,"",Draw!E96) ->  | H97: =IF(B97="","",IF(K97=5,(SUM(C97:G97)-MAX(C97:G97)-MIN(C97:G97))/3,IF(K97=4,(SUM(C97:G97)-MAX(C97:G97))/3,SUM(C97:G97)/3))*B97/7.6) ->  | K97: 0
A98: =IF(Draw!E97=0,"",Draw!E97) ->  | H98: =IF(B98="","",IF(K98=5,(SUM(C98:G98)-MAX(C98:G98)-MIN(C98:G98))/3,IF(K98=4,(SUM(C98:G98)-MAX(C98:G98))/3,SUM(C98:G98)/3))*B98/7.6) ->  | K98: 0
A99: =IF(Draw!E98=0,"",Draw!E98) ->  | H99: =IF(B99="","",IF(K99=5,(SUM(C99:G99)-MAX(C99:G99)-MIN(C99:G99))/3,IF(K99=4,(SUM(C99:G99)-MAX(C99:G99))/3,SUM(C99:G99)/3))*B99/7.6) ->  | K99: 0
A100: =IF(Draw!E99=0,"",Draw!E99) ->  | H100: =IF(B100="","",IF(K100=5,(SUM(C100:G100)-MAX(C100:G100)-MIN(C100:G100))/3,IF(K100=4,(SUM(C100:G100)-MAX(C100:G100))/3,SUM(C100:G100)/3))*B100/7.6) ->  | K100: 0
A101: =IF(Draw!E100=0,"",Draw!E100) ->  | H101: =IF(B101="","",IF(K101=5,(SUM(C101:G101)-MAX(C101:G101)-MIN(C101:G101))/3,IF(K101=4,(SUM(C101:G101)-MAX(C101:G101))/3,SUM(C101:G101)/3))*B101/7.6) ->  | K101: 0
A102: =IF(Draw!E101=0,"",Draw!E101) ->  | H102: =IF(B102="","",IF(K102=5,(SUM(C102:G102)-MAX(C102:G102)-MIN(C102:G102))/3,IF(K102=4,(SUM(C102:G102)-MAX(C102:G102))/3,SUM(C102:G102)/3))*B102/7.6) ->  | K102: 0
A103: =IF(Draw!E102=0,"",Draw!E102) ->  | H103: =IF(B103="","",IF(K103=5,(SUM(C103:G103)-MAX(C103:G103)-MIN(C103:G103))/3,IF(K103=4,(SUM(C103:G103)-MAX(C103:G103))/3,SUM(C103:G103)/3))*B103/7.6) ->  | K103: 0
A104: =IF(Draw!E103=0,"",Draw!E103) ->  | H104: =IF(B104="","",IF(K104=5,(SUM(C104:G104)-MAX(C104:G104)-MIN(C104:G104))/3,IF(K104=4,(SUM(C104:G104)-MAX(C104:G104))/3,SUM(C104:G104)/3))*B104/7.6) ->  | K104: 0
A105: =IF(Draw!E104=0,"",Draw!E104) ->  | H105: =IF(B105="","",IF(K105=5,(SUM(C105:G105)-MAX(C105:G105)-MIN(C105:G105))/3,IF(K105=4,(SUM(C105:G105)-MAX(C105:G105))/3,SUM(C105:G105)/3))*B105/7.6) ->  | K105: 0
A106: =IF(Draw!E105=0,"",Draw!E105) ->  | H106: =IF(B106="","",IF(K106=5,(SUM(C106:G106)-MAX(C106:G106)-MIN(C106:G106))/3,IF(K106=4,(SUM(C106:G106)-MAX(C106:G106))/3,SUM(C106:G106)/3))*B106/7.6) ->  | K106: 0
A107: =IF(Draw!E106=0,"",Draw!E106) ->  | H107: =IF(B107="","",IF(K107=5,(SUM(C107:G107)-MAX(C107:G107)-MIN(C107:G107))/3,IF(K107=4,(SUM(C107:G107)-MAX(C107:G107))/3,SUM(C107:G107)/3))*B107/7.6) ->  | K107: 0
A108: =IF(Draw!E107=0,"",Draw!E107) ->  | H108: =IF(B108="","",IF(K108=5,(SUM(C108:G108)-MAX(C108:G108)-MIN(C108:G108))/3,IF(K108=4,(SUM(C108:G108)-MAX(C108:G108))/3,SUM(C108:G108)/3))*B108/7.6) ->  | K108: 0
A109: =IF(Draw!E108=0,"",Draw!E108) ->  | H109: =IF(B109="","",IF(K109=5,(SUM(C109:G109)-MAX(C109:G109)-MIN(C109:G109))/3,IF(K109=4,(SUM(C109:G109)-MAX(C109:G109))/3,SUM(C109:G109)/3))*B109/7.6) ->  | K109: 0
A110: =IF(Draw!E109=0,"",Draw!E109) ->  | H110: =IF(B110="","",IF(K110=5,(SUM(C110:G110)-MAX(C110:G110)-MIN(C110:G110))/3,IF(K110=4,(SUM(C110:G110)-MAX(C110:G110))/3,SUM(C110:G110)/3))*B110/7.6) ->  | K110: 0
A111: =IF(Draw!E110=0,"",Draw!E110) ->  | H111: =IF(B111="","",IF(K111=5,(SUM(C111:G111)-MAX(C111:G111)-MIN(C111:G111))/3,IF(K111=4,(SUM(C111:G111)-MAX(C111:G111))/3,SUM(C111:G111)/3))*B111/7.6) ->  | K111: 0
A112: =IF(Draw!E111=0,"",Draw!E111) ->  | H112: =IF(B112="","",IF(K112=5,(SUM(C112:G112)-MAX(C112:G112)-MIN(C112:G112))/3,IF(K112=4,(SUM(C112:G112)-MAX(C112:G112))/3,SUM(C112:G112)/3))*B112/7.6) ->  | K112: 0
A113: =IF(Draw!E112=0,"",Draw!E112) ->  | H113: =IF(B113="","",IF(K113=5,(SUM(C113:G113)-MAX(C113:G113)-MIN(C113:G113))/3,IF(K113=4,(SUM(C113:G113)-MAX(C113:G113))/3,SUM(C113:G113)/3))*B113/7.6) ->  | K113: 0
A114: =IF(Draw!E113=0,"",Draw!E113) ->  | H114: =IF(B114="","",IF(K114=5,(SUM(C114:G114)-MAX(C114:G114)-MIN(C114:G114))/3,IF(K114=4,(SUM(C114:G114)-MAX(C114:G114))/3,SUM(C114:G114)/3))*B114/7.6) ->  | K114: 0
A115: =IF(Draw!E114=0,"",Draw!E114) ->  | H115: =IF(B115="","",IF(K115=5,(SUM(C115:G115)-MAX(C115:G115)-MIN(C115:G115))/3,IF(K115=4,(SUM(C115:G115)-MAX(C115:G115))/3,SUM(C115:G115)/3))*B115/7.6) ->  | K115: 0
A116: =IF(Draw!E115=0,"",Draw!E115) ->  | H116: =IF(B116="","",IF(K116=5,(SUM(C116:G116)-MAX(C116:G116)-MIN(C116:G116))/3,IF(K116=4,(SUM(C116:G116)-MAX(C116:G116))/3,SUM(C116:G116)/3))*B116/7.6) ->  | K116: 0
A117: =IF(Draw!E116=0,"",Draw!E116) ->  | H117: =IF(B117="","",IF(K117=5,(SUM(C117:G117)-MAX(C117:G117)-MIN(C117:G117))/3,IF(K117=4,(SUM(C117:G117)-MAX(C117:G117))/3,SUM(C117:G117)/3))*B117/7.6) ->  | K117: 0
A118: =IF(Draw!E117=0,"",Draw!E117) ->  | H118: =IF(B118="","",IF(K118=5,(SUM(C118:G118)-MAX(C118:G118)-MIN(C118:G118))/3,IF(K118=4,(SUM(C118:G118)-MAX(C118:G118))/3,SUM(C118:G118)/3))*B118/7.6) ->  | K118: 0
A119: =IF(Draw!E118=0,"",Draw!E118) ->  | H119: =IF(B119="","",IF(K119=5,(SUM(C119:G119)-MAX(C119:G119)-MIN(C119:G119))/3,IF(K119=4,(SUM(C119:G119)-MAX(C119:G119))/3,SUM(C119:G119)/3))*B119/7.6) ->  | K119: 0
A120: =IF(Draw!E119=0,"",Draw!E119) ->  | H120: =IF(B120="","",IF(K120=5,(SUM(C120:G120)-MAX(C120:G120)-MIN(C120:G120))/3,IF(K120=4,(SUM(C120:G120)-MAX(C120:G120))/3,SUM(C120:G120)/3))*B120/7.6) ->  | K120: 0
A121: =IF(Draw!E120=0,"",Draw!E120) ->  | H121: =IF(B121="","",IF(K121=5,(SUM(C121:G121)-MAX(C121:G121)-MIN(C121:G121))/3,IF(K121=4,(SUM(C121:G121)-MAX(C121:G121))/3,SUM(C121:G121)/3))*B121/7.6) ->  | K121: 0
A122: =IF(Draw!E121=0,"",Draw!E121) ->  | H122: =IF(B122="","",IF(K122=5,(SUM(C122:G122)-MAX(C122:G122)-MIN(C122:G122))/3,IF(K122=4,(SUM(C122:G122)-MAX(C122:G122))/3,SUM(C122:G122)/3))*B122/7.6) ->  | K122: 0
A123: =IF(Draw!E122=0,"",Draw!E122) ->  | H123: =IF(B123="","",IF(K123=5,(SUM(C123:G123)-MAX(C123:G123)-MIN(C123:G123))/3,IF(K123=4,(SUM(C123:G123)-MAX(C123:G123))/3,SUM(C123:G123)/3))*B123/7.6) ->  | K123: 0
A124: =IF(Draw!E123=0,"",Draw!E123) ->  | H124: =IF(B124="","",IF(K124=5,(SUM(C124:G124)-MAX(C124:G124)-MIN(C124:G124))/3,IF(K124=4,(SUM(C124:G124)-MAX(C124:G124))/3,SUM(C124:G124)/3))*B124/7.6) ->  | K124: 0
A125: =IF(Draw!E124=0,"",Draw!E124) ->  | H125: =IF(B125="","",IF(K125=5,(SUM(C125:G125)-MAX(C125:G125)-MIN(C125:G125))/3,IF(K125=4,(SUM(C125:G125)-MAX(C125:G125))/3,SUM(C125:G125)/3))*B125/7.6) ->  | K125: 0
A126: =IF(Draw!E125=0,"",Draw!E125) ->  | H126: =IF(B126="","",IF(K126=5,(SUM(C126:G126)-MAX(C126:G126)-MIN(C126:G126))/3,IF(K126=4,(SUM(C126:G126)-MAX(C126:G126))/3,SUM(C126:G126)/3))*B126/7.6) ->  | K126: 0
A127: =IF(Draw!E126=0,"",Draw!E126) ->  | H127: =IF(B127="","",IF(K127=5,(SUM(C127:G127)-MAX(C127:G127)-MIN(C127:G127))/3,IF(K127=4,(SUM(C127:G127)-MAX(C127:G127))/3,SUM(C127:G127)/3))*B127/7.6) ->  | K127: 0
A128: =IF(Draw!E127=0,"",Draw!E127) ->  | H128: =IF(B128="","",IF(K128=5,(SUM(C128:G128)-MAX(C128:G128)-MIN(C128:G128))/3,IF(K128=4,(SUM(C128:G128)-MAX(C128:G128))/3,SUM(C128:G128)/3))*B128/7.6) ->  | K128: 0
A129: =IF(Draw!E128=0,"",Draw!E128) ->  | H129: =IF(B129="","",IF(K129=5,(SUM(C129:G129)-MAX(C129:G129)-MIN(C129:G129))/3,IF(K129=4,(SUM(C129:G129)-MAX(C129:G129))/3,SUM(C129:G129)/3))*B129/7.6) ->  | K129: 0
A130: =IF(Draw!E129=0,"",Draw!E129) ->  | H130: =IF(B130="","",IF(K130=5,(SUM(C130:G130)-MAX(C130:G130)-MIN(C130:G130))/3,IF(K130=4,(SUM(C130:G130)-MAX(C130:G130))/3,SUM(C130:G130)/3))*B130/7.6) ->  | K130: 0
A131: =IF(Draw!E130=0,"",Draw!E130) ->  | H131: =IF(B131="","",IF(K131=5,(SUM(C131:G131)-MAX(C131:G131)-MIN(C131:G131))/3,IF(K131=4,(SUM(C131:G131)-MAX(C131:G131))/3,SUM(C131:G131)/3))*B131/7.6) ->  | K131: 0
A132: =IF(Draw!E131=0,"",Draw!E131) ->  | H132: =IF(B132="","",IF(K132=5,(SUM(C132:G132)-MAX(C132:G132)-MIN(C132:G132))/3,IF(K132=4,(SUM(C132:G132)-MAX(C132:G132))/3,SUM(C132:G132)/3))*B132/7.6) ->  | K132: =COUNT(C132:G132) -> 0
A133: =IF(Draw!E132=0,"",Draw!E132) ->  | H133: =IF(B133="","",IF(K133=5,(SUM(C133:G133)-MAX(C133:G133)-MIN(C133:G133))/3,IF(K133=4,(SUM(C133:G133)-MAX(C133:G133))/3,SUM(C133:G133)/3))*B133/7.6) ->  | K133: 0
A134: =IF(Draw!E133=0,"",Draw!E133) ->  | H134: =IF(B134="","",IF(K134=5,(SUM(C134:G134)-MAX(C134:G134)-MIN(C134:G134))/3,IF(K134=4,(SUM(C134:G134)-MAX(C134:G134))/3,SUM(C134:G134)/3))*B134/7.6) ->  | K134: 0
A135: =IF(Draw!E134=0,"",Draw!E134) ->  | B135: =IF(A135="","",B$3) ->  | H135: =IF(B135="","",IF(K135=5,(SUM(C135:G135)-MAX(C135:G135)-MIN(C135:G135))/3,IF(K135=4,(SUM(C135:G135)-MAX(C135:G135))/3,SUM(C135:G135)/3))*B135/7.6) ->  | K135: 0
A136: =IF(Draw!E135=0,"",Draw!E135) ->  | H136: =IF(B136="","",IF(K136=5,(SUM(C136:G136)-MAX(C136:G136)-MIN(C136:G136))/3,IF(K136=4,(SUM(C136:G136)-MAX(C136:G136))/3,SUM(C136:G136)/3))*B136/7.6) ->  | K136: 0
A137: =IF(Draw!E136=0,"",Draw!E136) ->  | H137: =IF(B137="","",IF(K137=5,(SUM(C137:G137)-MAX(C137:G137)-MIN(C137:G137))/3,IF(K137=4,(SUM(C137:G137)-MAX(C137:G137))/3,SUM(C137:G137)/3))*B137/7.6) ->  | K137: 0
A138: =IF(Draw!E137=0,"",Draw!E137) ->  | H138: =IF(B138="","",IF(K138=5,(SUM(C138:G138)-MAX(C138:G138)-MIN(C138:G138))/3,IF(K138=4,(SUM(C138:G138)-MAX(C138:G138))/3,SUM(C138:G138)/3))*B138/7.6) ->  | K138: 0
A139: =IF(Draw!E138=0,"",Draw!E138) ->  | H139: =IF(B139="","",IF(K139=5,(SUM(C139:G139)-MAX(C139:G139)-MIN(C139:G139))/3,IF(K139=4,(SUM(C139:G139)-MAX(C139:G139))/3,SUM(C139:G139)/3))*B139/7.6) ->  | K139: 0
A140: =IF(Draw!E139=0,"",Draw!E139) ->  | H140: =IF(B140="","",IF(K140=5,(SUM(C140:G140)-MAX(C140:G140)-MIN(C140:G140))/3,IF(K140=4,(SUM(C140:G140)-MAX(C140:G140))/3,SUM(C140:G140)/3))*B140/7.6) ->  | K140: 0
A141: =IF(Draw!E140=0,"",Draw!E140) ->  | H141: =IF(B141="","",IF(K141=5,(SUM(C141:G141)-MAX(C141:G141)-MIN(C141:G141))/3,IF(K141=4,(SUM(C141:G141)-MAX(C141:G141))/3,SUM(C141:G141)/3))*B141/7.6) ->  | K141: 0
A142: =IF(Draw!E141=0,"",Draw!E141) ->  | H142: =IF(B142="","",IF(K142=5,(SUM(C142:G142)-MAX(C142:G142)-MIN(C142:G142))/3,IF(K142=4,(SUM(C142:G142)-MAX(C142:G142))/3,SUM(C142:G142)/3))*B142/7.6) ->  | K142: 0
A143: =IF(Draw!E142=0,"",Draw!E142) ->  | H143: =IF(B143="","",IF(K143=5,(SUM(C143:G143)-MAX(C143:G143)-MIN(C143:G143))/3,IF(K143=4,(SUM(C143:G143)-MAX(C143:G143))/3,SUM(C143:G143)/3))*B143/7.6) ->  | K143: 0
A144: =IF(Draw!E143=0,"",Draw!E143) ->  | H144: =IF(B144="","",IF(K144=5,(SUM(C144:G144)-MAX(C144:G144)-MIN(C144:G144))/3,IF(K144=4,(SUM(C144:G144)-MAX(C144:G144))/3,SUM(C144:G144)/3))*B144/7.6) ->  | K144: 0
A145: =IF(Draw!E144=0,"",Draw!E144) ->  | H145: =IF(B145="","",IF(K145=5,(SUM(C145:G145)-MAX(C145:G145)-MIN(C145:G145))/3,IF(K145=4,(SUM(C145:G145)-MAX(C145:G145))/3,SUM(C145:G145)/3))*B145/7.6) ->  | K145: 0
A146: =IF(Draw!E145=0,"",Draw!E145) ->  | H146: =IF(B146="","",IF(K146=5,(SUM(C146:G146)-MAX(C146:G146)-MIN(C146:G146))/3,IF(K146=4,(SUM(C146:G146)-MAX(C146:G146))/3,SUM(C146:G146)/3))*B146/7.6) ->  | K146: 0
A147: =IF(Draw!E146=0,"",Draw!E146) ->  | H147: =IF(B147="","",IF(K147=5,(SUM(C147:G147)-MAX(C147:G147)-MIN(C147:G147))/3,IF(K147=4,(SUM(C147:G147)-MAX(C147:G147))/3,SUM(C147:G147)/3))*B147/7.6) ->  | K147: 0
A148: =IF(Draw!E147=0,"",Draw!E147) ->  | H148: =IF(B148="","",IF(K148=5,(SUM(C148:G148)-MAX(C148:G148)-MIN(C148:G148))/3,IF(K148=4,(SUM(C148:G148)-MAX(C148:G148))/3,SUM(C148:G148)/3))*B148/7.6) ->  | K148: 0
A149: =IF(Draw!E148=0,"",Draw!E148) ->  | H149: =IF(B149="","",IF(K149=5,(SUM(C149:G149)-MAX(C149:G149)-MIN(C149:G149))/3,IF(K149=4,(SUM(C149:G149)-MAX(C149:G149))/3,SUM(C149:G149)/3))*B149/7.6) ->  | K149: 0
A150: =IF(Draw!E149=0,"",Draw!E149) ->  | H150: =IF(B150="","",IF(K150=5,(SUM(C150:G150)-MAX(C150:G150)-MIN(C150:G150))/3,IF(K150=4,(SUM(C150:G150)-MAX(C150:G150))/3,SUM(C150:G150)/3))*B150/7.6) ->  | K150: 0

Sheet Fig 4 Walkover
B1: Figure #4: | C1: 360 Walkover Front
A2: # | B2: Degree of Difficulty | C2: Judge 1 | D2: Judge 2 | E2: Judge 3 | F2: Judge 4 | G2: Judge 5 | H2: Score | I2: Penalty
A3: =IF(Draw!E2=0,"",Draw!E2) -> 1 | B3: 2.1 | H3: =IF(B3="","",IF(K3=5,(SUM(C3:G3)-MAX(C3:G3)-MIN(C3:G3))/3,IF(K3=4,(SUM(C3:G3)-MAX(C3:G3))/3,SUM(C3:G3)/3))*B3/7.6) -> 0.000 | K3: =COUNT(C3:G3) -> 0
A4: =IF(Draw!E3=0,"",Draw!E3) -> 2 | B4: =IF(A4="","",B$3) -> 2.1 | C4: 59 | D4: 60 | E4: 63 | H4: =IF(B4="","",IF(K4=5,(SUM(C4:G4)-MAX(C4:G4)-MIN(C4:G4))/3,IF(K4=4,(SUM(C4:G4)-MAX(C4:G4))/3,SUM(C4:G4)/3))*B4/7.6) -> 16.763 | K4: =COUNT(C4:G4) -> 3
A5: =IF(Draw!E4=0,"",Draw!E4) -> 3 | B5: =IF(A5="","",B$3) -> 2.1 | C5: 43 | D5: 50 | E5: 51 | H5: =IF(B5="","",IF(K5=5,(SUM(C5:G5)-MAX(C5:G5)-MIN(C5:G5))/3,IF(K5=4,(SUM(C5:G5)-MAX(C5:G5))/3,SUM(C5:G5)/3))*B5/7.6) -> 13.263 | K5: 3
A6: =IF(Draw!E5=0,"",Draw!E5) -> 4 | B6: 2.1 | C6: 52 | D6: 49 | E6: 47 | H6: =IF(B6="","",IF(K6=5,(SUM(C6:G6)-MAX(C6:G6)-MIN(C6:G6))/3,IF(K6=4,(SUM(C6:G6)-MAX(C6:G6))/3,SUM(C6:G6)/3))*B6/7.6) -> 13.632 | K6: 3
A7: =IF(Draw!E6=0,"",Draw!E6) -> 5 | B7: =IF(A7="","",B$3) -> 2.1 | C7: 56 | D7: 56 | E7: 53 | H7: =IF(B7="","",IF(K7=5,(SUM(C7:G7)-MAX(C7:G7)-MIN(C7:G7))/3,IF(K7=4,(SUM(C7:G7)-MAX(C7:G7))/3,SUM(C7:G7)/3))*B7/7.6) -> 15.197 | K7: 3
A8: =IF(Draw!E7=0,"",Draw!E7) -> 6 | B8: 2.1 | C8: 50 | D8: 53 | E8: 50 | H8: =IF(B8="","",IF(K8=5,(SUM(C8:G8)-MAX(C8:G8)-MIN(C8:G8))/3,IF(K8=4,(SUM(C8:G8)-MAX(C8:G8))/3,SUM(C8:G8)/3))*B8/7.6) -> 14.092 | K8: 3
A9: =IF(Draw!E8=0,"",Draw!E8) -> 7 | B9: 2.1 | C9: 63 | D9: 61 | E9: 66 | H9: =IF(B9="","",IF(K9=5,(SUM(C9:G9)-MAX(C9:G9)-MIN(C9:G9))/3,IF(K9=4,(SUM(C9:G9)-MAX(C9:G9))/3,SUM(C9:G9)/3))*B9/7.6) -> 17.500 | K9: 3
A10: =IF(Draw!E9=0,"",Draw!E9) -> 8 | B10: 2.1 | C10: 53 | D10: 48 | E10: 48 | H10: =IF(B10="","",IF(K10=5,(SUM(C10:G10)-MAX(C10:G10)-MIN(C10:G10))/3,IF(K10=4,(SUM(C10:G10)-MAX(C10:G10))/3,SUM(C10:G10)/3))*B10/7.6) -> 13.724 | K10: 3
A11: =IF(Draw!E10=0,"",Draw!E10) -> 9 | B11: 2.1 | C11: 49 | D11: 50 | E11: 50 | H11: =IF(B11="","",IF(K11=5,(SUM(C11:G11)-MAX(C11:G11)-MIN(C11:G11))/3,IF(K11=4,(SUM(C11:G11)-MAX(C11:G11))/3,SUM(C11:G11)/3))*B11/7.6) -> 13.724 | K11: 3
A12: =IF(Draw!E11=0,"",Draw!E11) -> 10 | B12: 2.1 | C12: 46 | D12: 47 | E12: 44 | H12: =IF(B12="","",IF(K12=5,(SUM(C12:G12)-MAX(C12:G12)-MIN(C12:G12))/3,IF(K12=4,(SUM(C12:G12)-MAX(C12:G12))/3,SUM(C12:G12)/3))*B12/7.6) -> 12.618 | K12: 3
A13: =IF(Draw!E12=0,"",Draw!E12) -> 11 | B13: 2.1 | C13: 62 | D13: 64 | E13: 61 | H13: =IF(B13="","",IF(K13=5,(SUM(C13:G13)-MAX(C13:G13)-MIN(C13:G13))/3,IF(K13=4,(SUM(C13:G13)-MAX(C13:G13))/3,SUM(C13:G13)/3))*B13/7.6) -> 17.224 | K13: 3
A14: =IF(Draw!E13=0,"",Draw!E13) -> 12 | B14: 2.1 | C14: 59 | D14: 57 | E14: 56 | H14: =IF(B14="","",IF(K14=5,(SUM(C14:G14)-MAX(C14:G14)-MIN(C14:G14))/3,IF(K14=4,(SUM(C14:G14)-MAX(C14:G14))/3,SUM(C14:G14)/3))*B14/7.6) -> 15.842 | K14: 3
A15: =IF(Draw!E14=0,"",Draw!E14) -> 13 | B15: 2.1 | C15: 58 | D15: 59 | E15: 60 | H15: =IF(B15="","",IF(K15=5,(SUM(C15:G15)-MAX(C15:G15)-MIN(C15:G15))/3,IF(K15=4,(SUM(C15:G15)-MAX(C15:G15))/3,SUM(C15:G15)/3))*B15/7.6) -> 16.303 | K15: 3
A16: =IF(Draw!E15=0,"",Draw!E15) -> 14 | B16: 2.1 | C16: 63 | D16: 62 | E16: 61 | H16: =IF(B16="","",IF(K16=5,(SUM(C16:G16)-MAX(C16:G16)-MIN(C16:G16))/3,IF(K16=4,(SUM(C16:G16)-MAX(C16:G16))/3,SUM(C16:G16)/3))*B16/7.6) -> 17.132 | K16: 3
A17: =IF(Draw!E16=0,"",Draw!E16) -> 15 | B17: 2.1 | C17: 46 | D17: 52 | E17: 50 | H17: =IF(B17="","",IF(K17=5,(SUM(C17:G17)-MAX(C17:G17)-MIN(C17:G17))/3,IF(K17=4,(SUM(C17:G17)-MAX(C17:G17))/3,SUM(C17:G17)/3))*B17/7.6) -> 13.632 | K17: 3
A18: =IF(Draw!E17=0,"",Draw!E17) -> 16 | B18: 2.1 | C18: 57 | D18: 55 | E18: 55 | H18: =IF(B18="","",IF(K18=5,(SUM(C18:G18)-MAX(C18:G18)-MIN(C18:G18))/3,IF(K18=4,(SUM(C18:G18)-MAX(C18:G18))/3,SUM(C18:G18)/3))*B18/7.6) -> 15.382 | K18: 3
A19: =IF(Draw!E18=0,"",Draw!E18) -> 17 | B19: 2.1 | C19: 59 | D19: 57 | E19: 58 | H19: =IF(B19="","",IF(K19=5,(SUM(C19:G19)-MAX(C19:G19)-MIN(C19:G19))/3,IF(K19=4,(SUM(C19:G19)-MAX(C19:G19))/3,SUM(C19:G19)/3))*B19/7.6) -> 16.026 | K19: 3
A20: =IF(Draw!E19=0,"",Draw!E19) -> 18 | B20: 2.1 | C20: 53 | D20: 47 | E20: 45 | H20: =IF(B20="","",IF(K20=5,(SUM(C20:G20)-MAX(C20:G20)-MIN(C20:G20))/3,IF(K20=4,(SUM(C20:G20)-MAX(C20:G20))/3,SUM(C20:G20)/3))*B20/7.6) -> 13.355 | K20: 3
A21: =IF(Draw!E20=0,"",Draw!E20) -> 19 | B21: 2.1 | H21: =IF(B21="","",IF(K21=5,(SUM(C21:G21)-MAX(C21:G21)-MIN(C21:G21))/3,IF(K21=4,(SUM(C21:G21)-MAX(C21:G21))/3,SUM(C21:G21)/3))*B21/7.6) -> 0.000 | K21: 0
A22: =IF(Draw!E21=0,"",Draw!E21) -> 20 | B22: 2.1 | C22: 54 | D22: 55 | E22: 52 | H22: =IF(B22="","",IF(K22=5,(SUM(C22:G22)-MAX(C22:G22)-MIN(C22:G22))/3,IF(K22=4,(SUM(C22:G22)-MAX(C22:G22))/3,SUM(C22:G22)/3))*B22/7.6) -> 14.829 | K22: 3
A23: =IF(Draw!E22=0,"",Draw!E22) -> 21 | B23: 2.1 | C23: 58 | D23: 56 | E23: 59 | H23: =IF(B23="","",IF(K23=5,(SUM(C23:G23)-MAX(C23:G23)-MIN(C23:G23))/3,IF(K23=4,(SUM(C23:G23)-MAX(C23:G23))/3,SUM(C23:G23)/3))*B23/7.6) -> 15.934 | K23: 3
A24: =IF(Draw!E23=0,"",Draw!E23) -> 22 | B24: 2.1 | C24: 49 | D24: 56 | E24: 53 | H24: =IF(B24="","",IF(K24=5,(SUM(C24:G24)-MAX(C24:G24)-MIN(C24:G24))/3,IF(K24=4,(SUM(C24:G24)-MAX(C24:G24))/3,SUM(C24:G24)/3))*B24/7.6) -> 14.553 | K24: 3
A25: =IF(Draw!E24=0,"",Draw!E24) -> 23 | B25: 2.1 | C25: 59 | D25: 58 | E25: 52 | H25: =IF(B25="","",IF(K25=5,(SUM(C25:G25)-MAX(C25:G25)-MIN(C25:G25))/3,IF(K25=4,(SUM(C25:G25)-MAX(C25:G25))/3,SUM(C25:G25)/3))*B25/7.6) -> 15.566 | K25: 3
A26: =IF(Draw!E25=0,"",Draw!E25) -> 24 | B26: 2.1 | C26: 57 | D26: 53 | E26: 56 | H26: =IF(B26="","",IF(K26=5,(SUM(C26:G26)-MAX(C26:G26)-MIN(C26:G26))/3,IF(K26=4,(SUM(C26:G26)-MAX(C26:G26))/3,SUM(C26:G26)/3))*B26/7.6) -> 15.289 | K26: 3
A27: =IF(Draw!E26=0,"",Draw!E26) -> 25 | B27: 2.1 | C27: 62 | D27: 60 | E27: 59 | H27: =IF(B27="","",IF(K27=5,(SUM(C27:G27)-MAX(C27:G27)-MIN(C27:G27))/3,IF(K27=4,(SUM(C27:G27)-MAX(C27:G27))/3,SUM(C27:G27)/3))*B27/7.6) -> 16.671 | K27: 3
A28: =IF(Draw!E27=0,"",Draw!E27) -> 26 | B28: 2.1 | C28: 55 | D28: 55 | E28: 57 | H28: =IF(B28="","",IF(K28=5,(SUM(C28:G28)-MAX(C28:G28)-MIN(C28:G28))/3,IF(K28=4,(SUM(C28:G28)-MAX(C28:G28))/3,SUM(C28:G28)/3))*B28/7.6) -> 15.382 | K28: 3
A29: =IF(Draw!E28=0,"",Draw!E28) -> 27 | B29: 2.1 | C29: 41 | D29: 44 | E29: 42 | H29: =IF(B29="","",IF(K29=5,(SUM(C29:G29)-MAX(C29:G29)-MIN(C29:G29))/3,IF(K29=4,(SUM(C29:G29)-MAX(C29:G29))/3,SUM(C29:G29)/3))*B29/7.6) -> 11.697 | K29: 3
A30: =IF(Draw!E29=0,"",Draw!E29) -> 28 | B30: 2.1 | C30: 54 | D30: 54 | E30: 53 | H30: =IF(B30="","",IF(K30=5,(SUM(C30:G30)-MAX(C30:G30)-MIN(C30:G30))/3,IF(K30=4,(SUM(C30:G30)-MAX(C30:G30))/3,SUM(C30:G30)/3))*B30/7.6) -> 14.829 | K30: 3
A31: =IF(Draw!E30=0,"",Draw!E30) ->  | H31: =IF(B31="","",IF(K31=5,(SUM(C31:G31)-MAX(C31:G31)-MIN(C31:G31))/3,IF(K31=4,(SUM(C31:G31)-MAX(C31:G31))/3,SUM(C31:G31)/3))*B31/7.6) ->  | K31: 0
A32: =IF(Draw!E31=0,"",Draw!E31) ->  | H32: =IF(B32="","",IF(K32=5,(SUM(C32:G32)-MAX(C32:G32)-MIN(C32:G32))/3,IF(K32=4,(SUM(C32:G32)-MAX(C32:G32))/3,SUM(C32:G32)/3))*B32/7.6) ->  | K32: 0
A33: =IF(Draw!E32=0,"",Draw!E32) ->  | H33: =IF(B33="","",IF(K33=5,(SUM(C33:G33)-MAX(C33:G33)-MIN(C33:G33))/3,IF(K33=4,(SUM(C33:G33)-MAX(C33:G33))/3,SUM(C33:G33)/3))*B33/7.6) ->  | K33: 0
A34: =IF(Draw!E33=0,"",Draw!E33) ->  | H34: =IF(B34="","",IF(K34=5,(SUM(C34:G34)-MAX(C34:G34)-MIN(C34:G34))/3,IF(K34=4,(SUM(C34:G34)-MAX(C34:G34))/3,SUM(C34:G34)/3))*B34/7.6) ->  | K34: 0
A35: =IF(Draw!E34=0,"",Draw!E34) ->  | H35: =IF(B35="","",IF(K35=5,(SUM(C35:G35)-MAX(C35:G35)-MIN(C35:G35))/3,IF(K35=4,(SUM(C35:G35)-MAX(C35:G35))/3,SUM(C35:G35)/3))*B35/7.6) ->  | K35: 0
A36: =IF(Draw!E35=0,"",Draw!E35) ->  | H36: =IF(B36="","",IF(K36=5,(SUM(C36:G36)-MAX(C36:G36)-MIN(C36:G36))/3,IF(K36=4,(SUM(C36:G36)-MAX(C36:G36))/3,SUM(C36:G36)/3))*B36/7.6) ->  | K36: 0
A37: =IF(Draw!E36=0,"",Draw!E36) ->  | H37: =IF(B37="","",IF(K37=5,(SUM(C37:G37)-MAX(C37:G37)-MIN(C37:G37))/3,IF(K37=4,(SUM(C37:G37)-MAX(C37:G37))/3,SUM(C37:G37)/3))*B37/7.6) ->  | K37: 0
A38: =IF(Draw!E37=0,"",Draw!E37) ->  | H38: =IF(B38="","",IF(K38=5,(SUM(C38:G38)-MAX(C38:G38)-MIN(C38:G38))/3,IF(K38=4,(SUM(C38:G38)-MAX(C38:G38))/3,SUM(C38:G38)/3))*B38/7.6) ->  | K38: 0
A39: =IF(Draw!E38=0,"",Draw!E38) ->  | H39: =IF(B39="","",IF(K39=5,(SUM(C39:G39)-MAX(C39:G39)-MIN(C39:G39))/3,IF(K39=4,(SUM(C39:G39)-MAX(C39:G39))/3,SUM(C39:G39)/3))*B39/7.6) ->  | K39: 0
A40: =IF(Draw!E39=0,"",Draw!E39) ->  | H40: =IF(B40="","",IF(K40=5,(SUM(C40:G40)-MAX(C40:G40)-MIN(C40:G40))/3,IF(K40=4,(SUM(C40:G40)-MAX(C40:G40))/3,SUM(C40:G40)/3))*B40/7.6) ->  | K40: 0
A41: =IF(Draw!E40=0,"",Draw!E40) ->  | H41: =IF(B41="","",IF(K41=5,(SUM(C41:G41)-MAX(C41:G41)-MIN(C41:G41))/3,IF(K41=4,(SUM(C41:G41)-MAX(C41:G41))/3,SUM(C41:G41)/3))*B41/7.6) ->  | K41: 0
A42: =IF(Draw!E41=0,"",Draw!E41) ->  | H42: =IF(B42="","",IF(K42=5,(SUM(C42:G42)-MAX(C42:G42)-MIN(C42:G42))/3,IF(K42=4,(SUM(C42:G42)-MAX(C42:G42))/3,SUM(C42:G42)/3))*B42/7.6) ->  | K42: 0
A43: =IF(Draw!E42=0,"",Draw!E42) ->  | H43: =IF(B43="","",IF(K43=5,(SUM(C43:G43)-MAX(C43:G43)-MIN(C43:G43))/3,IF(K43=4,(SUM(C43:G43)-MAX(C43:G43))/3,SUM(C43:G43)/3))*B43/7.6) ->  | K43: 0
A44: =IF(Draw!E43=0,"",Draw!E43) ->  | H44: =IF(B44="","",IF(K44=5,(SUM(C44:G44)-MAX(C44:G44)-MIN(C44:G44))/3,IF(K44=4,(SUM(C44:G44)-MAX(C44:G44))/3,SUM(C44:G44)/3))*B44/7.6) ->  | K44: 0
A45: =IF(Draw!E44=0,"",Draw!E44) ->  | H45: =IF(B45="","",IF(K45=5,(SUM(C45:G45)-MAX(C45:G45)-MIN(C45:G45))/3,IF(K45=4,(SUM(C45:G45)-MAX(C45:G45))/3,SUM(C45:G45)/3))*B45/7.6) ->  | K45: 0
A46: =IF(Draw!E45=0,"",Draw!E45) ->  | H46: =IF(B46="","",IF(K46=5,(SUM(C46:G46)-MAX(C46:G46)-MIN(C46:G46))/3,IF(K46=4,(SUM(C46:G46)-MAX(C46:G46))/3,SUM(C46:G46)/3))*B46/7.6) ->  | K46: 0
A47: =IF(Draw!E46=0,"",Draw!E46) ->  | H47: =IF(B47="","",IF(K47=5,(SUM(C47:G47)-MAX(C47:G47)-MIN(C47:G47))/3,IF(K47=4,(SUM(C47:G47)-MAX(C47:G47))/3,SUM(C47:G47)/3))*B47/7.6) ->  | K47: 0
A48: =IF(Draw!E47=0,"",Draw!E47) ->  | H48: =IF(B48="","",IF(K48=5,(SUM(C48:G48)-MAX(C48:G48)-MIN(C48:G48))/3,IF(K48=4,(SUM(C48:G48)-MAX(C48:G48))/3,SUM(C48:G48)/3))*B48/7.6) ->  | K48: 0
A49: =IF(Draw!E48=0,"",Draw!E48) ->  | H49: =IF(B49="","",IF(K49=5,(SUM(C49:G49)-MAX(C49:G49)-MIN(C49:G49))/3,IF(K49=4,(SUM(C49:G49)-MAX(C49:G49))/3,SUM(C49:G49)/3))*B49/7.6) ->  | K49: 0
A50: =IF(Draw!E49=0,"",Draw!E49) ->  | H50: =IF(B50="","",IF(K50=5,(SUM(C50:G50)-MAX(C50:G50)-MIN(C50:G50))/3,IF(K50=4,(SUM(C50:G50)-MAX(C50:G50))/3,SUM(C50:G50)/3))*B50/7.6) ->  | K50: 0
A51: =IF(Draw!E50=0,"",Draw!E50) ->  | H51: =IF(B51="","",IF(K51=5,(SUM(C51:G51)-MAX(C51:G51)-MIN(C51:G51))/3,IF(K51=4,(SUM(C51:G51)-MAX(C51:G51))/3,SUM(C51:G51)/3))*B51/7.6) ->  | K51: 0
A52: =IF(Draw!E51=0,"",Draw!E51) ->  | H52: =IF(B52="","",IF(K52=5,(SUM(C52:G52)-MAX(C52:G52)-MIN(C52:G52))/3,IF(K52=4,(SUM(C52:G52)-MAX(C52:G52))/3,SUM(C52:G52)/3))*B52/7.6) ->  | K52: 0
A53: =IF(Draw!E52=0,"",Draw!E52) ->  | H53: =IF(B53="","",IF(K53=5,(SUM(C53:G53)-MAX(C53:G53)-MIN(C53:G53))/3,IF(K53=4,(SUM(C53:G53)-MAX(C53:G53))/3,SUM(C53:G53)/3))*B53/7.6) ->  | K53: 0
A54: =IF(Draw!E53=0,"",Draw!E53) ->  | H54: =IF(B54="","",IF(K54=5,(SUM(C54:G54)-MAX(C54:G54)-MIN(C54:G54))/3,IF(K54=4,(SUM(C54:G54)-MAX(C54:G54))/3,SUM(C54:G54)/3))*B54/7.6) ->  | K54: 0
A55: =IF(Draw!E54=0,"",Draw!E54) ->  | H55: =IF(B55="","",IF(K55=5,(SUM(C55:G55)-MAX(C55:G55)-MIN(C55:G55))/3,IF(K55=4,(SUM(C55:G55)-MAX(C55:G55))/3,SUM(C55:G55)/3))*B55/7.6) ->  | K55: 0
A56: =IF(Draw!E55=0,"",Draw!E55) ->  | H56: =IF(B56="","",IF(K56=5,(SUM(C56:G56)-MAX(C56:G56)-MIN(C56:G56))/3,IF(K56=4,(SUM(C56:G56)-MAX(C56:G56))/3,SUM(C56:G56)/3))*B56/7.6) ->  | K56: 0
A57: =IF(Draw!E56=0,"",Draw!E56) ->  | H57: =IF(B57="","",IF(K57=5,(SUM(C57:G57)-MAX(C57:G57)-MIN(C57:G57))/3,IF(K57=4,(SUM(C57:G57)-MAX(C57:G57))/3,SUM(C57:G57)/3))*B57/7.6) ->  | K57: 0
A58: =IF(Draw!E57=0,"",Draw!E57) ->  | H58: =IF(B58="","",IF(K58=5,(SUM(C58:G58)-MAX(C58:G58)-MIN(C58:G58))/3,IF(K58=4,(SUM(C58:G58)-MAX(C58:G58))/3,SUM(C58:G58)/3))*B58/7.6) ->  | K58: 0
A59: =IF(Draw!E58=0,"",Draw!E58) ->  | H59: =IF(B59="","",IF(K59=5,(SUM(C59:G59)-MAX(C59:G59)-MIN(C59:G59))/3,IF(K59=4,(SUM(C59:G59)-MAX(C59:G59))/3,SUM(C59:G59)/3))*B59/7.6) ->  | K59: 0
A60: =IF(Draw!E59=0,"",Draw!E59) ->  | H60: =IF(B60="","",IF(K60=5,(SUM(C60:G60)-MAX(C60:G60)-MIN(C60:G60))/3,IF(K60=4,(SUM(C60:G60)-MAX(C60:G60))/3,SUM(C60:G60)/3))*B60/7.6) ->  | K60: 0
A61: =IF(Draw!E60=0,"",Draw!E60) ->  | H61: =IF(B61="","",IF(K61=5,(SUM(C61:G61)-MAX(C61:G61)-MIN(C61:G61))/3,IF(K61=4,(SUM(C61:G61)-MAX(C61:G61))/3,SUM(C61:G61)/3))*B61/7.6) ->  | K61: 0
A62: =IF(Draw!E61=0,"",Draw!E61) ->  | H62: =IF(B62="","",IF(K62=5,(SUM(C62:G62)-MAX(C62:G62)-MIN(C62:G62))/3,IF(K62=4,(SUM(C62:G62)-MAX(C62:G62))/3,SUM(C62:G62)/3))*B62/7.6) ->  | K62: 0
A63: =IF(Draw!E62=0,"",Draw!E62) ->  | H63: =IF(B63="","",IF(K63=5,(SUM(C63:G63)-MAX(C63:G63)-MIN(C63:G63))/3,IF(K63=4,(SUM(C63:G63)-MAX(C63:G63))/3,SUM(C63:G63)/3))*B63/7.6) ->  | K63: 0
A64: =IF(Draw!E63=0,"",Draw!E63) ->  | H64: =IF(B64="","",IF(K64=5,(SUM(C64:G64)-MAX(C64:G64)-MIN(C64:G64))/3,IF(K64=4,(SUM(C64:G64)-MAX(C64:G64))/3,SUM(C64:G64)/3))*B64/7.6) ->  | K64: 0
A65: =IF(Draw!E64=0,"",Draw!E64) ->  | H65: =IF(B65="","",IF(K65=5,(SUM(C65:G65)-MAX(C65:G65)-MIN(C65:G65))/3,IF(K65=4,(SUM(C65:G65)-MAX(C65:G65))/3,SUM(C65:G65)/3))*B65/7.6) ->  | K65: 0
A66: =IF(Draw!E65=0,"",Draw!E65) ->  | H66: =IF(B66="","",IF(K66=5,(SUM(C66:G66)-MAX(C66:G66)-MIN(C66:G66))/3,IF(K66=4,(SUM(C66:G66)-MAX(C66:G66))/3,SUM(C66:G66)/3))*B66/7.6) ->  | K66: 0
A67: =IF(Draw!E66=0,"",Draw!E66) ->  | H67: =IF(B67="","",IF(K67=5,(SUM(C67:G67)-MAX(C67:G67)-MIN(C67:G67))/3,IF(K67=4,(SUM(C67:G67)-MAX(C67:G67))/3,SUM(C67:G67)/3))*B67/7.6) ->  | K67: 0
A68: =IF(Draw!E67=0,"",Draw!E67) ->  | H68: =IF(B68="","",IF(K68=5,(SUM(C68:G68)-MAX(C68:G68)-MIN(C68:G68))/3,IF(K68=4,(SUM(C68:G68)-MAX(C68:G68))/3,SUM(C68:G68)/3))*B68/7.6) ->  | K68: =COUNT(C68:G68) -> 0
A69: =IF(Draw!E68=0,"",Draw!E68) ->  | H69: =IF(B69="","",IF(K69=5,(SUM(C69:G69)-MAX(C69:G69)-MIN(C69:G69))/3,IF(K69=4,(SUM(C69:G69)-MAX(C69:G69))/3,SUM(C69:G69)/3))*B69/7.6) ->  | K69: 0
A70: =IF(Draw!E69=0,"",Draw!E69) ->  | H70: =IF(B70="","",IF(K70=5,(SUM(C70:G70)-MAX(C70:G70)-MIN(C70:G70))/3,IF(K70=4,(SUM(C70:G70)-MAX(C70:G70))/3,SUM(C70:G70)/3))*B70/7.6) ->  | K70: 0
A71: =IF(Draw!E70=0,"",Draw!E70) ->  | B71: =IF(A71="","",B$3) ->  | H71: =IF(B71="","",IF(K71=5,(SUM(C71:G71)-MAX(C71:G71)-MIN(C71:G71))/3,IF(K71=4,(SUM(C71:G71)-MAX(C71:G71))/3,SUM(C71:G71)/3))*B71/7.6) ->  | K71: 0
A72: =IF(Draw!E71=0,"",Draw!E71) ->  | H72: =IF(B72="","",IF(K72=5,(SUM(C72:G72)-MAX(C72:G72)-MIN(C72:G72))/3,IF(K72=4,(SUM(C72:G72)-MAX(C72:G72))/3,SUM(C72:G72)/3))*B72/7.6) ->  | K72: 0
A73: =IF(Draw!E72=0,"",Draw!E72) ->  | H73: =IF(B73="","",IF(K73=5,(SUM(C73:G73)-MAX(C73:G73)-MIN(C73:G73))/3,IF(K73=4,(SUM(C73:G73)-MAX(C73:G73))/3,SUM(C73:G73)/3))*B73/7.6) ->  | K73: 0
A74: =IF(Draw!E73=0,"",Draw!E73) ->  | H74: =IF(B74="","",IF(K74=5,(SUM(C74:G74)-MAX(C74:G74)-MIN(C74:G74))/3,IF(K74=4,(SUM(C74:G74)-MAX(C74:G74))/3,SUM(C74:G74)/3))*B74/7.6) ->  | K74: 0
A75: =IF(Draw!E74=0,"",Draw!E74) ->  | H75: =IF(B75="","",IF(K75=5,(SUM(C75:G75)-MAX(C75:G75)-MIN(C75:G75))/3,IF(K75=4,(SUM(C75:G75)-MAX(C75:G75))/3,SUM(C75:G75)/3))*B75/7.6) ->  | K75: 0
A76: =IF(Draw!E75=0,"",Draw!E75) ->  | H76: =IF(B76="","",IF(K76=5,(SUM(C76:G76)-MAX(C76:G76)-MIN(C76:G76))/3,IF(K76=4,(SUM(C76:G76)-MAX(C76:G76))/3,SUM(C76:G76)/3))*B76/7.6) ->  | K76: 0
A77: =IF(Draw!E76=0,"",Draw!E76) ->  | H77: =IF(B77="","",IF(K77=5,(SUM(C77:G77)-MAX(C77:G77)-MIN(C77:G77))/3,IF(K77=4,(SUM(C77:G77)-MAX(C77:G77))/3,SUM(C77:G77)/3))*B77/7.6) ->  | K77: 0
A78: =IF(Draw!E77=0,"",Draw!E77) ->  | H78: =IF(B78="","",IF(K78=5,(SUM(C78:G78)-MAX(C78:G78)-MIN(C78:G78))/3,IF(K78=4,(SUM(C78:G78)-MAX(C78:G78))/3,SUM(C78:G78)/3))*B78/7.6) ->  | K78: 0
A79: =IF(Draw!E78=0,"",Draw!E78) ->  | H79: =IF(B79="","",IF(K79=5,(SUM(C79:G79)-MAX(C79:G79)-MIN(C79:G79))/3,IF(K79=4,(SUM(C79:G79)-MAX(C79:G79))/3,SUM(C79:G79)/3))*B79/7.6) ->  | K79: 0
A80: =IF(Draw!E79=0,"",Draw!E79) ->  | H80: =IF(B80="","",IF(K80=5,(SUM(C80:G80)-MAX(C80:G80)-MIN(C80:G80))/3,IF(K80=4,(SUM(C80:G80)-MAX(C80:G80))/3,SUM(C80:G80)/3))*B80/7.6) ->  | K80: 0
A81: =IF(Draw!E80=0,"",Draw!E80) ->  | H81: =IF(B81="","",IF(K81=5,(SUM(C81:G81)-MAX(C81:G81)-MIN(C81:G81))/3,IF(K81=4,(SUM(C81:G81)-MAX(C81:G81))/3,SUM(C81:G81)/3))*B81/7.6) ->  | K81: 0
A82: =IF(Draw!E81=0,"",Draw!E81) ->  | H82: =IF(B82="","",IF(K82=5,(SUM(C82:G82)-MAX(C82:G82)-MIN(C82:G82))/3,IF(K82=4,(SUM(C82:G82)-MAX(C82:G82))/3,SUM(C82:G82)/3))*B82/7.6) ->  | K82: 0
A83: =IF(Draw!E82=0,"",Draw!E82) ->  | H83: =IF(B83="","",IF(K83=5,(SUM(C83:G83)-MAX(C83:G83)-MIN(C83:G83))/3,IF(K83=4,(SUM(C83:G83)-MAX(C83:G83))/3,SUM(C83:G83)/3))*B83/7.6) ->  | K83: 0
A84: =IF(Draw!E83=0,"",Draw!E83) ->  | H84: =IF(B84="","",IF(K84=5,(SUM(C84:G84)-MAX(C84:G84)-MIN(C84:G84))/3,IF(K84=4,(SUM(C84:G84)-MAX(C84:G84))/3,SUM(C84:G84)/3))*B84/7.6) ->  | K84: 0
A85: =IF(Draw!E84=0,"",Draw!E84) ->  | H85: =IF(B85="","",IF(K85=5,(SUM(C85:G85)-MAX(C85:G85)-MIN(C85:G85))/3,IF(K85=4,(SUM(C85:G85)-MAX(C85:G85))/3,SUM(C85:G85)/3))*B85/7.6) ->  | K85: 0
A86: =IF(Draw!E85=0,"",Draw!E85) ->  | H86: =IF(B86="","",IF(K86=5,(SUM(C86:G86)-MAX(C86:G86)-MIN(C86:G86))/3,IF(K86=4,(SUM(C86:G86)-MAX(C86:G86))/3,SUM(C86:G86)/3))*B86/7.6) ->  | K86: 0
A87: =IF(Draw!E86=0,"",Draw!E86) ->  | H87: =IF(B87="","",IF(K87=5,(SUM(C87:G87)-MAX(C87:G87)-MIN(C87:G87))/3,IF(K87=4,(SUM(C87:G87)-MAX(C87:G87))/3,SUM(C87:G87)/3))*B87/7.6) ->  | K87: 0
A88: =IF(Draw!E87=0,"",Draw!E87) ->  | H88: =IF(B88="","",IF(K88=5,(SUM(C88:G88)-MAX(C88:G88)-MIN(C88:G88))/3,IF(K88=4,(SUM(C88:G88)-MAX(C88:G88))/3,SUM(C88:G88)/3))*B88/7.6) ->  | K88: 0
A89: =IF(Draw!E88=0,"",Draw!E88) ->  | H89: =IF(B89="","",IF(K89=5,(SUM(C89:G89)-MAX(C89:G89)-MIN(C89:G89))/3,IF(K89=4,(SUM(C89:G89)-MAX(C89:G89))/3,SUM(C89:G89)/3))*B89/7.6) ->  | K89: 0
A90: =IF(Draw!E89=0,"",Draw!E89) ->  | H90: =IF(B90="","",IF(K90=5,(SUM(C90:G90)-MAX(C90:G90)-MIN(C90:G90))/3,IF(K90=4,(SUM(C90:G90)-MAX(C90:G90))/3,SUM(C90:G90)/3))*B90/7.6) ->  | K90: 0
A91: =IF(Draw!E90=0,"",Draw!E90) ->  | H91: =IF(B91="","",IF(K91=5,(SUM(C91:G91)-MAX(C91:G91)-MIN(C91:G91))/3,IF(K91=4,(SUM(C91:G91)-MAX(C91:G91))/3,SUM(C91:G91)/3))*B91/7.6) ->  | K91: 0
A92: =IF(Draw!E91=0,"",Draw!E91) ->  | H92: =IF(B92="","",IF(K92=5,(SUM(C92:G92)-MAX(C92:G92)-MIN(C92:G92))/3,IF(K92=4,(SUM(C92:G92)-MAX(C92:G92))/3,SUM(C92:G92)/3))*B92/7.6) ->  | K92: 0
A93: =IF(Draw!E92=0,"",Draw!E92) ->  | H93: =IF(B93="","",IF(K93=5,(SUM(C93:G93)-MAX(C93:G93)-MIN(C93:G93))/3,IF(K93=4,(SUM(C93:G93)-MAX(C93:G93))/3,SUM(C93:G93)/3))*B93/7.6) ->  | K93: 0
A94: =IF(Draw!E93=0,"",Draw!E93) ->  | H94: =IF(B94="","",IF(K94=5,(SUM(C94:G94)-MAX(C94:G94)-MIN(C94:G94))/3,IF(K94=4,(SUM(C94:G94)-MAX(C94:G94))/3,SUM(C94:G94)/3))*B94/7.6) ->  | K94: 0
A95: =IF(Draw!E94=0,"",Draw!E94) ->  | H95: =IF(B95="","",IF(K95=5,(SUM(C95:G95)-MAX(C95:G95)-MIN(C95:G95))/3,IF(K95=4,(SUM(C95:G95)-MAX(C95:G95))/3,SUM(C95:G95)/3))*B95/7.6) ->  | K95: 0
A96: =IF(Draw!E95=0,"",Draw!E95) ->  | H96: =IF(B96="","",IF(K96=5,(SUM(C96:G96)-MAX(C96:G96)-MIN(C96:G96))/3,IF(K96=4,(SUM(C96:G96)-MAX(C96:G96))/3,SUM(C96:G96)/3))*B96/7.6) ->  | K96: 0
A97: =IF(Draw!E96=0,"",Draw!E96) ->  | H97: =IF(B97="","",IF(K97=5,(SUM(C97:G97)-MAX(C97:G97)-MIN(C97:G97))/3,IF(K97=4,(SUM(C97:G97)-MAX(C97:G97))/3,SUM(C97:G97)/3))*B97/7.6) ->  | K97: 0
A98: =IF(Draw!E97=0,"",Draw!E97) ->  | H98: =IF(B98="","",IF(K98=5,(SUM(C98:G98)-MAX(C98:G98)-MIN(C98:G98))/3,IF(K98=4,(SUM(C98:G98)-MAX(C98:G98))/3,SUM(C98:G98)/3))*B98/7.6) ->  | K98: 0
A99: =IF(Draw!E98=0,"",Draw!E98) ->  | H99: =IF(B99="","",IF(K99=5,(SUM(C99:G99)-MAX(C99:G99)-MIN(C99:G99))/3,IF(K99=4,(SUM(C99:G99)-MAX(C99:G99))/3,SUM(C99:G99)/3))*B99/7.6) ->  | K99: 0
A100: =IF(Draw!E99=0,"",Draw!E99) ->  | H100: =IF(B100="","",IF(K100=5,(SUM(C100:G100)-MAX(C100:G100)-MIN(C100:G100))/3,IF(K100=4,(SUM(C100:G100)-MAX(C100:G100))/3,SUM(C100:G100)/3))*B100/7.6) ->  | K100: 0
A101: =IF(Draw!E100=0,"",Draw!E100) ->  | H101: =IF(B101="","",IF(K101=5,(SUM(C101:G101)-MAX(C101:G101)-MIN(C101:G101))/3,IF(K101=4,(SUM(C101:G101)-MAX(C101:G101))/3,SUM(C101:G101)/3))*B101/7.6) ->  | K101: 0
A102: =IF(Draw!E101=0,"",Draw!E101) ->  | H102: =IF(B102="","",IF(K102=5,(SUM(C102:G102)-MAX(C102:G102)-MIN(C102:G102))/3,IF(K102=4,(SUM(C102:G102)-MAX(C102:G102))/3,SUM(C102:G102)/3))*B102/7.6) ->  | K102: 0
A103: =IF(Draw!E102=0,"",Draw!E102) ->  | H103: =IF(B103="","",IF(K103=5,(SUM(C103:G103)-MAX(C103:G103)-MIN(C103:G103))/3,IF(K103=4,(SUM(C103:G103)-MAX(C103:G103))/3,SUM(C103:G103)/3))*B103/7.6) ->  | K103: 0
A104: =IF(Draw!E103=0,"",Draw!E103) ->  | H104: =IF(B104="","",IF(K104=5,(SUM(C104:G104)-MAX(C104:G104)-MIN(C104:G104))/3,IF(K104=4,(SUM(C104:G104)-MAX(C104:G104))/3,SUM(C104:G104)/3))*B104/7.6) ->  | K104: 0
A105: =IF(Draw!E104=0,"",Draw!E104) ->  | H105: =IF(B105="","",IF(K105=5,(SUM(C105:G105)-MAX(C105:G105)-MIN(C105:G105))/3,IF(K105=4,(SUM(C105:G105)-MAX(C105:G105))/3,SUM(C105:G105)/3))*B105/7.6) ->  | K105: 0
A106: =IF(Draw!E105=0,"",Draw!E105) ->  | H106: =IF(B106="","",IF(K106=5,(SUM(C106:G106)-MAX(C106:G106)-MIN(C106:G106))/3,IF(K106=4,(SUM(C106:G106)-MAX(C106:G106))/3,SUM(C106:G106)/3))*B106/7.6) ->  | K106: 0
A107: =IF(Draw!E106=0,"",Draw!E106) ->  | H107: =IF(B107="","",IF(K107=5,(SUM(C107:G107)-MAX(C107:G107)-MIN(C107:G107))/3,IF(K107=4,(SUM(C107:G107)-MAX(C107:G107))/3,SUM(C107:G107)/3))*B107/7.6) ->  | K107: 0
A108: =IF(Draw!E107=0,"",Draw!E107) ->  | H108: =IF(B108="","",IF(K108=5,(SUM(C108:G108)-MAX(C108:G108)-MIN(C108:G108))/3,IF(K108=4,(SUM(C108:G108)-MAX(C108:G108))/3,SUM(C108:G108)/3))*B108/7.6) ->  | K108: 0
A109: =IF(Draw!E108=0,"",Draw!E108) ->  | H109: =IF(B109="","",IF(K109=5,(SUM(C109:G109)-MAX(C109:G109)-MIN(C109:G109))/3,IF(K109=4,(SUM(C109:G109)-MAX(C109:G109))/3,SUM(C109:G109)/3))*B109/7.6) ->  | K109: 0
A110: =IF(Draw!E109=0,"",Draw!E109) ->  | H110: =IF(B110="","",IF(K110=5,(SUM(C110:G110)-MAX(C110:G110)-MIN(C110:G110))/3,IF(K110=4,(SUM(C110:G110)-MAX(C110:G110))/3,SUM(C110:G110)/3))*B110/7.6) ->  | K110: 0
A111: =IF(Draw!E110=0,"",Draw!E110) ->  | H111: =IF(B111="","",IF(K111=5,(SUM(C111:G111)-MAX(C111:G111)-MIN(C111:G111))/3,IF(K111=4,(SUM(C111:G111)-MAX(C111:G111))/3,SUM(C111:G111)/3))*B111/7.6) ->  | K111: 0
A112: =IF(Draw!E111=0,"",Draw!E111) ->  | H112: =IF(B112="","",IF(K112=5,(SUM(C112:G112)-MAX(C112:G112)-MIN(C112:G112))/3,IF(K112=4,(SUM(C112:G112)-MAX(C112:G112))/3,SUM(C112:G112)/3))*B112/7.6) ->  | K112: 0
A113: =IF(Draw!E112=0,"",Draw!E112) ->  | H113: =IF(B113="","",IF(K113=5,(SUM(C113:G113)-MAX(C113:G113)-MIN(C113:G113))/3,IF(K113=4,(SUM(C113:G113)-MAX(C113:G113))/3,SUM(C113:G113)/3))*B113/7.6) ->  | K113: 0
A114: =IF(Draw!E113=0,"",Draw!E113) ->  | H114: =IF(B114="","",IF(K114=5,(SUM(C114:G114)-MAX(C114:G114)-MIN(C114:G114))/3,IF(K114=4,(SUM(C114:G114)-MAX(C114:G114))/3,SUM(C114:G114)/3))*B114/7.6) ->  | K114: 0
A115: =IF(Draw!E114=0,"",Draw!E114) ->  | H115: =IF(B115="","",IF(K115=5,(SUM(C115:G115)-MAX(C115:G115)-MIN(C115:G115))/3,IF(K115=4,(SUM(C115:G115)-MAX(C115:G115))/3,SUM(C115:G115)/3))*B115/7.6) ->  | K115: 0
A116: =IF(Draw!E115=0,"",Draw!E115) ->  | H116: =IF(B116="","",IF(K116=5,(SUM(C116:G116)-MAX(C116:G116)-MIN(C116:G116))/3,IF(K116=4,(SUM(C116:G116)-MAX(C116:G116))/3,SUM(C116:G116)/3))*B116/7.6) ->  | K116: 0
A117: =IF(Draw!E116=0,"",Draw!E116) ->  | H117: =IF(B117="","",IF(K117=5,(SUM(C117:G117)-MAX(C117:G117)-MIN(C117:G117))/3,IF(K117=4,(SUM(C117:G117)-MAX(C117:G117))/3,SUM(C117:G117)/3))*B117/7.6) ->  | K117: 0
A118: =IF(Draw!E117=0,"",Draw!E117) ->  | H118: =IF(B118="","",IF(K118=5,(SUM(C118:G118)-MAX(C118:G118)-MIN(C118:G118))/3,IF(K118=4,(SUM(C118:G118)-MAX(C118:G118))/3,SUM(C118:G118)/3))*B118/7.6) ->  | K118: 0
A119: =IF(Draw!E118=0,"",Draw!E118) ->  | H119: =IF(B119="","",IF(K119=5,(SUM(C119:G119)-MAX(C119:G119)-MIN(C119:G119))/3,IF(K119=4,(SUM(C119:G119)-MAX(C119:G119))/3,SUM(C119:G119)/3))*B119/7.6) ->  | K119: 0
A120: =IF(Draw!E119=0,"",Draw!E119) ->  | H120: =IF(B120="","",IF(K120=5,(SUM(C120:G120)-MAX(C120:G120)-MIN(C120:G120))/3,IF(K120=4,(SUM(C120:G120)-MAX(C120:G120))/3,SUM(C120:G120)/3))*B120/7.6) ->  | K120: 0
A121: =IF(Draw!E120=0,"",Draw!E120) ->  | H121: =IF(B121="","",IF(K121=5,(SUM(C121:G121)-MAX(C121:G121)-MIN(C121:G121))/3,IF(K121=4,(SUM(C121:G121)-MAX(C121:G121))/3,SUM(C121:G121)/3))*B121/7.6) ->  | K121: 0
A122: =IF(Draw!E121=0,"",Draw!E121) ->  | H122: =IF(B122="","",IF(K122=5,(SUM(C122:G122)-MAX(C122:G122)-MIN(C122:G122))/3,IF(K122=4,(SUM(C122:G122)-MAX(C122:G122))/3,SUM(C122:G122)/3))*B122/7.6) ->  | K122: 0
A123: =IF(Draw!E122=0,"",Draw!E122) ->  | H123: =IF(B123="","",IF(K123=5,(SUM(C123:G123)-MAX(C123:G123)-MIN(C123:G123))/3,IF(K123=4,(SUM(C123:G123)-MAX(C123:G123))/3,SUM(C123:G123)/3))*B123/7.6) ->  | K123: 0
A124: =IF(Draw!E123=0,"",Draw!E123) ->  | H124: =IF(B124="","",IF(K124=5,(SUM(C124:G124)-MAX(C124:G124)-MIN(C124:G124))/3,IF(K124=4,(SUM(C124:G124)-MAX(C124:G124))/3,SUM(C124:G124)/3))*B124/7.6) ->  | K124: 0
A125: =IF(Draw!E124=0,"",Draw!E124) ->  | H125: =IF(B125="","",IF(K125=5,(SUM(C125:G125)-MAX(C125:G125)-MIN(C125:G125))/3,IF(K125=4,(SUM(C125:G125)-MAX(C125:G125))/3,SUM(C125:G125)/3))*B125/7.6) ->  | K125: 0
A126: =IF(Draw!E125=0,"",Draw!E125) ->  | H126: =IF(B126="","",IF(K126=5,(SUM(C126:G126)-MAX(C126:G126)-MIN(C126:G126))/3,IF(K126=4,(SUM(C126:G126)-MAX(C126:G126))/3,SUM(C126:G126)/3))*B126/7.6) ->  | K126: 0
A127: =IF(Draw!E126=0,"",Draw!E126) ->  | H127: =IF(B127="","",IF(K127=5,(SUM(C127:G127)-MAX(C127:G127)-MIN(C127:G127))/3,IF(K127=4,(SUM(C127:G127)-MAX(C127:G127))/3,SUM(C127:G127)/3))*B127/7.6) ->  | K127: 0
A128: =IF(Draw!E127=0,"",Draw!E127) ->  | H128: =IF(B128="","",IF(K128=5,(SUM(C128:G128)-MAX(C128:G128)-MIN(C128:G128))/3,IF(K128=4,(SUM(C128:G128)-MAX(C128:G128))/3,SUM(C128:G128)/3))*B128/7.6) ->  | K128: 0
A129: =IF(Draw!E128=0,"",Draw!E128) ->  | H129: =IF(B129="","",IF(K129=5,(SUM(C129:G129)-MAX(C129:G129)-MIN(C129:G129))/3,IF(K129=4,(SUM(C129:G129)-MAX(C129:G129))/3,SUM(C129:G129)/3))*B129/7.6) ->  | K129: 0
A130: =IF(Draw!E129=0,"",Draw!E129) ->  | H130: =IF(B130="","",IF(K130=5,(SUM(C130:G130)-MAX(C130:G130)-MIN(C130:G130))/3,IF(K130=4,(SUM(C130:G130)-MAX(C130:G130))/3,SUM(C130:G130)/3))*B130/7.6) ->  | K130: 0
A131: =IF(Draw!E130=0,"",Draw!E130) ->  | H131: =IF(B131="","",IF(K131=5,(SUM(C131:G131)-MAX(C131:G131)-MIN(C131:G131))/3,IF(K131=4,(SUM(C131:G131)-MAX(C131:G131))/3,SUM(C131:G131)/3))*B131/7.6) ->  | K131: 0
A132: =IF(Draw!E131=0,"",Draw!E131) ->  | H132: =IF(B132="","",IF(K132=5,(SUM(C132:G132)-MAX(C132:G132)-MIN(C132:G132))/3,IF(K132=4,(SUM(C132:G132)-MAX(C132:G132))/3,SUM(C132:G132)/3))*B132/7.6) ->  | K132: =COUNT(C132:G132) -> 0
A133: =IF(Draw!E132=0,"",Draw!E132) ->  | H133: =IF(B133="","",IF(K133=5,(SUM(C133:G133)-MAX(C133:G133)-MIN(C133:G133))/3,IF(K133=4,(SUM(C133:G133)-MAX(C133:G133))/3,SUM(C133:G133)/3))*B133/7.6) ->  | K133: 0
A134: =IF(Draw!E133=0,"",Draw!E133) ->  | H134: =IF(B134="","",IF(K134=5,(SUM(C134:G134)-MAX(C134:G134)-MIN(C134:G134))/3,IF(K134=4,(SUM(C134:G134)-MAX(C134:G134))/3,SUM(C134:G134)/3))*B134/7.6) ->  | K134: 0
A135: =IF(Draw!E134=0,"",Draw!E134) ->  | B135: =IF(A135="","",B$3) ->  | H135: =IF(B135="","",IF(K135=5,(SUM(C135:G135)-MAX(C135:G135)-MIN(C135:G135))/3,IF(K135=4,(SUM(C135:G135)-MAX(C135:G135))/3,SUM(C135:G135)/3))*B135/7.6) ->  | K135: 0
A136: =IF(Draw!E135=0,"",Draw!E135) ->  | H136: =IF(B136="","",IF(K136=5,(SUM(C136:G136)-MAX(C136:G136)-MIN(C136:G136))/3,IF(K136=4,(SUM(C136:G136)-MAX(C136:G136))/3,SUM(C136:G136)/3))*B136/7.6) ->  | K136: 0
A137: =IF(Draw!E136=0,"",Draw!E136) ->  | H137: =IF(B137="","",IF(K137=5,(SUM(C137:G137)-MAX(C137:G137)-MIN(C137:G137))/3,IF(K137=4,(SUM(C137:G137)-MAX(C137:G137))/3,SUM(C137:G137)/3))*B137/7.6) ->  | K137: 0
A138: =IF(Draw!E137=0,"",Draw!E137) ->  | H138: =IF(B138="","",IF(K138=5,(SUM(C138:G138)-MAX(C138:G138)-MIN(C138:G138))/3,IF(K138=4,(SUM(C138:G138)-MAX(C138:G138))/3,SUM(C138:G138)/3))*B138/7.6) ->  | K138: 0
A139: =IF(Draw!E138=0,"",Draw!E138) ->  | H139: =IF(B139="","",IF(K139=5,(SUM(C139:G139)-MAX(C139:G139)-MIN(C139:G139))/3,IF(K139=4,(SUM(C139:G139)-MAX(C139:G139))/3,SUM(C139:G139)/3))*B139/7.6) ->  | K139: 0
A140: =IF(Draw!E139=0,"",Draw!E139) ->  | H140: =IF(B140="","",IF(K140=5,(SUM(C140:G140)-MAX(C140:G140)-MIN(C140:G140))/3,IF(K140=4,(SUM(C140:G140)-MAX(C140:G140))/3,SUM(C140:G140)/3))*B140/7.6) ->  | K140: 0
A141: =IF(Draw!E140=0,"",Draw!E140) ->  | H141: =IF(B141="","",IF(K141=5,(SUM(C141:G141)-MAX(C141:G141)-MIN(C141:G141))/3,IF(K141=4,(SUM(C141:G141)-MAX(C141:G141))/3,SUM(C141:G141)/3))*B141/7.6) ->  | K141: 0
A142: =IF(Draw!E141=0,"",Draw!E141) ->  | H142: =IF(B142="","",IF(K142=5,(SUM(C142:G142)-MAX(C142:G142)-MIN(C142:G142))/3,IF(K142=4,(SUM(C142:G142)-MAX(C142:G142))/3,SUM(C142:G142)/3))*B142/7.6) ->  | K142: 0
A143: =IF(Draw!E142=0,"",Draw!E142) ->  | H143: =IF(B143="","",IF(K143=5,(SUM(C143:G143)-MAX(C143:G143)-MIN(C143:G143))/3,IF(K143=4,(SUM(C143:G143)-MAX(C143:G143))/3,SUM(C143:G143)/3))*B143/7.6) ->  | K143: 0
A144: =IF(Draw!E143=0,"",Draw!E143) ->  | H144: =IF(B144="","",IF(K144=5,(SUM(C144:G144)-MAX(C144:G144)-MIN(C144:G144))/3,IF(K144=4,(SUM(C144:G144)-MAX(C144:G144))/3,SUM(C144:G144)/3))*B144/7.6) ->  | K144: 0
A145: =IF(Draw!E144=0,"",Draw!E144) ->  | H145: =IF(B145="","",IF(K145=5,(SUM(C145:G145)-MAX(C145:G145)-MIN(C145:G145))/3,IF(K145=4,(SUM(C145:G145)-MAX(C145:G145))/3,SUM(C145:G145)/3))*B145/7.6) ->  | K145: 0
A146: =IF(Draw!E145=0,"",Draw!E145) ->  | H146: =IF(B146="","",IF(K146=5,(SUM(C146:G146)-MAX(C146:G146)-MIN(C146:G146))/3,IF(K146=4,(SUM(C146:G146)-MAX(C146:G146))/3,SUM(C146:G146)/3))*B146/7.6) ->  | K146: 0
A147: =IF(Draw!E146=0,"",Draw!E146) ->  | H147: =IF(B147="","",IF(K147=5,(SUM(C147:G147)-MAX(C147:G147)-MIN(C147:G147))/3,IF(K147=4,(SUM(C147:G147)-MAX(C147:G147))/3,SUM(C147:G147)/3))*B147/7.6) ->  | K147: 0
A148: =IF(Draw!E147=0,"",Draw!E147) ->  | H148: =IF(B148="","",IF(K148=5,(SUM(C148:G148)-MAX(C148:G148)-MIN(C148:G148))/3,IF(K148=4,(SUM(C148:G148)-MAX(C148:G148))/3,SUM(C148:G148)/3))*B148/7.6) ->  | K148: 0
A149: =IF(Draw!E148=0,"",Draw!E148) ->  | H149: =IF(B149="","",IF(K149=5,(SUM(C149:G149)-MAX(C149:G149)-MIN(C149:G149))/3,IF(K149=4,(SUM(C149:G149)-MAX(C149:G149))/3,SUM(C149:G149)/3))*B149/7.6) ->  | K149: 0
A150: =IF(Draw!E149=0,"",Draw!E149) ->  | H150: =IF(B150="","",IF(K150=5,(SUM(C150:G150)-MAX(C150:G150)-MIN(C150:G150))/3,IF(K150=4,(SUM(C150:G150)-MAX(C150:G150))/3,SUM(C150:G150)/3))*B150/7.6) ->  | K150: 0

Sheet Totals
A1: # | B1: Swimmer | C1: School | D1: Total Score | E1: Place | F1: Figure 1 | G1: Figure 2 | H1: Figure 3 | I1: Figure 4 | J1: Penalties | K1: Score
A2: =IF(Draw!E8=0,"",Draw!E8) -> 7 | B2: Anika Wright | C2: Stillwater | D2: =IF($A2="","",SUM(F2:I2)-J2) -> 62.259 | E2: =IF($A2="","",RANK(D2,D$2:D$150)) -> 1 | F2: =IF($A2="","",'Fig 1 Ballet Leg'!H9) -> 13.193 | G2: =IF($A2="","",'Fig 2 Kip'!H9) -> 15.079 | H2: =IF($A2="","",'Fig 3 Heron'!H9) -> 16.487 | I2: =IF($A2="","",'Fig 4 Walkover'!H9) -> 17.500 | J2: =IF($A2="","",'Fig 1 Ballet Leg'!I9+'Fig 2 Kip'!I9+'Fig 3 Heron'!I9+'Fig 4 Walkover'!I9) -> 0.0 | K2: =IF($A2="","",IF(A2="","",VLOOKUP(E2,AX$3:AY$102,2,FALSE))) -> 8
A3: =IF(Draw!E3=0,"",Draw!E3) -> 2 | B3: Erin Wurgler | C3: Stillwater | D3: 60.789 | E3: 2 | F3: =IF($A3="","",'Fig 1 Ballet Leg'!H4) -> 13.053 | G3: =IF($A3="","",'Fig 2 Kip'!H4) -> 13.658 | H3: =IF($A3="","",'Fig 3 Heron'!H4) -> 17.316 | I3: =IF($A3="","",'Fig 4 Walkover'!H4) -> 16.763 | J3: =IF($A3="","",'Fig 1 Ballet Leg'!I4+'Fig 2 Kip'!I4+'Fig 3 Heron'!I4+'Fig 4 Walkover'!I4) -> 0.0 | K3: 6 | AX3: 1 | AY3: 8
A4: =IF(Draw!E15=0,"",Draw!E15) -> 14 | B4: Chloe Knuteson | C4: Stillwater | D4: 60.452 | E4: 3 | F4: =IF($A4="","",'Fig 1 Ballet Leg'!H16) -> 13.123 | G4: =IF($A4="","",'Fig 2 Kip'!H16) -> 13.342 | H4: =IF($A4="","",'Fig 3 Heron'!H16) -> 16.855 | I4: =IF($A4="","",'Fig 4 Walkover'!H16) -> 17.132 | J4: =IF($A4="","",'Fig 1 Ballet Leg'!I16+'Fig 2 Kip'!I16+'Fig 3 Heron'!I16+'Fig 4 Walkover'!I16) -> 0.0 | K4: 5 | AX4: 2 | AY4: 6
A5: =IF(Draw!E12=0,"",Draw!E12) -> 11 | B5: Adelee Wrightsman | C5: Stillwater | D5: 60.180 | E5: 4 | F5: =IF($A5="","",'Fig 1 Ballet Leg'!H13) -> 12.982 | G5: =IF($A5="","",'Fig 2 Kip'!H13) -> 13.026 | H5: =IF($A5="","",'Fig 3 Heron'!H13) -> 16.947 | I5: =IF($A5="","",'Fig 4 Walkover'!H13) -> 17.224 | J5: =IF($A5="","",'Fig 1 Ballet Leg'!I13+'Fig 2 Kip'!I13+'Fig 3 Heron'!I13+'Fig 4 Walkover'!I13) -> 0.0 | K5: 4 | AX5: 3 | AY5: 5
A6: =IF(Draw!E26=0,"",Draw!E26) -> 25 | B6: Kya Hodgdon | C6: Stillwater | D6: 60.171 | E6: 5 | F6: =IF($A6="","",'Fig 1 Ballet Leg'!H27) -> 13.474 | G6: =IF($A6="","",'Fig 2 Kip'!H27) -> 14.368 | H6: =IF($A6="","",'Fig 3 Heron'!H27) -> 15.658 | I6: =IF($A6="","",'Fig 4 Walkover'!H27) -> 16.671 | J6: =IF($A6="","",'Fig 1 Ballet Leg'!I27+'Fig 2 Kip'!I27+'Fig 3 Heron'!I27+'Fig 4 Walkover'!I27) -> 0.0 | K6: 3 | AX6: 4 | AY6: 4
A7: =IF(Draw!E22=0,"",Draw!E22) -> 21 | B7: Maddie Stricker | C7: Stillwater | D7: 59.886 | E7: 6 | F7: =IF($A7="","",'Fig 1 Ballet Leg'!H23) -> 13.333 | G7: =IF($A7="","",'Fig 2 Kip'!H23) -> 14.684 | H7: =IF($A7="","",'Fig 3 Heron'!H23) -> 15.934 | I7: =IF($A7="","",'Fig 4 Walkover'!H23) -> 15.934 | J7: =IF($A7="","",'Fig 1 Ballet Leg'!I23+'Fig 2 Kip'!I23+'Fig 3 Heron'!I23+'Fig 4 Walkover'!I23) -> 0.0 | K7: 2 | AX7: 5 | AY7: 3
A8: =IF(Draw!E17=0,"",Draw!E17) -> 16 | B8: Samantha MacDonald | C8: Stillwater | D8: 59.307 | E8: 7 | F8: =IF($A8="","",'Fig 1 Ballet Leg'!H18) -> 12.702 | G8: =IF($A8="","",'Fig 2 Kip'!H18) -> 14.368 | H8: =IF($A8="","",'Fig 3 Heron'!H18) -> 16.855 | I8: =IF($A8="","",'Fig 4 Walkover'!H18) -> 15.382 | J8: =IF($A8="","",'Fig 1 Ballet Leg'!I18+'Fig 2 Kip'!I18+'Fig 3 Heron'!I18+'Fig 4 Walkover'!I18) -> 0.0 | K8: 1 | AX8: 6 | AY8: 2
A9: =IF(Draw!E18=0,"",Draw!E18) -> 17 | B9: Maylin Kennedy | C9: Stillwater | D9: 58.820 | E9: 8 | F9: =IF($A9="","",'Fig 1 Ballet Leg'!H19) -> 12.491 | G9: =IF($A9="","",'Fig 2 Kip'!H19) -> 14.368 | H9: =IF($A9="","",'Fig 3 Heron'!H19) -> 15.934 | I9: =IF($A9="","",'Fig 4 Walkover'!H19) -> 16.026 | J9: =IF($A9="","",'Fig 1 Ballet Leg'!I19+'Fig 2 Kip'!I19+'Fig 3 Heron'!I19+'Fig 4 Walkover'!I19) -> 0.0 | K9: 0 | AX9: 7 | AY9: 1
A10: =IF(Draw!E13=0,"",Draw!E13) -> 12 | B10: Kennedy Tope | C10: Stillwater | D10: 57.452 | E10: 9 | F10: =IF($A10="","",'Fig 1 Ballet Leg'!H14) -> 12.491 | G10: =IF($A10="","",'Fig 2 Kip'!H14) -> 12.632 | H10: =IF($A10="","",'Fig 3 Heron'!H14) -> 16.487 | I10: =IF($A10="","",'Fig 4 Walkover'!H14) -> 15.842 | J10: =IF($A10="","",'Fig 1 Ballet Leg'!I14+'Fig 2 Kip'!I14+'Fig 3 Heron'!I14+'Fig 4 Walkover'!I14) -> 0.0 | K10: 0 | AX10: 8 | AY10: 0
A11: =IF(Draw!E14=0,"",Draw!E14) -> 13 | B11: Jillian Kulzer | C11: Stillwater | D11: 56.268 | E11: 10 | F11: =IF($A11="","",'Fig 1 Ballet Leg'!H15) -> 12.702 | G11: =IF($A11="","",'Fig 2 Kip'!H15) -> 13.263 | H11: =IF($A11="","",'Fig 3 Heron'!H15) -> 14.000 | I11: =IF($A11="","",'Fig 4 Walkover'!H15) -> 16.303 | J11: =IF($A11="","",'Fig 1 Ballet Leg'!I15+'Fig 2 Kip'!I15+'Fig 3 Heron'!I15+'Fig 4 Walkover'!I15) -> 0.0 | K11: 0 | AX11: 9 | AY11: 0
A12: =IF(Draw!E25=0,"",Draw!E25) -> 24 | B12: Elly Blair | C12: Stillwater | D12: 55.851 | E12: 11 | F12: =IF($A12="","",'Fig 1 Ballet Leg'!H26) -> 12.351 | G12: =IF($A12="","",'Fig 2 Kip'!H26) -> 12.553 | H12: =IF($A12="","",'Fig 3 Heron'!H26) -> 15.658 | I12: =IF($A12="","",'Fig 4 Walkover'!H26) -> 15.289 | J12: =IF($A12="","",'Fig 1 Ballet Leg'!I26+'Fig 2 Kip'!I26+'Fig 3 Heron'!I26+'Fig 4 Walkover'!I26) -> 0.0 | K12: 0 | AX12: 10 | AY12: 0
A13: =IF(Draw!E27=0,"",Draw!E27) -> 26 | B13: Bella Formico | C13: Stillwater | D13: 55.224 | E13: 12 | F13: =IF($A13="","",'Fig 1 Ballet Leg'!H28) -> 11.579 | G13: =IF($A13="","",'Fig 2 Kip'!H28) -> 13.342 | H13: =IF($A13="","",'Fig 3 Heron'!H28) -> 14.921 | I13: =IF($A13="","",'Fig 4 Walkover'!H28) -> 15.382 | J13: =IF($A13="","",'Fig 1 Ballet Leg'!I28+'Fig 2 Kip'!I28+'Fig 3 Heron'!I28+'Fig 4 Walkover'!I28) -> 0.0 | K13: 0 | AX13: 11 | AY13: 0
A14: =IF(Draw!E21=0,"",Draw!E21) -> 20 | B14: Nissa Wilcox | C14: Stillwater | D14: 54.237 | E14: 13 | F14: =IF($A14="","",'Fig 1 Ballet Leg'!H22) -> 12.211 | G14: =IF($A14="","",'Fig 2 Kip'!H22) -> 12.553 | H14: =IF($A14="","",'Fig 3 Heron'!H22) -> 14.645 | I14: =IF($A14="","",'Fig 4 Walkover'!H22) -> 14.829 | J14: =IF($A14="","",'Fig 1 Ballet Leg'!I22+'Fig 2 Kip'!I22+'Fig 3 Heron'!I22+'Fig 4 Walkover'!I22) -> 0.0 | K14: 0 | AX14: 12 | AY14: 0
A15: =IF(Draw!E6=0,"",Draw!E6) -> 5 | B15: Hannah Bliss | C15: Stillwater | D15: 54.145 | E15: 14 | F15: =IF($A15="","",'Fig 1 Ballet Leg'!H7) -> 11.158 | G15: =IF($A15="","",'Fig 2 Kip'!H7) -> 12.868 | H15: =IF($A15="","",'Fig 3 Heron'!H7) -> 14.921 | I15: =IF($A15="","",'Fig 4 Walkover'!H7) -> 15.197 | J15: =IF($A15="","",'Fig 1 Ballet Leg'!I7+'Fig 2 Kip'!I7+'Fig 3 Heron'!I7+'Fig 4 Walkover'!I7) -> 0.0 | K15: 0 | AX15: 13 | AY15: 0
A16: =IF(Draw!E24=0,"",Draw!E24) -> 23 | B16: Alexis Montgomery | C16: Stillwater | D16: 53.675 | E16: 15 | F16: =IF($A16="","",'Fig 1 Ballet Leg'!H25) -> 10.807 | G16: =IF($A16="","",'Fig 2 Kip'!H25) -> 13.026 | H16: =IF($A16="","",'Fig 3 Heron'!H25) -> 14.276 | I16: =IF($A16="","",'Fig 4 Walkover'!H25) -> 15.566 | J16: =IF($A16="","",'Fig 1 Ballet Leg'!I25+'Fig 2 Kip'!I25+'Fig 3 Heron'!I25+'Fig 4 Walkover'!I25) -> 0.0 | K16: 0 | AX16: 14 | AY16: 0
A17: =IF(Draw!E10=0,"",Draw!E10) -> 9 | B17: Annika Desphande | C17: Osseo-Maple Grove | D17: 51.465 | E17: 16 | F17: =IF($A17="","",'Fig 1 Ballet Leg'!H11) -> 11.228 | G17: =IF($A17="","",'Fig 2 Kip'!H11) -> 11.684 | H17: =IF($A17="","",'Fig 3 Heron'!H11) -> 14.829 | I17: =IF($A17="","",'Fig 4 Walkover'!H11) -> 13.724 | J17: =IF($A17="","",'Fig 1 Ballet Leg'!I11+'Fig 2 Kip'!I11+'Fig 3 Heron'!I11+'Fig 4 Walkover'!I11) -> 0.0 | K17: 0 | AX17: 15 | AY17: 0
A18: =IF(Draw!E16=0,"",Draw!E16) -> 15 | B18: Nina Djukelic | C18: Stillwater | D18: 51.298 | E18: 17 | F18: =IF($A18="","",'Fig 1 Ballet Leg'!H17) -> 11.088 | G18: =IF($A18="","",'Fig 2 Kip'!H17) -> 12.395 | H18: =IF($A18="","",'Fig 3 Heron'!H17) -> 14.184 | I18: =IF($A18="","",'Fig 4 Walkover'!H17) -> 13.632 | J18: =IF($A18="","",'Fig 1 Ballet Leg'!I17+'Fig 2 Kip'!I17+'Fig 3 Heron'!I17+'Fig 4 Walkover'!I17) -> 0.0 | K18: 0 | AX18: 16 | AY18: 0
A19: =IF(Draw!E29=0,"",Draw!E29) -> 28 | B19: Lauren Guinee | C19: Stillwater | D19: 51.184 | E19: 18 | F19: =IF($A19="","",'Fig 1 Ballet Leg'!H30) -> 9.895 | G19: =IF($A19="","",'Fig 2 Kip'!H30) -> 12.000 | H19: =IF($A19="","",'Fig 3 Heron'!H30) -> 14.461 | I19: =IF($A19="","",'Fig 4 Walkover'!H30) -> 14.829 | J19: =IF($A19="","",'Fig 1 Ballet Leg'!I30+'Fig 2 Kip'!I30+'Fig 3 Heron'!I30+'Fig 4 Walkover'!I30) -> 0.0 | K19: 0 | AX19: 17 | AY19: 0
A20: =IF(Draw!E7=0,"",Draw!E7) -> 6 | B20: Kyra Will | C20: Stillwater | D20: 50.351 | E20: 19 | F20: =IF($A20="","",'Fig 1 Ballet Leg'!H8) -> 11.088 | G20: =IF($A20="","",'Fig 2 Kip'!H8) -> 12.553 | H20: =IF($A20="","",'Fig 3 Heron'!H8) -> 12.618 | I20: =IF($A20="","",'Fig 4 Walkover'!H8) -> 14.092 | J20: =IF($A20="","",'Fig 1 Ballet Leg'!I8+'Fig 2 Kip'!I8+'Fig 3 Heron'!I8+'Fig 4 Walkover'!I8) -> 0.0 | K20: 0 | AX20: 18 | AY20: 0
A21: =IF(Draw!E5=0,"",Draw!E5) -> 4 | B21: Molly Goheen | C21: Stillwater | D21: 50.096 | E21: 20 | F21: =IF($A21="","",'Fig 1 Ballet Leg'!H6) -> 10.386 | G21: =IF($A21="","",'Fig 2 Kip'!H6) -> 12.632 | H21: =IF($A21="","",'Fig 3 Heron'!H6) -> 13.447 | I21: =IF($A21="","",'Fig 4 Walkover'!H6) -> 13.632 | J21: =IF($A21="","",'Fig 1 Ballet Leg'!I6+'Fig 2 Kip'!I6+'Fig 3 Heron'!I6+'Fig 4 Walkover'!I6) -> 0.0 | K21: 0 | AX21: 19 | AY21: 0
A22: =IF(Draw!E23=0,"",Draw!E23) -> 22 | B22: Berit Serle | C22: Stillwater | D22: 50.092 | E22: 21 | F22: =IF($A22="","",'Fig 1 Ballet Leg'!H24) -> 10.105 | G22: =IF($A22="","",'Fig 2 Kip'!H24) -> 11.526 | H22: =IF($A22="","",'Fig 3 Heron'!H24) -> 13.908 | I22: =IF($A22="","",'Fig 4 Walkover'!H24) -> 14.553 | J22: =IF($A22="","",'Fig 1 Ballet Leg'!I24+'Fig 2 Kip'!I24+'Fig 3 Heron'!I24+'Fig 4 Walkover'!I24) -> 0.0 | K22: 0 | AX22: 20 | AY22: 0
A23: =IF(Draw!E11=0,"",Draw!E11) -> 10 | B23: Savanna Woods | C23: Osseo-Maple Grove | D23: 48.662 | E23: 22 | F23: =IF($A23="","",'Fig 1 Ballet Leg'!H12) -> 10.596 | G23: =IF($A23="","",'Fig 2 Kip'!H12) -> 11.447 | H23: =IF($A23="","",'Fig 3 Heron'!H12) -> 14.000 | I23: =IF($A23="","",'Fig 4 Walkover'!H12) -> 12.618 | J23: =IF($A23="","",'Fig 1 Ballet Leg'!I12+'Fig 2 Kip'!I12+'Fig 3 Heron'!I12+'Fig 4 Walkover'!I12) -> 0.0 | K23: 0 | AX23: 21 | AY23: 0
A24: =IF(Draw!E4=0,"",Draw!E4) -> 3 | B24: Kati Knox | C24: Osseo-Maple Grove | D24: 47.693 | E24: 23 | F24: =IF($A24="","",'Fig 1 Ballet Leg'!H5) -> 9.614 | G24: =IF($A24="","",'Fig 2 Kip'!H5) -> 11.368 | H24: =IF($A24="","",'Fig 3 Heron'!H5) -> 13.447 | I24: =IF($A24="","",'Fig 4 Walkover'!H5) -> 13.263 | J24: =IF($A24="","",'Fig 1 Ballet Leg'!I5+'Fig 2 Kip'!I5+'Fig 3 Heron'!I5+'Fig 4 Walkover'!I5) -> 0.0 | K24: 0 | AX24: 22 | AY24: 0
A25: =IF(Draw!E9=0,"",Draw!E9) -> 8 | B25: Mikaela Crosby | C25: Osseo-Maple Grove | D25: 46.145 | E25: 24 | F25: =IF($A25="","",'Fig 1 Ballet Leg'!H10) -> 8.842 | G25: =IF($A25="","",'Fig 2 Kip'!H10) -> 11.053 | H25: =IF($A25="","",'Fig 3 Heron'!H10) -> 12.526 | I25: =IF($A25="","",'Fig 4 Walkover'!H10) -> 13.724 | J25: =IF($A25="","",'Fig 1 Ballet Leg'!I10+'Fig 2 Kip'!I10+'Fig 3 Heron'!I10+'Fig 4 Walkover'!I10) -> 0.0 | K25: 0 | AX25: 23 | AY25: 0
A26: =IF(Draw!E19=0,"",Draw!E19) -> 18 | B26: Paulina Frayman | C26: Osseo-Maple Grove | D26: 45.088 | E26: 25 | F26: =IF($A26="","",'Fig 1 Ballet Leg'!H20) -> 8.772 | G26: =IF($A26="","",'Fig 2 Kip'!H20) -> 10.895 | H26: =IF($A26="","",'Fig 3 Heron'!H20) -> 12.066 | I26: =IF($A26="","",'Fig 4 Walkover'!H20) -> 13.355 | J26: =IF($A26="","",'Fig 1 Ballet Leg'!I20+'Fig 2 Kip'!I20+'Fig 3 Heron'!I20+'Fig 4 Walkover'!I20) -> 0.0 | K26: 0 | AX26: 24 | AY26: 0
A27: =IF(Draw!E28=0,"",Draw!E28) -> 27 | B27: Hayeon Lee | C27: Stillwater | D27: 30.759 | E27: 26 | F27: =IF($A27="","",'Fig 1 Ballet Leg'!H29) -> 8.561 | G27: =IF($A27="","",'Fig 2 Kip'!H29) -> 10.500 | H27: =IF($A27="","",'Fig 3 Heron'!H29) -> 0.000 | I27: =IF($A27="","",'Fig 4 Walkover'!H29) -> 11.697 | J27: =IF($A27="","",'Fig 1 Ballet Leg'!I29+'Fig 2 Kip'!I29+'Fig 3 Heron'!I29+'Fig 4 Walkover'!I29) -> 0.0 | K27: 0 | AX27: 25 | AY27: 0
A28: =IF(Draw!E2=0,"",Draw!E2) -> 1 | B28: Leigha Kraft | C28: Stillwater | D28: 0.000 | E28: 27 | F28: =IF($A28="","",'Fig 1 Ballet Leg'!H3) -> 0.000 | G28: =IF($A28="","",'Fig 2 Kip'!H3) -> 0.000 | H28: =IF($A28="","",'Fig 3 Heron'!H3) -> 0.000 | I28: =IF($A28="","",'Fig 4 Walkover'!H3) -> 0.000 | J28: =IF($A28="","",'Fig 1 Ballet Leg'!I3+'Fig 2 Kip'!I3+'Fig 3 Heron'!I3+'Fig 4 Walkover'!I3) -> 0.0 | K28: 0 | AX28: 26 | AY28: 0
A29: =IF(Draw!E20=0,"",Draw!E20) -> 19 | B29: Student Names: | C29: Edina | D29: 0.000 | E29: 27 | F29: =IF($A29="","",'Fig 1 Ballet Leg'!H21) -> 0.000 | G29: =IF($A29="","",'Fig 2 Kip'!H21) -> 0.000 | H29: =IF($A29="","",'Fig 3 Heron'!H21) -> 0.000 | I29: =IF($A29="","",'Fig 4 Walkover'!H21) -> 0.000 | J29: =IF($A29="","",'Fig 1 Ballet Leg'!I21+'Fig 2 Kip'!I21+'Fig 3 Heron'!I21+'Fig 4 Walkover'!I21) -> 0.0 | K29: 0 | AX29: 27 | AY29: 0
A30: =IF(Draw!E30=0,"",Draw!E30) ->  | D30: =IF($A30="","",SUM(F30:I30)-J30) ->  | E30: =IF($A30="","",RANK(D30,D$2:D$150)) ->  | F30: =IF($A30="","",'Fig 1 Ballet Leg'!H31) ->  | G30: =IF($A30="","",'Fig 2 Kip'!H31) ->  | H30: =IF($A30="","",'Fig 3 Heron'!H31) ->  | I30: =IF($A30="","",'Fig 4 Walkover'!H31) ->  | J30: =IF($A30="","",'Fig 1 Ballet Leg'!I31+'Fig 2 Kip'!I31+'Fig 3 Heron'!I31+'Fig 4 Walkover'!I31) ->  | K30: =IF($A30="","",IF(A30="","",VLOOKUP(E30,AX$3:AY$102,2,FALSE))) ->  | AX30: 28 | AY30: 0
A31: =IF(Draw!E31=0,"",Draw!E31) ->  | F31: =IF($A31="","",'Fig 1 Ballet Leg'!H32) ->  | G31: =IF($A31="","",'Fig 2 Kip'!H32) ->  | H31: =IF($A31="","",'Fig 3 Heron'!H32) ->  | I31: =IF($A31="","",'Fig 4 Walkover'!H32) ->  | J31: =IF($A31="","",'Fig 1 Ballet Leg'!I32+'Fig 2 Kip'!I32+'Fig 3 Heron'!I32+'Fig 4 Walkover'!I32) ->  | AX31: 29 | AY31: 0
A32: =IF(Draw!E32=0,"",Draw!E32) ->  | F32: =IF($A32="","",'Fig 1 Ballet Leg'!H33) ->  | G32: =IF($A32="","",'Fig 2 Kip'!H33) ->  | H32: =IF($A32="","",'Fig 3 Heron'!H33) ->  | I32: =IF($A32="","",'Fig 4 Walkover'!H33) ->  | J32: =IF($A32="","",'Fig 1 Ballet Leg'!I33+'Fig 2 Kip'!I33+'Fig 3 Heron'!I33+'Fig 4 Walkover'!I33) ->  | AX32: 30 | AY32: 0
A33: =IF(Draw!E33=0,"",Draw!E33) ->  | F33: =IF($A33="","",'Fig 1 Ballet Leg'!H34) ->  | G33: =IF($A33="","",'Fig 2 Kip'!H34) ->  | H33: =IF($A33="","",'Fig 3 Heron'!H34) ->  | I33: =IF($A33="","",'Fig 4 Walkover'!H34) ->  | J33: =IF($A33="","",'Fig 1 Ballet Leg'!I34+'Fig 2 Kip'!I34+'Fig 3 Heron'!I34+'Fig 4 Walkover'!I34) ->  | AX33: 31 | AY33: 0
A34: =IF(Draw!E34=0,"",Draw!E34) ->  | F34: =IF($A34="","",'Fig 1 Ballet Leg'!H35) ->  | G34: =IF($A34="","",'Fig 2 Kip'!H35) ->  | H34: =IF($A34="","",'Fig 3 Heron'!H35) ->  | I34: =IF($A34="","",'Fig 4 Walkover'!H35) ->  | J34: =IF($A34="","",'Fig 1 Ballet Leg'!I35+'Fig 2 Kip'!I35+'Fig 3 Heron'!I35+'Fig 4 Walkover'!I35) ->  | AX34: 32 | AY34: 0
A35: =IF(Draw!E35=0,"",Draw!E35) ->  | F35: =IF($A35="","",'Fig 1 Ballet Leg'!H36) ->  | G35: =IF($A35="","",'Fig 2 Kip'!H36) ->  | H35: =IF($A35="","",'Fig 3 Heron'!H36) ->  | I35: =IF($A35="","",'Fig 4 Walkover'!H36) ->  | J35: =IF($A35="","",'Fig 1 Ballet Leg'!I36+'Fig 2 Kip'!I36+'Fig 3 Heron'!I36+'Fig 4 Walkover'!I36) ->  | AX35: 33 | AY35: 0
A36: =IF(Draw!E36=0,"",Draw!E36) ->  | F36: =IF($A36="","",'Fig 1 Ballet Leg'!H37) ->  | G36: =IF($A36="","",'Fig 2 Kip'!H37) ->  | H36: =IF($A36="","",'Fig 3 Heron'!H37) ->  | I36: =IF($A36="","",'Fig 4 Walkover'!H37) ->  | J36: =IF($A36="","",'Fig 1 Ballet Leg'!I37+'Fig 2 Kip'!I37+'Fig 3 Heron'!I37+'Fig 4 Walkover'!I37) ->  | AX36: 34 | AY36: 0
A37: =IF(Draw!E37=0,"",Draw!E37) ->  | F37: =IF($A37="","",'Fig 1 Ballet Leg'!H38) ->  | G37: =IF($A37="","",'Fig 2 Kip'!H38) ->  | H37: =IF($A37="","",'Fig 3 Heron'!H38) ->  | I37: =IF($A37="","",'Fig 4 Walkover'!H38) ->  | J37: =IF($A37="","",'Fig 1 Ballet Leg'!I38+'Fig 2 Kip'!I38+'Fig 3 Heron'!I38+'Fig 4 Walkover'!I38) ->  | AX37: 35 | AY37: 0
A38: =IF(Draw!E38=0,"",Draw!E38) ->  | F38: =IF($A38="","",'Fig 1 Ballet Leg'!H39) ->  | G38: =IF($A38="","",'Fig 2 Kip'!H39) ->  | H38: =IF($A38="","",'Fig 3 Heron'!H39) ->  | I38: =IF($A38="","",'Fig 4 Walkover'!H39) ->  | J38: =IF($A38="","",'Fig 1 Ballet Leg'!I39+'Fig 2 Kip'!I39+'Fig 3 Heron'!I39+'Fig 4 Walkover'!I39) ->  | AX38: 36 | AY38: 0
A39: =IF(Draw!E39=0,"",Draw!E39) ->  | F39: =IF($A39="","",'Fig 1 Ballet Leg'!H40) ->  | G39: =IF($A39="","",'Fig 2 Kip'!H40) ->  | H39: =IF($A39="","",'Fig 3 Heron'!H40) ->  | I39: =IF($A39="","",'Fig 4 Walkover'!H40) ->  | J39: =IF($A39="","",'Fig 1 Ballet Leg'!I40+'Fig 2 Kip'!I40+'Fig 3 Heron'!I40+'Fig 4 Walkover'!I40) ->  | AX39: 37 | AY39: 0
A40: =IF(Draw!E40=0,"",Draw!E40) ->  | F40: =IF($A40="","",'Fig 1 Ballet Leg'!H41) ->  | G40: =IF($A40="","",'Fig 2 Kip'!H41) ->  | H40: =IF($A40="","",'Fig 3 Heron'!H41) ->  | I40: =IF($A40="","",'Fig 4 Walkover'!H41) ->  | J40: =IF($A40="","",'Fig 1 Ballet Leg'!I41+'Fig 2 Kip'!I41+'Fig 3 Heron'!I41+'Fig 4 Walkover'!I41) ->  | AX40: 38 | AY40: 0
A41: =IF(Draw!E41=0,"",Draw!E41) ->  | F41: =IF($A41="","",'Fig 1 Ballet Leg'!H42) ->  | G41: =IF($A41="","",'Fig 2 Kip'!H42) ->  | H41: =IF($A41="","",'Fig 3 Heron'!H42) ->  | I41: =IF($A41="","",'Fig 4 Walkover'!H42) ->  | J41: =IF($A41="","",'Fig 1 Ballet Leg'!I42+'Fig 2 Kip'!I42+'Fig 3 Heron'!I42+'Fig 4 Walkover'!I42) ->  | AX41: 39 | AY41: 0
A42: =IF(Draw!E42=0,"",Draw!E42) ->  | F42: =IF($A42="","",'Fig 1 Ballet Leg'!H43) ->  | G42: =IF($A42="","",'Fig 2 Kip'!H43) ->  | H42: =IF($A42="","",'Fig 3 Heron'!H43) ->  | I42: =IF($A42="","",'Fig 4 Walkover'!H43) ->  | J42: =IF($A42="","",'Fig 1 Ballet Leg'!I43+'Fig 2 Kip'!I43+'Fig 3 Heron'!I43+'Fig 4 Walkover'!I43) ->  | AX42: 40 | AY42: 0
A43: =IF(Draw!E43=0,"",Draw!E43) ->  | F43: =IF($A43="","",'Fig 1 Ballet Leg'!H44) ->  | G43: =IF($A43="","",'Fig 2 Kip'!H44) ->  | H43: =IF($A43="","",'Fig 3 Heron'!H44) ->  | I43: =IF($A43="","",'Fig 4 Walkover'!H44) ->  | J43: =IF($A43="","",'Fig 1 Ballet Leg'!I44+'Fig 2 Kip'!I44+'Fig 3 Heron'!I44+'Fig 4 Walkover'!I44) ->  | AX43: 41 | AY43: 0
A44: =IF(Draw!E44=0,"",Draw!E44) ->  | F44: =IF($A44="","",'Fig 1 Ballet Leg'!H45) ->  | G44: =IF($A44="","",'Fig 2 Kip'!H45) ->  | H44: =IF($A44="","",'Fig 3 Heron'!H45) ->  | I44: =IF($A44="","",'Fig 4 Walkover'!H45) ->  | J44: =IF($A44="","",'Fig 1 Ballet Leg'!I45+'Fig 2 Kip'!I45+'Fig 3 Heron'!I45+'Fig 4 Walkover'!I45) ->  | AX44: 42 | AY44: 0
A45: =IF(Draw!E45=0,"",Draw!E45) ->  | F45: =IF($A45="","",'Fig 1 Ballet Leg'!H46) ->  | G45: =IF($A45="","",'Fig 2 Kip'!H46) ->  | H45: =IF($A45="","",'Fig 3 Heron'!H46) ->  | I45: =IF($A45="","",'Fig 4 Walkover'!H46) ->  | J45: =IF($A45="","",'Fig 1 Ballet Leg'!I46+'Fig 2 Kip'!I46+'Fig 3 Heron'!I46+'Fig 4 Walkover'!I46) ->  | AX45: 43 | AY45: 0
A46: =IF(Draw!E46=0,"",Draw!E46) ->  | F46: =IF($A46="","",'Fig 1 Ballet Leg'!H47) ->  | G46: =IF($A46="","",'Fig 2 Kip'!H47) ->  | H46: =IF($A46="","",'Fig 3 Heron'!H47) ->  | I46: =IF($A46="","",'Fig 4 Walkover'!H47) ->  | J46: =IF($A46="","",'Fig 1 Ballet Leg'!I47+'Fig 2 Kip'!I47+'Fig 3 Heron'!I47+'Fig 4 Walkover'!I47) ->  | AX46: 44 | AY46: 0
A47: =IF(Draw!E47=0,"",Draw!E47) ->  | F47: =IF($A47="","",'Fig 1 Ballet Leg'!H48) ->  | G47: =IF($A47="","",'Fig 2 Kip'!H48) ->  | H47: =IF($A47="","",'Fig 3 Heron'!H48) ->  | I47: =IF($A47="","",'Fig 4 Walkover'!H48) ->  | J47: =IF($A47="","",'Fig 1 Ballet Leg'!I48+'Fig 2 Kip'!I48+'Fig 3 Heron'!I48+'Fig 4 Walkover'!I48) ->  | AX47: 45 | AY47: 0
A48: =IF(Draw!E48=0,"",Draw!E48) ->  | F48: =IF($A48="","",'Fig 1 Ballet Leg'!H49) ->  | G48: =IF($A48="","",'Fig 2 Kip'!H49) ->  | H48: =IF($A48="","",'Fig 3 Heron'!H49) ->  | I48: =IF($A48="","",'Fig 4 Walkover'!H49) ->  | J48: =IF($A48="","",'Fig 1 Ballet Leg'!I49+'Fig 2 Kip'!I49+'Fig 3 Heron'!I49+'Fig 4 Walkover'!I49) ->  | AX48: 46 | AY48: 0
A49: =IF(Draw!E49=0,"",Draw!E49) ->  | F49: =IF($A49="","",'Fig 1 Ballet Leg'!H50) ->  | G49: =IF($A49="","",'Fig 2 Kip'!H50) ->  | H49: =IF($A49="","",'Fig 3 Heron'!H50) ->  | I49: =IF($A49="","",'Fig 4 Walkover'!H50) ->  | J49: =IF($A49="","",'Fig 1 Ballet Leg'!I50+'Fig 2 Kip'!I50+'Fig 3 Heron'!I50+'Fig 4 Walkover'!I50) ->  | AX49: 47 | AY49: 0
A50: =IF(Draw!E50=0,"",Draw!E50) ->  | F50: =IF($A50="","",'Fig 1 Ballet Leg'!H51) ->  | G50: =IF($A50="","",'Fig 2 Kip'!H51) ->  | H50: =IF($A50="","",'Fig 3 Heron'!H51) ->  | I50: =IF($A50="","",'Fig 4 Walkover'!H51) ->  | J50: =IF($A50="","",'Fig 1 Ballet Leg'!I51+'Fig 2 Kip'!I51+'Fig 3 Heron'!I51+'Fig 4 Walkover'!I51) ->  | AX50: 48 | AY50: 0
A51: =IF(Draw!E51=0,"",Draw!E51) ->  | F51: =IF($A51="","",'Fig 1 Ballet Leg'!H52) ->  | G51: =IF($A51="","",'Fig 2 Kip'!H52) ->  | H51: =IF($A51="","",'Fig 3 Heron'!H52) ->  | I51: =IF($A51="","",'Fig 4 Walkover'!H52) ->  | J51: =IF($A51="","",'Fig 1 Ballet Leg'!I52+'Fig 2 Kip'!I52+'Fig 3 Heron'!I52+'Fig 4 Walkover'!I52) ->  | AX51: 49 | AY51: 0
A52: =IF(Draw!E52=0,"",Draw!E52) ->  | F52: =IF($A52="","",'Fig 1 Ballet Leg'!H53) ->  | G52: =IF($A52="","",'Fig 2 Kip'!H53) ->  | H52: =IF($A52="","",'Fig 3 Heron'!H53) ->  | I52: =IF($A52="","",'Fig 4 Walkover'!H53) ->  | J52: =IF($A52="","",'Fig 1 Ballet Leg'!I53+'Fig 2 Kip'!I53+'Fig 3 Heron'!I53+'Fig 4 Walkover'!I53) ->  | AX52: 50 | AY52: 0
A53: =IF(Draw!E53=0,"",Draw!E53) ->  | F53: =IF($A53="","",'Fig 1 Ballet Leg'!H54) ->  | G53: =IF($A53="","",'Fig 2 Kip'!H54) ->  | H53: =IF($A53="","",'Fig 3 Heron'!H54) ->  | I53: =IF($A53="","",'Fig 4 Walkover'!H54) ->  | J53: =IF($A53="","",'Fig 1 Ballet Leg'!I54+'Fig 2 Kip'!I54+'Fig 3 Heron'!I54+'Fig 4 Walkover'!I54) ->  | AX53: 51 | AY53: 0
A54: =IF(Draw!E54=0,"",Draw!E54) ->  | F54: =IF($A54="","",'Fig 1 Ballet Leg'!H55) ->  | G54: =IF($A54="","",'Fig 2 Kip'!H55) ->  | H54: =IF($A54="","",'Fig 3 Heron'!H55) ->  | I54: =IF($A54="","",'Fig 4 Walkover'!H55) ->  | J54: =IF($A54="","",'Fig 1 Ballet Leg'!I55+'Fig 2 Kip'!I55+'Fig 3 Heron'!I55+'Fig 4 Walkover'!I55) ->  | AX54: 52 | AY54: 0
A55: =IF(Draw!E55=0,"",Draw!E55) ->  | F55: =IF($A55="","",'Fig 1 Ballet Leg'!H56) ->  | G55: =IF($A55="","",'Fig 2 Kip'!H56) ->  | H55: =IF($A55="","",'Fig 3 Heron'!H56) ->  | I55: =IF($A55="","",'Fig 4 Walkover'!H56) ->  | J55: =IF($A55="","",'Fig 1 Ballet Leg'!I56+'Fig 2 Kip'!I56+'Fig 3 Heron'!I56+'Fig 4 Walkover'!I56) ->  | AX55: 53 | AY55: 0
A56: =IF(Draw!E56=0,"",Draw!E56) ->  | F56: =IF($A56="","",'Fig 1 Ballet Leg'!H57) ->  | G56: =IF($A56="","",'Fig 2 Kip'!H57) ->  | H56: =IF($A56="","",'Fig 3 Heron'!H57) ->  | I56: =IF($A56="","",'Fig 4 Walkover'!H57) ->  | J56: =IF($A56="","",'Fig 1 Ballet Leg'!I57+'Fig 2 Kip'!I57+'Fig 3 Heron'!I57+'Fig 4 Walkover'!I57) ->  | AX56: 54 | AY56: 0
A57: =IF(Draw!E57=0,"",Draw!E57) ->  | F57: =IF($A57="","",'Fig 1 Ballet Leg'!H58) ->  | G57: =IF($A57="","",'Fig 2 Kip'!H58) ->  | H57: =IF($A57="","",'Fig 3 Heron'!H58) ->  | I57: =IF($A57="","",'Fig 4 Walkover'!H58) ->  | J57: =IF($A57="","",'Fig 1 Ballet Leg'!I58+'Fig 2 Kip'!I58+'Fig 3 Heron'!I58+'Fig 4 Walkover'!I58) ->  | AX57: 55 | AY57: 0
A58: =IF(Draw!E58=0,"",Draw!E58) ->  | F58: =IF($A58="","",'Fig 1 Ballet Leg'!H59) ->  | G58: =IF($A58="","",'Fig 2 Kip'!H59) ->  | H58: =IF($A58="","",'Fig 3 Heron'!H59) ->  | I58: =IF($A58="","",'Fig 4 Walkover'!H59) ->  | J58: =IF($A58="","",'Fig 1 Ballet Leg'!I59+'Fig 2 Kip'!I59+'Fig 3 Heron'!I59+'Fig 4 Walkover'!I59) ->  | AX58: 56 | AY58: 0
A59: =IF(Draw!E59=0,"",Draw!E59) ->  | F59: =IF($A59="","",'Fig 1 Ballet Leg'!H60) ->  | G59: =IF($A59="","",'Fig 2 Kip'!H60) ->  | H59: =IF($A59="","",'Fig 3 Heron'!H60) ->  | I59: =IF($A59="","",'Fig 4 Walkover'!H60) ->  | J59: =IF($A59="","",'Fig 1 Ballet Leg'!I60+'Fig 2 Kip'!I60+'Fig 3 Heron'!I60+'Fig 4 Walkover'!I60) ->  | AX59: 57 | AY59: 0
A60: =IF(Draw!E60=0,"",Draw!E60) ->  | F60: =IF($A60="","",'Fig 1 Ballet Leg'!H61) ->  | G60: =IF($A60="","",'Fig 2 Kip'!H61) ->  | H60: =IF($A60="","",'Fig 3 Heron'!H61) ->  | I60: =IF($A60="","",'Fig 4 Walkover'!H61) ->  | J60: =IF($A60="","",'Fig 1 Ballet Leg'!I61+'Fig 2 Kip'!I61+'Fig 3 Heron'!I61+'Fig 4 Walkover'!I61) ->  | AX60: 58 | AY60: 0
A61: =IF(Draw!E61=0,"",Draw!E61) ->  | F61: =IF($A61="","",'Fig 1 Ballet Leg'!H62) ->  | G61: =IF($A61="","",'Fig 2 Kip'!H62) ->  | H61: =IF($A61="","",'Fig 3 Heron'!H62) ->  | I61: =IF($A61="","",'Fig 4 Walkover'!H62) ->  | J61: =IF($A61="","",'Fig 1 Ballet Leg'!I62+'Fig 2 Kip'!I62+'Fig 3 Heron'!I62+'Fig 4 Walkover'!I62) ->  | AX61: 59 | AY61: 0
A62: =IF(Draw!E62=0,"",Draw!E62) ->  | F62: =IF($A62="","",'Fig 1 Ballet Leg'!H63) ->  | G62: =IF($A62="","",'Fig 2 Kip'!H63) ->  | H62: =IF($A62="","",'Fig 3 Heron'!H63) ->  | I62: =IF($A62="","",'Fig 4 Walkover'!H63) ->  | J62: =IF($A62="","",'Fig 1 Ballet Leg'!I63+'Fig 2 Kip'!I63+'Fig 3 Heron'!I63+'Fig 4 Walkover'!I63) ->  | AX62: 60 | AY62: 0
A63: =IF(Draw!E63=0,"",Draw!E63) ->  | F63: =IF($A63="","",'Fig 1 Ballet Leg'!H64) ->  | G63: =IF($A63="","",'Fig 2 Kip'!H64) ->  | H63: =IF($A63="","",'Fig 3 Heron'!H64) ->  | I63: =IF($A63="","",'Fig 4 Walkover'!H64) ->  | J63: =IF($A63="","",'Fig 1 Ballet Leg'!I64+'Fig 2 Kip'!I64+'Fig 3 Heron'!I64+'Fig 4 Walkover'!I64) ->  | AX63: 61 | AY63: 0
A64: =IF(Draw!E64=0,"",Draw!E64) ->  | F64: =IF($A64="","",'Fig 1 Ballet Leg'!H65) ->  | G64: =IF($A64="","",'Fig 2 Kip'!H65) ->  | H64: =IF($A64="","",'Fig 3 Heron'!H65) ->  | I64: =IF($A64="","",'Fig 4 Walkover'!H65) ->  | J64: =IF($A64="","",'Fig 1 Ballet Leg'!I65+'Fig 2 Kip'!I65+'Fig 3 Heron'!I65+'Fig 4 Walkover'!I65) ->  | AX64: 62 | AY64: 0
A65: =IF(Draw!E65=0,"",Draw!E65) ->  | F65: =IF($A65="","",'Fig 1 Ballet Leg'!H66) ->  | G65: =IF($A65="","",'Fig 2 Kip'!H66) ->  | H65: =IF($A65="","",'Fig 3 Heron'!H66) ->  | I65: =IF($A65="","",'Fig 4 Walkover'!H66) ->  | J65: =IF($A65="","",'Fig 1 Ballet Leg'!I66+'Fig 2 Kip'!I66+'Fig 3 Heron'!I66+'Fig 4 Walkover'!I66) ->  | AX65: 63 | AY65: 0
A66: =IF(Draw!E66=0,"",Draw!E66) ->  | F66: =IF($A66="","",'Fig 1 Ballet Leg'!H67) ->  | G66: =IF($A66="","",'Fig 2 Kip'!H67) ->  | H66: =IF($A66="","",'Fig 3 Heron'!H67) ->  | I66: =IF($A66="","",'Fig 4 Walkover'!H67) ->  | J66: =IF($A66="","",'Fig 1 Ballet Leg'!I67+'Fig 2 Kip'!I67+'Fig 3 Heron'!I67+'Fig 4 Walkover'!I67) ->  | AX66: 64 | AY66: 0
A67: =IF(Draw!E67=0,"",Draw!E67) ->  | F67: =IF($A67="","",'Fig 1 Ballet Leg'!H68) ->  | G67: =IF($A67="","",'Fig 2 Kip'!H68) ->  | H67: =IF($A67="","",'Fig 3 Heron'!H68) ->  | I67: =IF($A67="","",'Fig 4 Walkover'!H68) ->  | J67: =IF($A67="","",'Fig 1 Ballet Leg'!I68+'Fig 2 Kip'!I68+'Fig 3 Heron'!I68+'Fig 4 Walkover'!I68) ->  | AX67: 65 | AY67: 0
A68: =IF(Draw!E68=0,"",Draw!E68) ->  | F68: =IF($A68="","",'Fig 1 Ballet Leg'!H69) ->  | G68: =IF($A68="","",'Fig 2 Kip'!H69) ->  | H68: =IF($A68="","",'Fig 3 Heron'!H69) ->  | I68: =IF($A68="","",'Fig 4 Walkover'!H69) ->  | J68: =IF($A68="","",'Fig 1 Ballet Leg'!I69+'Fig 2 Kip'!I69+'Fig 3 Heron'!I69+'Fig 4 Walkover'!I69) ->  | AX68: 66 | AY68: 0
A69: =IF(Draw!E69=0,"",Draw!E69) ->  | D69: =IF($A69="","",SUM(F69:I69)-J69) ->  | E69: =IF($A69="","",RANK(D69,D$2:D$150)) ->  | F69: =IF($A69="","",'Fig 1 Ballet Leg'!H70) ->  | G69: =IF($A69="","",'Fig 2 Kip'!H70) ->  | H69: =IF($A69="","",'Fig 3 Heron'!H70) ->  | I69: =IF($A69="","",'Fig 4 Walkover'!H70) ->  | J69: =IF($A69="","",'Fig 1 Ballet Leg'!I70+'Fig 2 Kip'!I70+'Fig 3 Heron'!I70+'Fig 4 Walkover'!I70) ->  | K69: =IF($A69="","",IF(A69="","",VLOOKUP(E69,AX$3:AY$102,2,FALSE))) ->  | AX69: 67 | AY69: 0
A70: =IF(Draw!E70=0,"",Draw!E70) ->  | F70: =IF($A70="","",'Fig 1 Ballet Leg'!H71) ->  | G70: =IF($A70="","",'Fig 2 Kip'!H71) ->  | H70: =IF($A70="","",'Fig 3 Heron'!H71) ->  | I70: =IF($A70="","",'Fig 4 Walkover'!H71) ->  | J70: =IF($A70="","",'Fig 1 Ballet Leg'!I71+'Fig 2 Kip'!I71+'Fig 3 Heron'!I71+'Fig 4 Walkover'!I71) ->  | AX70: 68 | AY70: 0
A71: =IF(Draw!E71=0,"",Draw!E71) ->  | F71: =IF($A71="","",'Fig 1 Ballet Leg'!H72) ->  | G71: =IF($A71="","",'Fig 2 Kip'!H72) ->  | H71: =IF($A71="","",'Fig 3 Heron'!H72) ->  | I71: =IF($A71="","",'Fig 4 Walkover'!H72) ->  | J71: =IF($A71="","",'Fig 1 Ballet Leg'!I72+'Fig 2 Kip'!I72+'Fig 3 Heron'!I72+'Fig 4 Walkover'!I72) ->  | AX71: 69 | AY71: 0
A72: =IF(Draw!E72=0,"",Draw!E72) ->  | F72: =IF($A72="","",'Fig 1 Ballet Leg'!H73) ->  | G72: =IF($A72="","",'Fig 2 Kip'!H73) ->  | H72: =IF($A72="","",'Fig 3 Heron'!H73) ->  | I72: =IF($A72="","",'Fig 4 Walkover'!H73) ->  | J72: =IF($A72="","",'Fig 1 Ballet Leg'!I73+'Fig 2 Kip'!I73+'Fig 3 Heron'!I73+'Fig 4 Walkover'!I73) ->  | AX72: 70 | AY72: 0
A73: =IF(Draw!E73=0,"",Draw!E73) ->  | F73: =IF($A73="","",'Fig 1 Ballet Leg'!H74) ->  | G73: =IF($A73="","",'Fig 2 Kip'!H74) ->  | H73: =IF($A73="","",'Fig 3 Heron'!H74) ->  | I73: =IF($A73="","",'Fig 4 Walkover'!H74) ->  | J73: =IF($A73="","",'Fig 1 Ballet Leg'!I74+'Fig 2 Kip'!I74+'Fig 3 Heron'!I74+'Fig 4 Walkover'!I74) ->  | AX73: 71 | AY73: 0
A74: =IF(Draw!E74=0,"",Draw!E74) ->  | F74: =IF($A74="","",'Fig 1 Ballet Leg'!H75) ->  | G74: =IF($A74="","",'Fig 2 Kip'!H75) ->  | H74: =IF($A74="","",'Fig 3 Heron'!H75) ->  | I74: =IF($A74="","",'Fig 4 Walkover'!H75) ->  | J74: =IF($A74="","",'Fig 1 Ballet Leg'!I75+'Fig 2 Kip'!I75+'Fig 3 Heron'!I75+'Fig 4 Walkover'!I75) ->  | AX74: 72 | AY74: 0
A75: =IF(Draw!E75=0,"",Draw!E75) ->  | F75: =IF($A75="","",'Fig 1 Ballet Leg'!H76) ->  | G75: =IF($A75="","",'Fig 2 Kip'!H76) ->  | H75: =IF($A75="","",'Fig 3 Heron'!H76) ->  | I75: =IF($A75="","",'Fig 4 Walkover'!H76) ->  | J75: =IF($A75="","",'Fig 1 Ballet Leg'!I76+'Fig 2 Kip'!I76+'Fig 3 Heron'!I76+'Fig 4 Walkover'!I76) ->  | AX75: 73 | AY75: 0
A76: =IF(Draw!E76=0,"",Draw!E76) ->  | F76: =IF($A76="","",'Fig 1 Ballet Leg'!H77) ->  | G76: =IF($A76="","",'Fig 2 Kip'!H77) ->  | H76: =IF($A76="","",'Fig 3 Heron'!H77) ->  | I76: =IF($A76="","",'Fig 4 Walkover'!H77) ->  | J76: =IF($A76="","",'Fig 1 Ballet Leg'!I77+'Fig 2 Kip'!I77+'Fig 3 Heron'!I77+'Fig 4 Walkover'!I77) ->  | AX76: 74 | AY76: 0
A77: =IF(Draw!E77=0,"",Draw!E77) ->  | F77: =IF($A77="","",'Fig 1 Ballet Leg'!H78) ->  | G77: =IF($A77="","",'Fig 2 Kip'!H78) ->  | H77: =IF($A77="","",'Fig 3 Heron'!H78) ->  | I77: =IF($A77="","",'Fig 4 Walkover'!H78) ->  | J77: =IF($A77="","",'Fig 1 Ballet Leg'!I78+'Fig 2 Kip'!I78+'Fig 3 Heron'!I78+'Fig 4 Walkover'!I78) ->  | AX77: 75 | AY77: 0
A78: =IF(Draw!E78=0,"",Draw!E78) ->  | F78: =IF($A78="","",'Fig 1 Ballet Leg'!H79) ->  | G78: =IF($A78="","",'Fig 2 Kip'!H79) ->  | H78: =IF($A78="","",'Fig 3 Heron'!H79) ->  | I78: =IF($A78="","",'Fig 4 Walkover'!H79) ->  | J78: =IF($A78="","",'Fig 1 Ballet Leg'!I79+'Fig 2 Kip'!I79+'Fig 3 Heron'!I79+'Fig 4 Walkover'!I79) ->  | AX78: 76 | AY78: 0
A79: =IF(Draw!E79=0,"",Draw!E79) ->  | F79: =IF($A79="","",'Fig 1 Ballet Leg'!H80) ->  | G79: =IF($A79="","",'Fig 2 Kip'!H80) ->  | H79: =IF($A79="","",'Fig 3 Heron'!H80) ->  | I79: =IF($A79="","",'Fig 4 Walkover'!H80) ->  | J79: =IF($A79="","",'Fig 1 Ballet Leg'!I80+'Fig 2 Kip'!I80+'Fig 3 Heron'!I80+'Fig 4 Walkover'!I80) ->  | AX79: 77 | AY79: 0
A80: =IF(Draw!E80=0,"",Draw!E80) ->  | F80: =IF($A80="","",'Fig 1 Ballet Leg'!H81) ->  | G80: =IF($A80="","",'Fig 2 Kip'!H81) ->  | H80: =IF($A80="","",'Fig 3 Heron'!H81) ->  | I80: =IF($A80="","",'Fig 4 Walkover'!H81) ->  | J80: =IF($A80="","",'Fig 1 Ballet Leg'!I81+'Fig 2 Kip'!I81+'Fig 3 Heron'!I81+'Fig 4 Walkover'!I81) ->  | AX80: 78 | AY80: 0
A81: =IF(Draw!E81=0,"",Draw!E81) ->  | F81: =IF($A81="","",'Fig 1 Ballet Leg'!H82) ->  | G81: =IF($A81="","",'Fig 2 Kip'!H82) ->  | H81: =IF($A81="","",'Fig 3 Heron'!H82) ->  | I81: =IF($A81="","",'Fig 4 Walkover'!H82) ->  | J81: =IF($A81="","",'Fig 1 Ballet Leg'!I82+'Fig 2 Kip'!I82+'Fig 3 Heron'!I82+'Fig 4 Walkover'!I82) ->  | AX81: 79 | AY81: 0
A82: =IF(Draw!E82=0,"",Draw!E82) ->  | F82: =IF($A82="","",'Fig 1 Ballet Leg'!H83) ->  | G82: =IF($A82="","",'Fig 2 Kip'!H83) ->  | H82: =IF($A82="","",'Fig 3 Heron'!H83) ->  | I82: =IF($A82="","",'Fig 4 Walkover'!H83) ->  | J82: =IF($A82="","",'Fig 1 Ballet Leg'!I83+'Fig 2 Kip'!I83+'Fig 3 Heron'!I83+'Fig 4 Walkover'!I83) ->  | AX82: 80 | AY82: 0
A83: =IF(Draw!E83=0,"",Draw!E83) ->  | F83: =IF($A83="","",'Fig 1 Ballet Leg'!H84) ->  | G83: =IF($A83="","",'Fig 2 Kip'!H84) ->  | H83: =IF($A83="","",'Fig 3 Heron'!H84) ->  | I83: =IF($A83="","",'Fig 4 Walkover'!H84) ->  | J83: =IF($A83="","",'Fig 1 Ballet Leg'!I84+'Fig 2 Kip'!I84+'Fig 3 Heron'!I84+'Fig 4 Walkover'!I84) ->  | AX83: 81 | AY83: 0
A84: =IF(Draw!E84=0,"",Draw!E84) ->  | F84: =IF($A84="","",'Fig 1 Ballet Leg'!H85) ->  | G84: =IF($A84="","",'Fig 2 Kip'!H85) ->  | H84: =IF($A84="","",'Fig 3 Heron'!H85) ->  | I84: =IF($A84="","",'Fig 4 Walkover'!H85) ->  | J84: =IF($A84="","",'Fig 1 Ballet Leg'!I85+'Fig 2 Kip'!I85+'Fig 3 Heron'!I85+'Fig 4 Walkover'!I85) ->  | AX84: 82 | AY84: 0
A85: =IF(Draw!E85=0,"",Draw!E85) ->  | F85: =IF($A85="","",'Fig 1 Ballet Leg'!H86) ->  | G85: =IF($A85="","",'Fig 2 Kip'!H86) ->  | H85: =IF($A85="","",'Fig 3 Heron'!H86) ->  | I85: =IF($A85="","",'Fig 4 Walkover'!H86) ->  | J85: =IF($A85="","",'Fig 1 Ballet Leg'!I86+'Fig 2 Kip'!I86+'Fig 3 Heron'!I86+'Fig 4 Walkover'!I86) ->  | AX85: 83 | AY85: 0
A86: =IF(Draw!E86=0,"",Draw!E86) ->  | F86: =IF($A86="","",'Fig 1 Ballet Leg'!H87) ->  | G86: =IF($A86="","",'Fig 2 Kip'!H87) ->  | H86: =IF($A86="","",'Fig 3 Heron'!H87) ->  | I86: =IF($A86="","",'Fig 4 Walkover'!H87) ->  | J86: =IF($A86="","",'Fig 1 Ballet Leg'!I87+'Fig 2 Kip'!I87+'Fig 3 Heron'!I87+'Fig 4 Walkover'!I87) ->  | AX86: 84 | AY86: 0
A87: =IF(Draw!E87=0,"",Draw!E87) ->  | F87: =IF($A87="","",'Fig 1 Ballet Leg'!H88) ->  | G87: =IF($A87="","",'Fig 2 Kip'!H88) ->  | H87: =IF($A87="","",'Fig 3 Heron'!H88) ->  | I87: =IF($A87="","",'Fig 4 Walkover'!H88) ->  | J87: =IF($A87="","",'Fig 1 Ballet Leg'!I88+'Fig 2 Kip'!I88+'Fig 3 Heron'!I88+'Fig 4 Walkover'!I88) ->  | AX87: 85 | AY87: 0
A88: =IF(Draw!E88=0,"",Draw!E88) ->  | F88: =IF($A88="","",'Fig 1 Ballet Leg'!H89) ->  | G88: =IF($A88="","",'Fig 2 Kip'!H89) ->  | H88: =IF($A88="","",'Fig 3 Heron'!H89) ->  | I88: =IF($A88="","",'Fig 4 Walkover'!H89) ->  | J88: =IF($A88="","",'Fig 1 Ballet Leg'!I89+'Fig 2 Kip'!I89+'Fig 3 Heron'!I89+'Fig 4 Walkover'!I89) ->  | AX88: 86 | AY88: 0
A89: =IF(Draw!E89=0,"",Draw!E89) ->  | F89: =IF($A89="","",'Fig 1 Ballet Leg'!H90) ->  | G89: =IF($A89="","",'Fig 2 Kip'!H90) ->  | H89: =IF($A89="","",'Fig 3 Heron'!H90) ->  | I89: =IF($A89="","",'Fig 4 Walkover'!H90) ->  | J89: =IF($A89="","",'Fig 1 Ballet Leg'!I90+'Fig 2 Kip'!I90+'Fig 3 Heron'!I90+'Fig 4 Walkover'!I90) ->  | AX89: 87 | AY89: 0
A90: =IF(Draw!E90=0,"",Draw!E90) ->  | F90: =IF($A90="","",'Fig 1 Ballet Leg'!H91) ->  | G90: =IF($A90="","",'Fig 2 Kip'!H91) ->  | H90: =IF($A90="","",'Fig 3 Heron'!H91) ->  | I90: =IF($A90="","",'Fig 4 Walkover'!H91) ->  | J90: =IF($A90="","",'Fig 1 Ballet Leg'!I91+'Fig 2 Kip'!I91+'Fig 3 Heron'!I91+'Fig 4 Walkover'!I91) ->  | AX90: 88 | AY90: 0
A91: =IF(Draw!E91=0,"",Draw!E91) ->  | F91: =IF($A91="","",'Fig 1 Ballet Leg'!H92) ->  | G91: =IF($A91="","",'Fig 2 Kip'!H92) ->  | H91: =IF($A91="","",'Fig 3 Heron'!H92) ->  | I91: =IF($A91="","",'Fig 4 Walkover'!H92) ->  | J91: =IF($A91="","",'Fig 1 Ballet Leg'!I92+'Fig 2 Kip'!I92+'Fig 3 Heron'!I92+'Fig 4 Walkover'!I92) ->  | AX91: 89 | AY91: 0
A92: =IF(Draw!E92=0,"",Draw!E92) ->  | F92: =IF($A92="","",'Fig 1 Ballet Leg'!H93) ->  | G92: =IF($A92="","",'Fig 2 Kip'!H93) ->  | H92: =IF($A92="","",'Fig 3 Heron'!H93) ->  | I92: =IF($A92="","",'Fig 4 Walkover'!H93) ->  | J92: =IF($A92="","",'Fig 1 Ballet Leg'!I93+'Fig 2 Kip'!I93+'Fig 3 Heron'!I93+'Fig 4 Walkover'!I93) ->  | AX92: 90 | AY92: 0
A93: =IF(Draw!E93=0,"",Draw!E93) ->  | F93: =IF($A93="","",'Fig 1 Ballet Leg'!H94) ->  | G93: =IF($A93="","",'Fig 2 Kip'!H94) ->  | H93: =IF($A93="","",'Fig 3 Heron'!H94) ->  | I93: =IF($A93="","",'Fig 4 Walkover'!H94) ->  | J93: =IF($A93="","",'Fig 1 Ballet Leg'!I94+'Fig 2 Kip'!I94+'Fig 3 Heron'!I94+'Fig 4 Walkover'!I94) ->  | AX93: 91 | AY93: 0
A94: =IF(Draw!E94=0,"",Draw!E94) ->  | F94: =IF($A94="","",'Fig 1 Ballet Leg'!H95) ->  | G94: =IF($A94="","",'Fig 2 Kip'!H95) ->  | H94: =IF($A94="","",'Fig 3 Heron'!H95) ->  | I94: =IF($A94="","",'Fig 4 Walkover'!H95) ->  | J94: =IF($A94="","",'Fig 1 Ballet Leg'!I95+'Fig 2 Kip'!I95+'Fig 3 Heron'!I95+'Fig 4 Walkover'!I95) ->  | AX94: 92 | AY94: 0
A95: =IF(Draw!E95=0,"",Draw!E95) ->  | F95: =IF($A95="","",'Fig 1 Ballet Leg'!H96) ->  | G95: =IF($A95="","",'Fig 2 Kip'!H96) ->  | H95: =IF($A95="","",'Fig 3 Heron'!H96) ->  | I95: =IF($A95="","",'Fig 4 Walkover'!H96) ->  | J95: =IF($A95="","",'Fig 1 Ballet Leg'!I96+'Fig 2 Kip'!I96+'Fig 3 Heron'!I96+'Fig 4 Walkover'!I96) ->  | AX95: 93 | AY95: 0
A96: =IF(Draw!E96=0,"",Draw!E96) ->  | F96: =IF($A96="","",'Fig 1 Ballet Leg'!H97) ->  | G96: =IF($A96="","",'Fig 2 Kip'!H97) ->  | H96: =IF($A96="","",'Fig 3 Heron'!H97) ->  | I96: =IF($A96="","",'Fig 4 Walkover'!H97) ->  | J96: =IF($A96="","",'Fig 1 Ballet Leg'!I97+'Fig 2 Kip'!I97+'Fig 3 Heron'!I97+'Fig 4 Walkover'!I97) ->  | AX96: 94 | AY96: 0
A97: =IF(Draw!E97=0,"",Draw!E97) ->  | F97: =IF($A97="","",'Fig 1 Ballet Leg'!H98) ->  | G97: =IF($A97="","",'Fig 2 Kip'!H98) ->  | H97: =IF($A97="","",'Fig 3 Heron'!H98) ->  | I97: =IF($A97="","",'Fig 4 Walkover'!H98) ->  | J97: =IF($A97="","",'Fig 1 Ballet Leg'!I98+'Fig 2 Kip'!I98+'Fig 3 Heron'!I98+'Fig 4 Walkover'!I98) ->  | AX97: 95 | AY97: 0
A98: =IF(Draw!E98=0,"",Draw!E98) ->  | F98: =IF($A98="","",'Fig 1 Ballet Leg'!H99) ->  | G98: =IF($A98="","",'Fig 2 Kip'!H99) ->  | H98: =IF($A98="","",'Fig 3 Heron'!H99) ->  | I98: =IF($A98="","",'Fig 4 Walkover'!H99) ->  | J98: =IF($A98="","",'Fig 1 Ballet Leg'!I99+'Fig 2 Kip'!I99+'Fig 3 Heron'!I99+'Fig 4 Walkover'!I99) ->  | AX98: 96 | AY98: 0
A99: =IF(Draw!E99=0,"",Draw!E99) ->  | F99: =IF($A99="","",'Fig 1 Ballet Leg'!H100) ->  | G99: =IF($A99="","",'Fig 2 Kip'!H100) ->  | H99: =IF($A99="","",'Fig 3 Heron'!H100) ->  | I99: =IF($A99="","",'Fig 4 Walkover'!H100) ->  | J99: =IF($A99="","",'Fig 1 Ballet Leg'!I100+'Fig 2 Kip'!I100+'Fig 3 Heron'!I100+'Fig 4 Walkover'!I100) ->  | AX99: 97 | AY99: 0
A100: =IF(Draw!E100=0,"",Draw!E100) ->  | F100: =IF($A100="","",'Fig 1 Ballet Leg'!H101) ->  | G100: =IF($A100="","",'Fig 2 Kip'!H101) ->  | H100: =IF($A100="","",'Fig 3 Heron'!H101) ->  | I100: =IF($A100="","",'Fig 4 Walkover'!H101) ->  | J100: =IF($A100="","",'Fig 1 Ballet Leg'!I101+'Fig 2 Kip'!I101+'Fig 3 Heron'!I101+'Fig 4 Walkover'!I101) ->  | AX100: 98 | AY100: 0
A101: =IF(Draw!E101=0,"",Draw!E101) ->  | F101: =IF($A101="","",'Fig 1 Ballet Leg'!H102) ->  | G101: =IF($A101="","",'Fig 2 Kip'!H102) ->  | H101: =IF($A101="","",'Fig 3 Heron'!H102) ->  | I101: =IF($A101="","",'Fig 4 Walkover'!H102) ->  | J101: =IF($A101="","",'Fig 1 Ballet Leg'!I102+'Fig 2 Kip'!I102+'Fig 3 Heron'!I102+'Fig 4 Walkover'!I102) ->  | AX101: 99 | AY101: 0
A102: =IF(Draw!E102=0,"",Draw!E102) ->  | F102: =IF($A102="","",'Fig 1 Ballet Leg'!H103) ->  | G102: =IF($A102="","",'Fig 2 Kip'!H103) ->  | H102: =IF($A102="","",'Fig 3 Heron'!H103) ->  | I102: =IF($A102="","",'Fig 4 Walkover'!H103) ->  | J102: =IF($A102="","",'Fig 1 Ballet Leg'!I103+'Fig 2 Kip'!I103+'Fig 3 Heron'!I103+'Fig 4 Walkover'!I103) ->  | AX102: 100 | AY102: 0
A103: =IF(Draw!E103=0,"",Draw!E103) ->  | F103: =IF($A103="","",'Fig 1 Ballet Leg'!H104) ->  | G103: =IF($A103="","",'Fig 2 Kip'!H104) ->  | H103: =IF($A103="","",'Fig 3 Heron'!H104) ->  | I103: =IF($A103="","",'Fig 4 Walkover'!H104) ->  | J103: =IF($A103="","",'Fig 1 Ballet Leg'!I104+'Fig 2 Kip'!I104+'Fig 3 Heron'!I104+'Fig 4 Walkover'!I104) -> 
A104: =IF(Draw!E104=0,"",Draw!E104) ->  | F104: =IF($A104="","",'Fig 1 Ballet Leg'!H105) ->  | G104: =IF($A104="","",'Fig 2 Kip'!H105) ->  | H104: =IF($A104="","",'Fig 3 Heron'!H105) ->  | I104: =IF($A104="","",'Fig 4 Walkover'!H105) ->  | J104: =IF($A104="","",'Fig 1 Ballet Leg'!I105+'Fig 2 Kip'!I105+'Fig 3 Heron'!I105+'Fig 4 Walkover'!I105) -> 
A105: =IF(Draw!E105=0,"",Draw!E105) ->  | F105: =IF($A105="","",'Fig 1 Ballet Leg'!H106) ->  | G105: =IF($A105="","",'Fig 2 Kip'!H106) ->  | H105: =IF($A105="","",'Fig 3 Heron'!H106) ->  | I105: =IF($A105="","",'Fig 4 Walkover'!H106) ->  | J105: =IF($A105="","",'Fig 1 Ballet Leg'!I106+'Fig 2 Kip'!I106+'Fig 3 Heron'!I106+'Fig 4 Walkover'!I106) -> 
A106: =IF(Draw!E106=0,"",Draw!E106) ->  | F106: =IF($A106="","",'Fig 1 Ballet Leg'!H107) ->  | G106: =IF($A106="","",'Fig 2 Kip'!H107) ->  | H106: =IF($A106="","",'Fig 3 Heron'!H107) ->  | I106: =IF($A106="","",'Fig 4 Walkover'!H107) ->  | J106: =IF($A106="","",'Fig 1 Ballet Leg'!I107+'Fig 2 Kip'!I107+'Fig 3 Heron'!I107+'Fig 4 Walkover'!I107) -> 
A107: =IF(Draw!E107=0,"",Draw!E107) ->  | F107: =IF($A107="","",'Fig 1 Ballet Leg'!H108) ->  | G107: =IF($A107="","",'Fig 2 Kip'!H108) ->  | H107: =IF($A107="","",'Fig 3 Heron'!H108) ->  | I107: =IF($A107="","",'Fig 4 Walkover'!H108) ->  | J107: =IF($A107="","",'Fig 1 Ballet Leg'!I108+'Fig 2 Kip'!I108+'Fig 3 Heron'!I108+'Fig 4 Walkover'!I108) -> 
A108: =IF(Draw!E108=0,"",Draw!E108) ->  | F108: =IF($A108="","",'Fig 1 Ballet Leg'!H109) ->  | G108: =IF($A108="","",'Fig 2 Kip'!H109) ->  | H108: =IF($A108="","",'Fig 3 Heron'!H109) ->  | I108: =IF($A108="","",'Fig 4 Walkover'!H109) ->  | J108: =IF($A108="","",'Fig 1 Ballet Leg'!I109+'Fig 2 Kip'!I109+'Fig 3 Heron'!I109+'Fig 4 Walkover'!I109) -> 
A109: =IF(Draw!E109=0,"",Draw!E109) ->  | F109: =IF($A109="","",'Fig 1 Ballet Leg'!H110) ->  | G109: =IF($A109="","",'Fig 2 Kip'!H110) ->  | H109: =IF($A109="","",'Fig 3 Heron'!H110) ->  | I109: =IF($A109="","",'Fig 4 Walkover'!H110) ->  | J109: =IF($A109="","",'Fig 1 Ballet Leg'!I110+'Fig 2 Kip'!I110+'Fig 3 Heron'!I110+'Fig 4 Walkover'!I110) -> 
A110: =IF(Draw!E110=0,"",Draw!E110) ->  | F110: =IF($A110="","",'Fig 1 Ballet Leg'!H111) ->  | G110: =IF($A110="","",'Fig 2 Kip'!H111) ->  | H110: =IF($A110="","",'Fig 3 Heron'!H111) ->  | I110: =IF($A110="","",'Fig 4 Walkover'!H111) ->  | J110: =IF($A110="","",'Fig 1 Ballet Leg'!I111+'Fig 2 Kip'!I111+'Fig 3 Heron'!I111+'Fig 4 Walkover'!I111) -> 
A111: =IF(Draw!E111=0,"",Draw!E111) ->  | F111: =IF($A111="","",'Fig 1 Ballet Leg'!H112) ->  | G111: =IF($A111="","",'Fig 2 Kip'!H112) ->  | H111: =IF($A111="","",'Fig 3 Heron'!H112) ->  | I111: =IF($A111="","",'Fig 4 Walkover'!H112) ->  | J111: =IF($A111="","",'Fig 1 Ballet Leg'!I112+'Fig 2 Kip'!I112+'Fig 3 Heron'!I112+'Fig 4 Walkover'!I112) -> 
A112: =IF(Draw!E112=0,"",Draw!E112) ->  | F112: =IF($A112="","",'Fig 1 Ballet Leg'!H113) ->  | G112: =IF($A112="","",'Fig 2 Kip'!H113) ->  | H112: =IF($A112="","",'Fig 3 Heron'!H113) ->  | I112: =IF($A112="","",'Fig 4 Walkover'!H113) ->  | J112: =IF($A112="","",'Fig 1 Ballet Leg'!I113+'Fig 2 Kip'!I113+'Fig 3 Heron'!I113+'Fig 4 Walkover'!I113) -> 
A113: =IF(Draw!E113=0,"",Draw!E113) ->  | F113: =IF($A113="","",'Fig 1 Ballet Leg'!H114) ->  | G113: =IF($A113="","",'Fig 2 Kip'!H114) ->  | H113: =IF($A113="","",'Fig 3 Heron'!H114) ->  | I113: =IF($A113="","",'Fig 4 Walkover'!H114) ->  | J113: =IF($A113="","",'Fig 1 Ballet Leg'!I114+'Fig 2 Kip'!I114+'Fig 3 Heron'!I114+'Fig 4 Walkover'!I114) -> 
A114: =IF(Draw!E114=0,"",Draw!E114) ->  | F114: =IF($A114="","",'Fig 1 Ballet Leg'!H115) ->  | G114: =IF($A114="","",'Fig 2 Kip'!H115) ->  | H114: =IF($A114="","",'Fig 3 Heron'!H115) ->  | I114: =IF($A114="","",'Fig 4 Walkover'!H115) ->  | J114: =IF($A114="","",'Fig 1 Ballet Leg'!I115+'Fig 2 Kip'!I115+'Fig 3 Heron'!I115+'Fig 4 Walkover'!I115) -> 
A115: =IF(Draw!E115=0,"",Draw!E115) ->  | F115: =IF($A115="","",'Fig 1 Ballet Leg'!H116) ->  | G115: =IF($A115="","",'Fig 2 Kip'!H116) ->  | H115: =IF($A115="","",'Fig 3 Heron'!H116) ->  | I115: =IF($A115="","",'Fig 4 Walkover'!H116) ->  | J115: =IF($A115="","",'Fig 1 Ballet Leg'!I116+'Fig 2 Kip'!I116+'Fig 3 Heron'!I116+'Fig 4 Walkover'!I116) -> 
A116: =IF(Draw!E116=0,"",Draw!E116) ->  | F116: =IF($A116="","",'Fig 1 Ballet Leg'!H117) ->  | G116: =IF($A116="","",'Fig 2 Kip'!H117) ->  | H116: =IF($A116="","",'Fig 3 Heron'!H117) ->  | I116: =IF($A116="","",'Fig 4 Walkover'!H117) ->  | J116: =IF($A116="","",'Fig 1 Ballet Leg'!I117+'Fig 2 Kip'!I117+'Fig 3 Heron'!I117+'Fig 4 Walkover'!I117) -> 
A117: =IF(Draw!E117=0,"",Draw!E117) ->  | F117: =IF($A117="","",'Fig 1 Ballet Leg'!H118) ->  | G117: =IF($A117="","",'Fig 2 Kip'!H118) ->  | H117: =IF($A117="","",'Fig 3 Heron'!H118) ->  | I117: =IF($A117="","",'Fig 4 Walkover'!H118) ->  | J117: =IF($A117="","",'Fig 1 Ballet Leg'!I118+'Fig 2 Kip'!I118+'Fig 3 Heron'!I118+'Fig 4 Walkover'!I118) -> 
A118: =IF(Draw!E118=0,"",Draw!E118) ->  | F118: =IF($A118="","",'Fig 1 Ballet Leg'!H119) ->  | G118: =IF($A118="","",'Fig 2 Kip'!H119) ->  | H118: =IF($A118="","",'Fig 3 Heron'!H119) ->  | I118: =IF($A118="","",'Fig 4 Walkover'!H119) ->  | J118: =IF($A118="","",'Fig 1 Ballet Leg'!I119+'Fig 2 Kip'!I119+'Fig 3 Heron'!I119+'Fig 4 Walkover'!I119) -> 
A119: =IF(Draw!E119=0,"",Draw!E119) ->  | F119: =IF($A119="","",'Fig 1 Ballet Leg'!H120) ->  | G119: =IF($A119="","",'Fig 2 Kip'!H120) ->  | H119: =IF($A119="","",'Fig 3 Heron'!H120) ->  | I119: =IF($A119="","",'Fig 4 Walkover'!H120) ->  | J119: =IF($A119="","",'Fig 1 Ballet Leg'!I120+'Fig 2 Kip'!I120+'Fig 3 Heron'!I120+'Fig 4 Walkover'!I120) -> 
A120: =IF(Draw!E120=0,"",Draw!E120) ->  | F120: =IF($A120="","",'Fig 1 Ballet Leg'!H121) ->  | G120: =IF($A120="","",'Fig 2 Kip'!H121) ->  | H120: =IF($A120="","",'Fig 3 Heron'!H121) ->  | I120: =IF($A120="","",'Fig 4 Walkover'!H121) ->  | J120: =IF($A120="","",'Fig 1 Ballet Leg'!I121+'Fig 2 Kip'!I121+'Fig 3 Heron'!I121+'Fig 4 Walkover'!I121) -> 
A121: =IF(Draw!E121=0,"",Draw!E121) ->  | F121: =IF($A121="","",'Fig 1 Ballet Leg'!H122) ->  | G121: =IF($A121="","",'Fig 2 Kip'!H122) ->  | H121: =IF($A121="","",'Fig 3 Heron'!H122) ->  | I121: =IF($A121="","",'Fig 4 Walkover'!H122) ->  | J121: =IF($A121="","",'Fig 1 Ballet Leg'!I122+'Fig 2 Kip'!I122+'Fig 3 Heron'!I122+'Fig 4 Walkover'!I122) -> 
A122: =IF(Draw!E122=0,"",Draw!E122) ->  | F122: =IF($A122="","",'Fig 1 Ballet Leg'!H123) ->  | G122: =IF($A122="","",'Fig 2 Kip'!H123) ->  | H122: =IF($A122="","",'Fig 3 Heron'!H123) ->  | I122: =IF($A122="","",'Fig 4 Walkover'!H123) ->  | J122: =IF($A122="","",'Fig 1 Ballet Leg'!I123+'Fig 2 Kip'!I123+'Fig 3 Heron'!I123+'Fig 4 Walkover'!I123) -> 
A123: =IF(Draw!E123=0,"",Draw!E123) ->  | F123: =IF($A123="","",'Fig 1 Ballet Leg'!H124) ->  | G123: =IF($A123="","",'Fig 2 Kip'!H124) ->  | H123: =IF($A123="","",'Fig 3 Heron'!H124) ->  | I123: =IF($A123="","",'Fig 4 Walkover'!H124) ->  | J123: =IF($A123="","",'Fig 1 Ballet Leg'!I124+'Fig 2 Kip'!I124+'Fig 3 Heron'!I124+'Fig 4 Walkover'!I124) -> 
A124: =IF(Draw!E124=0,"",Draw!E124) ->  | F124: =IF($A124="","",'Fig 1 Ballet Leg'!H125) ->  | G124: =IF($A124="","",'Fig 2 Kip'!H125) ->  | H124: =IF($A124="","",'Fig 3 Heron'!H125) ->  | I124: =IF($A124="","",'Fig 4 Walkover'!H125) ->  | J124: =IF($A124="","",'Fig 1 Ballet Leg'!I125+'Fig 2 Kip'!I125+'Fig 3 Heron'!I125+'Fig 4 Walkover'!I125) -> 
A125: =IF(Draw!E125=0,"",Draw!E125) ->  | F125: =IF($A125="","",'Fig 1 Ballet Leg'!H126) ->  | G125: =IF($A125="","",'Fig 2 Kip'!H126) ->  | H125: =IF($A125="","",'Fig 3 Heron'!H126) ->  | I125: =IF($A125="","",'Fig 4 Walkover'!H126) ->  | J125: =IF($A125="","",'Fig 1 Ballet Leg'!I126+'Fig 2 Kip'!I126+'Fig 3 Heron'!I126+'Fig 4 Walkover'!I126) -> 
A126: =IF(Draw!E126=0,"",Draw!E126) ->  | F126: =IF($A126="","",'Fig 1 Ballet Leg'!H127) ->  | G126: =IF($A126="","",'Fig 2 Kip'!H127) ->  | H126: =IF($A126="","",'Fig 3 Heron'!H127) ->  | I126: =IF($A126="","",'Fig 4 Walkover'!H127) ->  | J126: =IF($A126="","",'Fig 1 Ballet Leg'!I127+'Fig 2 Kip'!I127+'Fig 3 Heron'!I127+'Fig 4 Walkover'!I127) -> 
A127: =IF(Draw!E127=0,"",Draw!E127) ->  | F127: =IF($A127="","",'Fig 1 Ballet Leg'!H128) ->  | G127: =IF($A127="","",'Fig 2 Kip'!H128) ->  | H127: =IF($A127="","",'Fig 3 Heron'!H128) ->  | I127: =IF($A127="","",'Fig 4 Walkover'!H128) ->  | J127: =IF($A127="","",'Fig 1 Ballet Leg'!I128+'Fig 2 Kip'!I128+'Fig 3 Heron'!I128+'Fig 4 Walkover'!I128) -> 
A128: =IF(Draw!E128=0,"",Draw!E128) ->  | F128: =IF($A128="","",'Fig 1 Ballet Leg'!H129) ->  | G128: =IF($A128="","",'Fig 2 Kip'!H129) ->  | H128: =IF($A128="","",'Fig 3 Heron'!H129) ->  | I128: =IF($A128="","",'Fig 4 Walkover'!H129) ->  | J128: =IF($A128="","",'Fig 1 Ballet Leg'!I129+'Fig 2 Kip'!I129+'Fig 3 Heron'!I129+'Fig 4 Walkover'!I129) -> 
A129: =IF(Draw!E129=0,"",Draw!E129) ->  | F129: =IF($A129="","",'Fig 1 Ballet Leg'!H130) ->  | G129: =IF($A129="","",'Fig 2 Kip'!H130) ->  | H129: =IF($A129="","",'Fig 3 Heron'!H130) ->  | I129: =IF($A129="","",'Fig 4 Walkover'!H130) ->  | J129: =IF($A129="","",'Fig 1 Ballet Leg'!I130+'Fig 2 Kip'!I130+'Fig 3 Heron'!I130+'Fig 4 Walkover'!I130) -> 
A130: =IF(Draw!E130=0,"",Draw!E130) ->  | F130: =IF($A130="","",'Fig 1 Ballet Leg'!H131) ->  | G130: =IF($A130="","",'Fig 2 Kip'!H131) ->  | H130: =IF($A130="","",'Fig 3 Heron'!H131) ->  | I130: =IF($A130="","",'Fig 4 Walkover'!H131) ->  | J130: =IF($A130="","",'Fig 1 Ballet Leg'!I131+'Fig 2 Kip'!I131+'Fig 3 Heron'!I131+'Fig 4 Walkover'!I131) -> 
A131: =IF(Draw!E131=0,"",Draw!E131) ->  | F131: =IF($A131="","",'Fig 1 Ballet Leg'!H132) ->  | G131: =IF($A131="","",'Fig 2 Kip'!H132) ->  | H131: =IF($A131="","",'Fig 3 Heron'!H132) ->  | I131: =IF($A131="","",'Fig 4 Walkover'!H132) ->  | J131: =IF($A131="","",'Fig 1 Ballet Leg'!I132+'Fig 2 Kip'!I132+'Fig 3 Heron'!I132+'Fig 4 Walkover'!I132) -> 
A132: =IF(Draw!E132=0,"",Draw!E132) ->  | F132: =IF($A132="","",'Fig 1 Ballet Leg'!H133) ->  | G132: =IF($A132="","",'Fig 2 Kip'!H133) ->  | H132: =IF($A132="","",'Fig 3 Heron'!H133) ->  | I132: =IF($A132="","",'Fig 4 Walkover'!H133) ->  | J132: =IF($A132="","",'Fig 1 Ballet Leg'!I133+'Fig 2 Kip'!I133+'Fig 3 Heron'!I133+'Fig 4 Walkover'!I133) -> 
A133: =IF(Draw!E133=0,"",Draw!E133) ->  | D133: =IF($A133="","",SUM(F133:I133)-J133) ->  | E133: =IF($A133="","",RANK(D133,D$2:D$150)) ->  | F133: =IF($A133="","",'Fig 1 Ballet Leg'!H134) ->  | G133: =IF($A133="","",'Fig 2 Kip'!H134) ->  | H133: =IF($A133="","",'Fig 3 Heron'!H134) ->  | I133: =IF($A133="","",'Fig 4 Walkover'!H134) ->  | J133: =IF($A133="","",'Fig 1 Ballet Leg'!I134+'Fig 2 Kip'!I134+'Fig 3 Heron'!I134+'Fig 4 Walkover'!I134) ->  | K133: =IF($A133="","",IF(A133="","",VLOOKUP(E133,AX$3:AY$102,2,FALSE))) -> 
A134: =IF(Draw!E134=0,"",Draw!E134) ->  | F134: =IF($A134="","",'Fig 1 Ballet Leg'!H135) ->  | G134: =IF($A134="","",'Fig 2 Kip'!H135) ->  | H134: =IF($A134="","",'Fig 3 Heron'!H135) ->  | I134: =IF($A134="","",'Fig 4 Walkover'!H135) ->  | J134: =IF($A134="","",'Fig 1 Ballet Leg'!I135+'Fig 2 Kip'!I135+'Fig 3 Heron'!I135+'Fig 4 Walkover'!I135) -> 
A135: =IF(Draw!E135=0,"",Draw!E135) ->  | F135: =IF($A135="","",'Fig 1 Ballet Leg'!H136) ->  | G135: =IF($A135="","",'Fig 2 Kip'!H136) ->  | H135: =IF($A135="","",'Fig 3 Heron'!H136) ->  | I135: =IF($A135="","",'Fig 4 Walkover'!H136) ->  | J135: =IF($A135="","",'Fig 1 Ballet Leg'!I136+'Fig 2 Kip'!I136+'Fig 3 Heron'!I136+'Fig 4 Walkover'!I136) -> 
A136: =IF(Draw!E136=0,"",Draw!E136) ->  | F136: =IF($A136="","",'Fig 1 Ballet Leg'!H137) ->  | G136: =IF($A136="","",'Fig 2 Kip'!H137) ->  | H136: =IF($A136="","",'Fig 3 Heron'!H137) ->  | I136: =IF($A136="","",'Fig 4 Walkover'!H137) ->  | J136: =IF($A136="","",'Fig 1 Ballet Leg'!I137+'Fig 2 Kip'!I137+'Fig 3 Heron'!I137+'Fig 4 Walkover'!I137) -> 
A137: =IF(Draw!E137=0,"",Draw!E137) ->  | F137: =IF($A137="","",'Fig 1 Ballet Leg'!H138) ->  | G137: =IF($A137="","",'Fig 2 Kip'!H138) ->  | H137: =IF($A137="","",'Fig 3 Heron'!H138) ->  | I137: =IF($A137="","",'Fig 4 Walkover'!H138) ->  | J137: =IF($A137="","",'Fig 1 Ballet Leg'!I138+'Fig 2 Kip'!I138+'Fig 3 Heron'!I138+'Fig 4 Walkover'!I138) -> 
A138: =IF(Draw!E138=0,"",Draw!E138) ->  | F138: =IF($A138="","",'Fig 1 Ballet Leg'!H139) ->  | G138: =IF($A138="","",'Fig 2 Kip'!H139) ->  | H138: =IF($A138="","",'Fig 3 Heron'!H139) ->  | I138: =IF($A138="","",'Fig 4 Walkover'!H139) ->  | J138: =IF($A138="","",'Fig 1 Ballet Leg'!I139+'Fig 2 Kip'!I139+'Fig 3 Heron'!I139+'Fig 4 Walkover'!I139) -> 
A139: =IF(Draw!E139=0,"",Draw!E139) ->  | F139: =IF($A139="","",'Fig 1 Ballet Leg'!H140) ->  | G139: =IF($A139="","",'Fig 2 Kip'!H140) ->  | H139: =IF($A139="","",'Fig 3 Heron'!H140) ->  | I139: =IF($A139="","",'Fig 4 Walkover'!H140) ->  | J139: =IF($A139="","",'Fig 1 Ballet Leg'!I140+'Fig 2 Kip'!I140+'Fig 3 Heron'!I140+'Fig 4 Walkover'!I140) -> 
A140: =IF(Draw!E140=0,"",Draw!E140) ->  | F140: =IF($A140="","",'Fig 1 Ballet Leg'!H141) ->  | G140: =IF($A140="","",'Fig 2 Kip'!H141) ->  | H140: =IF($A140="","",'Fig 3 Heron'!H141) ->  | I140: =IF($A140="","",'Fig 4 Walkover'!H141) ->  | J140: =IF($A140="","",'Fig 1 Ballet Leg'!I141+'Fig 2 Kip'!I141+'Fig 3 Heron'!I141+'Fig 4 Walkover'!I141) -> 
A141: =IF(Draw!E141=0,"",Draw!E141) ->  | F141: =IF($A141="","",'Fig 1 Ballet Leg'!H142) ->  | G141: =IF($A141="","",'Fig 2 Kip'!H142) ->  | H141: =IF($A141="","",'Fig 3 Heron'!H142) ->  | I141: =IF($A141="","",'Fig 4 Walkover'!H142) ->  | J141: =IF($A141="","",'Fig 1 Ballet Leg'!I142+'Fig 2 Kip'!I142+'Fig 3 Heron'!I142+'Fig 4 Walkover'!I142) -> 
A142: =IF(Draw!E142=0,"",Draw!E142) ->  | F142: =IF($A142="","",'Fig 1 Ballet Leg'!H143) ->  | G142: =IF($A142="","",'Fig 2 Kip'!H143) ->  | H142: =IF($A142="","",'Fig 3 Heron'!H143) ->  | I142: =IF($A142="","",'Fig 4 Walkover'!H143) ->  | J142: =IF($A142="","",'Fig 1 Ballet Leg'!I143+'Fig 2 Kip'!I143+'Fig 3 Heron'!I143+'Fig 4 Walkover'!I143) -> 
A143: =IF(Draw!E143=0,"",Draw!E143) ->  | F143: =IF($A143="","",'Fig 1 Ballet Leg'!H144) ->  | G143: =IF($A143="","",'Fig 2 Kip'!H144) ->  | H143: =IF($A143="","",'Fig 3 Heron'!H144) ->  | I143: =IF($A143="","",'Fig 4 Walkover'!H144) ->  | J143: =IF($A143="","",'Fig 1 Ballet Leg'!I144+'Fig 2 Kip'!I144+'Fig 3 Heron'!I144+'Fig 4 Walkover'!I144) -> 
A144: =IF(Draw!E144=0,"",Draw!E144) ->  | F144: =IF($A144="","",'Fig 1 Ballet Leg'!H145) ->  | G144: =IF($A144="","",'Fig 2 Kip'!H145) ->  | H144: =IF($A144="","",'Fig 3 Heron'!H145) ->  | I144: =IF($A144="","",'Fig 4 Walkover'!H145) ->  | J144: =IF($A144="","",'Fig 1 Ballet Leg'!I145+'Fig 2 Kip'!I145+'Fig 3 Heron'!I145+'Fig 4 Walkover'!I145) -> 
A145: =IF(Draw!E145=0,"",Draw!E145) ->  | F145: =IF($A145="","",'Fig 1 Ballet Leg'!H146) ->  | G145: =IF($A145="","",'Fig 2 Kip'!H146) ->  | H145: =IF($A145="","",'Fig 3 Heron'!H146) ->  | I145: =IF($A145="","",'Fig 4 Walkover'!H146) ->  | J145: =IF($A145="","",'Fig 1 Ballet Leg'!I146+'Fig 2 Kip'!I146+'Fig 3 Heron'!I146+'Fig 4 Walkover'!I146) -> 
A146: =IF(Draw!E146=0,"",Draw!E146) ->  | F146: =IF($A146="","",'Fig 1 Ballet Leg'!H147) ->  | G146: =IF($A146="","",'Fig 2 Kip'!H147) ->  | H146: =IF($A146="","",'Fig 3 Heron'!H147) ->  | I146: =IF($A146="","",'Fig 4 Walkover'!H147) ->  | J146: =IF($A146="","",'Fig 1 Ballet Leg'!I147+'Fig 2 Kip'!I147+'Fig 3 Heron'!I147+'Fig 4 Walkover'!I147) -> 
A147: =IF(Draw!E147=0,"",Draw!E147) ->  | F147: =IF($A147="","",'Fig 1 Ballet Leg'!H148) ->  | G147: =IF($A147="","",'Fig 2 Kip'!H148) ->  | H147: =IF($A147="","",'Fig 3 Heron'!H148) ->  | I147: =IF($A147="","",'Fig 4 Walkover'!H148) ->  | J147: =IF($A147="","",'Fig 1 Ballet Leg'!I148+'Fig 2 Kip'!I148+'Fig 3 Heron'!I148+'Fig 4 Walkover'!I148) -> 
A148: =IF(Draw!E148=0,"",Draw!E148) ->  | F148: =IF($A148="","",'Fig 1 Ballet Leg'!H149) ->  | G148: =IF($A148="","",'Fig 2 Kip'!H149) ->  | H148: =IF($A148="","",'Fig 3 Heron'!H149) ->  | I148: =IF($A148="","",'Fig 4 Walkover'!H149) ->  | J148: =IF($A148="","",'Fig 1 Ballet Leg'!I149+'Fig 2 Kip'!I149+'Fig 3 Heron'!I149+'Fig 4 Walkover'!I149) -> 
A149: =IF(Draw!E149=0,"",Draw!E149) ->  | F149: =IF($A149="","",'Fig 1 Ballet Leg'!H150) ->  | G149: =IF($A149="","",'Fig 2 Kip'!H150) ->  | H149: =IF($A149="","",'Fig 3 Heron'!H150) ->  | I149: =IF($A149="","",'Fig 4 Walkover'!H150) ->  | J149: =IF($A149="","",'Fig 1 Ballet Leg'!I150+'Fig 2 Kip'!I150+'Fig 3 Heron'!I150+'Fig 4 Walkover'!I150) -> 
A150: =IF(Draw!E150=0,"",Draw!E150) ->  | F150: =IF($A150="","",'Fig 1 Ballet Leg'!H151) ->  | G150: =IF($A150="","",'Fig 2 Kip'!H151) ->  | H150: =IF($A150="","",'Fig 3 Heron'!H151) ->  | I150: =IF($A150="","",'Fig 4 Walkover'!H151) ->  | J150: =IF($A150="","",'Fig 1 Ballet Leg'!I151+'Fig 2 Kip'!I151+'Fig 3 Heron'!I151+'Fig 4 Walkover'!I151) -> 
K151: =IF($A151="","",IF(A151="","",VLOOKUP(E151,AX$3:AY$102,2,FALSE))) -> 

Sheet Draw (hidden)
A1: 1 | B1: Bloomington | C1: =RAND() -> 0.2919031102 | G1: School | H1: Name | I1: Draw # | J1: Name | K1: School
A2: Leigha Kraft | B2: Stillwater | C2: =RAND() -> 0.4097173205 | D2: =IF(ISNA(RANK(C2,C$2:C$150,1)),"",RANK(C2,C$2:C$150,1)) -> 18 | E2: =IF(B2<>"",F2,"") -> 1 | F2: 1 | G2: =B2 -> Stillwater | H2: =A2 -> Leigha Kraft | I2: =E2 -> 1 | J2: =IF(ISNA(VLOOKUP(I2,D$2:H$150,5,FALSE)),"",VLOOKUP(I2,D$2:H$150,5,FALSE)) -> Paulina Frayman | K2: =IF(ISNA(VLOOKUP(I2,D$2:G$150,4,FALSE)),"",VLOOKUP(I2,D$2:G$150,4,FALSE)) -> Osseo-Maple Grove | N2: 1 | O2: Leigha Kraft | P2: Stillwater
A3: Erin Wurgler | B3: Stillwater | C3: 0.5677770071 | D3: =IF(ISNA(RANK(C3,C$2:C$150,1)),"",RANK(C3,C$2:C$150,1)) -> 21 | E3: =IF(B3<>"",F3,"") -> 2 | F3: 2 | G3: =B3 -> Stillwater | H3: =A3 -> Erin Wurgler | I3: =E3 -> 2 | J3: =IF(ISNA(VLOOKUP(I3,D$2:H$150,5,FALSE)),"",VLOOKUP(I3,D$2:H$150,5,FALSE)) -> Kati Knox | K3: =IF(ISNA(VLOOKUP(I3,D$2:G$150,4,FALSE)),"",VLOOKUP(I3,D$2:G$150,4,FALSE)) -> Osseo-Maple Grove | N3: 2 | O3: Erin Wurgler | P3: Stillwater
A4: Kati Knox | B4: Osseo-Maple Grove | C4: 0.03454971988 | D4: 2 | E4: 3 | F4: 3 | G4: Osseo-Maple Grove | H4: Kati Knox | I4: 3 | J4: Kyra Will | K4: Stillwater | N4: 3 | O4: Kati Knox | P4: Osseo-Maple Grove
A5: Molly Goheen | B5: Stillwater | C5: 0.1518527752 | D5: 8 | E5: 4 | F5: 4 | G5: Stillwater | H5: Molly Goheen | I5: 4 | J5: Jillian Kulzer | K5: Stillwater | N5: 4 | O5: Molly Goheen | P5: Stillwater
A6: Hannah Bliss | B6: Stillwater | C6: 0.2511909177 | D6: 11 | E6: 5 | F6: 5 | G6: Stillwater | H6: Hannah Bliss | I6: 5 | J6: Alexis Montgomery | K6: Stillwater | N6: 5 | O6: Hannah Bliss | P6: Stillwater
A7: Kyra Will | B7: Stillwater | C7: 0.03594610966 | D7: 3 | E7: 6 | F7: 6 | G7: Stillwater | H7: Kyra Will | I7: 6 | J7: Bella Formico | K7: Stillwater | N7: 6 | O7: Kyra Will | P7: Stillwater
A8: Anika Wright | B8: Stillwater | C8: 0.1068092718 | D8: 7 | E8: 7 | F8: 7 | G8: Stillwater | H8: Anika Wright | I8: 7 | J8: Anika Wright | K8: Stillwater | N8: 7 | O8: Anika Wright | P8: Stillwater
A9: Mikaela Crosby | B9: Osseo-Maple Grove | C9: 0.4892185866 | D9: 19 | E9: 8 | F9: 8 | G9: Osseo-Maple Grove | H9: Mikaela Crosby | I9: 8 | J9: Molly Goheen | K9: Stillwater | N9: 8 | O9: Mikaela Crosby | P9: Osseo-Maple Grove
A10: Annika Desphande | B10: Osseo-Maple Grove | C10: 0.3687972754 | D10: 14 | E10: 9 | F10: 9 | G10: Osseo-Maple Grove | H10: Annika Desphande | I10: 9 | J10: Chloe Knuteson | K10: Stillwater | N10: 9 | O10: Annika Desphande | P10: Osseo-Maple Grove
A11: Savanna Woods | B11: Osseo-Maple Grove | C11: 0.7959982236 | D11: 23 | E11: 10 | F11: 10 | G11: Osseo-Maple Grove | H11: Savanna Woods | I11: 10 | J11: Student Names: | K11: Edina | N11: 10 | O11: Savanna Woods | P11: Osseo-Maple Grove
A12: Adelee Wrightsman | B12: Stillwater | C12: 0.8721268233 | D12: 24 | E12: 11 | F12: 11 | G12: Stillwater | H12: Adelee Wrightsman | I12: 11 | J12: Hannah Bliss | K12: Stillwater | N12: 11 | O12: Adelee Wrightsman | P12: Stillwater
A13: Kennedy Tope | B13: Stillwater | C13: 0.9830808036 | D13: 28 | E13: 12 | F13: 12 | G13: Stillwater | H13: Kennedy Tope | I13: 12 | J13: Lauren Guinee | K13: Stillwater | N13: 12 | O13: Kennedy Tope | P13: Stillwater
A14: Jillian Kulzer | B14: Stillwater | C14: 0.04773987476 | D14: 4 | E14: 13 | F14: 13 | G14: Stillwater | H14: Jillian Kulzer | I14: 13 | J14: Elly Blair | K14: Stillwater | N14: 13 | O14: Jillian Kulzer | P14: Stillwater
A15: Chloe Knuteson | B15: Stillwater | C15: 0.1783648602 | D15: 9 | E15: 14 | F15: 14 | G15: Stillwater | H15: Chloe Knuteson | I15: 14 | J15: Annika Desphande | K15: Osseo-Maple Grove | N15: 14 | O15: Chloe Knuteson | P15: Stillwater
A16: Nina Djukelic | B16: Stillwater | C16: 0.5441083987 | D16: 20 | E16: 15 | F16: 15 | G16: Stillwater | H16: Nina Djukelic | I16: 15 | J16: Nissa Wilcox | K16: Stillwater | N16: 15 | O16: Nina Djukelic | P16: Stillwater
A17: Samantha MacDonald | B17: Stillwater | C17: 0.9108407035 | D17: 26 | E17: 16 | F17: 16 | G17: Stillwater | H17: Samantha MacDonald | I17: 16 | J17: Berit Serle | K17: Stillwater | N17: 16 | O17: Samantha MacDonald | P17: Stillwater
A18: Maylin Kennedy | B18: Stillwater | C18: 0.7681497524 | D18: 22 | E18: 17 | F18: 17 | G18: Stillwater | H18: Maylin Kennedy | I18: 17 | J18: Kya Hodgdon | K18: Stillwater | N18: 17 | O18: Maylin Kennedy | P18: Stillwater
A19: Paulina Frayman | B19: Osseo-Maple Grove | C19: 0.03274778316 | D19: 1 | E19: 18 | F19: 18 | G19: Osseo-Maple Grove | H19: Paulina Frayman | I19: 18 | J19: Leigha Kraft | K19: Stillwater | N19: 18 | O19: Paulina Frayman | P19: Osseo-Maple Grove
A20: Student Names: | B20: Edina | C20: 0.2093586187 | D20: 10 | E20: 19 | F20: 19 | G20: Edina | H20: Student Names: | I20: 19 | J20: Mikaela Crosby | K20: Osseo-Maple Grove | N20: 19 | O20: Student Names: | P20: Edina
A21: Nissa Wilcox | B21: Stillwater | C21: 0.3824188526 | D21: 15 | E21: 20 | F21: 20 | G21: Stillwater | H21: Nissa Wilcox | I21: 20 | J21: Nina Djukelic | K21: Stillwater | N21: 20 | O21: Nissa Wilcox | P21: Stillwater
A22: Maddie Stricker | B22: Stillwater | C22: 0.971241905 | D22: 27 | E22: 21 | F22: 21 | G22: Stillwater | H22: Maddie Stricker | I22: 21 | J22: Erin Wurgler | K22: Stillwater | N22: 21 | O22: Maddie Stricker | P22: Stillwater
A23: Berit Serle | B23: Stillwater | C23: 0.3856300353 | D23: 16 | E23: 22 | F23: 22 | G23: Stillwater | H23: Berit Serle | I23: 22 | J23: Maylin Kennedy | K23: Stillwater | N23: 22 | O23: Berit Serle | P23: Stillwater
A24: Alexis Montgomery | B24: Stillwater | C24: 0.05896454231 | D24: 5 | E24: 23 | F24: 23 | G24: Stillwater | H24: Alexis Montgomery | I24: 23 | J24: Savanna Woods | K24: Osseo-Maple Grove | N24: 23 | O24: Alexis Montgomery | P24: Stillwater
A25: Elly Blair | B25: Stillwater | C25: 0.3154679782 | D25: 13 | E25: 24 | F25: 24 | G25: Stillwater | H25: Elly Blair | I25: 24 | J25: Adelee Wrightsman | K25: Stillwater | N25: 24 | O25: Elly Blair | P25: Stillwater
A26: Kya Hodgdon | B26: Stillwater | C26: 0.3968646911 | D26: 17 | E26: 25 | F26: 25 | G26: Stillwater | H26: Kya Hodgdon | I26: 25 | J26: Hayeon Lee | K26: Stillwater | N26: 25 | O26: Kya Hodgdon | P26: Stillwater
A27: Bella Formico | B27: Stillwater | C27: 0.0807410363 | D27: 6 | E27: 26 | F27: 26 | G27: Stillwater | H27: Bella Formico | I27: 26 | J27: Samantha MacDonald | K27: Stillwater | N27: 26 | O27: Bella Formico | P27: Stillwater
A28: Hayeon Lee | B28: Stillwater | C28: 0.9105389564 | D28: 25 | E28: 27 | F28: 27 | G28: Stillwater | H28: Hayeon Lee | I28: 27 | J28: Maddie Stricker | K28: Stillwater | N28: 27 | O28: Hayeon Lee | P28: Stillwater
A29: Lauren Guinee | B29: Stillwater | C29: 0.3126945094 | D29: 12 | E29: 28 | F29: 28 | G29: Stillwater | H29: Lauren Guinee | I29: 28 | J29: Kennedy Tope | K29: Stillwater | N29: 28 | O29: Lauren Guinee | P29: Stillwater
F30: 29 | G30: 0 | H30: 0 | J30: 0 | K30: 0
F31: 30 | G31: 0 | H31: 0 | J31: 0 | K31: 0
E32: =IF(B32<>"",F32,"") ->  | F32: 31 | G32: 0 | H32: 0 | J32: 0 | K32: 0
F33: 32 | G33: 0 | H33: 0 | J33: 0 | K33: 0
F34: 33 | G34: 0 | H34: 0 | J34: 0 | K34: 0
F35: 34 | G35: 0 | H35: 0 | J35: 0 | K35: 0
F36: 35 | G36: 0 | H36: 0 | J36: 0 | K36: 0
F37: 36 | G37: 0 | H37: 0 | J37: 0 | K37: 0
F38: 37 | G38: 0 | H38: 0 | J38: 0 | K38: 0
F39: 38 | G39: 0 | H39: 0 | J39: 0 | K39: 0
F40: 39 | G40: 0 | H40: 0 | J40: 0 | K40: 0
F41: 40 | G41: 0 | H41: 0 | J41: 0 | K41: 0
F42: 41 | G42: 0 | H42: 0 | J42: 0 | K42: 0
F43: 42 | G43: 0 | H43: 0 | J43: 0 | K43: 0
F44: 43 | G44: 0 | H44: 0 | J44: 0 | K44: 0
F45: 44 | G45: 0 | H45: 0 | J45: 0 | K45: 0
F46: 45 | G46: 0 | H46: 0 | J46: 0 | K46: 0
F47: 46 | G47: 0 | H47: 0 | J47: 0 | K47: 0
F48: 47 | G48: 0 | H48: 0 | J48: 0 | K48: 0
F49: 48 | G49: 0 | H49: 0 | J49: 0 | K49: 0
F50: 49 | G50: 0 | H50: 0 | J50: 0 | K50: 0
F51: 50 | G51: 0 | H51: 0 | J51: 0 | K51: 0
F52: 51 | G52: 0 | H52: 0 | J52: 0 | K52: 0
F53: 52 | G53: 0 | H53: 0 | J53: 0 | K53: 0
F54: 53 | G54: 0 | H54: 0 | J54: 0 | K54: 0
F55: 54 | G55: 0 | H55: 0 | J55: 0 | K55: 0
F56: 55 | G56: 0 | H56: 0 | J56: 0 | K56: 0
F57: 56 | G57: 0 | H57: 0 | J57: 0 | K57: 0
F58: 57 | G58: 0 | H58: 0 | J58: 0 | K58: 0
F59: 58 | G59: 0 | H59: 0 | J59: 0 | K59: 0
F60: 59 | G60: 0 | H60: 0 | J60: 0 | K60: 0
F61: 60 | G61: 0 | H61: 0 | J61: 0 | K61: 0
F62: 61 | G62: 0 | H62: 0 | J62: 0 | K62: 0
F63: 62 | G63: 0 | H63: 0 | J63: 0 | K63: 0
F64: 63 | G64: 0 | H64: 0 | J64: 0 | K64: 0
F65: 64 | G65: 0 | H65: 0 | J65: 0 | K65: 0
F66: 65 | G66: 0 | H66: 0 | J66: 0 | K66: 0
F67: 66 | G67: =B67 -> 0 | H67: =A67 -> 0 | I67: =E67 ->  | J67: =IF(ISNA(VLOOKUP(I67,D$2:H$150,5,FALSE)),"",VLOOKUP(I67,D$2:H$150,5,FALSE)) -> 0 | K67: =IF(ISNA(VLOOKUP(I67,D$2:G$150,4,FALSE)),"",VLOOKUP(I67,D$2:G$150,4,FALSE)) -> 0
F68: 67 | G68: 0 | H68: 0 | J68: 0 | K68: 0
F69: 68 | G69: 0 | H69: 0 | J69: 0 | K69: 0
F70: 69 | G70: 0 | H70: 0 | J70: 0 | K70: 0
F71: 70 | G71: 0 | H71: 0 | J71: 0 | K71: 0
F72: 71 | G72: 0 | H72: 0 | J72: 0 | K72: 0
F73: 72 | G73: 0 | H73: 0 | J73: 0 | K73: 0
F74: 73 | G74: 0 | H74: 0 | J74: 0 | K74: 0
F75: 74 | G75: 0 | H75: 0 | J75: 0 | K75: 0
F76: 75 | G76: 0 | H76: 0 | J76: 0 | K76: 0
F77: 76 | G77: 0 | H77: 0 | J77: 0 | K77: 0
F78: 77 | G78: 0 | H78: 0 | J78: 0 | K78: 0
F79: 78 | G79: 0 | H79: 0 | J79: 0 | K79: 0
F80: 79 | G80: 0 | H80: 0 | J80: 0 | K80: 0
F81: 80 | G81: 0 | H81: 0 | J81: 0 | K81: 0
F82: 81 | G82: 0 | H82: 0 | J82: 0 | K82: 0
F83: 82 | G83: 0 | H83: 0 | J83: 0 | K83: 0
F84: 83 | G84: 0 | H84: 0 | J84: 0 | K84: 0
F85: 84 | G85: 0 | H85: 0 | J85: 0 | K85: 0
F86: 85 | G86: 0 | H86: 0 | J86: 0 | K86: 0
F87: 86 | G87: 0 | H87: 0 | J87: 0 | K87: 0
F88: 87 | G88: 0 | H88: 0 | J88: 0 | K88: 0
F89: 88 | G89: 0 | H89: 0 | J89: 0 | K89: 0
F90: 89 | G90: 0 | H90: 0 | J90: 0 | K90: 0
F91: 90 | G91: 0 | H91: 0 | J91: 0 | K91: 0
F92: 91 | G92: 0 | H92: 0 | J92: 0 | K92: 0
F93: 92 | G93: 0 | H93: 0 | J93: 0 | K93: 0
F94: 93 | G94: 0 | H94: 0 | J94: 0 | K94: 0
F95: 94 | G95: =B95 -> 0 | H95: =A95 -> 0 | I95: =E95 ->  | J95: 0 | K95: 0
E96: =IF(B96<>"",F96,"") ->  | F96: 95 | G96: 0 | H96: 0 | J96: 0 | K96: 0
F97: 96 | G97: 0 | H97: 0 | J97: 0 | K97: 0
F98: 97 | G98: 0 | H98: 0 | J98: 0 | K98: 0
F99: 98 | G99: 0 | H99: 0 | J99: 0 | K99: 0
F100: 99 | G100: 0 | H100: 0 | J100: 0 | K100: 0
F101: 100 | G101: 0 | H101: 0 | J101: 0 | K101: 0
F102: 101 | G102: 0 | H102: 0 | J102: 0 | K102: 0
F103: 102 | G103: 0 | H103: 0 | J103: 0 | K103: 0
F104: 103 | G104: 0 | H104: 0 | J104: 0 | K104: 0
F105: 104 | G105: 0 | H105: 0 | J105: 0 | K105: 0
F106: 105 | G106: 0 | H106: 0 | J106: 0 | K106: 0
F107: 106 | G107: 0 | H107: 0 | J107: 0 | K107: 0
F108: 107 | G108: 0 | H108: 0 | J108: 0 | K108: 0
F109: 108 | G109: 0 | H109: 0 | J109: 0 | K109: 0
F110: 109 | G110: 0 | H110: 0 | J110: 0 | K110: 0
F111: 110 | G111: 0 | H111: 0 | J111: 0 | K111: 0
F112: 111 | G112: 0 | H112: 0 | J112: 0 | K112: 0
F113: 112 | G113: 0 | H113: 0 | J113: 0 | K113: 0
F114: 113 | G114: 0 | H114: 0 | J114: 0 | K114: 0
F115: 114 | G115: 0 | H115: 0 | J115: 0 | K115: 0
F116: 115 | G116: 0 | H116: 0 | J116: 0 | K116: 0
F117: 116 | G117: 0 | H117: 0 | J117: 0 | K117: 0
F118: 117 | G118: 0 | H118: 0 | J118: 0 | K118: 0
F119: 118 | G119: 0 | H119: 0 | J119: 0 | K119: 0
F120: 119 | G120: 0 | H120: 0 | J120: 0 | K120: 0
F121: 120 | G121: 0 | H121: 0 | J121: 0 | K121: 0
F122: 121 | G122: 0 | H122: 0 | J122: 0 | K122: 0
F123: 122 | G123: 0 | H123: 0 | J123: 0 | K123: 0
F124: 123 | G124: 0 | H124: 0 | J124: 0 | K124: 0
F125: 124 | G125: 0 | H125: 0 | J125: 0 | K125: 0
F126: 125 | G126: 0 | H126: 0 | J126: 0 | K126: 0
F127: 126 | G127: 0 | H127: 0 | J127: 0 | K127: 0
F128: 127 | G128: 0 | H128: 0 | J128: 0 | K128: 0
F129: 128 | G129: 0 | H129: 0 | J129: 0 | K129: 0
F130: 129 | G130: 0 | H130: 0 | J130: 0 | K130: 0
F131: 130 | G131: 0 | H131: 0 | J131: =IF(ISNA(VLOOKUP(I131,D$2:H$150,5,FALSE)),"",VLOOKUP(I131,D$2:H$150,5,FALSE)) -> 0 | K131: =IF(ISNA(VLOOKUP(I131,D$2:G$150,4,FALSE)),"",VLOOKUP(I131,D$2:G$150,4,FALSE)) -> 0
F132: 131 | G132: 0 | H132: 0 | J132: 0 | K132: 0
F133: 132 | G133: 0 | H133: 0 | J133: 0 | K133: 0
F134: 133 | G134: 0 | H134: 0 | J134: 0 | K134: 0
F135: 134 | G135: 0 | H135: 0 | J135: 0 | K135: 0
F136: 135 | G136: 0 | H136: 0 | J136: 0 | K136: 0
F137: 136 | G137: 0 | H137: 0 | J137: 0 | K137: 0
F138: 137 | G138: 0 | H138: 0 | J138: 0 | K138: 0
F139: 138 | G139: 0 | H139: 0 | J139: 0 | K139: 0
F140: 139 | G140: 0 | H140: 0 | J140: 0 | K140: 0
F141: 140 | G141: 0 | H141: 0 | J141: 0 | K141: 0
F142: 141 | G142: 0 | H142: 0 | J142: 0 | K142: 0
F143: 142 | G143: 0 | H143: 0 | J143: 0 | K143: 0
F144: 143 | G144: 0 | H144: 0 | J144: 0 | K144: 0
F145: 144 | G145: 0 | H145: 0 | J145: 0 | K145: 0
F146: 145 | G146: 0 | H146: 0 | J146: 0 | K146: 0
F147: 146 | G147: 0 | H147: 0 | J147: 0 | K147: 0
F148: 147 | G148: 0 | H148: 0 | J148: 0 | K148: 0
F149: 148 | G149: 0 | H149: 0 | J149: 0 | K149: 0
F150: 149 | G150: 0 | H150: 0 | J150: 0 | K150: 0

Sheet Schools (hidden)
A1: List of Schools:
A2: Blake
A3: Bloomington
A4: Columbia Heights
A5: Eden Prairie
A6: Edina
A7: Forest Lake
A8: Hopkins
A9: Itasca
A10: Osseo-Maple Grove
A11: Prior Lake
A12: Richfield
A13: St. Louis Park
A14: Stillwater
A15: Wayzata

Sheet Official Draw
B2: =Draw!I1 -> Draw # | C2: =Draw!J1 -> Name | D2: =Draw!K1 -> School
B3: 1 | C3: Leigha Kraft | D3: Stillwater
B4: 2 | C4: Erin Wurgler | D4: Stillwater
B5: 3 | C5: Kati Knox | D5: Osseo-Maple Grove
B6: 4 | C6: Molly Goheen | D6: Stillwater
B7: 5 | C7: Hannah Bliss | D7: Stillwater
B8: 6 | C8: Kyra Will | D8: Stillwater
B9: 7 | C9: Anika Wright | D9: Stillwater
B10: 8 | C10: Mikaela Crosby | D10: Osseo-Maple Grove
B11: 9 | C11: Annika Desphande | D11: Osseo-Maple Grove
B12: 10 | C12: Savanna Woods | D12: Osseo-Maple Grove
B13: 11 | C13: Adelee Wrightsman | D13: Stillwater
B14: 12 | C14: Kennedy Tope | D14: Stillwater
B15: 13 | C15: Jillian Kulzer | D15: Stillwater
B16: 14 | C16: Chloe Knuteson | D16: Stillwater
B17: 15 | C17: Nina Djukelic | D17: Stillwater
B18: 16 | C18: Samantha MacDonald | D18: Stillwater
B19: 17 | C19: Maylin Kennedy | D19: Stillwater
B20: 18 | C20: Paulina Frayman | D20: Osseo-Maple Grove
B21: 19 | C21: Student Names: | D21: Edina
B22: 20 | C22: Nissa Wilcox | D22: Stillwater
B23: 21 | C23: Maddie Stricker | D23: Stillwater
B24: 22 | C24: Berit Serle | D24: Stillwater
B25: 23 | C25: Alexis Montgomery | D25: Stillwater
B26: 24 | C26: Elly Blair | D26: Stillwater
B27: 25 | C27: Kya Hodgdon | D27: Stillwater
B28: 26 | C28: Bella Formico | D28: Stillwater
B29: 27 | C29: Hayeon Lee | D29: Stillwater
B30: 28 | C30: Lauren Guinee | D30: Stillwater
B31: =Draw!N30 ->  | C31: =Draw!O30 -> 0 | D31: =Draw!P30 -> 0
B32: =Draw!N31 ->  | C32: =Draw!O31 -> 0 | D32: =Draw!P31 -> 0
B33: =Draw!N32 ->  | C33: =Draw!O32 -> 0 | D33: =Draw!P32 -> 0
B34: =Draw!N33 ->  | C34: =Draw!O33 -> 0 | D34: =Draw!P33 -> 0
B35: =Draw!N34 ->  | C35: =Draw!O34 -> 0 | D35: =Draw!P34 -> 0
B36: =Draw!N35 ->  | C36: =Draw!O35 -> 0 | D36: =Draw!P35 -> 0
B37: =Draw!N36 ->  | C37: =Draw!O36 -> 0 | D37: =Draw!P36 -> 0
B38: =Draw!N37 ->  | C38: =Draw!O37 -> 0 | D38: =Draw!P37 -> 0
B39: =Draw!N38 ->  | C39: =Draw!O38 -> 0 | D39: =Draw!P38 -> 0
B40: =Draw!N39 ->  | C40: =Draw!O39 -> 0 | D40: =Draw!P39 -> 0
B41: =Draw!N40 ->  | C41: =Draw!O40 -> 0 | D41: =Draw!P40 -> 0
B42: =Draw!N41 ->  | C42: =Draw!O41 -> 0 | D42: =Draw!P41 -> 0
B43: =Draw!N42 ->  | C43: =Draw!O42 -> 0 | D43: =Draw!P42 -> 0
B44: =Draw!N43 ->  | C44: =Draw!O43 -> 0 | D44: =Draw!P43 -> 0
B45: =Draw!N44 ->  | C45: =Draw!O44 -> 0 | D45: =Draw!P44 -> 0
B46: =Draw!N45 ->  | C46: =Draw!O45 -> 0 | D46: =Draw!P45 -> 0
B47: =Draw!N46 ->  | C47: =Draw!O46 -> 0 | D47: =Draw!P46 -> 0
B48: =Draw!N47 ->  | C48: =Draw!O47 -> 0 | D48: =Draw!P47 -> 0
B49: =Draw!N48 ->  | C49: =Draw!O48 -> 0 | D49: =Draw!P48 -> 0
B50: =Draw!N49 ->  | C50: =Draw!O49 -> 0 | D50: =Draw!P49 -> 0
B51: =Draw!N50 ->  | C51: =Draw!O50 -> 0 | D51: =Draw!P50 -> 0
B52: =Draw!N51 ->  | C52: =Draw!O51 -> 0 | D52: =Draw!P51 -> 0
B53: =Draw!N52 ->  | C53: =Draw!O52 -> 0 | D53: =Draw!P52 -> 0
B54: =Draw!N53 ->  | C54: =Draw!O53 -> 0 | D54: =Draw!P53 -> 0
B55: =Draw!N54 ->  | C55: =Draw!O54 -> 0 | D55: =Draw!P54 -> 0
B56: =Draw!N55 ->  | C56: =Draw!O55 -> 0 | D56: =Draw!P55 -> 0
B57: =Draw!N56 ->  | C57: =Draw!O56 -> 0 | D57: =Draw!P56 -> 0
B58: =Draw!N57 ->  | C58: =Draw!O57 -> 0 | D58: =Draw!P57 -> 0
B59: =Draw!N58 ->  | C59: =Draw!O58 -> 0 | D59: =Draw!P58 -> 0
B60: =Draw!N59 ->  | C60: =Draw!O59 -> 0 | D60: =Draw!P59 -> 0
B61: =Draw!N60 ->  | C61: =Draw!O60 -> 0 | D61: =Draw!P60 -> 0
B62: =Draw!N61 ->  | C62: =Draw!O61 -> 0 | D62: =Draw!P61 -> 0
B63: =Draw!N62 ->  | C63: =Draw!O62 -> 0 | D63: =Draw!P62 -> 0
B64: =Draw!N63 ->  | C64: =Draw!O63 -> 0 | D64: =Draw!P63 -> 0
B65: =Draw!N64 ->  | C65: =Draw!O64 -> 0 | D65: =Draw!P64 -> 0
B66: =Draw!N65 ->  | C66: =Draw!O65 -> 0 | D66: =Draw!P65 -> 0
B67: =Draw!N66 ->  | C67: =Draw!O66 -> 0 | D67: =Draw!P66 -> 0
B68: =Draw!N67 ->  | C68: =Draw!O67 -> 0 | D68: =Draw!P67 -> 0
B69: =Draw!N68 ->  | C69: =Draw!O68 -> 0 | D69: =Draw!P68 -> 0
B70: =Draw!N69 ->  | C70: =Draw!O69 -> 0 | D70: =Draw!P69 -> 0
B71: =Draw!N70 ->  | C71: =Draw!O70 -> 0 | D71: =Draw!P70 -> 0
B72: =Draw!N71 ->  | C72: =Draw!O71 -> 0 | D72: =Draw!P71 -> 0
B73: =Draw!N72 ->  | C73: =Draw!O72 -> 0 | D73: =Draw!P72 -> 0
B74: =Draw!N73 ->  | C74: =Draw!O73 -> 0 | D74: =Draw!P73 -> 0
B75: =Draw!N74 ->  | C75: =Draw!O74 -> 0 | D75: =Draw!P74 -> 0
B76: =Draw!N75 ->  | C76: =Draw!O75 -> 0 | D76: =Draw!P75 -> 0
B77: =Draw!N76 ->  | C77: =Draw!O76 -> 0 | D77: =Draw!P76 -> 0
B78: =Draw!N77 ->  | C78: =Draw!O77 -> 0 | D78: =Draw!P77 -> 0
B79: =Draw!N78 ->  | C79: =Draw!O78 -> 0 | D79: =Draw!P78 -> 0
B80: =Draw!N79 ->  | C80: =Draw!O79 -> 0 | D80: =Draw!P79 -> 0
B81: =Draw!N80 ->  | C81: =Draw!O80 -> 0 | D81: =Draw!P80 -> 0
B82: =Draw!N81 ->  | C82: =Draw!O81 -> 0 | D82: =Draw!P81 -> 0
B83: =Draw!N82 ->  | C83: =Draw!O82 -> 0 | D83: =Draw!P82 -> 0
B84: =Draw!N83 ->  | C84: =Draw!O83 -> 0 | D84: =Draw!P83 -> 0
B85: =Draw!N84 ->  | C85: =Draw!O84 -> 0 | D85: =Draw!P84 -> 0
B86: =Draw!N85 ->  | C86: =Draw!O85 -> 0 | D86: =Draw!P85 -> 0
B87: =Draw!N86 ->  | C87: =Draw!O86 -> 0 | D87: =Draw!P86 -> 0
B88: =Draw!N87 ->  | C88: =Draw!O87 -> 0 | D88: =Draw!P87 -> 0
B89: =Draw!N88 ->  | C89: =Draw!O88 -> 0 | D89: =Draw!P88 -> 0
B90: =Draw!N89 ->  | C90: =Draw!O89 -> 0 | D90: =Draw!P89 -> 0
B91: =Draw!N90 ->  | C91: =Draw!O90 -> 0 | D91: =Draw!P90 -> 0
B92: =Draw!N91 ->  | C92: =Draw!O91 -> 0 | D92: =Draw!P91 -> 0
B93: =Draw!N92 ->  | C93: =Draw!O92 -> 0 | D93: =Draw!P92 -> 0
B94: =Draw!N93 ->  | C94: =Draw!O93 -> 0 | D94: =Draw!P93 -> 0
B95: =Draw!N94 ->  | C95: =Draw!O94 -> 0 | D95: =Draw!P94 -> 0
B96: =Draw!N95 ->  | C96: =Draw!O95 -> 0 | D96: =Draw!P95 -> 0
B97: =Draw!N96 ->  | C97: =Draw!O96 -> 0 | D97: =Draw!P96 -> 0
B98: =Draw!N97 ->  | C98: =Draw!O97 -> 0 | D98: =Draw!P97 -> 0
B99: =Draw!N98 ->  | C99: =Draw!O98 -> 0 | D99: =Draw!P98 -> 0
B100: =Draw!N99 ->  | C100: =Draw!O99 -> 0 | D100: =Draw!P99 -> 0
B101: =Draw!N100 ->  | C101: =Draw!O100 -> 0 | D101: =Draw!P100 -> 0
B102: =Draw!N101 ->  | C102: =Draw!O101 -> 0 | D102: =Draw!P101 -> 0
B103: =Draw!N102 ->  | C103: =Draw!O102 -> 0 | D103: =Draw!P102 -> 0
B104: =Draw!N103 ->  | C104: =Draw!O103 -> 0 | D104: =Draw!P103 -> 0
B105: =Draw!N104 ->  | C105: =Draw!O104 -> 0 | D105: =Draw!P104 -> 0
B106: =Draw!N105 ->  | C106: =Draw!O105 -> 0 | D106: =Draw!P105 -> 0
B107: =Draw!N106 ->  | C107: =Draw!O106 -> 0 | D107: =Draw!P106 -> 0
B108: =Draw!N107 ->  | C108: =Draw!O107 -> 0 | D108: =Draw!P107 -> 0
B109: =Draw!N108 ->  | C109: =Draw!O108 -> 0 | D109: =Draw!P108 -> 0
B110: =Draw!N109 ->  | C110: =Draw!O109 -> 0 | D110: =Draw!P109 -> 0
B111: =Draw!N110 ->  | C111: =Draw!O110 -> 0 | D111: =Draw!P110 -> 0
B112: =Draw!N111 ->  | C112: =Draw!O111 -> 0 | D112: =Draw!P111 -> 0
B113: =Draw!N112 ->  | C113: =Draw!O112 -> 0 | D113: =Draw!P112 -> 0
B114: =Draw!N113 ->  | C114: =Draw!O113 -> 0 | D114: =Draw!P113 -> 0
B115: =Draw!N114 ->  | C115: =Draw!O114 -> 0 | D115: =Draw!P114 -> 0
B116: =Draw!N115 ->  | C116: =Draw!O115 -> 0 | D116: =Draw!P115 -> 0
B117: =Draw!N116 ->  | C117: =Draw!O116 -> 0 | D117: =Draw!P116 -> 0
B118: =Draw!N117 ->  | C118: =Draw!O117 -> 0 | D118: =Draw!P117 -> 0
B119: =Draw!N118 ->  | C119: =Draw!O118 -> 0 | D119: =Draw!P118 -> 0
B120: =Draw!N119 ->  | C120: =Draw!O119 -> 0 | D120: =Draw!P119 -> 0
B121: =Draw!N120 ->  | C121: =Draw!O120 -> 0 | D121: =Draw!P120 -> 0
B122: =Draw!N121 ->  | C122: =Draw!O121 -> 0 | D122: =Draw!P121 -> 0
B123: =Draw!N122 ->  | C123: =Draw!O122 -> 0 | D123: =Draw!P122 -> 0
B124: =Draw!N123 ->  | C124: =Draw!O123 -> 0 | D124: =Draw!P123 -> 0
B125: =Draw!N124 ->  | C125: =Draw!O124 -> 0 | D125: =Draw!P124 -> 0
B126: =Draw!N125 ->  | C126: =Draw!O125 -> 0 | D126: =Draw!P125 -> 0
B127: =Draw!N126 ->  | C127: =Draw!O126 -> 0 | D127: =Draw!P126 -> 0
B128: =Draw!N127 ->  | C128: =Draw!O127 -> 0 | D128: =Draw!P127 -> 0
B129: =Draw!N128 ->  | C129: =Draw!O128 -> 0 | D129: =Draw!P128 -> 0
B130: =Draw!N129 ->  | C130: =Draw!O129 -> 0 | D130: =Draw!P129 -> 0
B131: =Draw!N130 ->  | C131: =Draw!O130 -> 0 | D131: =Draw!P130 -> 0
B132: =Draw!N131 ->  | C132: =Draw!O131 -> 0 | D132: =Draw!P131 -> 0
B133: =Draw!N132 ->  | C133: =Draw!O132 -> 0 | D133: =Draw!P132 -> 0
B134: =Draw!N133 ->  | C134: =Draw!O133 -> 0 | D134: =Draw!P133 -> 0
B135: =Draw!N134 ->  | C135: =Draw!O134 -> 0 | D135: =Draw!P134 -> 0
B136: =Draw!N135 ->  | C136: =Draw!O135 -> 0 | D136: =Draw!P135 -> 0
B137: =Draw!N136 ->  | C137: =Draw!O136 -> 0 | D137: =Draw!P136 -> 0
B138: =Draw!N137 ->  | C138: =Draw!O137 -> 0 | D138: =Draw!P137 -> 0
B139: =Draw!N138 ->  | C139: =Draw!O138 -> 0 | D139: =Draw!P138 -> 0
B140: =Draw!N139 ->  | C140: =Draw!O139 -> 0 | D140: =Draw!P139 -> 0
B141: =Draw!N140 ->  | C141: =Draw!O140 -> 0 | D141: =Draw!P140 -> 0
B142: =Draw!N141 ->  | C142: =Draw!O141 -> 0 | D142: =Draw!P141 -> 0
B143: =Draw!N142 ->  | C143: =Draw!O142 -> 0 | D143: =Draw!P142 -> 0
B144: =Draw!N143 ->  | C144: =Draw!O143 -> 0 | D144: =Draw!P143 -> 0
B145: =Draw!N144 ->  | C145: =Draw!O144 -> 0 | D145: =Draw!P144 -> 0
B146: =Draw!N145 ->  | C146: =Draw!O145 -> 0 | D146: =Draw!P145 -> 0
B147: =Draw!N146 ->  | C147: =Draw!O146 -> 0 | D147: =Draw!P146 -> 0
B148: =Draw!N147 ->  | C148: =Draw!O147 -> 0 | D148: =Draw!P147 -> 0
B149: =Draw!N148 ->  | C149: =Draw!O148 -> 0 | D149: =Draw!P148 -> 0
B150: =Draw!N149 ->  | C150: =Draw!O149 -> 0 | D150: =Draw!P149 -> 0
B151: =Draw!N150 ->  | C151: =Draw!O150 -> 0 | D151: =Draw!P150 -> 0

Sheet Meet Results
D2: Stillwater | E2: =SUMIF($F5:$G24,D2,$H5:$H24) -> 0 | F2: Osseo-Maple Grove | G2: =SUMIF($F5:$G24,F2,$H5:$H24) -> 0 | K2: Edina | L2: =SUMIF($M5:$N24,K2,$O5:$O24) -> 8 | M2: Edina | N2: =SUMIF($M5:$N24,M2,$O5:$O24) -> 8 | R2: Hopkins | S2: =SUMIF($T5:$U24,R2,$V5:$V24) -> 8 | T2: Hopkins | U2: =SUMIF($T5:$U24,T2,$V5:$V24) -> 8
D3: Total Score | K3: Total Score | R3: Total Score
D4: # | E4: Swimmer | F4: School | G4: Total | H4: SCORE | I4: PLACE | K4: # | L4: Swimmer | M4: School | N4: Total | O4: SCORE | P4: PLACE | R4: # | S4: Swimmer | T4: School | U4: Total | V4: SCORE | W4: PLACE
D5: 2 | E5: Student Names: | F5: Hopkins | G5: 0.00000 | H5: =IF(ISNA(VLOOKUP(I5,Totals!$AX$3:$AY$102,2,FALSE)),"",VLOOKUP(I5,Totals!$AX$3:$AY$102,2,FALSE)) -> 8 | I5: =IF(ISNA(RANK(G5,G$5:G$150)),"",RANK(G5,G$5:G$150)) -> 1 | K5: 1 | L5: Student Names: | M5: Edina | N5: 0.00000 | O5: =IF(ISNA(VLOOKUP(P5,Totals!$AX$3:$AY$102,2,FALSE)),"",VLOOKUP(P5,Totals!$AX$3:$AY$102,2,FALSE)) -> 8 | P5: =IF(ISNA(RANK(N5,N$5:N$150)),"",RANK(N5,N$5:N$150)) -> 1 | R5: 2 | S5: Student Names: | T5: Hopkins | U5: 0.00000 | V5: =IF(ISNA(VLOOKUP(W5,Totals!$AX$3:$AY$102,2,FALSE)),"",VLOOKUP(W5,Totals!$AX$3:$AY$102,2,FALSE)) -> 8 | W5: =IF(ISNA(RANK(U5,U$5:U$150)),"",RANK(U5,U$5:U$150)) -> 1
D6: 1 | E6: Student Names: | F6: Edina | G6: 0.00000 | H6: =IF(ISNA(VLOOKUP(I6,Totals!$AX$3:$AY$102,2,FALSE)),"",VLOOKUP(I6,Totals!$AX$3:$AY$102,2,FALSE)) -> 8 | I6: =IF(G6=G5,I5,IF(ISNA(RANK(G6,G$5:G$150)),"",RANK(G6,G$5:G$150))) -> 1 | O6: =IF(ISNA(VLOOKUP(P6,Totals!$AX$3:$AY$102,2,FALSE)),"",VLOOKUP(P6,Totals!$AX$3:$AY$102,2,FALSE)) -> 8 | P6: =IF(ISNA(RANK(N6,N$5:N$150)),"",RANK(N6,N$5:N$150)) -> 1 | V6: =IF(ISNA(VLOOKUP(W6,Totals!$AX$3:$AY$102,2,FALSE)),"",VLOOKUP(W6,Totals!$AX$3:$AY$102,2,FALSE)) -> 8 | W6: =IF(ISNA(RANK(U6,U$5:U$150)),"",RANK(U6,U$5:U$150)) -> 1
H7: =IF(ISNA(VLOOKUP(I7,Totals!$AX$3:$AY$102,2,FALSE)),"",VLOOKUP(I7,Totals!$AX$3:$AY$102,2,FALSE)) -> 8 | I7: =IF(G7=G6,I6,IF(ISNA(RANK(G7,G$5:G$150)),"",RANK(G7,G$5:G$150))) -> 1 | O7: =IF(ISNA(VLOOKUP(P7,Totals!$AX$3:$AY$102,2,FALSE)),"",VLOOKUP(P7,Totals!$AX$3:$AY$102,2,FALSE)) -> 8 | P7: 1 | V7: =IF(ISNA(VLOOKUP(W7,Totals!$AX$3:$AY$102,2,FALSE)),"",VLOOKUP(W7,Totals!$AX$3:$AY$102,2,FALSE)) -> 8 | W7: 1
H8: =IF(ISNA(VLOOKUP(I8,Totals!$AX$3:$AY$102,2,FALSE)),"",VLOOKUP(I8,Totals!$AX$3:$AY$102,2,FALSE)) -> 8 | I8: 1 | O8: =IF(ISNA(VLOOKUP(P8,Totals!$AX$3:$AY$102,2,FALSE)),"",VLOOKUP(P8,Totals!$AX$3:$AY$102,2,FALSE)) -> 8 | P8: 1 | V8: =IF(ISNA(VLOOKUP(W8,Totals!$AX$3:$AY$102,2,FALSE)),"",VLOOKUP(W8,Totals!$AX$3:$AY$102,2,FALSE)) -> 8 | W8: 1
H9: =IF(ISNA(VLOOKUP(I9,Totals!$AX$3:$AY$102,2,FALSE)),"",VLOOKUP(I9,Totals!$AX$3:$AY$102,2,FALSE)) -> 8 | I9: 1 | O9: =IF(ISNA(VLOOKUP(P9,Totals!$AX$3:$AY$102,2,FALSE)),"",VLOOKUP(P9,Totals!$AX$3:$AY$102,2,FALSE)) -> 8 | P9: 1 | V9: =IF(ISNA(VLOOKUP(W9,Totals!$AX$3:$AY$102,2,FALSE)),"",VLOOKUP(W9,Totals!$AX$3:$AY$102,2,FALSE)) -> 8 | W9: 1
H10: =IF(ISNA(VLOOKUP(I10,Totals!$AX$3:$AY$102,2,FALSE)),"",VLOOKUP(I10,Totals!$AX$3:$AY$102,2,FALSE)) -> 8 | I10: 1 | O10: =IF(ISNA(VLOOKUP(P10,Totals!$AX$3:$AY$102,2,FALSE)),"",VLOOKUP(P10,Totals!$AX$3:$AY$102,2,FALSE)) -> 8 | P10: 1 | V10: =IF(ISNA(VLOOKUP(W10,Totals!$AX$3:$AY$102,2,FALSE)),"",VLOOKUP(W10,Totals!$AX$3:$AY$102,2,FALSE)) -> 8 | W10: 1
H11: =IF(ISNA(VLOOKUP(I11,Totals!$AX$3:$AY$102,2,FALSE)),"",VLOOKUP(I11,Totals!$AX$3:$AY$102,2,FALSE)) -> 8 | I11: 1 | O11: =IF(ISNA(VLOOKUP(P11,Totals!$AX$3:$AY$102,2,FALSE)),"",VLOOKUP(P11,Totals!$AX$3:$AY$102,2,FALSE)) -> 8 | P11: 1 | V11: =IF(ISNA(VLOOKUP(W11,Totals!$AX$3:$AY$102,2,FALSE)),"",VLOOKUP(W11,Totals!$AX$3:$AY$102,2,FALSE)) -> 8 | W11: 1
H12: =IF(ISNA(VLOOKUP(I12,Totals!$AX$3:$AY$102,2,FALSE)),"",VLOOKUP(I12,Totals!$AX$3:$AY$102,2,FALSE)) -> 8 | I12: 1 | O12: =IF(ISNA(VLOOKUP(P12,Totals!$AX$3:$AY$102,2,FALSE)),"",VLOOKUP(P12,Totals!$AX$3:$AY$102,2,FALSE)) -> 8 | P12: 1 | V12: =IF(ISNA(VLOOKUP(W12,Totals!$AX$3:$AY$102,2,FALSE)),"",VLOOKUP(W12,Totals!$AX$3:$AY$102,2,FALSE)) -> 8 | W12: 1
H13: =IF(ISNA(VLOOKUP(I13,Totals!$AX$3:$AY$102,2,FALSE)),"",VLOOKUP(I13,Totals!$AX$3:$AY$102,2,FALSE)) -> 8 | I13: 1 | O13: =IF(ISNA(VLOOKUP(P13,Totals!$AX$3:$AY$102,2,FALSE)),"",VLOOKUP(P13,Totals!$AX$3:$AY$102,2,FALSE)) -> 8 | P13: 1 | V13: =IF(ISNA(VLOOKUP(W13,Totals!$AX$3:$AY$102,2,FALSE)),"",VLOOKUP(W13,Totals!$AX$3:$AY$102,2,FALSE)) -> 8 | W13: 1
H14: =IF(ISNA(VLOOKUP(I14,Totals!$AX$3:$AY$102,2,FALSE)),"",VLOOKUP(I14,Totals!$AX$3:$AY$102,2,FALSE)) -> 8 | I14: 1 | O14: =IF(ISNA(VLOOKUP(P14,Totals!$AX$3:$AY$102,2,FALSE)),"",VLOOKUP(P14,Totals!$AX$3:$AY$102,2,FALSE)) -> 8 | P14: 1 | V14: =IF(ISNA(VLOOKUP(W14,Totals!$AX$3:$AY$102,2,FALSE)),"",VLOOKUP(W14,Totals!$AX$3:$AY$102,2,FALSE)) -> 8 | W14: 1
H15: =IF(ISNA(VLOOKUP(I15,Totals!$AX$3:$AY$102,2,FALSE)),"",VLOOKUP(I15,Totals!$AX$3:$AY$102,2,FALSE)) -> 8 | I15: 1 | O15: =IF(ISNA(VLOOKUP(P15,Totals!$AX$3:$AY$102,2,FALSE)),"",VLOOKUP(P15,Totals!$AX$3:$AY$102,2,FALSE)) -> 8 | P15: 1 | V15: =IF(ISNA(VLOOKUP(W15,Totals!$AX$3:$AY$102,2,FALSE)),"",VLOOKUP(W15,Totals!$AX$3:$AY$102,2,FALSE)) -> 8 | W15: 1
H16: =IF(ISNA(VLOOKUP(I16,Totals!$AX$3:$AY$102,2,FALSE)),"",VLOOKUP(I16,Totals!$AX$3:$AY$102,2,FALSE)) -> 8 | I16: 1 | O16: =IF(ISNA(VLOOKUP(P16,Totals!$AX$3:$AY$102,2,FALSE)),"",VLOOKUP(P16,Totals!$AX$3:$AY$102,2,FALSE)) -> 8 | P16: 1 | V16: =IF(ISNA(VLOOKUP(W16,Totals!$AX$3:$AY$102,2,FALSE)),"",VLOOKUP(W16,Totals!$AX$3:$AY$102,2,FALSE)) -> 8 | W16: 1
H17: =IF(ISNA(VLOOKUP(I17,Totals!$AX$3:$AY$102,2,FALSE)),"",VLOOKUP(I17,Totals!$AX$3:$AY$102,2,FALSE)) -> 8 | I17: 1 | O17: =IF(ISNA(VLOOKUP(P17,Totals!$AX$3:$AY$102,2,FALSE)),"",VLOOKUP(P17,Totals!$AX$3:$AY$102,2,FALSE)) -> 8 | P17: 1 | V17: =IF(ISNA(VLOOKUP(W17,Totals!$AX$3:$AY$102,2,FALSE)),"",VLOOKUP(W17,Totals!$AX$3:$AY$102,2,FALSE)) -> 8 | W17: 1
H18: =IF(ISNA(VLOOKUP(I18,Totals!$AX$3:$AY$102,2,FALSE)),"",VLOOKUP(I18,Totals!$AX$3:$AY$102,2,FALSE)) -> 8 | I18: 1 | O18: =IF(ISNA(VLOOKUP(P18,Totals!$AX$3:$AY$102,2,FALSE)),"",VLOOKUP(P18,Totals!$AX$3:$AY$102,2,FALSE)) -> 8 | P18: 1 | V18: =IF(ISNA(VLOOKUP(W18,Totals!$AX$3:$AY$102,2,FALSE)),"",VLOOKUP(W18,Totals!$AX$3:$AY$102,2,FALSE)) -> 8 | W18: 1
H19: =IF(ISNA(VLOOKUP(I19,Totals!$AX$3:$AY$102,2,FALSE)),"",VLOOKUP(I19,Totals!$AX$3:$AY$102,2,FALSE)) -> 8 | I19: 1 | O19: =IF(ISNA(VLOOKUP(P19,Totals!$AX$3:$AY$102,2,FALSE)),"",VLOOKUP(P19,Totals!$AX$3:$AY$102,2,FALSE)) -> 8 | P19: 1 | V19: =IF(ISNA(VLOOKUP(W19,Totals!$AX$3:$AY$102,2,FALSE)),"",VLOOKUP(W19,Totals!$AX$3:$AY$102,2,FALSE)) -> 8 | W19: 1
H20: =IF(ISNA(VLOOKUP(I20,Totals!$AX$3:$AY$102,2,FALSE)),"",VLOOKUP(I20,Totals!$AX$3:$AY$102,2,FALSE)) -> 8 | I20: 1 | O20: =IF(ISNA(VLOOKUP(P20,Totals!$AX$3:$AY$102,2,FALSE)),"",VLOOKUP(P20,Totals!$AX$3:$AY$102,2,FALSE)) -> 8 | P20: 1 | V20: =IF(ISNA(VLOOKUP(W20,Totals!$AX$3:$AY$102,2,FALSE)),"",VLOOKUP(W20,Totals!$AX$3:$AY$102,2,FALSE)) -> 8 | W20: 1
H21: =IF(ISNA(VLOOKUP(I21,Totals!$AX$3:$AY$102,2,FALSE)),"",VLOOKUP(I21,Totals!$AX$3:$AY$102,2,FALSE)) -> 8 | I21: 1 | O21: =IF(ISNA(VLOOKUP(P21,Totals!$AX$3:$AY$102,2,FALSE)),"",VLOOKUP(P21,Totals!$AX$3:$AY$102,2,FALSE)) -> 8 | P21: 1 | V21: =IF(ISNA(VLOOKUP(W21,Totals!$AX$3:$AY$102,2,FALSE)),"",VLOOKUP(W21,Totals!$AX$3:$AY$102,2,FALSE)) -> 8 | W21: 1
H22: =IF(ISNA(VLOOKUP(I22,Totals!$AX$3:$AY$102,2,FALSE)),"",VLOOKUP(I22,Totals!$AX$3:$AY$102,2,FALSE)) -> 8 | I22: 1 | O22: =IF(ISNA(VLOOKUP(P22,Totals!$AX$3:$AY$102,2,FALSE)),"",VLOOKUP(P22,Totals!$AX$3:$AY$102,2,FALSE)) -> 8 | P22: 1 | V22: =IF(ISNA(VLOOKUP(W22,Totals!$AX$3:$AY$102,2,FALSE)),"",VLOOKUP(W22,Totals!$AX$3:$AY$102,2,FALSE)) -> 8 | W22: 1
H23: =IF(ISNA(VLOOKUP(I23,Totals!$AX$3:$AY$102,2,FALSE)),"",VLOOKUP(I23,Totals!$AX$3:$AY$102,2,FALSE)) -> 8 | I23: 1 | O23: =IF(ISNA(VLOOKUP(P23,Totals!$AX$3:$AY$102,2,FALSE)),"",VLOOKUP(P23,Totals!$AX$3:$AY$102,2,FALSE)) -> 8 | P23: 1 | V23: =IF(ISNA(VLOOKUP(W23,Totals!$AX$3:$AY$102,2,FALSE)),"",VLOOKUP(W23,Totals!$AX$3:$AY$102,2,FALSE)) -> 8 | W23: 1
H24: =IF(ISNA(VLOOKUP(I24,Totals!$AX$3:$AY$102,2,FALSE)),"",VLOOKUP(I24,Totals!$AX$3:$AY$102,2,FALSE)) -> 8 | I24: 1 | O24: =IF(ISNA(VLOOKUP(P24,Totals!$AX$3:$AY$102,2,FALSE)),"",VLOOKUP(P24,Totals!$AX$3:$AY$102,2,FALSE)) -> 8 | P24: 1 | V24: =IF(ISNA(VLOOKUP(W24,Totals!$AX$3:$AY$102,2,FALSE)),"",VLOOKUP(W24,Totals!$AX$3:$AY$102,2,FALSE)) -> 8 | W24: 1
H25: =IF(ISNA(VLOOKUP(I25,Totals!$AX$3:$AY$102,2,FALSE)),"",VLOOKUP(I25,Totals!$AX$3:$AY$102,2,FALSE)) -> 8 | I25: 1 | O25: =IF(ISNA(VLOOKUP(P25,Totals!$AX$3:$AY$102,2,FALSE)),"",VLOOKUP(P25,Totals!$AX$3:$AY$102,2,FALSE)) -> 8 | P25: 1 | V25: =IF(ISNA(VLOOKUP(W25,Totals!$AX$3:$AY$102,2,FALSE)),"",VLOOKUP(W25,Totals!$AX$3:$AY$102,2,FALSE)) -> 8 | W25: 1
H26: =IF(ISNA(VLOOKUP(I26,Totals!$AX$3:$AY$102,2,FALSE)),"",VLOOKUP(I26,Totals!$AX$3:$AY$102,2,FALSE)) -> 8 | I26: 1 | O26: =IF(ISNA(VLOOKUP(P26,Totals!$AX$3:$AY$102,2,FALSE)),"",VLOOKUP(P26,Totals!$AX$3:$AY$102,2,FALSE)) -> 8 | P26: 1 | V26: =IF(ISNA(VLOOKUP(W26,Totals!$AX$3:$AY$102,2,FALSE)),"",VLOOKUP(W26,Totals!$AX$3:$AY$102,2,FALSE)) -> 8 | W26: 1
H27: =IF(ISNA(VLOOKUP(I27,Totals!$AX$3:$AY$102,2,FALSE)),"",VLOOKUP(I27,Totals!$AX$3:$AY$102,2,FALSE)) -> 8 | I27: 1 | O27: =IF(ISNA(VLOOKUP(P27,Totals!$AX$3:$AY$102,2,FALSE)),"",VLOOKUP(P27,Totals!$AX$3:$AY$102,2,FALSE)) -> 8 | P27: 1 | V27: =IF(ISNA(VLOOKUP(W27,Totals!$AX$3:$AY$102,2,FALSE)),"",VLOOKUP(W27,Totals!$AX$3:$AY$102,2,FALSE)) -> 8 | W27: 1
H28: =IF(ISNA(VLOOKUP(I28,Totals!$AX$3:$AY$102,2,FALSE)),"",VLOOKUP(I28,Totals!$AX$3:$AY$102,2,FALSE)) -> 8 | I28: 1 | O28: =IF(ISNA(VLOOKUP(P28,Totals!$AX$3:$AY$102,2,FALSE)),"",VLOOKUP(P28,Totals!$AX$3:$AY$102,2,FALSE)) -> 8 | P28: 1 | V28: =IF(ISNA(VLOOKUP(W28,Totals!$AX$3:$AY$102,2,FALSE)),"",VLOOKUP(W28,Totals!$AX$3:$AY$102,2,FALSE)) -> 8 | W28: 1
H29: =IF(ISNA(VLOOKUP(I29,Totals!$AX$3:$AY$102,2,FALSE)),"",VLOOKUP(I29,Totals!$AX$3:$AY$102,2,FALSE)) -> 8 | I29: 1 | O29: =IF(ISNA(VLOOKUP(P29,Totals!$AX$3:$AY$102,2,FALSE)),"",VLOOKUP(P29,Totals!$AX$3:$AY$102,2,FALSE)) -> 8 | P29: 1 | V29: =IF(ISNA(VLOOKUP(W29,Totals!$AX$3:$AY$102,2,FALSE)),"",VLOOKUP(W29,Totals!$AX$3:$AY$102,2,FALSE)) -> 8 | W29: 1
H30: =IF(ISNA(VLOOKUP(I30,Totals!$AX$3:$AY$102,2,FALSE)),"",VLOOKUP(I30,Totals!$AX$3:$AY$102,2,FALSE)) -> 8 | I30: 1 | O30: =IF(ISNA(VLOOKUP(P30,Totals!$AX$3:$AY$102,2,FALSE)),"",VLOOKUP(P30,Totals!$AX$3:$AY$102,2,FALSE)) -> 8 | P30: 1 | V30: =IF(ISNA(VLOOKUP(W30,Totals!$AX$3:$AY$102,2,FALSE)),"",VLOOKUP(W30,Totals!$AX$3:$AY$102,2,FALSE)) -> 8 | W30: 1
H31: =IF(ISNA(VLOOKUP(I31,Totals!$AX$3:$AY$102,2,FALSE)),"",VLOOKUP(I31,Totals!$AX$3:$AY$102,2,FALSE)) -> 8 | I31: 1 | O31: =IF(ISNA(VLOOKUP(P31,Totals!$AX$3:$AY$102,2,FALSE)),"",VLOOKUP(P31,Totals!$AX$3:$AY$102,2,FALSE)) -> 8 | P31: 1 | V31: =IF(ISNA(VLOOKUP(W31,Totals!$AX$3:$AY$102,2,FALSE)),"",VLOOKUP(W31,Totals!$AX$3:$AY$102,2,FALSE)) -> 8 | W31: 1
H32: =IF(ISNA(VLOOKUP(I32,Totals!$AX$3:$AY$102,2,FALSE)),"",VLOOKUP(I32,Totals!$AX$3:$AY$102,2,FALSE)) -> 8 | I32: 1 | O32: =IF(ISNA(VLOOKUP(P32,Totals!$AX$3:$AY$102,2,FALSE)),"",VLOOKUP(P32,Totals!$AX$3:$AY$102,2,FALSE)) -> 8 | P32: 1 | V32: =IF(ISNA(VLOOKUP(W32,Totals!$AX$3:$AY$102,2,FALSE)),"",VLOOKUP(W32,Totals!$AX$3:$AY$102,2,FALSE)) -> 8 | W32: 1
H33: =IF(ISNA(VLOOKUP(I33,Totals!$AX$3:$AY$102,2,FALSE)),"",VLOOKUP(I33,Totals!$AX$3:$AY$102,2,FALSE)) -> 8 | I33: 1 | O33: =IF(ISNA(VLOOKUP(P33,Totals!$AX$3:$AY$102,2,FALSE)),"",VLOOKUP(P33,Totals!$AX$3:$AY$102,2,FALSE)) -> 8 | P33: 1 | V33: =IF(ISNA(VLOOKUP(W33,Totals!$AX$3:$AY$102,2,FALSE)),"",VLOOKUP(W33,Totals!$AX$3:$AY$102,2,FALSE)) -> 8 | W33: 1
H34: =IF(ISNA(VLOOKUP(I34,Totals!$AX$3:$AY$102,2,FALSE)),"",VLOOKUP(I34,Totals!$AX$3:$AY$102,2,FALSE)) -> 8 | I34: 1 | O34: =IF(ISNA(VLOOKUP(P34,Totals!$AX$3:$AY$102,2,FALSE)),"",VLOOKUP(P34,Totals!$AX$3:$AY$102,2,FALSE)) -> 8 | P34: 1 | V34: =IF(ISNA(VLOOKUP(W34,Totals!$AX$3:$AY$102,2,FALSE)),"",VLOOKUP(W34,Totals!$AX$3:$AY$102,2,FALSE)) -> 8 | W34: 1
H35: =IF(ISNA(VLOOKUP(I35,Totals!$AX$3:$AY$102,2,FALSE)),"",VLOOKUP(I35,Totals!$AX$3:$AY$102,2,FALSE)) -> 8 | I35: 1 | O35: =IF(ISNA(VLOOKUP(P35,Totals!$AX$3:$AY$102,2,FALSE)),"",VLOOKUP(P35,Totals!$AX$3:$AY$102,2,FALSE)) -> 8 | P35: 1 | V35: =IF(ISNA(VLOOKUP(W35,Totals!$AX$3:$AY$102,2,FALSE)),"",VLOOKUP(W35,Totals!$AX$3:$AY$102,2,FALSE)) -> 8 | W35: 1
H36: =IF(ISNA(VLOOKUP(I36,Totals!$AX$3:$AY$102,2,FALSE)),"",VLOOKUP(I36,Totals!$AX$3:$AY$102,2,FALSE)) -> 8 | I36: 1 | O36: =IF(ISNA(VLOOKUP(P36,Totals!$AX$3:$AY$102,2,FALSE)),"",VLOOKUP(P36,Totals!$AX$3:$AY$102,2,FALSE)) -> 8 | P36: 1 | V36: =IF(ISNA(VLOOKUP(W36,Totals!$AX$3:$AY$102,2,FALSE)),"",VLOOKUP(W36,Totals!$AX$3:$AY$102,2,FALSE)) -> 8 | W36: 1
H37: =IF(ISNA(VLOOKUP(I37,Totals!$AX$3:$AY$102,2,FALSE)),"",VLOOKUP(I37,Totals!$AX$3:$AY$102,2,FALSE)) -> 8 | I37: 1 | O37: =IF(ISNA(VLOOKUP(P37,Totals!$AX$3:$AY$102,2,FALSE)),"",VLOOKUP(P37,Totals!$AX$3:$AY$102,2,FALSE)) -> 8 | P37: 1 | V37: =IF(ISNA(VLOOKUP(W37,Totals!$AX$3:$AY$102,2,FALSE)),"",VLOOKUP(W37,Totals!$AX$3:$AY$102,2,FALSE)) -> 8 | W37: 1
H38: =IF(ISNA(VLOOKUP(I38,Totals!$AX$3:$AY$102,2,FALSE)),"",VLOOKUP(I38,Totals!$AX$3:$AY$102,2,FALSE)) -> 8 | I38: =IF(G38=G37,I37,IF(ISNA(RANK(G38,G$5:G$150)),"",RANK(G38,G$5:G$150))) -> 1 | O38: =IF(ISNA(VLOOKUP(P38,Totals!$AX$3:$AY$102,2,FALSE)),"",VLOOKUP(P38,Totals!$AX$3:$AY$102,2,FALSE)) -> 8 | P38: 1 | V38: =IF(ISNA(VLOOKUP(W38,Totals!$AX$3:$AY$102,2,FALSE)),"",VLOOKUP(W38,Totals!$AX$3:$AY$102,2,FALSE)) -> 8 | W38: 1
H39: =IF(ISNA(VLOOKUP(I39,Totals!$AX$3:$AY$102,2,FALSE)),"",VLOOKUP(I39,Totals!$AX$3:$AY$102,2,FALSE)) -> 8 | I39: 1 | O39: =IF(ISNA(VLOOKUP(P39,Totals!$AX$3:$AY$102,2,FALSE)),"",VLOOKUP(P39,Totals!$AX$3:$AY$102,2,FALSE)) -> 8 | P39: 1 | V39: =IF(ISNA(VLOOKUP(W39,Totals!$AX$3:$AY$102,2,FALSE)),"",VLOOKUP(W39,Totals!$AX$3:$AY$102,2,FALSE)) -> 8 | W39: 1
H40: =IF(ISNA(VLOOKUP(I40,Totals!$AX$3:$AY$102,2,FALSE)),"",VLOOKUP(I40,Totals!$AX$3:$AY$102,2,FALSE)) -> 8 | I40: 1 | O40: =IF(ISNA(VLOOKUP(P40,Totals!$AX$3:$AY$102,2,FALSE)),"",VLOOKUP(P40,Totals!$AX$3:$AY$102,2,FALSE)) -> 8 | P40: 1 | V40: =IF(ISNA(VLOOKUP(W40,Totals!$AX$3:$AY$102,2,FALSE)),"",VLOOKUP(W40,Totals!$AX$3:$AY$102,2,FALSE)) -> 8 | W40: 1
H41: =IF(ISNA(VLOOKUP(I41,Totals!$AX$3:$AY$102,2,FALSE)),"",VLOOKUP(I41,Totals!$AX$3:$AY$102,2,FALSE)) -> 8 | I41: 1 | O41: =IF(ISNA(VLOOKUP(P41,Totals!$AX$3:$AY$102,2,FALSE)),"",VLOOKUP(P41,Totals!$AX$3:$AY$102,2,FALSE)) -> 8 | P41: 1 | V41: =IF(ISNA(VLOOKUP(W41,Totals!$AX$3:$AY$102,2,FALSE)),"",VLOOKUP(W41,Totals!$AX$3:$AY$102,2,FALSE)) -> 8 | W41: 1
H42: =IF(ISNA(VLOOKUP(I42,Totals!$AX$3:$AY$102,2,FALSE)),"",VLOOKUP(I42,Totals!$AX$3:$AY$102,2,FALSE)) -> 8 | I42: 1 | O42: =IF(ISNA(VLOOKUP(P42,Totals!$AX$3:$AY$102,2,FALSE)),"",VLOOKUP(P42,Totals!$AX$3:$AY$102,2,FALSE)) -> 8 | P42: 1 | V42: =IF(ISNA(VLOOKUP(W42,Totals!$AX$3:$AY$102,2,FALSE)),"",VLOOKUP(W42,Totals!$AX$3:$AY$102,2,FALSE)) -> 8 | W42: 1
H43: =IF(ISNA(VLOOKUP(I43,Totals!$AX$3:$AY$102,2,FALSE)),"",VLOOKUP(I43,Totals!$AX$3:$AY$102,2,FALSE)) -> 8 | I43: 1 | O43: =IF(ISNA(VLOOKUP(P43,Totals!$AX$3:$AY$102,2,FALSE)),"",VLOOKUP(P43,Totals!$AX$3:$AY$102,2,FALSE)) -> 8 | P43: 1 | V43: =IF(ISNA(VLOOKUP(W43,Totals!$AX$3:$AY$102,2,FALSE)),"",VLOOKUP(W43,Totals!$AX$3:$AY$102,2,FALSE)) -> 8 | W43: 1
H44: =IF(ISNA(VLOOKUP(I44,Totals!$AX$3:$AY$102,2,FALSE)),"",VLOOKUP(I44,Totals!$AX$3:$AY$102,2,FALSE)) -> 8 | I44: 1 | O44: =IF(ISNA(VLOOKUP(P44,Totals!$AX$3:$AY$102,2,FALSE)),"",VLOOKUP(P44,Totals!$AX$3:$AY$102,2,FALSE)) -> 8 | P44: 1 | V44: =IF(ISNA(VLOOKUP(W44,Totals!$AX$3:$AY$102,2,FALSE)),"",VLOOKUP(W44,Totals!$AX$3:$AY$102,2,FALSE)) -> 8 | W44: 1
H45: =IF(ISNA(VLOOKUP(I45,Totals!$AX$3:$AY$102,2,FALSE)),"",VLOOKUP(I45,Totals!$AX$3:$AY$102,2,FALSE)) -> 8 | I45: 1 | O45: =IF(ISNA(VLOOKUP(P45,Totals!$AX$3:$AY$102,2,FALSE)),"",VLOOKUP(P45,Totals!$AX$3:$AY$102,2,FALSE)) -> 8 | P45: 1 | V45: =IF(ISNA(VLOOKUP(W45,Totals!$AX$3:$AY$102,2,FALSE)),"",VLOOKUP(W45,Totals!$AX$3:$AY$102,2,FALSE)) -> 8 | W45: 1
H46: =IF(ISNA(VLOOKUP(I46,Totals!$AX$3:$AY$102,2,FALSE)),"",VLOOKUP(I46,Totals!$AX$3:$AY$102,2,FALSE)) -> 8 | I46: 1 | O46: =IF(ISNA(VLOOKUP(P46,Totals!$AX$3:$AY$102,2,FALSE)),"",VLOOKUP(P46,Totals!$AX$3:$AY$102,2,FALSE)) -> 8 | P46: 1 | V46: =IF(ISNA(VLOOKUP(W46,Totals!$AX$3:$AY$102,2,FALSE)),"",VLOOKUP(W46,Totals!$AX$3:$AY$102,2,FALSE)) -> 8 | W46: 1
H47: =IF(ISNA(VLOOKUP(I47,Totals!$AX$3:$AY$102,2,FALSE)),"",VLOOKUP(I47,Totals!$AX$3:$AY$102,2,FALSE)) -> 8 | I47: 1 | O47: =IF(ISNA(VLOOKUP(P47,Totals!$AX$3:$AY$102,2,FALSE)),"",VLOOKUP(P47,Totals!$AX$3:$AY$102,2,FALSE)) -> 8 | P47: 1 | V47: =IF(ISNA(VLOOKUP(W47,Totals!$AX$3:$AY$102,2,FALSE)),"",VLOOKUP(W47,Totals!$AX$3:$AY$102,2,FALSE)) -> 8 | W47: 1
H48: =IF(ISNA(VLOOKUP(I48,Totals!$AX$3:$AY$102,2,FALSE)),"",VLOOKUP(I48,Totals!$AX$3:$AY$102,2,FALSE)) -> 8 | I48: 1 | O48: =IF(ISNA(VLOOKUP(P48,Totals!$AX$3:$AY$102,2,FALSE)),"",VLOOKUP(P48,Totals!$AX$3:$AY$102,2,FALSE)) -> 8 | P48: 1 | V48: =IF(ISNA(VLOOKUP(W48,Totals!$AX$3:$AY$102,2,FALSE)),"",VLOOKUP(W48,Totals!$AX$3:$AY$102,2,FALSE)) -> 8 | W48: 1
H49: =IF(ISNA(VLOOKUP(I49,Totals!$AX$3:$AY$102,2,FALSE)),"",VLOOKUP(I49,Totals!$AX$3:$AY$102,2,FALSE)) -> 8 | I49: 1 | O49: =IF(ISNA(VLOOKUP(P49,Totals!$AX$3:$AY$102,2,FALSE)),"",VLOOKUP(P49,Totals!$AX$3:$AY$102,2,FALSE)) -> 8 | P49: 1 | V49: =IF(ISNA(VLOOKUP(W49,Totals!$AX$3:$AY$102,2,FALSE)),"",VLOOKUP(W49,Totals!$AX$3:$AY$102,2,FALSE)) -> 8 | W49: 1
H50: =IF(ISNA(VLOOKUP(I50,Totals!$AX$3:$AY$102,2,FALSE)),"",VLOOKUP(I50,Totals!$AX$3:$AY$102,2,FALSE)) -> 8 | I50: 1 | O50: =IF(ISNA(VLOOKUP(P50,Totals!$AX$3:$AY$102,2,FALSE)),"",VLOOKUP(P50,Totals!$AX$3:$AY$102,2,FALSE)) -> 8 | P50: 1 | V50: =IF(ISNA(VLOOKUP(W50,Totals!$AX$3:$AY$102,2,FALSE)),"",VLOOKUP(W50,Totals!$AX$3:$AY$102,2,FALSE)) -> 8 | W50: 1
H51: =IF(ISNA(VLOOKUP(I51,Totals!$AX$3:$AY$102,2,FALSE)),"",VLOOKUP(I51,Totals!$AX$3:$AY$102,2,FALSE)) -> 8 | I51: 1 | O51: =IF(ISNA(VLOOKUP(P51,Totals!$AX$3:$AY$102,2,FALSE)),"",VLOOKUP(P51,Totals!$AX$3:$AY$102,2,FALSE)) -> 8 | P51: 1 | V51: =IF(ISNA(VLOOKUP(W51,Totals!$AX$3:$AY$102,2,FALSE)),"",VLOOKUP(W51,Totals!$AX$3:$AY$102,2,FALSE)) -> 8 | W51: 1
H52: =IF(ISNA(VLOOKUP(I52,Totals!$AX$3:$AY$102,2,FALSE)),"",VLOOKUP(I52,Totals!$AX$3:$AY$102,2,FALSE)) -> 8 | I52: 1 | O52: =IF(ISNA(VLOOKUP(P52,Totals!$AX$3:$AY$102,2,FALSE)),"",VLOOKUP(P52,Totals!$AX$3:$AY$102,2,FALSE)) -> 8 | P52: 1 | V52: =IF(ISNA(VLOOKUP(W52,Totals!$AX$3:$AY$102,2,FALSE)),"",VLOOKUP(W52,Totals!$AX$3:$AY$102,2,FALSE)) -> 8 | W52: 1
H53: =IF(ISNA(VLOOKUP(I53,Totals!$AX$3:$AY$102,2,FALSE)),"",VLOOKUP(I53,Totals!$AX$3:$AY$102,2,FALSE)) -> 8 | I53: 1 | O53: =IF(ISNA(VLOOKUP(P53,Totals!$AX$3:$AY$102,2,FALSE)),"",VLOOKUP(P53,Totals!$AX$3:$AY$102,2,FALSE)) -> 8 | P53: 1 | V53: =IF(ISNA(VLOOKUP(W53,Totals!$AX$3:$AY$102,2,FALSE)),"",VLOOKUP(W53,Totals!$AX$3:$AY$102,2,FALSE)) -> 8 | W53: 1
H54: =IF(ISNA(VLOOKUP(I54,Totals!$AX$3:$AY$102,2,FALSE)),"",VLOOKUP(I54,Totals!$AX$3:$AY$102,2,FALSE)) -> 8 | I54: 1 | O54: =IF(ISNA(VLOOKUP(P54,Totals!$AX$3:$AY$102,2,FALSE)),"",VLOOKUP(P54,Totals!$AX$3:$AY$102,2,FALSE)) -> 8 | P54: 1 | V54: =IF(ISNA(VLOOKUP(W54,Totals!$AX$3:$AY$102,2,FALSE)),"",VLOOKUP(W54,Totals!$AX$3:$AY$102,2,FALSE)) -> 8 | W54: 1
H55: =IF(ISNA(VLOOKUP(I55,Totals!$AX$3:$AY$102,2,FALSE)),"",VLOOKUP(I55,Totals!$AX$3:$AY$102,2,FALSE)) -> 8 | I55: 1 | O55: =IF(ISNA(VLOOKUP(P55,Totals!$AX$3:$AY$102,2,FALSE)),"",VLOOKUP(P55,Totals!$AX$3:$AY$102,2,FALSE)) -> 8 | P55: 1 | V55: =IF(ISNA(VLOOKUP(W55,Totals!$AX$3:$AY$102,2,FALSE)),"",VLOOKUP(W55,Totals!$AX$3:$AY$102,2,FALSE)) -> 8 | W55: 1
H56: =IF(ISNA(VLOOKUP(I56,Totals!$AX$3:$AY$102,2,FALSE)),"",VLOOKUP(I56,Totals!$AX$3:$AY$102,2,FALSE)) -> 8 | I56: 1 | O56: =IF(ISNA(VLOOKUP(P56,Totals!$AX$3:$AY$102,2,FALSE)),"",VLOOKUP(P56,Totals!$AX$3:$AY$102,2,FALSE)) -> 8 | P56: 1 | V56: =IF(ISNA(VLOOKUP(W56,Totals!$AX$3:$AY$102,2,FALSE)),"",VLOOKUP(W56,Totals!$AX$3:$AY$102,2,FALSE)) -> 8 | W56: 1
H57: =IF(ISNA(VLOOKUP(I57,Totals!$AX$3:$AY$102,2,FALSE)),"",VLOOKUP(I57,Totals!$AX$3:$AY$102,2,FALSE)) -> 8 | I57: 1 | O57: =IF(ISNA(VLOOKUP(P57,Totals!$AX$3:$AY$102,2,FALSE)),"",VLOOKUP(P57,Totals!$AX$3:$AY$102,2,FALSE)) -> 8 | P57: 1 | V57: =IF(ISNA(VLOOKUP(W57,Totals!$AX$3:$AY$102,2,FALSE)),"",VLOOKUP(W57,Totals!$AX$3:$AY$102,2,FALSE)) -> 8 | W57: 1
H58: =IF(ISNA(VLOOKUP(I58,Totals!$AX$3:$AY$102,2,FALSE)),"",VLOOKUP(I58,Totals!$AX$3:$AY$102,2,FALSE)) -> 8 | I58: 1 | O58: =IF(ISNA(VLOOKUP(P58,Totals!$AX$3:$AY$102,2,FALSE)),"",VLOOKUP(P58,Totals!$AX$3:$AY$102,2,FALSE)) -> 8 | P58: 1 | V58: =IF(ISNA(VLOOKUP(W58,Totals!$AX$3:$AY$102,2,FALSE)),"",VLOOKUP(W58,Totals!$AX$3:$AY$102,2,FALSE)) -> 8 | W58: 1
H59: =IF(ISNA(VLOOKUP(I59,Totals!$AX$3:$AY$102,2,FALSE)),"",VLOOKUP(I59,Totals!$AX$3:$AY$102,2,FALSE)) -> 8 | I59: 1 | O59: =IF(ISNA(VLOOKUP(P59,Totals!$AX$3:$AY$102,2,FALSE)),"",VLOOKUP(P59,Totals!$AX$3:$AY$102,2,FALSE)) -> 8 | P59: 1 | V59: =IF(ISNA(VLOOKUP(W59,Totals!$AX$3:$AY$102,2,FALSE)),"",VLOOKUP(W59,Totals!$AX$3:$AY$102,2,FALSE)) -> 8 | W59: 1
H60: =IF(ISNA(VLOOKUP(I60,Totals!$AX$3:$AY$102,2,FALSE)),"",VLOOKUP(I60,Totals!$AX$3:$AY$102,2,FALSE)) -> 8 | I60: 1 | O60: =IF(ISNA(VLOOKUP(P60,Totals!$AX$3:$AY$102,2,FALSE)),"",VLOOKUP(P60,Totals!$AX$3:$AY$102,2,FALSE)) -> 8 | P60: 1 | V60: =IF(ISNA(VLOOKUP(W60,Totals!$AX$3:$AY$102,2,FALSE)),"",VLOOKUP(W60,Totals!$AX$3:$AY$102,2,FALSE)) -> 8 | W60: 1
H61: =IF(ISNA(VLOOKUP(I61,Totals!$AX$3:$AY$102,2,FALSE)),"",VLOOKUP(I61,Totals!$AX$3:$AY$102,2,FALSE)) -> 8 | I61: 1 | O61: =IF(ISNA(VLOOKUP(P61,Totals!$AX$3:$AY$102,2,FALSE)),"",VLOOKUP(P61,Totals!$AX$3:$AY$102,2,FALSE)) -> 8 | P61: 1 | V61: =IF(ISNA(VLOOKUP(W61,Totals!$AX$3:$AY$102,2,FALSE)),"",VLOOKUP(W61,Totals!$AX$3:$AY$102,2,FALSE)) -> 8 | W61: 1
H62: =IF(ISNA(VLOOKUP(I62,Totals!$AX$3:$AY$102,2,FALSE)),"",VLOOKUP(I62,Totals!$AX$3:$AY$102,2,FALSE)) -> 8 | I62: 1 | O62: =IF(ISNA(VLOOKUP(P62,Totals!$AX$3:$AY$102,2,FALSE)),"",VLOOKUP(P62,Totals!$AX$3:$AY$102,2,FALSE)) -> 8 | P62: 1 | V62: =IF(ISNA(VLOOKUP(W62,Totals!$AX$3:$AY$102,2,FALSE)),"",VLOOKUP(W62,Totals!$AX$3:$AY$102,2,FALSE)) -> 8 | W62: 1
H63: =IF(ISNA(VLOOKUP(I63,Totals!$AX$3:$AY$102,2,FALSE)),"",VLOOKUP(I63,Totals!$AX$3:$AY$102,2,FALSE)) -> 8 | I63: 1 | O63: =IF(ISNA(VLOOKUP(P63,Totals!$AX$3:$AY$102,2,FALSE)),"",VLOOKUP(P63,Totals!$AX$3:$AY$102,2,FALSE)) -> 8 | P63: 1 | V63: =IF(ISNA(VLOOKUP(W63,Totals!$AX$3:$AY$102,2,FALSE)),"",VLOOKUP(W63,Totals!$AX$3:$AY$102,2,FALSE)) -> 8 | W63: 1
H64: =IF(ISNA(VLOOKUP(I64,Totals!$AX$3:$AY$102,2,FALSE)),"",VLOOKUP(I64,Totals!$AX$3:$AY$102,2,FALSE)) -> 8 | I64: 1 | O64: =IF(ISNA(VLOOKUP(P64,Totals!$AX$3:$AY$102,2,FALSE)),"",VLOOKUP(P64,Totals!$AX$3:$AY$102,2,FALSE)) -> 8 | P64: 1 | V64: =IF(ISNA(VLOOKUP(W64,Totals!$AX$3:$AY$102,2,FALSE)),"",VLOOKUP(W64,Totals!$AX$3:$AY$102,2,FALSE)) -> 8 | W64: 1
H65: =IF(ISNA(VLOOKUP(I65,Totals!$AX$3:$AY$102,2,FALSE)),"",VLOOKUP(I65,Totals!$AX$3:$AY$102,2,FALSE)) -> 8 | I65: 1 | O65: =IF(ISNA(VLOOKUP(P65,Totals!$AX$3:$AY$102,2,FALSE)),"",VLOOKUP(P65,Totals!$AX$3:$AY$102,2,FALSE)) -> 8 | P65: 1 | V65: =IF(ISNA(VLOOKUP(W65,Totals!$AX$3:$AY$102,2,FALSE)),"",VLOOKUP(W65,Totals!$AX$3:$AY$102,2,FALSE)) -> 8 | W65: 1
H66: =IF(ISNA(VLOOKUP(I66,Totals!$AX$3:$AY$102,2,FALSE)),"",VLOOKUP(I66,Totals!$AX$3:$AY$102,2,FALSE)) -> 8 | I66: 1 | O66: =IF(ISNA(VLOOKUP(P66,Totals!$AX$3:$AY$102,2,FALSE)),"",VLOOKUP(P66,Totals!$AX$3:$AY$102,2,FALSE)) -> 8 | P66: 1 | V66: =IF(ISNA(VLOOKUP(W66,Totals!$AX$3:$AY$102,2,FALSE)),"",VLOOKUP(W66,Totals!$AX$3:$AY$102,2,FALSE)) -> 8 | W66: 1
H67: =IF(ISNA(VLOOKUP(I67,Totals!$AX$3:$AY$102,2,FALSE)),"",VLOOKUP(I67,Totals!$AX$3:$AY$102,2,FALSE)) -> 8 | I67: 1 | O67: =IF(ISNA(VLOOKUP(P67,Totals!$AX$3:$AY$102,2,FALSE)),"",VLOOKUP(P67,Totals!$AX$3:$AY$102,2,FALSE)) -> 8 | P67: 1 | V67: =IF(ISNA(VLOOKUP(W67,Totals!$AX$3:$AY$102,2,FALSE)),"",VLOOKUP(W67,Totals!$AX$3:$AY$102,2,FALSE)) -> 8 | W67: 1
H68: =IF(ISNA(VLOOKUP(I68,Totals!$AX$3:$AY$102,2,FALSE)),"",VLOOKUP(I68,Totals!$AX$3:$AY$102,2,FALSE)) -> 8 | I68: 1 | O68: =IF(ISNA(VLOOKUP(P68,Totals!$AX$3:$AY$102,2,FALSE)),"",VLOOKUP(P68,Totals!$AX$3:$AY$102,2,FALSE)) -> 8 | P68: 1 | V68: =IF(ISNA(VLOOKUP(W68,Totals!$AX$3:$AY$102,2,FALSE)),"",VLOOKUP(W68,Totals!$AX$3:$AY$102,2,FALSE)) -> 8 | W68: 1
H69: =IF(ISNA(VLOOKUP(I69,Totals!$AX$3:$AY$102,2,FALSE)),"",VLOOKUP(I69,Totals!$AX$3:$AY$102,2,FALSE)) -> 8 | I69: 1 | O69: =IF(ISNA(VLOOKUP(P69,Totals!$AX$3:$AY$102,2,FALSE)),"",VLOOKUP(P69,Totals!$AX$3:$AY$102,2,FALSE)) -> 8 | P69: 1 | V69: =IF(ISNA(VLOOKUP(W69,Totals!$AX$3:$AY$102,2,FALSE)),"",VLOOKUP(W69,Totals!$AX$3:$AY$102,2,FALSE)) -> 8 | W69: 1
H70: =IF(ISNA(VLOOKUP(I70,Totals!$AX$3:$AY$102,2,FALSE)),"",VLOOKUP(I70,Totals!$AX$3:$AY$102,2,FALSE)) -> 8 | I70: 1 | O70: =IF(ISNA(VLOOKUP(P70,Totals!$AX$3:$AY$102,2,FALSE)),"",VLOOKUP(P70,Totals!$AX$3:$AY$102,2,FALSE)) -> 8 | P70: =IF(ISNA(RANK(N70,N$5:N$150)),"",RANK(N70,N$5:N$150)) -> 1 | V70: =IF(ISNA(VLOOKUP(W70,Totals!$AX$3:$AY$102,2,FALSE)),"",VLOOKUP(W70,Totals!$AX$3:$AY$102,2,FALSE)) -> 8 | W70: =IF(ISNA(RANK(U70,U$5:U$150)),"",RANK(U70,U$5:U$150)) -> 1
H71: =IF(ISNA(VLOOKUP(I71,Totals!$AX$3:$AY$102,2,FALSE)),"",VLOOKUP(I71,Totals!$AX$3:$AY$102,2,FALSE)) -> 8 | I71: =IF(G71=G70,I70,IF(ISNA(RANK(G71,G$5:G$150)),"",RANK(G71,G$5:G$150))) -> 1 | O71: =IF(ISNA(VLOOKUP(P71,Totals!$AX$3:$AY$102,2,FALSE)),"",VLOOKUP(P71,Totals!$AX$3:$AY$102,2,FALSE)) -> 8 | P71: 1 | V71: =IF(ISNA(VLOOKUP(W71,Totals!$AX$3:$AY$102,2,FALSE)),"",VLOOKUP(W71,Totals!$AX$3:$AY$102,2,FALSE)) -> 8 | W71: 1
H72: =IF(ISNA(VLOOKUP(I72,Totals!$AX$3:$AY$102,2,FALSE)),"",VLOOKUP(I72,Totals!$AX$3:$AY$102,2,FALSE)) -> 8 | I72: 1 | O72: =IF(ISNA(VLOOKUP(P72,Totals!$AX$3:$AY$102,2,FALSE)),"",VLOOKUP(P72,Totals!$AX$3:$AY$102,2,FALSE)) -> 8 | P72: 1 | V72: =IF(ISNA(VLOOKUP(W72,Totals!$AX$3:$AY$102,2,FALSE)),"",VLOOKUP(W72,Totals!$AX$3:$AY$102,2,FALSE)) -> 8 | W72: 1
H73: =IF(ISNA(VLOOKUP(I73,Totals!$AX$3:$AY$102,2,FALSE)),"",VLOOKUP(I73,Totals!$AX$3:$AY$102,2,FALSE)) -> 8 | I73: 1 | O73: =IF(ISNA(VLOOKUP(P73,Totals!$AX$3:$AY$102,2,FALSE)),"",VLOOKUP(P73,Totals!$AX$3:$AY$102,2,FALSE)) -> 8 | P73: 1 | V73: =IF(ISNA(VLOOKUP(W73,Totals!$AX$3:$AY$102,2,FALSE)),"",VLOOKUP(W73,Totals!$AX$3:$AY$102,2,FALSE)) -> 8 | W73: 1
H74: =IF(ISNA(VLOOKUP(I74,Totals!$AX$3:$AY$102,2,FALSE)),"",VLOOKUP(I74,Totals!$AX$3:$AY$102,2,FALSE)) -> 8 | I74: 1 | O74: =IF(ISNA(VLOOKUP(P74,Totals!$AX$3:$AY$102,2,FALSE)),"",VLOOKUP(P74,Totals!$AX$3:$AY$102,2,FALSE)) -> 8 | P74: 1 | V74: =IF(ISNA(VLOOKUP(W74,Totals!$AX$3:$AY$102,2,FALSE)),"",VLOOKUP(W74,Totals!$AX$3:$AY$102,2,FALSE)) -> 8 | W74: 1
H75: =IF(ISNA(VLOOKUP(I75,Totals!$AX$3:$AY$102,2,FALSE)),"",VLOOKUP(I75,Totals!$AX$3:$AY$102,2,FALSE)) -> 8 | I75: 1 | O75: =IF(ISNA(VLOOKUP(P75,Totals!$AX$3:$AY$102,2,FALSE)),"",VLOOKUP(P75,Totals!$AX$3:$AY$102,2,FALSE)) -> 8 | P75: 1 | V75: =IF(ISNA(VLOOKUP(W75,Totals!$AX$3:$AY$102,2,FALSE)),"",VLOOKUP(W75,Totals!$AX$3:$AY$102,2,FALSE)) -> 8 | W75: 1
H76: =IF(ISNA(VLOOKUP(I76,Totals!$AX$3:$AY$102,2,FALSE)),"",VLOOKUP(I76,Totals!$AX$3:$AY$102,2,FALSE)) -> 8 | I76: 1 | O76: =IF(ISNA(VLOOKUP(P76,Totals!$AX$3:$AY$102,2,FALSE)),"",VLOOKUP(P76,Totals!$AX$3:$AY$102,2,FALSE)) -> 8 | P76: 1 | V76: =IF(ISNA(VLOOKUP(W76,Totals!$AX$3:$AY$102,2,FALSE)),"",VLOOKUP(W76,Totals!$AX$3:$AY$102,2,FALSE)) -> 8 | W76: 1
H77: =IF(ISNA(VLOOKUP(I77,Totals!$AX$3:$AY$102,2,FALSE)),"",VLOOKUP(I77,Totals!$AX$3:$AY$102,2,FALSE)) -> 8 | I77: 1 | O77: =IF(ISNA(VLOOKUP(P77,Totals!$AX$3:$AY$102,2,FALSE)),"",VLOOKUP(P77,Totals!$AX$3:$AY$102,2,FALSE)) -> 8 | P77: 1 | V77: =IF(ISNA(VLOOKUP(W77,Totals!$AX$3:$AY$102,2,FALSE)),"",VLOOKUP(W77,Totals!$AX$3:$AY$102,2,FALSE)) -> 8 | W77: 1
H78: =IF(ISNA(VLOOKUP(I78,Totals!$AX$3:$AY$102,2,FALSE)),"",VLOOKUP(I78,Totals!$AX$3:$AY$102,2,FALSE)) -> 8 | I78: 1 | O78: =IF(ISNA(VLOOKUP(P78,Totals!$AX$3:$AY$102,2,FALSE)),"",VLOOKUP(P78,Totals!$AX$3:$AY$102,2,FALSE)) -> 8 | P78: 1 | V78: =IF(ISNA(VLOOKUP(W78,Totals!$AX$3:$AY$102,2,FALSE)),"",VLOOKUP(W78,Totals!$AX$3:$AY$102,2,FALSE)) -> 8 | W78: 1
H79: =IF(ISNA(VLOOKUP(I79,Totals!$AX$3:$AY$102,2,FALSE)),"",VLOOKUP(I79,Totals!$AX$3:$AY$102,2,FALSE)) -> 8 | I79: 1 | O79: =IF(ISNA(VLOOKUP(P79,Totals!$AX$3:$AY$102,2,FALSE)),"",VLOOKUP(P79,Totals!$AX$3:$AY$102,2,FALSE)) -> 8 | P79: 1 | V79: =IF(ISNA(VLOOKUP(W79,Totals!$AX$3:$AY$102,2,FALSE)),"",VLOOKUP(W79,Totals!$AX$3:$AY$102,2,FALSE)) -> 8 | W79: 1
H80: =IF(ISNA(VLOOKUP(I80,Totals!$AX$3:$AY$102,2,FALSE)),"",VLOOKUP(I80,Totals!$AX$3:$AY$102,2,FALSE)) -> 8 | I80: 1 | O80: =IF(ISNA(VLOOKUP(P80,Totals!$AX$3:$AY$102,2,FALSE)),"",VLOOKUP(P80,Totals!$AX$3:$AY$102,2,FALSE)) -> 8 | P80: 1 | V80: =IF(ISNA(VLOOKUP(W80,Totals!$AX$3:$AY$102,2,FALSE)),"",VLOOKUP(W80,Totals!$AX$3:$AY$102,2,FALSE)) -> 8 | W80: 1
H81: =IF(ISNA(VLOOKUP(I81,Totals!$AX$3:$AY$102,2,FALSE)),"",VLOOKUP(I81,Totals!$AX$3:$AY$102,2,FALSE)) -> 8 | I81: 1 | O81: =IF(ISNA(VLOOKUP(P81,Totals!$AX$3:$AY$102,2,FALSE)),"",VLOOKUP(P81,Totals!$AX$3:$AY$102,2,FALSE)) -> 8 | P81: 1 | V81: =IF(ISNA(VLOOKUP(W81,Totals!$AX$3:$AY$102,2,FALSE)),"",VLOOKUP(W81,Totals!$AX$3:$AY$102,2,FALSE)) -> 8 | W81: 1
H82: =IF(ISNA(VLOOKUP(I82,Totals!$AX$3:$AY$102,2,FALSE)),"",VLOOKUP(I82,Totals!$AX$3:$AY$102,2,FALSE)) -> 8 | I82: 1 | O82: =IF(ISNA(VLOOKUP(P82,Totals!$AX$3:$AY$102,2,FALSE)),"",VLOOKUP(P82,Totals!$AX$3:$AY$102,2,FALSE)) -> 8 | P82: 1 | V82: =IF(ISNA(VLOOKUP(W82,Totals!$AX$3:$AY$102,2,FALSE)),"",VLOOKUP(W82,Totals!$AX$3:$AY$102,2,FALSE)) -> 8 | W82: 1
H83: =IF(ISNA(VLOOKUP(I83,Totals!$AX$3:$AY$102,2,FALSE)),"",VLOOKUP(I83,Totals!$AX$3:$AY$102,2,FALSE)) -> 8 | I83: 1 | O83: =IF(ISNA(VLOOKUP(P83,Totals!$AX$3:$AY$102,2,FALSE)),"",VLOOKUP(P83,Totals!$AX$3:$AY$102,2,FALSE)) -> 8 | P83: 1 | V83: =IF(ISNA(VLOOKUP(W83,Totals!$AX$3:$AY$102,2,FALSE)),"",VLOOKUP(W83,Totals!$AX$3:$AY$102,2,FALSE)) -> 8 | W83: 1
H84: =IF(ISNA(VLOOKUP(I84,Totals!$AX$3:$AY$102,2,FALSE)),"",VLOOKUP(I84,Totals!$AX$3:$AY$102,2,FALSE)) -> 8 | I84: 1 | O84: =IF(ISNA(VLOOKUP(P84,Totals!$AX$3:$AY$102,2,FALSE)),"",VLOOKUP(P84,Totals!$AX$3:$AY$102,2,FALSE)) -> 8 | P84: 1 | V84: =IF(ISNA(VLOOKUP(W84,Totals!$AX$3:$AY$102,2,FALSE)),"",VLOOKUP(W84,Totals!$AX$3:$AY$102,2,FALSE)) -> 8 | W84: 1
H85: =IF(ISNA(VLOOKUP(I85,Totals!$AX$3:$AY$102,2,FALSE)),"",VLOOKUP(I85,Totals!$AX$3:$AY$102,2,FALSE)) -> 8 | I85: 1 | O85: =IF(ISNA(VLOOKUP(P85,Totals!$AX$3:$AY$102,2,FALSE)),"",VLOOKUP(P85,Totals!$AX$3:$AY$102,2,FALSE)) -> 8 | P85: 1 | V85: =IF(ISNA(VLOOKUP(W85,Totals!$AX$3:$AY$102,2,FALSE)),"",VLOOKUP(W85,Totals!$AX$3:$AY$102,2,FALSE)) -> 8 | W85: 1
H86: =IF(ISNA(VLOOKUP(I86,Totals!$AX$3:$AY$102,2,FALSE)),"",VLOOKUP(I86,Totals!$AX$3:$AY$102,2,FALSE)) -> 8 | I86: 1 | O86: =IF(ISNA(VLOOKUP(P86,Totals!$AX$3:$AY$102,2,FALSE)),"",VLOOKUP(P86,Totals!$AX$3:$AY$102,2,FALSE)) -> 8 | P86: 1 | V86: =IF(ISNA(VLOOKUP(W86,Totals!$AX$3:$AY$102,2,FALSE)),"",VLOOKUP(W86,Totals!$AX$3:$AY$102,2,FALSE)) -> 8 | W86: 1
H87: =IF(ISNA(VLOOKUP(I87,Totals!$AX$3:$AY$102,2,FALSE)),"",VLOOKUP(I87,Totals!$AX$3:$AY$102,2,FALSE)) -> 8 | I87: 1 | O87: =IF(ISNA(VLOOKUP(P87,Totals!$AX$3:$AY$102,2,FALSE)),"",VLOOKUP(P87,Totals!$AX$3:$AY$102,2,FALSE)) -> 8 | P87: 1 | V87: =IF(ISNA(VLOOKUP(W87,Totals!$AX$3:$AY$102,2,FALSE)),"",VLOOKUP(W87,Totals!$AX$3:$AY$102,2,FALSE)) -> 8 | W87: 1
H88: =IF(ISNA(VLOOKUP(I88,Totals!$AX$3:$AY$102,2,FALSE)),"",VLOOKUP(I88,Totals!$AX$3:$AY$102,2,FALSE)) -> 8 | I88: 1 | O88: =IF(ISNA(VLOOKUP(P88,Totals!$AX$3:$AY$102,2,FALSE)),"",VLOOKUP(P88,Totals!$AX$3:$AY$102,2,FALSE)) -> 8 | P88: 1 | V88: =IF(ISNA(VLOOKUP(W88,Totals!$AX$3:$AY$102,2,FALSE)),"",VLOOKUP(W88,Totals!$AX$3:$AY$102,2,FALSE)) -> 8 | W88: 1
H89: =IF(ISNA(VLOOKUP(I89,Totals!$AX$3:$AY$102,2,FALSE)),"",VLOOKUP(I89,Totals!$AX$3:$AY$102,2,FALSE)) -> 8 | I89: 1 | O89: =IF(ISNA(VLOOKUP(P89,Totals!$AX$3:$AY$102,2,FALSE)),"",VLOOKUP(P89,Totals!$AX$3:$AY$102,2,FALSE)) -> 8 | P89: 1 | V89: =IF(ISNA(VLOOKUP(W89,Totals!$AX$3:$AY$102,2,FALSE)),"",VLOOKUP(W89,Totals!$AX$3:$AY$102,2,FALSE)) -> 8 | W89: 1
H90: =IF(ISNA(VLOOKUP(I90,Totals!$AX$3:$AY$102,2,FALSE)),"",VLOOKUP(I90,Totals!$AX$3:$AY$102,2,FALSE)) -> 8 | I90: 1 | O90: =IF(ISNA(VLOOKUP(P90,Totals!$AX$3:$AY$102,2,FALSE)),"",VLOOKUP(P90,Totals!$AX$3:$AY$102,2,FALSE)) -> 8 | P90: 1 | V90: =IF(ISNA(VLOOKUP(W90,Totals!$AX$3:$AY$102,2,FALSE)),"",VLOOKUP(W90,Totals!$AX$3:$AY$102,2,FALSE)) -> 8 | W90: 1
H91: =IF(ISNA(VLOOKUP(I91,Totals!$AX$3:$AY$102,2,FALSE)),"",VLOOKUP(I91,Totals!$AX$3:$AY$102,2,FALSE)) -> 8 | I91: 1 | O91: =IF(ISNA(VLOOKUP(P91,Totals!$AX$3:$AY$102,2,FALSE)),"",VLOOKUP(P91,Totals!$AX$3:$AY$102,2,FALSE)) -> 8 | P91: 1 | V91: =IF(ISNA(VLOOKUP(W91,Totals!$AX$3:$AY$102,2,FALSE)),"",VLOOKUP(W91,Totals!$AX$3:$AY$102,2,FALSE)) -> 8 | W91: 1
H92: =IF(ISNA(VLOOKUP(I92,Totals!$AX$3:$AY$102,2,FALSE)),"",VLOOKUP(I92,Totals!$AX$3:$AY$102,2,FALSE)) -> 8 | I92: 1 | O92: =IF(ISNA(VLOOKUP(P92,Totals!$AX$3:$AY$102,2,FALSE)),"",VLOOKUP(P92,Totals!$AX$3:$AY$102,2,FALSE)) -> 8 | P92: 1 | V92: =IF(ISNA(VLOOKUP(W92,Totals!$AX$3:$AY$102,2,FALSE)),"",VLOOKUP(W92,Totals!$AX$3:$AY$102,2,FALSE)) -> 8 | W92: 1
H93: =IF(ISNA(VLOOKUP(I93,Totals!$AX$3:$AY$102,2,FALSE)),"",VLOOKUP(I93,Totals!$AX$3:$AY$102,2,FALSE)) -> 8 | I93: 1 | O93: =IF(ISNA(VLOOKUP(P93,Totals!$AX$3:$AY$102,2,FALSE)),"",VLOOKUP(P93,Totals!$AX$3:$AY$102,2,FALSE)) -> 8 | P93: 1 | V93: =IF(ISNA(VLOOKUP(W93,Totals!$AX$3:$AY$102,2,FALSE)),"",VLOOKUP(W93,Totals!$AX$3:$AY$102,2,FALSE)) -> 8 | W93: 1
H94: =IF(ISNA(VLOOKUP(I94,Totals!$AX$3:$AY$102,2,FALSE)),"",VLOOKUP(I94,Totals!$AX$3:$AY$102,2,FALSE)) -> 8 | I94: 1 | O94: =IF(ISNA(VLOOKUP(P94,Totals!$AX$3:$AY$102,2,FALSE)),"",VLOOKUP(P94,Totals!$AX$3:$AY$102,2,FALSE)) -> 8 | P94: 1 | V94: =IF(ISNA(VLOOKUP(W94,Totals!$AX$3:$AY$102,2,FALSE)),"",VLOOKUP(W94,Totals!$AX$3:$AY$102,2,FALSE)) -> 8 | W94: 1
H95: =IF(ISNA(VLOOKUP(I95,Totals!$AX$3:$AY$102,2,FALSE)),"",VLOOKUP(I95,Totals!$AX$3:$AY$102,2,FALSE)) -> 8 | I95: 1 | O95: =IF(ISNA(VLOOKUP(P95,Totals!$AX$3:$AY$102,2,FALSE)),"",VLOOKUP(P95,Totals!$AX$3:$AY$102,2,FALSE)) -> 8 | P95: 1 | V95: =IF(ISNA(VLOOKUP(W95,Totals!$AX$3:$AY$102,2,FALSE)),"",VLOOKUP(W95,Totals!$AX$3:$AY$102,2,FALSE)) -> 8 | W95: 1
H96: =IF(ISNA(VLOOKUP(I96,Totals!$AX$3:$AY$102,2,FALSE)),"",VLOOKUP(I96,Totals!$AX$3:$AY$102,2,FALSE)) -> 8 | I96: 1 | O96: =IF(ISNA(VLOOKUP(P96,Totals!$AX$3:$AY$102,2,FALSE)),"",VLOOKUP(P96,Totals!$AX$3:$AY$102,2,FALSE)) -> 8 | P96: 1 | V96: =IF(ISNA(VLOOKUP(W96,Totals!$AX$3:$AY$102,2,FALSE)),"",VLOOKUP(W96,Totals!$AX$3:$AY$102,2,FALSE)) -> 8 | W96: 1
H97: =IF(ISNA(VLOOKUP(I97,Totals!$AX$3:$AY$102,2,FALSE)),"",VLOOKUP(I97,Totals!$AX$3:$AY$102,2,FALSE)) -> 8 | I97: 1 | O97: =IF(ISNA(VLOOKUP(P97,Totals!$AX$3:$AY$102,2,FALSE)),"",VLOOKUP(P97,Totals!$AX$3:$AY$102,2,FALSE)) -> 8 | P97: 1 | V97: =IF(ISNA(VLOOKUP(W97,Totals!$AX$3:$AY$102,2,FALSE)),"",VLOOKUP(W97,Totals!$AX$3:$AY$102,2,FALSE)) -> 8 | W97: 1
H98: =IF(ISNA(VLOOKUP(I98,Totals!$AX$3:$AY$102,2,FALSE)),"",VLOOKUP(I98,Totals!$AX$3:$AY$102,2,FALSE)) -> 8 | I98: 1 | O98: =IF(ISNA(VLOOKUP(P98,Totals!$AX$3:$AY$102,2,FALSE)),"",VLOOKUP(P98,Totals!$AX$3:$AY$102,2,FALSE)) -> 8 | P98: 1 | V98: =IF(ISNA(VLOOKUP(W98,Totals!$AX$3:$AY$102,2,FALSE)),"",VLOOKUP(W98,Totals!$AX$3:$AY$102,2,FALSE)) -> 8 | W98: 1
H99: =IF(ISNA(VLOOKUP(I99,Totals!$AX$3:$AY$102,2,FALSE)),"",VLOOKUP(I99,Totals!$AX$3:$AY$102,2,FALSE)) -> 8 | I99: 1 | O99: =IF(ISNA(VLOOKUP(P99,Totals!$AX$3:$AY$102,2,FALSE)),"",VLOOKUP(P99,Totals!$AX$3:$AY$102,2,FALSE)) -> 8 | P99: 1 | V99: =IF(ISNA(VLOOKUP(W99,Totals!$AX$3:$AY$102,2,FALSE)),"",VLOOKUP(W99,Totals!$AX$3:$AY$102,2,FALSE)) -> 8 | W99: 1
H100: =IF(ISNA(VLOOKUP(I100,Totals!$AX$3:$AY$102,2,FALSE)),"",VLOOKUP(I100,Totals!$AX$3:$AY$102,2,FALSE)) -> 8 | I100: 1 | O100: =IF(ISNA(VLOOKUP(P100,Totals!$AX$3:$AY$102,2,FALSE)),"",VLOOKUP(P100,Totals!$AX$3:$AY$102,2,FALSE)) -> 8 | P100: 1 | V100: =IF(ISNA(VLOOKUP(W100,Totals!$AX$3:$AY$102,2,FALSE)),"",VLOOKUP(W100,Totals!$AX$3:$AY$102,2,FALSE)) -> 8 | W100: 1
H101: =IF(ISNA(VLOOKUP(I101,Totals!$AX$3:$AY$102,2,FALSE)),"",VLOOKUP(I101,Totals!$AX$3:$AY$102,2,FALSE)) -> 8 | I101: 1 | O101: =IF(ISNA(VLOOKUP(P101,Totals!$AX$3:$AY$102,2,FALSE)),"",VLOOKUP(P101,Totals!$AX$3:$AY$102,2,FALSE)) -> 8 | P101: 1 | V101: =IF(ISNA(VLOOKUP(W101,Totals!$AX$3:$AY$102,2,FALSE)),"",VLOOKUP(W101,Totals!$AX$3:$AY$102,2,FALSE)) -> 8 | W101: 1
H102: =IF(ISNA(VLOOKUP(I102,Totals!$AX$3:$AY$102,2,FALSE)),"",VLOOKUP(I102,Totals!$AX$3:$AY$102,2,FALSE)) -> 8 | I102: 1 | O102: =IF(ISNA(VLOOKUP(P102,Totals!$AX$3:$AY$102,2,FALSE)),"",VLOOKUP(P102,Totals!$AX$3:$AY$102,2,FALSE)) -> 8 | P102: 1 | V102: =IF(ISNA(VLOOKUP(W102,Totals!$AX$3:$AY$102,2,FALSE)),"",VLOOKUP(W102,Totals!$AX$3:$AY$102,2,FALSE)) -> 8 | W102: 1
H103: =IF(ISNA(VLOOKUP(I103,Totals!$AX$3:$AY$102,2,FALSE)),"",VLOOKUP(I103,Totals!$AX$3:$AY$102,2,FALSE)) -> 8 | I103: 1 | O103: =IF(ISNA(VLOOKUP(P103,Totals!$AX$3:$AY$102,2,FALSE)),"",VLOOKUP(P103,Totals!$AX$3:$AY$102,2,FALSE)) -> 8 | P103: 1 | V103: =IF(ISNA(VLOOKUP(W103,Totals!$AX$3:$AY$102,2,FALSE)),"",VLOOKUP(W103,Totals!$AX$3:$AY$102,2,FALSE)) -> 8 | W103: 1
H104: =IF(ISNA(VLOOKUP(I104,Totals!$AX$3:$AY$102,2,FALSE)),"",VLOOKUP(I104,Totals!$AX$3:$AY$102,2,FALSE)) -> 8 | I104: 1 | O104: =IF(ISNA(VLOOKUP(P104,Totals!$AX$3:$AY$102,2,FALSE)),"",VLOOKUP(P104,Totals!$AX$3:$AY$102,2,FALSE)) -> 8 | P104: 1 | V104: =IF(ISNA(VLOOKUP(W104,Totals!$AX$3:$AY$102,2,FALSE)),"",VLOOKUP(W104,Totals!$AX$3:$AY$102,2,FALSE)) -> 8 | W104: 1
H105: =IF(ISNA(VLOOKUP(I105,Totals!$AX$3:$AY$102,2,FALSE)),"",VLOOKUP(I105,Totals!$AX$3:$AY$102,2,FALSE)) -> 8 | I105: 1 | O105: =IF(ISNA(VLOOKUP(P105,Totals!$AX$3:$AY$102,2,FALSE)),"",VLOOKUP(P105,Totals!$AX$3:$AY$102,2,FALSE)) -> 8 | P105: 1 | V105: =IF(ISNA(VLOOKUP(W105,Totals!$AX$3:$AY$102,2,FALSE)),"",VLOOKUP(W105,Totals!$AX$3:$AY$102,2,FALSE)) -> 8 | W105: 1
H106: =IF(ISNA(VLOOKUP(I106,Totals!$AX$3:$AY$102,2,FALSE)),"",VLOOKUP(I106,Totals!$AX$3:$AY$102,2,FALSE)) -> 8 | I106: 1 | O106: =IF(ISNA(VLOOKUP(P106,Totals!$AX$3:$AY$102,2,FALSE)),"",VLOOKUP(P106,Totals!$AX$3:$AY$102,2,FALSE)) -> 8 | P106: 1 | V106: =IF(ISNA(VLOOKUP(W106,Totals!$AX$3:$AY$102,2,FALSE)),"",VLOOKUP(W106,Totals!$AX$3:$AY$102,2,FALSE)) -> 8 | W106: 1
H107: =IF(ISNA(VLOOKUP(I107,Totals!$AX$3:$AY$102,2,FALSE)),"",VLOOKUP(I107,Totals!$AX$3:$AY$102,2,FALSE)) -> 8 | I107: 1 | O107: =IF(ISNA(VLOOKUP(P107,Totals!$AX$3:$AY$102,2,FALSE)),"",VLOOKUP(P107,Totals!$AX$3:$AY$102,2,FALSE)) -> 8 | P107: 1 | V107: =IF(ISNA(VLOOKUP(W107,Totals!$AX$3:$AY$102,2,FALSE)),"",VLOOKUP(W107,Totals!$AX$3:$AY$102,2,FALSE)) -> 8 | W107: 1
H108: =IF(ISNA(VLOOKUP(I108,Totals!$AX$3:$AY$102,2,FALSE)),"",VLOOKUP(I108,Totals!$AX$3:$AY$102,2,FALSE)) -> 8 | I108: 1 | O108: =IF(ISNA(VLOOKUP(P108,Totals!$AX$3:$AY$102,2,FALSE)),"",VLOOKUP(P108,Totals!$AX$3:$AY$102,2,FALSE)) -> 8 | P108: 1 | V108: =IF(ISNA(VLOOKUP(W108,Totals!$AX$3:$AY$102,2,FALSE)),"",VLOOKUP(W108,Totals!$AX$3:$AY$102,2,FALSE)) -> 8 | W108: 1
H109: =IF(ISNA(VLOOKUP(I109,Totals!$AX$3:$AY$102,2,FALSE)),"",VLOOKUP(I109,Totals!$AX$3:$AY$102,2,FALSE)) -> 8 | I109: 1 | O109: =IF(ISNA(VLOOKUP(P109,Totals!$AX$3:$AY$102,2,FALSE)),"",VLOOKUP(P109,Totals!$AX$3:$AY$102,2,FALSE)) -> 8 | P109: 1 | V109: =IF(ISNA(VLOOKUP(W109,Totals!$AX$3:$AY$102,2,FALSE)),"",VLOOKUP(W109,Totals!$AX$3:$AY$102,2,FALSE)) -> 8 | W109: 1
H110: =IF(ISNA(VLOOKUP(I110,Totals!$AX$3:$AY$102,2,FALSE)),"",VLOOKUP(I110,Totals!$AX$3:$AY$102,2,FALSE)) -> 8 | I110: 1 | O110: =IF(ISNA(VLOOKUP(P110,Totals!$AX$3:$AY$102,2,FALSE)),"",VLOOKUP(P110,Totals!$AX$3:$AY$102,2,FALSE)) -> 8 | P110: 1 | V110: =IF(ISNA(VLOOKUP(W110,Totals!$AX$3:$AY$102,2,FALSE)),"",VLOOKUP(W110,Totals!$AX$3:$AY$102,2,FALSE)) -> 8 | W110: 1
H111: =IF(ISNA(VLOOKUP(I111,Totals!$AX$3:$AY$102,2,FALSE)),"",VLOOKUP(I111,Totals!$AX$3:$AY$102,2,FALSE)) -> 8 | I111: 1 | O111: =IF(ISNA(VLOOKUP(P111,Totals!$AX$3:$AY$102,2,FALSE)),"",VLOOKUP(P111,Totals!$AX$3:$AY$102,2,FALSE)) -> 8 | P111: 1 | V111: =IF(ISNA(VLOOKUP(W111,Totals!$AX$3:$AY$102,2,FALSE)),"",VLOOKUP(W111,Totals!$AX$3:$AY$102,2,FALSE)) -> 8 | W111: 1
H112: =IF(ISNA(VLOOKUP(I112,Totals!$AX$3:$AY$102,2,FALSE)),"",VLOOKUP(I112,Totals!$AX$3:$AY$102,2,FALSE)) -> 8 | I112: 1 | O112: =IF(ISNA(VLOOKUP(P112,Totals!$AX$3:$AY$102,2,FALSE)),"",VLOOKUP(P112,Totals!$AX$3:$AY$102,2,FALSE)) -> 8 | P112: 1 | V112: =IF(ISNA(VLOOKUP(W112,Totals!$AX$3:$AY$102,2,FALSE)),"",VLOOKUP(W112,Totals!$AX$3:$AY$102,2,FALSE)) -> 8 | W112: 1
H113: =IF(ISNA(VLOOKUP(I113,Totals!$AX$3:$AY$102,2,FALSE)),"",VLOOKUP(I113,Totals!$AX$3:$AY$102,2,FALSE)) -> 8 | I113: 1 | O113: =IF(ISNA(VLOOKUP(P113,Totals!$AX$3:$AY$102,2,FALSE)),"",VLOOKUP(P113,Totals!$AX$3:$AY$102,2,FALSE)) -> 8 | P113: 1 | V113: =IF(ISNA(VLOOKUP(W113,Totals!$AX$3:$AY$102,2,FALSE)),"",VLOOKUP(W113,Totals!$AX$3:$AY$102,2,FALSE)) -> 8 | W113: 1
H114: =IF(ISNA(VLOOKUP(I114,Totals!$AX$3:$AY$102,2,FALSE)),"",VLOOKUP(I114,Totals!$AX$3:$AY$102,2,FALSE)) -> 8 | I114: 1 | O114: =IF(ISNA(VLOOKUP(P114,Totals!$AX$3:$AY$102,2,FALSE)),"",VLOOKUP(P114,Totals!$AX$3:$AY$102,2,FALSE)) -> 8 | P114: 1 | V114: =IF(ISNA(VLOOKUP(W114,Totals!$AX$3:$AY$102,2,FALSE)),"",VLOOKUP(W114,Totals!$AX$3:$AY$102,2,FALSE)) -> 8 | W114: 1
H115: =IF(ISNA(VLOOKUP(I115,Totals!$AX$3:$AY$102,2,FALSE)),"",VLOOKUP(I115,Totals!$AX$3:$AY$102,2,FALSE)) -> 8 | I115: 1 | O115: =IF(ISNA(VLOOKUP(P115,Totals!$AX$3:$AY$102,2,FALSE)),"",VLOOKUP(P115,Totals!$AX$3:$AY$102,2,FALSE)) -> 8 | P115: 1 | V115: =IF(ISNA(VLOOKUP(W115,Totals!$AX$3:$AY$102,2,FALSE)),"",VLOOKUP(W115,Totals!$AX$3:$AY$102,2,FALSE)) -> 8 | W115: 1
H116: =IF(ISNA(VLOOKUP(I116,Totals!$AX$3:$AY$102,2,FALSE)),"",VLOOKUP(I116,Totals!$AX$3:$AY$102,2,FALSE)) -> 8 | I116: 1 | O116: =IF(ISNA(VLOOKUP(P116,Totals!$AX$3:$AY$102,2,FALSE)),"",VLOOKUP(P116,Totals!$AX$3:$AY$102,2,FALSE)) -> 8 | P116: 1 | V116: =IF(ISNA(VLOOKUP(W116,Totals!$AX$3:$AY$102,2,FALSE)),"",VLOOKUP(W116,Totals!$AX$3:$AY$102,2,FALSE)) -> 8 | W116: 1
H117: =IF(ISNA(VLOOKUP(I117,Totals!$AX$3:$AY$102,2,FALSE)),"",VLOOKUP(I117,Totals!$AX$3:$AY$102,2,FALSE)) -> 8 | I117: 1 | O117: =IF(ISNA(VLOOKUP(P117,Totals!$AX$3:$AY$102,2,FALSE)),"",VLOOKUP(P117,Totals!$AX$3:$AY$102,2,FALSE)) -> 8 | P117: 1 | V117: =IF(ISNA(VLOOKUP(W117,Totals!$AX$3:$AY$102,2,FALSE)),"",VLOOKUP(W117,Totals!$AX$3:$AY$102,2,FALSE)) -> 8 | W117: 1
H118: =IF(ISNA(VLOOKUP(I118,Totals!$AX$3:$AY$102,2,FALSE)),"",VLOOKUP(I118,Totals!$AX$3:$AY$102,2,FALSE)) -> 8 | I118: 1 | O118: =IF(ISNA(VLOOKUP(P118,Totals!$AX$3:$AY$102,2,FALSE)),"",VLOOKUP(P118,Totals!$AX$3:$AY$102,2,FALSE)) -> 8 | P118: 1 | V118: =IF(ISNA(VLOOKUP(W118,Totals!$AX$3:$AY$102,2,FALSE)),"",VLOOKUP(W118,Totals!$AX$3:$AY$102,2,FALSE)) -> 8 | W118: 1
H119: =IF(ISNA(VLOOKUP(I119,Totals!$AX$3:$AY$102,2,FALSE)),"",VLOOKUP(I119,Totals!$AX$3:$AY$102,2,FALSE)) -> 8 | I119: 1 | O119: =IF(ISNA(VLOOKUP(P119,Totals!$AX$3:$AY$102,2,FALSE)),"",VLOOKUP(P119,Totals!$AX$3:$AY$102,2,FALSE)) -> 8 | P119: 1 | V119: =IF(ISNA(VLOOKUP(W119,Totals!$AX$3:$AY$102,2,FALSE)),"",VLOOKUP(W119,Totals!$AX$3:$AY$102,2,FALSE)) -> 8 | W119: 1
H120: =IF(ISNA(VLOOKUP(I120,Totals!$AX$3:$AY$102,2,FALSE)),"",VLOOKUP(I120,Totals!$AX$3:$AY$102,2,FALSE)) -> 8 | I120: 1 | O120: =IF(ISNA(VLOOKUP(P120,Totals!$AX$3:$AY$102,2,FALSE)),"",VLOOKUP(P120,Totals!$AX$3:$AY$102,2,FALSE)) -> 8 | P120: 1 | V120: =IF(ISNA(VLOOKUP(W120,Totals!$AX$3:$AY$102,2,FALSE)),"",VLOOKUP(W120,Totals!$AX$3:$AY$102,2,FALSE)) -> 8 | W120: 1
H121: =IF(ISNA(VLOOKUP(I121,Totals!$AX$3:$AY$102,2,FALSE)),"",VLOOKUP(I121,Totals!$AX$3:$AY$102,2,FALSE)) -> 8 | I121: 1 | O121: =IF(ISNA(VLOOKUP(P121,Totals!$AX$3:$AY$102,2,FALSE)),"",VLOOKUP(P121,Totals!$AX$3:$AY$102,2,FALSE)) -> 8 | P121: 1 | V121: =IF(ISNA(VLOOKUP(W121,Totals!$AX$3:$AY$102,2,FALSE)),"",VLOOKUP(W121,Totals!$AX$3:$AY$102,2,FALSE)) -> 8 | W121: 1
H122: =IF(ISNA(VLOOKUP(I122,Totals!$AX$3:$AY$102,2,FALSE)),"",VLOOKUP(I122,Totals!$AX$3:$AY$102,2,FALSE)) -> 8 | I122: 1 | O122: =IF(ISNA(VLOOKUP(P122,Totals!$AX$3:$AY$102,2,FALSE)),"",VLOOKUP(P122,Totals!$AX$3:$AY$102,2,FALSE)) -> 8 | P122: 1 | V122: =IF(ISNA(VLOOKUP(W122,Totals!$AX$3:$AY$102,2,FALSE)),"",VLOOKUP(W122,Totals!$AX$3:$AY$102,2,FALSE)) -> 8 | W122: 1
H123: =IF(ISNA(VLOOKUP(I123,Totals!$AX$3:$AY$102,2,FALSE)),"",VLOOKUP(I123,Totals!$AX$3:$AY$102,2,FALSE)) -> 8 | I123: 1 | O123: =IF(ISNA(VLOOKUP(P123,Totals!$AX$3:$AY$102,2,FALSE)),"",VLOOKUP(P123,Totals!$AX$3:$AY$102,2,FALSE)) -> 8 | P123: 1 | V123: =IF(ISNA(VLOOKUP(W123,Totals!$AX$3:$AY$102,2,FALSE)),"",VLOOKUP(W123,Totals!$AX$3:$AY$102,2,FALSE)) -> 8 | W123: 1
H124: =IF(ISNA(VLOOKUP(I124,Totals!$AX$3:$AY$102,2,FALSE)),"",VLOOKUP(I124,Totals!$AX$3:$AY$102,2,FALSE)) -> 8 | I124: 1 | O124: =IF(ISNA(VLOOKUP(P124,Totals!$AX$3:$AY$102,2,FALSE)),"",VLOOKUP(P124,Totals!$AX$3:$AY$102,2,FALSE)) -> 8 | P124: 1 | V124: =IF(ISNA(VLOOKUP(W124,Totals!$AX$3:$AY$102,2,FALSE)),"",VLOOKUP(W124,Totals!$AX$3:$AY$102,2,FALSE)) -> 8 | W124: 1
H125: =IF(ISNA(VLOOKUP(I125,Totals!$AX$3:$AY$102,2,FALSE)),"",VLOOKUP(I125,Totals!$AX$3:$AY$102,2,FALSE)) -> 8 | I125: 1 | O125: =IF(ISNA(VLOOKUP(P125,Totals!$AX$3:$AY$102,2,FALSE)),"",VLOOKUP(P125,Totals!$AX$3:$AY$102,2,FALSE)) -> 8 | P125: 1 | V125: =IF(ISNA(VLOOKUP(W125,Totals!$AX$3:$AY$102,2,FALSE)),"",VLOOKUP(W125,Totals!$AX$3:$AY$102,2,FALSE)) -> 8 | W125: 1
H126: =IF(ISNA(VLOOKUP(I126,Totals!$AX$3:$AY$102,2,FALSE)),"",VLOOKUP(I126,Totals!$AX$3:$AY$102,2,FALSE)) -> 8 | I126: 1 | O126: =IF(ISNA(VLOOKUP(P126,Totals!$AX$3:$AY$102,2,FALSE)),"",VLOOKUP(P126,Totals!$AX$3:$AY$102,2,FALSE)) -> 8 | P126: 1 | V126: =IF(ISNA(VLOOKUP(W126,Totals!$AX$3:$AY$102,2,FALSE)),"",VLOOKUP(W126,Totals!$AX$3:$AY$102,2,FALSE)) -> 8 | W126: 1
H127: =IF(ISNA(VLOOKUP(I127,Totals!$AX$3:$AY$102,2,FALSE)),"",VLOOKUP(I127,Totals!$AX$3:$AY$102,2,FALSE)) -> 8 | I127: 1 | O127: =IF(ISNA(VLOOKUP(P127,Totals!$AX$3:$AY$102,2,FALSE)),"",VLOOKUP(P127,Totals!$AX$3:$AY$102,2,FALSE)) -> 8 | P127: 1 | V127: =IF(ISNA(VLOOKUP(W127,Totals!$AX$3:$AY$102,2,FALSE)),"",VLOOKUP(W127,Totals!$AX$3:$AY$102,2,FALSE)) -> 8 | W127: 1
H128: =IF(ISNA(VLOOKUP(I128,Totals!$AX$3:$AY$102,2,FALSE)),"",VLOOKUP(I128,Totals!$AX$3:$AY$102,2,FALSE)) -> 8 | I128: 1 | O128: =IF(ISNA(VLOOKUP(P128,Totals!$AX$3:$AY$102,2,FALSE)),"",VLOOKUP(P128,Totals!$AX$3:$AY$102,2,FALSE)) -> 8 | P128: 1 | V128: =IF(ISNA(VLOOKUP(W128,Totals!$AX$3:$AY$102,2,FALSE)),"",VLOOKUP(W128,Totals!$AX$3:$AY$102,2,FALSE)) -> 8 | W128: 1
H129: =IF(ISNA(VLOOKUP(I129,Totals!$AX$3:$AY$102,2,FALSE)),"",VLOOKUP(I129,Totals!$AX$3:$AY$102,2,FALSE)) -> 8 | I129: 1 | O129: =IF(ISNA(VLOOKUP(P129,Totals!$AX$3:$AY$102,2,FALSE)),"",VLOOKUP(P129,Totals!$AX$3:$AY$102,2,FALSE)) -> 8 | P129: 1 | V129: =IF(ISNA(VLOOKUP(W129,Totals!$AX$3:$AY$102,2,FALSE)),"",VLOOKUP(W129,Totals!$AX$3:$AY$102,2,FALSE)) -> 8 | W129: 1
H130: =IF(ISNA(VLOOKUP(I130,Totals!$AX$3:$AY$102,2,FALSE)),"",VLOOKUP(I130,Totals!$AX$3:$AY$102,2,FALSE)) -> 8 | I130: 1 | O130: =IF(ISNA(VLOOKUP(P130,Totals!$AX$3:$AY$102,2,FALSE)),"",VLOOKUP(P130,Totals!$AX$3:$AY$102,2,FALSE)) -> 8 | P130: 1 | V130: =IF(ISNA(VLOOKUP(W130,Totals!$AX$3:$AY$102,2,FALSE)),"",VLOOKUP(W130,Totals!$AX$3:$AY$102,2,FALSE)) -> 8 | W130: 1
H131: =IF(ISNA(VLOOKUP(I131,Totals!$AX$3:$AY$102,2,FALSE)),"",VLOOKUP(I131,Totals!$AX$3:$AY$102,2,FALSE)) -> 8 | I131: 1 | O131: =IF(ISNA(VLOOKUP(P131,Totals!$AX$3:$AY$102,2,FALSE)),"",VLOOKUP(P131,Totals!$AX$3:$AY$102,2,FALSE)) -> 8 | P131: 1 | V131: =IF(ISNA(VLOOKUP(W131,Totals!$AX$3:$AY$102,2,FALSE)),"",VLOOKUP(W131,Totals!$AX$3:$AY$102,2,FALSE)) -> 8 | W131: 1
H132: =IF(ISNA(VLOOKUP(I132,Totals!$AX$3:$AY$102,2,FALSE)),"",VLOOKUP(I132,Totals!$AX$3:$AY$102,2,FALSE)) -> 8 | I132: 1 | O132: =IF(ISNA(VLOOKUP(P132,Totals!$AX$3:$AY$102,2,FALSE)),"",VLOOKUP(P132,Totals!$AX$3:$AY$102,2,FALSE)) -> 8 | P132: 1 | V132: =IF(ISNA(VLOOKUP(W132,Totals!$AX$3:$AY$102,2,FALSE)),"",VLOOKUP(W132,Totals!$AX$3:$AY$102,2,FALSE)) -> 8 | W132: 1
H133: =IF(ISNA(VLOOKUP(I133,Totals!$AX$3:$AY$102,2,FALSE)),"",VLOOKUP(I133,Totals!$AX$3:$AY$102,2,FALSE)) -> 8 | I133: 1 | O133: =IF(ISNA(VLOOKUP(P133,Totals!$AX$3:$AY$102,2,FALSE)),"",VLOOKUP(P133,Totals!$AX$3:$AY$102,2,FALSE)) -> 8 | P133: 1 | V133: =IF(ISNA(VLOOKUP(W133,Totals!$AX$3:$AY$102,2,FALSE)),"",VLOOKUP(W133,Totals!$AX$3:$AY$102,2,FALSE)) -> 8 | W133: 1
H134: =IF(ISNA(VLOOKUP(I134,Totals!$AX$3:$AY$102,2,FALSE)),"",VLOOKUP(I134,Totals!$AX$3:$AY$102,2,FALSE)) -> 8 | I134: 1 | O134: =IF(ISNA(VLOOKUP(P134,Totals!$AX$3:$AY$102,2,FALSE)),"",VLOOKUP(P134,Totals!$AX$3:$AY$102,2,FALSE)) -> 8 | P134: =IF(ISNA(RANK(N134,N$5:N$150)),"",RANK(N134,N$5:N$150)) -> 1 | V134: =IF(ISNA(VLOOKUP(W134,Totals!$AX$3:$AY$102,2,FALSE)),"",VLOOKUP(W134,Totals!$AX$3:$AY$102,2,FALSE)) -> 8 | W134: =IF(ISNA(RANK(U134,U$5:U$150)),"",RANK(U134,U$5:U$150)) -> 1
H135: =IF(ISNA(VLOOKUP(I135,Totals!$AX$3:$AY$102,2,FALSE)),"",VLOOKUP(I135,Totals!$AX$3:$AY$102,2,FALSE)) -> 8 | I135: =IF(G135=G134,I134,IF(ISNA(RANK(G135,G$5:G$150)),"",RANK(G135,G$5:G$150))) -> 1 | O135: =IF(ISNA(VLOOKUP(P135,Totals!$AX$3:$AY$102,2,FALSE)),"",VLOOKUP(P135,Totals!$AX$3:$AY$102,2,FALSE)) -> 8 | P135: 1 | V135: =IF(ISNA(VLOOKUP(W135,Totals!$AX$3:$AY$102,2,FALSE)),"",VLOOKUP(W135,Totals!$AX$3:$AY$102,2,FALSE)) -> 8 | W135: 1
H136: =IF(ISNA(VLOOKUP(I136,Totals!$AX$3:$AY$102,2,FALSE)),"",VLOOKUP(I136,Totals!$AX$3:$AY$102,2,FALSE)) -> 8 | I136: 1 | O136: =IF(ISNA(VLOOKUP(P136,Totals!$AX$3:$AY$102,2,FALSE)),"",VLOOKUP(P136,Totals!$AX$3:$AY$102,2,FALSE)) -> 8 | P136: 1 | V136: =IF(ISNA(VLOOKUP(W136,Totals!$AX$3:$AY$102,2,FALSE)),"",VLOOKUP(W136,Totals!$AX$3:$AY$102,2,FALSE)) -> 8 | W136: 1
H137: =IF(ISNA(VLOOKUP(I137,Totals!$AX$3:$AY$102,2,FALSE)),"",VLOOKUP(I137,Totals!$AX$3:$AY$102,2,FALSE)) -> 8 | I137: 1 | O137: =IF(ISNA(VLOOKUP(P137,Totals!$AX$3:$AY$102,2,FALSE)),"",VLOOKUP(P137,Totals!$AX$3:$AY$102,2,FALSE)) -> 8 | P137: 1 | V137: =IF(ISNA(VLOOKUP(W137,Totals!$AX$3:$AY$102,2,FALSE)),"",VLOOKUP(W137,Totals!$AX$3:$AY$102,2,FALSE)) -> 8 | W137: 1
H138: =IF(ISNA(VLOOKUP(I138,Totals!$AX$3:$AY$102,2,FALSE)),"",VLOOKUP(I138,Totals!$AX$3:$AY$102,2,FALSE)) -> 8 | I138: 1 | O138: =IF(ISNA(VLOOKUP(P138,Totals!$AX$3:$AY$102,2,FALSE)),"",VLOOKUP(P138,Totals!$AX$3:$AY$102,2,FALSE)) -> 8 | P138: 1 | V138: =IF(ISNA(VLOOKUP(W138,Totals!$AX$3:$AY$102,2,FALSE)),"",VLOOKUP(W138,Totals!$AX$3:$AY$102,2,FALSE)) -> 8 | W138: 1
H139: =IF(ISNA(VLOOKUP(I139,Totals!$AX$3:$AY$102,2,FALSE)),"",VLOOKUP(I139,Totals!$AX$3:$AY$102,2,FALSE)) -> 8 | I139: 1 | O139: =IF(ISNA(VLOOKUP(P139,Totals!$AX$3:$AY$102,2,FALSE)),"",VLOOKUP(P139,Totals!$AX$3:$AY$102,2,FALSE)) -> 8 | P139: 1 | V139: =IF(ISNA(VLOOKUP(W139,Totals!$AX$3:$AY$102,2,FALSE)),"",VLOOKUP(W139,Totals!$AX$3:$AY$102,2,FALSE)) -> 8 | W139: 1
H140: =IF(ISNA(VLOOKUP(I140,Totals!$AX$3:$AY$102,2,FALSE)),"",VLOOKUP(I140,Totals!$AX$3:$AY$102,2,FALSE)) -> 8 | I140: 1 | O140: =IF(ISNA(VLOOKUP(P140,Totals!$AX$3:$AY$102,2,FALSE)),"",VLOOKUP(P140,Totals!$AX$3:$AY$102,2,FALSE)) -> 8 | P140: 1 | V140: =IF(ISNA(VLOOKUP(W140,Totals!$AX$3:$AY$102,2,FALSE)),"",VLOOKUP(W140,Totals!$AX$3:$AY$102,2,FALSE)) -> 8 | W140: 1
H141: =IF(ISNA(VLOOKUP(I141,Totals!$AX$3:$AY$102,2,FALSE)),"",VLOOKUP(I141,Totals!$AX$3:$AY$102,2,FALSE)) -> 8 | I141: 1 | O141: =IF(ISNA(VLOOKUP(P141,Totals!$AX$3:$AY$102,2,FALSE)),"",VLOOKUP(P141,Totals!$AX$3:$AY$102,2,FALSE)) -> 8 | P141: 1 | V141: =IF(ISNA(VLOOKUP(W141,Totals!$AX$3:$AY$102,2,FALSE)),"",VLOOKUP(W141,Totals!$AX$3:$AY$102,2,FALSE)) -> 8 | W141: 1
H142: =IF(ISNA(VLOOKUP(I142,Totals!$AX$3:$AY$102,2,FALSE)),"",VLOOKUP(I142,Totals!$AX$3:$AY$102,2,FALSE)) -> 8 | I142: 1 | O142: =IF(ISNA(VLOOKUP(P142,Totals!$AX$3:$AY$102,2,FALSE)),"",VLOOKUP(P142,Totals!$AX$3:$AY$102,2,FALSE)) -> 8 | P142: 1 | V142: =IF(ISNA(VLOOKUP(W142,Totals!$AX$3:$AY$102,2,FALSE)),"",VLOOKUP(W142,Totals!$AX$3:$AY$102,2,FALSE)) -> 8 | W142: 1
H143: =IF(ISNA(VLOOKUP(I143,Totals!$AX$3:$AY$102,2,FALSE)),"",VLOOKUP(I143,Totals!$AX$3:$AY$102,2,FALSE)) -> 8 | I143: 1 | O143: =IF(ISNA(VLOOKUP(P143,Totals!$AX$3:$AY$102,2,FALSE)),"",VLOOKUP(P143,Totals!$AX$3:$AY$102,2,FALSE)) -> 8 | P143: 1 | V143: =IF(ISNA(VLOOKUP(W143,Totals!$AX$3:$AY$102,2,FALSE)),"",VLOOKUP(W143,Totals!$AX$3:$AY$102,2,FALSE)) -> 8 | W143: 1
H144: =IF(ISNA(VLOOKUP(I144,Totals!$AX$3:$AY$102,2,FALSE)),"",VLOOKUP(I144,Totals!$AX$3:$AY$102,2,FALSE)) -> 8 | I144: 1 | O144: =IF(ISNA(VLOOKUP(P144,Totals!$AX$3:$AY$102,2,FALSE)),"",VLOOKUP(P144,Totals!$AX$3:$AY$102,2,FALSE)) -> 8 | P144: 1 | V144: =IF(ISNA(VLOOKUP(W144,Totals!$AX$3:$AY$102,2,FALSE)),"",VLOOKUP(W144,Totals!$AX$3:$AY$102,2,FALSE)) -> 8 | W144: 1
H145: =IF(ISNA(VLOOKUP(I145,Totals!$AX$3:$AY$102,2,FALSE)),"",VLOOKUP(I145,Totals!$AX$3:$AY$102,2,FALSE)) -> 8 | I145: 1 | O145: =IF(ISNA(VLOOKUP(P145,Totals!$AX$3:$AY$102,2,FALSE)),"",VLOOKUP(P145,Totals!$AX$3:$AY$102,2,FALSE)) -> 8 | P145: 1 | V145: =IF(ISNA(VLOOKUP(W145,Totals!$AX$3:$AY$102,2,FALSE)),"",VLOOKUP(W145,Totals!$AX$3:$AY$102,2,FALSE)) -> 8 | W145: 1
H146: =IF(ISNA(VLOOKUP(I146,Totals!$AX$3:$AY$102,2,FALSE)),"",VLOOKUP(I146,Totals!$AX$3:$AY$102,2,FALSE)) -> 8 | I146: 1 | O146: =IF(ISNA(VLOOKUP(P146,Totals!$AX$3:$AY$102,2,FALSE)),"",VLOOKUP(P146,Totals!$AX$3:$AY$102,2,FALSE)) -> 8 | P146: 1 | V146: =IF(ISNA(VLOOKUP(W146,Totals!$AX$3:$AY$102,2,FALSE)),"",VLOOKUP(W146,Totals!$AX$3:$AY$102,2,FALSE)) -> 8 | W146: 1
H147: =IF(ISNA(VLOOKUP(I147,Totals!$AX$3:$AY$102,2,FALSE)),"",VLOOKUP(I147,Totals!$AX$3:$AY$102,2,FALSE)) -> 8 | I147: 1 | O147: =IF(ISNA(VLOOKUP(P147,Totals!$AX$3:$AY$102,2,FALSE)),"",VLOOKUP(P147,Totals!$AX$3:$AY$102,2,FALSE)) -> 8 | P147: 1 | V147: =IF(ISNA(VLOOKUP(W147,Totals!$AX$3:$AY$102,2,FALSE)),"",VLOOKUP(W147,Totals!$AX$3:$AY$102,2,FALSE)) -> 8 | W147: 1
H148: =IF(ISNA(VLOOKUP(I148,Totals!$AX$3:$AY$102,2,FALSE)),"",VLOOKUP(I148,Totals!$AX$3:$AY$102,2,FALSE)) -> 8 | I148: 1 | O148: =IF(ISNA(VLOOKUP(P148,Totals!$AX$3:$AY$102,2,FALSE)),"",VLOOKUP(P148,Totals!$AX$3:$AY$102,2,FALSE)) -> 8 | P148: 1 | V148: =IF(ISNA(VLOOKUP(W148,Totals!$AX$3:$AY$102,2,FALSE)),"",VLOOKUP(W148,Totals!$AX$3:$AY$102,2,FALSE)) -> 8 | W148: 1
H149: =IF(ISNA(VLOOKUP(I149,Totals!$AX$3:$AY$102,2,FALSE)),"",VLOOKUP(I149,Totals!$AX$3:$AY$102,2,FALSE)) -> 8 | I149: 1 | O149: =IF(ISNA(VLOOKUP(P149,Totals!$AX$3:$AY$102,2,FALSE)),"",VLOOKUP(P149,Totals!$AX$3:$AY$102,2,FALSE)) -> 8 | P149: 1 | V149: =IF(ISNA(VLOOKUP(W149,Totals!$AX$3:$AY$102,2,FALSE)),"",VLOOKUP(W149,Totals!$AX$3:$AY$102,2,FALSE)) -> 8 | W149: 1
H150: =IF(ISNA(VLOOKUP(I150,Totals!$AX$3:$AY$102,2,FALSE)),"",VLOOKUP(I150,Totals!$AX$3:$AY$102,2,FALSE)) -> 8 | I150: 1 | O150: =IF(ISNA(VLOOKUP(P150,Totals!$AX$3:$AY$102,2,FALSE)),"",VLOOKUP(P150,Totals!$AX$3:$AY$102,2,FALSE)) -> 8 | P150: 1 | V150: =IF(ISNA(VLOOKUP(W150,Totals!$AX$3:$AY$102,2,FALSE)),"",VLOOKUP(W150,Totals!$AX$3:$AY$102,2,FALSE)) -> 8 | W150: 1
